Workbook

Sheet START
C1: EKONOMIA | J1: ZAPAS | R1: ZALECENIA i UWAGI
C2: T 39. | J2: =C2 -> T 39. | R2: KOLEJNE TYGODNIE

Sheet Filtr
A2: Wybieraj sklepy z którym się porównujesz | E2: Wybieraj sport albo sporty który ci interesują | AA2: Bialystok | AC2: Result
A3: Jeżeli pola sklepu albo sport ma być pusta, wybieraj i tak z listy wyboru | AA3: Bielsko - Biala | AC3: Aquagym univ
AA4: Bydgoszcz Fordon | AC4: Atlhétic running Univ
A5: Sklep 1 | B5: Bydgoszcz Fordon | E5: Sport 1 | F5: Boxing Univ | AA5: Bytom | AC5: Badminton univ
A6: Sklep 2 | E6: Sport 2 | AA6: Czestochowa | AC6: Baseball American Football Univ
A7: Sklep 3 | E7: Sport 3 | AA7: decathlon.pl Gliwice | AC7: Basket univ
A8: Sklep 4 | E8: Sport 4 | AA8: Franowo | AC8: Boating, Sailing, Dinghy, Windsurf
A9: Sklep 5 | E9: Sport 5 | AA9: Gdansk Kartuska | AC9: Boxing Univ
A10: Sklep 6 | E10: Sport 6 | AA10: Gdansk Przymorze | AC10: Canyoning univ
A11: Sklep 7 | E11: Sport 7 | AA11: Gliwice | AC11: Carpe fishing univ
A12: Sklep 8 | E12: Sport 8 | AA12: Inowroclaw | AC12: Climbing, Mountaineering univ
AA13: Kalisz | AC13: Coarse fishing univ
B14: I FILTRUJ W KAŻDYM ARKUSZIE KLIKUJĄC NA "FILTRUJ ARKUSZ" | AA14: Katowice | AC14: Cross country ski univ
B15: MOŻESZ "ODFLITROWAĆ" KLIKUJĄC NA "ODFILTRUJ" | AA15: Katowice Dabrowka | AC15: Cross-training, bodybuilding univ
AA16: Kielce | AC16: Dance, Artistic/Rhythmic Gym univ
AA17: Koszalin | AC17: Diving univ
AA18: Krakow Plaza | AC18: Field hockey Univ
AA19: Krakow Zakopianska | AC19: Fitness Cardio univ
AA20: Legnica | AC20: Football univ
AA21: Lodz | AC21: Golf univ
AA22: Lodz Manufaktura | AC22: Gym, Pilates univ
AA23: Lublin Czechow | AC23: Handball univ
AA24: Lublin Weglin | AC24: Hiking univ
AA25: Mikolow | AC25: Horse riding univ
AA26: Opole | AC26: Hunting univ
AA27: Ostrobramska | AC27: Hybrid cycling Univ
AA28: OSTROLEKA | AC28: Intermodal Cyling Univ
AA29: Plock | AC29: Jogging Univ
AA30: Poznan Komorniki | AC30: Kayak, stand up paddle univ
AA31: Poznan Swadzim | AC31: Kid cycling Univ
AA32: Radom | AC32: Kite sports univ
AA33: Rumia | AC33: Martial Arts Univ
AA34: Rybnik | AC34: Mountain Bike Univ
AA35: Rzeszow | AC35: Orienting run Univ
AA36: SC Lodz | AC36: Padel univ
AA37: Slupsk | AC37: predator fishing
AA38: Sosnowiec | AC38: Road cycling Univ
AA39: Szczecin Struga | AC39: Road running Univ
AA40: Szczecin Ustowo | AC40: Rugby univ
AA41: Tarnow | AC41: saltwater Fishing univ
AA42: Torun | AC42: Services
AA43: Walbrzych (Szczawno – Zdroj) | AC43: Skate Scooter Inline univ
AA44: Warszawa Bemowo | AC44: Ski Snowboard Sledge univ
AA45: Warszawa Okecie | AC45: Squash univ
AA46: Warszawa Piaseczno | AC46: Surf, bodyboard, towed/aerial sports
AA47: Warszawa Reduta | AC47: Swimming univ
AA48: Warszawa Targowek | AC48: Table tennis univ
AA49: Wroclaw Bielany | AC49: Target sport univ
AA50: Wroclaw Korona | AC50: Tennis univ
AA51: Wroclaw Magnolia | AC51: Trail running Univ
AA52: Zielona Gora | AC52: Trekking several days univ
AA53: Zory | AC53: Triathlon, Nutrition & Care univ
AC54: Univ Iceskating, Ice hockey
AC55: Urban cycling univ
AC56: Volleyball Univ
AC57: Walking univ
AC58: Waterpolo Univ
AC59: Workshop Univ
AC60: Yoga univ

Sheet Podsum. sklep
D1: Summary results Stores Decathlon Poland
M2: OBRÓT | Z2: STOCK | AE2: Czas dostawy CAR | AK2: Świeżość produktów
E3: Obrót | J3: Satysfakcja klienta | L3: Progresja Obrótu | N3: Progresja Ilości | P3: Marża | R3: Koszyk YTD | U3: Paragony YTD | V3: Końca serii | W3: EPV ratio | X3: Braki | Z3: Zam. Ręczn | AB3: Stock | AD3: Stock vs. | AE3: Ldt | AF3: Ldt | AG3: Ldt | AI3: Świeżość Tydzień -1 | AN3: Świeżość Tydzień YTD
D4: Sklep | E4: T-1 | F4: YTD | G4: Prod M8 | H4: Prod YTD | I4: Rank Obrót | J4: dostępność M | K4: dostępności YTD | L4: Prog T-1 | M4: Prog YTD | N4: Prog T-1 | O4: Prog YTD | P4: W-1 | Q4: YTD | R4: Wartość | S4: Wrzost | T4: Ilość | U4: Wrzost | V4: Ilość | W4: YTD | X4: T-1 | Y4: YTD | Z4: 4 Tyg | AA4: YTD | AB4: Ilość | AC4: Rank | AD4: TO | AE4: YTD | AF4: 4 Tyg | AG4: T-1 | AH4: %<24g | AI4: %<48g | AJ4: %<72g | AK4: %<96g | AL4: %>120g | AM4: %<24g | AN4: %<48g | AO4: %<72g | AP4: %<96g | AQ4: %>120g
C5: Result | D5: Overall Result | E5: =SUM(E6:E56) -> 28632414.68 | F5: =SUM(F6:F56) -> 1540347606 | G5: =VLOOKUP(D5,[1]Produktywnosc!$B$6:$L$56,10,0) -> 626.6474317 | H5: =VLOOKUP(D5,[1]Produktywnosc!$B$6:$L$56,11,0) -> 580.5234067 | J5: ='Open voice'!P2 -> 4.31 | K5: ='Open voice'!F2 -> 4.26 | L5: ='WYNIKI EKO SPORTS'!D70 -> 0.06538517813 | M5: ='WYNIKI EKO SPORTS'!D199 -> 0.0175453947 | N5: ='WYNIKI EKO SPORTS'!E70 -> 0.04672200752 | O5: ='WYNIKI EKO SPORTS'!E199 -> -0.03188486457 | P5: ='WYNIKI EKO SPORTS'!C70 -> 0.2474675353 | Q5: ='WYNIKI EKO SPORTS'!C199 -> 0.2440783153 | R5: =IFERROR(VLOOKUP(D5,[2]Sheet1!$C$1:$L$65536,7,0),"") -> 127.1427517 | S5: =IFERROR(VLOOKUP(D5,[2]Sheet1!$C$1:$L$65536,8,0),"") -> -0.004295341548 | T5: =IFERROR(VLOOKUP(D5,[2]Sheet1!$C$1:$L$65536,10,0),"") -> 2.960158738 | U5: =IFERROR(VLOOKUP(D5,[2]Sheet1!$C$1:$L$65536,6,0),"") -> 0.05223499673 | V5: ='Stary Zapas Sport i Europa'!K34 -> 0.09125723136 | W5: ='EPV Sklep Sport'!H26 -> 0.03061034722 | X5: =VLOOKUP(D5,'[3]Shortage rate_Stores'!$A$115:$C$192,3,0) -> 0.09134362768 | Y5: =VLOOKUP(D5,'[3]Shortage rate_Stores'!$E$115:$G$189,3,0) -> 0.0845834997 | Z5: ='zamówienia reczne Polska'!V30 -> 0.3904245369 | AA5: ='zamówienia reczne Polska'!Y30 -> 0.3821657999 | AE5: =VLOOKUP(D5,[4]LTD!$A$1:$C$65536,3,0) -> 2.103394209 | AF5: =VLOOKUP(D5,[4]LTD!$E$1:$G$65536,3,0) -> 1.765880082 | AG5: =VLOOKUP(D5,[4]LTD!$I$1:$K$65536,3,0) -> 1.797456043 | AH5: ='[4]% delivery'!$C$3 -> 0.1556734705 | AI5: ='[4]% delivery'!$D$3 -> 0.7232258323 | AJ5: ='[4]% delivery'!$E$3 -> 0.9554654899 | AK5: ='[4]% delivery'!$F$3 -> 0.9962483502 | AL5: ='[4]% delivery'!$H$3 -> 0.001095897716 | AM5: ='[4]% delivery'!$C$3 -> 0.1556734705 | AN5: ='[4]% delivery'!$D$3 -> 0.7232258323 | AO5: ='[4]% delivery'!$E$3 -> 0.9554654899 | AP5: ='[4]% delivery'!$F$3 -> 0.9962483502 | AQ5: ='[4]% delivery'!$H$3 -> 0.001095897716
C6: Result | D6: Decathlon.pl Lodz | E6: ='WYNIKI EKO SKLEPY'!$D$3 -> 3458519.06 | F6: =[5]Sheet1!$I$3 -> 150086355.1 | L6: ='WYNIKI EKO SKLEPY'!E3 -> 0.1694302019 | M6: =[5]Sheet1!$J$3 -> 0.1833329863 | N6: =IFERROR(VLOOKUP(D6,'WYNIKI EKO SKLEPY'!C:H,6,0),"") ->  | O6: =IFERROR(VLOOKUP(D6,'WYNIKI EKO SKLEPY'!J:O,6,),"") ->  | P6: =IFERROR(VLOOKUP(D6,'WYNIKI EKO SKLEPY'!C:H,4,0),"") ->  | Q6: =IFERROR(VLOOKUP(D6,'WYNIKI EKO SKLEPY'!J:O,4,),"") -> 
A7: =C7&B7 -> 272Result | B7: Result | C7: 272 | D7: Warszawa Targowek | E7: =IFERROR(VLOOKUP(D7,'WYNIKI EKO SKLEPY'!C:H,2,0),"") -> 1551292.73 | F7: =IFERROR(VLOOKUP(D7,'WYNIKI EKO SKLEPY'!J:O,2,),"") -> 85271507.94 | G7: =VLOOKUP(C7,[1]Produktywnosc!$B$6:$L$56,10,0) -> 677.524876 | H7: =VLOOKUP(C7,[1]Produktywnosc!$B$6:$L$56,11,0) -> 626.1910965 | I7: =IFERROR(RANK(F7,$F$7:$F$57,0),"") -> 1 | J7: =VLOOKUP(C7,'Open voice'!K:S,6,0) -> 4.31 | K7: =VLOOKUP(C7,'Open voice'!A:I,6,0) -> 4.26 | L7: =IFERROR(VLOOKUP(D7,'WYNIKI EKO SKLEPY'!C:H,3,0),"") -> -0.02345686734 | M7: =IFERROR(VLOOKUP(D7,'WYNIKI EKO SKLEPY'!J:O,3,),"") -> -0.1185282372 | N7: =IFERROR(VLOOKUP(D7,'WYNIKI EKO SKLEPY'!C:H,6,0),"") -> -0.09987614565 | O7: =IFERROR(VLOOKUP(D7,'WYNIKI EKO SKLEPY'!J:O,6,),"") -> -0.1678969839 | P7: =IFERROR(VLOOKUP(D7,'WYNIKI EKO SKLEPY'!C:H,4,0),"") -> 0.2475430153 | Q7: =IFERROR(VLOOKUP(D7,'WYNIKI EKO SKLEPY'!J:O,4,),"") -> 0.2483462949 | R7: =IFERROR(VLOOKUP(D7,[2]Sheet1!$D$1:$L$65536,6,0),"") -> 164.9110823 | S7: =IFERROR(VLOOKUP(D7,[2]Sheet1!$D$1:$L$65536,7,0),"") -> -0.0323220703 | T7: =IFERROR(VLOOKUP(D7,[2]Sheet1!$D$1:$L$65536,9,0),"") -> 3.678637003 | U7: =IFERROR(VLOOKUP(D7,[2]Sheet1!$D$1:$L$65536,5,0),"") -> -0.07934838784 | V7: =IFERROR(VLOOKUP(A7,'Stary Zapas Dane i Rotacja'!A:AA,22,0)+VLOOKUP(A7,'Stary Zapas Dane i Rotacja'!A:AA,26,0),"") -> 0.1154013468 | W7: =IFERROR(VLOOKUP(A7,'EPV Sklep Sport'!A:I,8,0),"") -> 0.03484651991 | X7: =IFERROR(VLOOKUP(D7,'[3]Shortage rate_Stores'!$B$115:$C$192,2,0),"") -> 0.08381728647 | Y7: =IFERROR(VLOOKUP(D7,'[3]Shortage rate_Stores'!$F$115:$G$189,2,0),"") -> 0.08713895332 | Z7: =IFERROR(VLOOKUP(A7,'zamówienia reczne Polska'!A:M,10,0),"") -> 0.4947404123 | AA7: =IFERROR(VLOOKUP(A7,'zamówienia reczne Polska'!A:M,13,0),"") -> 0.394111028 | AB7: =IFERROR(VLOOKUP(A7,'Stary Zapas Dane i Rotacja'!A:N,9,0),"") -> 172407 | AC7: =IFERROR(RANK(AB7,$AB$7:$AB$57,0),"") -> 1 | AD7: =IFERROR(AC7-I7,"") -> 0 | AE7: =IFERROR(VLOOKUP(D7,[4]LTD!$B$1:$C$65536,2,0),"") -> 1.899566583 | AF7: =IFERROR(VLOOKUP(D7,[4]LTD!$F$1:$G$65536,2,0),"") -> 1.546060173 | AG7: =IFERROR(VLOOKUP(D7,[4]LTD!$J$1:$K$65536,2,0),"") -> 1.506491883 | AH7: =IFERROR(VLOOKUP(D7,'[4]% delivery'!$B$1:$H$65536,2,0),"") -> 0.2401881146 | AI7: =IFERROR(VLOOKUP(D7,'[4]% delivery'!$B$1:$H$65536,3,0),"") -> 0.864942283 | AJ7: =IFERROR(VLOOKUP(D7,'[4]% delivery'!$B$1:$H$65536,4,0),"") -> 0.9974775545 | AK7: =IFERROR(VLOOKUP(D7,'[4]% delivery'!$B$1:$H$65536,5,0),"") -> 0.9997862334 | AL7: =IFERROR(VLOOKUP(D7,'[4]% delivery'!$B$1:$H$65536,7,0),"") -> 0.0001282599401 | AM7: =IFERROR(VLOOKUP(D7,'[4]% delivery YTD'!$B$1:$H$65536,2,0),"") -> 0.2031543162 | AN7: =IFERROR(VLOOKUP(D7,'[4]% delivery YTD'!$B$1:$H$65536,3,0),"") -> 0.7593174267 | AO7: =IFERROR(VLOOKUP(D7,'[4]% delivery YTD'!$B$1:$H$65536,4,0),"") -> 0.9158755836 | AP7: =IFERROR(VLOOKUP(D7,'[4]% delivery YTD'!$B$1:$H$65536,5,0),"") -> 0.9631891623 | AQ7: =IFERROR(VLOOKUP(D7,'[4]% delivery YTD'!$B$1:$H$65536,6,0),"") -> 0.9822694912
A8: =C8&B8 -> 339Result | B8: Result | C8: 339 | D8: Warszawa Reduta | E8: =IFERROR(VLOOKUP(D8,'WYNIKI EKO SKLEPY'!C:H,2,0),"") -> 759362.94 | F8: =IFERROR(VLOOKUP(D8,'WYNIKI EKO SKLEPY'!J:O,2,),"") -> 40906390.81 | G8: =VLOOKUP(C8,[1]Produktywnosc!$B$6:$L$56,10,0) -> 623.0630645 | H8: =VLOOKUP(C8,[1]Produktywnosc!$B$6:$L$56,11,0) -> 568.1545545 | I8: =IFERROR(RANK(F8,$F$7:$F$57,0),"") -> 9 | J8: =VLOOKUP(C8,'Open voice'!K:S,6,0) -> 4.42 | K8: =VLOOKUP(C8,'Open voice'!A:I,6,0) -> 4.21 | L8: =IFERROR(VLOOKUP(D8,'WYNIKI EKO SKLEPY'!C:H,3,0),"") -> -0.07000330267 | M8: =IFERROR(VLOOKUP(D8,'WYNIKI EKO SKLEPY'!J:O,3,),"") -> -0.1300009544 | N8: =IFERROR(VLOOKUP(D8,'WYNIKI EKO SKLEPY'!C:H,6,0),"") -> -0.08364320801 | O8: =IFERROR(VLOOKUP(D8,'WYNIKI EKO SKLEPY'!J:O,6,),"") -> -0.1608441924 | P8: =IFERROR(VLOOKUP(D8,'WYNIKI EKO SKLEPY'!C:H,4,0),"") -> 0.2554033517 | Q8: =IFERROR(VLOOKUP(D8,'WYNIKI EKO SKLEPY'!J:O,4,),"") -> 0.2568807703 | R8: =IFERROR(VLOOKUP(D8,[2]Sheet1!$D$1:$L$65536,6,0),"") -> 127.1194524 | S8: =IFERROR(VLOOKUP(D8,[2]Sheet1!$D$1:$L$65536,7,0),"") -> 0.0006162935161 | T8: =IFERROR(VLOOKUP(D8,[2]Sheet1!$D$1:$L$65536,9,0),"") -> 3.141077201 | U8: =IFERROR(VLOOKUP(D8,[2]Sheet1!$D$1:$L$65536,5,0),"") -> -0.1210632956 | V8: =IFERROR(VLOOKUP(A8,'Stary Zapas Dane i Rotacja'!A:AA,22,0)+VLOOKUP(A8,'Stary Zapas Dane i Rotacja'!A:AA,26,0),"") -> 0.08219500971 | W8: =IFERROR(VLOOKUP(A8,'EPV Sklep Sport'!A:I,8,0),"") -> 0.03521208594 | X8: =IFERROR(VLOOKUP(D8,'[3]Shortage rate_Stores'!$B$115:$C$192,2,0),"") -> 0.09887481655 | Y8: =IFERROR(VLOOKUP(D8,'[3]Shortage rate_Stores'!$F$115:$G$189,2,0),"") -> 0.08899676375 | Z8: =IFERROR(VLOOKUP(A8,'zamówienia reczne Polska'!A:M,10,0),"") -> 0.396312851 | AA8: =IFERROR(VLOOKUP(A8,'zamówienia reczne Polska'!A:M,13,0),"") -> 0.4481776557 | AB8: =IFERROR(VLOOKUP(A8,'Stary Zapas Dane i Rotacja'!A:N,9,0),"") -> 89093 | AC8: =IFERROR(RANK(AB8,$AB$7:$AB$57,0),"") -> 13 | AD8: 4 | AE8: =IFERROR(VLOOKUP(D8,[4]LTD!$B$1:$C$65536,2,0),"") -> 1.846328214 | AF8: =IFERROR(VLOOKUP(D8,[4]LTD!$F$1:$G$65536,2,0),"") -> 1.704770642 | AG8: =IFERROR(VLOOKUP(D8,[4]LTD!$J$1:$K$65536,2,0),"") -> 1.801781677 | AH8: =IFERROR(VLOOKUP(D8,'[4]% delivery'!$B$1:$H$65536,2,0),"") -> 0.1212485844 | AI8: =IFERROR(VLOOKUP(D8,'[4]% delivery'!$B$1:$H$65536,3,0),"") -> 0.7137599094 | AJ8: =IFERROR(VLOOKUP(D8,'[4]% delivery'!$B$1:$H$65536,4,0),"") -> 0.9919309173 | AK8: =IFERROR(VLOOKUP(D8,'[4]% delivery'!$B$1:$H$65536,5,0),"") -> 0.9996460929 | AL8: =IFERROR(VLOOKUP(D8,'[4]% delivery'!$B$1:$H$65536,7,0),"") -> 0.0003539071348 | AM8: =IFERROR(VLOOKUP(D8,'[4]% delivery YTD'!$B$1:$H$65536,2,0),"") -> 0.1589936023 | AN8: =IFERROR(VLOOKUP(D8,'[4]% delivery YTD'!$B$1:$H$65536,3,0),"") -> 0.7733787118 | AO8: =IFERROR(VLOOKUP(D8,'[4]% delivery YTD'!$B$1:$H$65536,4,0),"") -> 0.9311651313 | AP8: =IFERROR(VLOOKUP(D8,'[4]% delivery YTD'!$B$1:$H$65536,5,0),"") -> 0.9723057008 | AQ8: =IFERROR(VLOOKUP(D8,'[4]% delivery YTD'!$B$1:$H$65536,6,0),"") -> 0.9880827066
A9: 376Result | B9: Result | C9: 376 | D9: Wroclaw Bielany | E9: =IFERROR(VLOOKUP(D9,'WYNIKI EKO SKLEPY'!C:H,2,0),"") -> 756459.3 | F9: =IFERROR(VLOOKUP(D9,'WYNIKI EKO SKLEPY'!J:O,2,),"") -> 41928423.35 | G9: =VLOOKUP(C9,[1]Produktywnosc!$B$6:$L$56,10,0) -> 666.268833 | H9: =VLOOKUP(C9,[1]Produktywnosc!$B$6:$L$56,11,0) -> 577.6405468 | I9: =IFERROR(RANK(F9,$F$7:$F$57,0),"") -> 8 | J9: =VLOOKUP(C9,'Open voice'!K:S,6,0) -> 4.14 | K9: =VLOOKUP(C9,'Open voice'!A:I,6,0) -> 4.24 | L9: =IFERROR(VLOOKUP(D9,'WYNIKI EKO SKLEPY'!C:H,3,0),"") -> 0.08773612405 | M9: =IFERROR(VLOOKUP(D9,'WYNIKI EKO SKLEPY'!J:O,3,),"") -> 0.007983768685 | N9: =IFERROR(VLOOKUP(D9,'WYNIKI EKO SKLEPY'!C:H,6,0),"") -> -0.005303734485 | O9: =IFERROR(VLOOKUP(D9,'WYNIKI EKO SKLEPY'!J:O,6,),"") -> -0.06369119445 | P9: =IFERROR(VLOOKUP(D9,'WYNIKI EKO SKLEPY'!C:H,4,0),"") -> 0.2527076473 | Q9: =IFERROR(VLOOKUP(D9,'WYNIKI EKO SKLEPY'!J:O,4,),"") -> 0.2480731375 | R9: =IFERROR(VLOOKUP(D9,[2]Sheet1!$D$1:$L$65536,6,0),"") -> 140.9337228 | S9: =IFERROR(VLOOKUP(D9,[2]Sheet1!$D$1:$L$65536,7,0),"") -> 0.04127383954 | T9: =IFERROR(VLOOKUP(D9,[2]Sheet1!$D$1:$L$65536,9,0),"") -> 3.18856289 | U9: =IFERROR(VLOOKUP(D9,[2]Sheet1!$D$1:$L$65536,5,0),"") -> -0.02261587781 | V9: =IFERROR(VLOOKUP(A9,'Stary Zapas Dane i Rotacja'!A:AA,22,0)+VLOOKUP(A9,'Stary Zapas Dane i Rotacja'!A:AA,26,0),"") -> 0.1029585165 | W9: =IFERROR(VLOOKUP(A9,'EPV Sklep Sport'!A:I,8,0),"") -> 0.03447480791 | X9: =IFERROR(VLOOKUP(D9,'[3]Shortage rate_Stores'!$B$115:$C$192,2,0),"") -> 0.08018867925 | Y9: =IFERROR(VLOOKUP(D9,'[3]Shortage rate_Stores'!$F$115:$G$189,2,0),"") -> 0.08389704112 | Z9: =IFERROR(VLOOKUP(A9,'zamówienia reczne Polska'!A:M,10,0),"") -> 0.4122017552 | AA9: =IFERROR(VLOOKUP(A9,'zamówienia reczne Polska'!A:M,13,0),"") -> 0.3998144787 | AB9: =IFERROR(VLOOKUP(A9,'Stary Zapas Dane i Rotacja'!A:N,9,0),"") -> 111948 | AC9: 5 | AD9: -3 | AE9: =IFERROR(VLOOKUP(D9,[4]LTD!$B$1:$C$65536,2,0),"") -> 2.427331824 | AF9: =IFERROR(VLOOKUP(D9,[4]LTD!$F$1:$G$65536,2,0),"") -> 2.056097203 | AG9: =IFERROR(VLOOKUP(D9,[4]LTD!$J$1:$K$65536,2,0),"") -> 1.967771284 | AH9: =IFERROR(VLOOKUP(D9,'[4]% delivery'!$B$1:$H$65536,2,0),"") -> 0.03882813284 | AI9: =IFERROR(VLOOKUP(D9,'[4]% delivery'!$B$1:$H$65536,3,0),"") -> 0.6497441557 | AJ9: =IFERROR(VLOOKUP(D9,'[4]% delivery'!$B$1:$H$65536,4,0),"") -> 0.9847496739 | AK9: =IFERROR(VLOOKUP(D9,'[4]% delivery'!$B$1:$H$65536,5,0),"") -> 0.9997993378 | AL9: =IFERROR(VLOOKUP(D9,'[4]% delivery'!$B$1:$H$65536,7,0),"") -> 0 | AM9: =IFERROR(VLOOKUP(D9,'[4]% delivery YTD'!$B$1:$H$65536,2,0),"") -> 0.07106028612 | AN9: =IFERROR(VLOOKUP(D9,'[4]% delivery YTD'!$B$1:$H$65536,3,0),"") -> 0.5423546273 | AO9: =IFERROR(VLOOKUP(D9,'[4]% delivery YTD'!$B$1:$H$65536,4,0),"") -> 0.793550343 | AP9: =IFERROR(VLOOKUP(D9,'[4]% delivery YTD'!$B$1:$H$65536,5,0),"") -> 0.9022163143 | AQ9: =IFERROR(VLOOKUP(D9,'[4]% delivery YTD'!$B$1:$H$65536,6,0),"") -> 0.9482937729
A10: 380Result | B10: Result | C10: 380 | D10: Krakow Zakopianska | E10: =IFERROR(VLOOKUP(D10,'WYNIKI EKO SKLEPY'!C:H,2,0),"") -> 1342028.32 | F10: =IFERROR(VLOOKUP(D10,'WYNIKI EKO SKLEPY'!J:O,2,),"") -> 69054993.32 | G10: =VLOOKUP(C10,[1]Produktywnosc!$B$6:$L$56,10,0) -> 799.4093634 | H10: =VLOOKUP(C10,[1]Produktywnosc!$B$6:$L$56,11,0) -> 731.9615036 | I10: 2 | J10: =VLOOKUP(C10,'Open voice'!K:S,6,0) -> 4.3 | K10: =VLOOKUP(C10,'Open voice'!A:I,6,0) -> 4.28 | L10: =IFERROR(VLOOKUP(D10,'WYNIKI EKO SKLEPY'!C:H,3,0),"") -> 0.03185703721 | M10: =IFERROR(VLOOKUP(D10,'WYNIKI EKO SKLEPY'!J:O,3,),"") -> 0.02237911194 | N10: =IFERROR(VLOOKUP(D10,'WYNIKI EKO SKLEPY'!C:H,6,0),"") -> 0.01025404157 | O10: =IFERROR(VLOOKUP(D10,'WYNIKI EKO SKLEPY'!J:O,6,),"") -> -0.01344977064 | P10: =IFERROR(VLOOKUP(D10,'WYNIKI EKO SKLEPY'!C:H,4,0),"") -> 0.2519210101 | Q10: =IFERROR(VLOOKUP(D10,'WYNIKI EKO SKLEPY'!J:O,4,),"") -> 0.251613356 | R10: =IFERROR(VLOOKUP(D10,[2]Sheet1!$D$1:$L$65536,6,0),"") -> 139.1535128 | S10: =IFERROR(VLOOKUP(D10,[2]Sheet1!$D$1:$L$65536,7,0),"") -> 0.04624167889 | T10: =IFERROR(VLOOKUP(D10,[2]Sheet1!$D$1:$L$65536,9,0),"") -> 3.245391953 | U10: =IFERROR(VLOOKUP(D10,[2]Sheet1!$D$1:$L$65536,5,0),"") -> -0.01302530447 | V10: =IFERROR(VLOOKUP(A10,'Stary Zapas Dane i Rotacja'!A:AA,22,0)+VLOOKUP(A10,'Stary Zapas Dane i Rotacja'!A:AA,26,0),"") -> 0.0940520503 | W10: =IFERROR(VLOOKUP(A10,'EPV Sklep Sport'!A:I,8,0),"") -> 0.03399599302 | X10: =IFERROR(VLOOKUP(D10,'[3]Shortage rate_Stores'!$B$115:$C$192,2,0),"") -> 0.09541094115 | Y10: =IFERROR(VLOOKUP(D10,'[3]Shortage rate_Stores'!$F$115:$G$189,2,0),"") -> 0.0924019467 | Z10: =IFERROR(VLOOKUP(A10,'zamówienia reczne Polska'!A:M,10,0),"") -> 0.3434220453 | AA10: =IFERROR(VLOOKUP(A10,'zamówienia reczne Polska'!A:M,13,0),"") -> 0.3547234354 | AB10: =IFERROR(VLOOKUP(A10,'Stary Zapas Dane i Rotacja'!A:N,9,0),"") -> 130566 | AC10: 3 | AD10: 1 | AE10: =IFERROR(VLOOKUP(D10,[4]LTD!$B$1:$C$65536,2,0),"") -> 2.382578658 | AF10: =IFERROR(VLOOKUP(D10,[4]LTD!$F$1:$G$65536,2,0),"") -> 1.932815266 | AG10: =IFERROR(VLOOKUP(D10,[4]LTD!$J$1:$K$65536,2,0),"") -> 1.975850873 | AH10: =IFERROR(VLOOKUP(D10,'[4]% delivery'!$B$1:$H$65536,2,0),"") -> 0.1170897019 | AI10: =IFERROR(VLOOKUP(D10,'[4]% delivery'!$B$1:$H$65536,3,0),"") -> 0.6311639809 | AJ10: =IFERROR(VLOOKUP(D10,'[4]% delivery'!$B$1:$H$65536,4,0),"") -> 0.8787606335 | AK10: =IFERROR(VLOOKUP(D10,'[4]% delivery'!$B$1:$H$65536,5,0),"") -> 0.9959194965 | AL10: =IFERROR(VLOOKUP(D10,'[4]% delivery'!$B$1:$H$65536,7,0),"") -> 0 | AM10: =IFERROR(VLOOKUP(D10,'[4]% delivery YTD'!$B$1:$H$65536,2,0),"") -> 0.1295890999 | AN10: =IFERROR(VLOOKUP(D10,'[4]% delivery YTD'!$B$1:$H$65536,3,0),"") -> 0.5311869208 | AO10: =IFERROR(VLOOKUP(D10,'[4]% delivery YTD'!$B$1:$H$65536,4,0),"") -> 0.7723432847 | AP10: =IFERROR(VLOOKUP(D10,'[4]% delivery YTD'!$B$1:$H$65536,5,0),"") -> 0.8863765627 | AQ10: =IFERROR(VLOOKUP(D10,'[4]% delivery YTD'!$B$1:$H$65536,6,0),"") -> 0.941127926
A11: 445Result | B11: Result | C11: 445 | D11: Sosnowiec | E11: =IFERROR(VLOOKUP(D11,'WYNIKI EKO SKLEPY'!C:H,2,0),"") -> 724088.74 | F11: =IFERROR(VLOOKUP(D11,'WYNIKI EKO SKLEPY'!J:O,2,),"") -> 40050838.28 | G11: =VLOOKUP(C11,[1]Produktywnosc!$B$6:$L$56,10,0) -> 667.395517 | H11: =VLOOKUP(C11,[1]Produktywnosc!$B$6:$L$56,11,0) -> 681.1518798 | I11: 10 | J11: =VLOOKUP(C11,'Open voice'!K:S,6,0) -> 4.28 | K11: =VLOOKUP(C11,'Open voice'!A:I,6,0) -> 4.3 | L11: =IFERROR(VLOOKUP(D11,'WYNIKI EKO SKLEPY'!C:H,3,0),"") -> 0.1198986189 | M11: =IFERROR(VLOOKUP(D11,'WYNIKI EKO SKLEPY'!J:O,3,),"") -> -0.01411268691 | N11: =IFERROR(VLOOKUP(D11,'WYNIKI EKO SKLEPY'!C:H,6,0),"") -> 0.1427923844 | O11: =IFERROR(VLOOKUP(D11,'WYNIKI EKO SKLEPY'!J:O,6,),"") -> -0.05954588817 | P11: =IFERROR(VLOOKUP(D11,'WYNIKI EKO SKLEPY'!C:H,4,0),"") -> 0.2481828125 | Q11: =IFERROR(VLOOKUP(D11,'WYNIKI EKO SKLEPY'!J:O,4,),"") -> 0.2431167258 | R11: =IFERROR(VLOOKUP(D11,[2]Sheet1!$D$1:$L$65536,6,0),"") -> 130.3988125 | S11: =IFERROR(VLOOKUP(D11,[2]Sheet1!$D$1:$L$65536,7,0),"") -> 0.03505680118 | T11: =IFERROR(VLOOKUP(D11,[2]Sheet1!$D$1:$L$65536,9,0),"") -> 2.867576076 | U11: =IFERROR(VLOOKUP(D11,[2]Sheet1!$D$1:$L$65536,5,0),"") -> -0.0375074169 | V11: =IFERROR(VLOOKUP(A11,'Stary Zapas Dane i Rotacja'!A:AA,22,0)+VLOOKUP(A11,'Stary Zapas Dane i Rotacja'!A:AA,26,0),"") -> 0.1073059814 | W11: =IFERROR(VLOOKUP(A11,'EPV Sklep Sport'!A:I,8,0),"") -> 0.03517751565 | X11: =IFERROR(VLOOKUP(D11,'[3]Shortage rate_Stores'!$B$115:$C$192,2,0),"") -> 0.07077214163 | Y11: =IFERROR(VLOOKUP(D11,'[3]Shortage rate_Stores'!$F$115:$G$189,2,0),"") -> 0.09223613292 | Z11: =IFERROR(VLOOKUP(A11,'zamówienia reczne Polska'!A:M,10,0),"") -> 0.3887870753 | AA11: =IFERROR(VLOOKUP(A11,'zamówienia reczne Polska'!A:M,13,0),"") -> 0.3329430875 | AB11: =IFERROR(VLOOKUP(A11,'Stary Zapas Dane i Rotacja'!A:N,9,0),"") -> 100712 | AC11: 8 | AD11: -2 | AE11: =IFERROR(VLOOKUP(D11,[4]LTD!$B$1:$C$65536,2,0),"") -> 2.524630285 | AF11: =IFERROR(VLOOKUP(D11,[4]LTD!$F$1:$G$65536,2,0),"") -> 2.007244698 | AG11: =IFERROR(VLOOKUP(D11,[4]LTD!$J$1:$K$65536,2,0),"") -> 2.043863799 | AH11: =IFERROR(VLOOKUP(D11,'[4]% delivery'!$B$1:$H$65536,2,0),"") -> 0.1412522469 | AI11: =IFERROR(VLOOKUP(D11,'[4]% delivery'!$B$1:$H$65536,3,0),"") -> 0.6342121031 | AJ11: =IFERROR(VLOOKUP(D11,'[4]% delivery'!$B$1:$H$65536,4,0),"") -> 0.8132115039 | AK11: =IFERROR(VLOOKUP(D11,'[4]% delivery'!$B$1:$H$65536,5,0),"") -> 0.987267825 | AL11: =IFERROR(VLOOKUP(D11,'[4]% delivery'!$B$1:$H$65536,7,0),"") -> 0.00209706411 | AM11: =IFERROR(VLOOKUP(D11,'[4]% delivery YTD'!$B$1:$H$65536,2,0),"") -> 0.1426637167 | AN11: =IFERROR(VLOOKUP(D11,'[4]% delivery YTD'!$B$1:$H$65536,3,0),"") -> 0.5035981378 | AO11: =IFERROR(VLOOKUP(D11,'[4]% delivery YTD'!$B$1:$H$65536,4,0),"") -> 0.7260892361 | AP11: =IFERROR(VLOOKUP(D11,'[4]% delivery YTD'!$B$1:$H$65536,5,0),"") -> 0.8687731185 | AQ11: =IFERROR(VLOOKUP(D11,'[4]% delivery YTD'!$B$1:$H$65536,6,0),"") -> 0.9310361715
A12: 453Result | B12: Result | C12: 453 | D12: Lublin Czechow | E12: =IFERROR(VLOOKUP(D12,'WYNIKI EKO SKLEPY'!C:H,2,0),"") -> 636366.83 | F12: =IFERROR(VLOOKUP(D12,'WYNIKI EKO SKLEPY'!J:O,2,),"") -> 35275302.93 | G12: =VLOOKUP(C12,[1]Produktywnosc!$B$6:$L$56,10,0) -> 617.945122 | H12: =VLOOKUP(C12,[1]Produktywnosc!$B$6:$L$56,11,0) -> 624.6342679 | I12: 15 | J12: =VLOOKUP(C12,'Open voice'!K:S,6,0) -> 4.44 | K12: =VLOOKUP(C12,'Open voice'!A:I,6,0) -> 4.38 | L12: =IFERROR(VLOOKUP(D12,'WYNIKI EKO SKLEPY'!C:H,3,0),"") -> -0.2236463042 | M12: =IFERROR(VLOOKUP(D12,'WYNIKI EKO SKLEPY'!J:O,3,),"") -> -0.1712656226 | N12: =IFERROR(VLOOKUP(D12,'WYNIKI EKO SKLEPY'!C:H,6,0),"") -> -0.2500582723 | O12: =IFERROR(VLOOKUP(D12,'WYNIKI EKO SKLEPY'!J:O,6,),"") -> -0.1985128876 | P12: =IFERROR(VLOOKUP(D12,'WYNIKI EKO SKLEPY'!C:H,4,0),"") -> 0.246624828 | Q12: =IFERROR(VLOOKUP(D12,'WYNIKI EKO SKLEPY'!J:O,4,),"") -> 0.2437848714 | R12: =IFERROR(VLOOKUP(D12,[2]Sheet1!$D$1:$L$65536,6,0),"") -> 123.4229752 | S12: =IFERROR(VLOOKUP(D12,[2]Sheet1!$D$1:$L$65536,7,0),"") -> -0.001347912123 | T12: =IFERROR(VLOOKUP(D12,[2]Sheet1!$D$1:$L$65536,9,0),"") -> 2.969370004 | U12: =IFERROR(VLOOKUP(D12,[2]Sheet1!$D$1:$L$65536,5,0),"") -> -0.159658146 | V12: =IFERROR(VLOOKUP(A12,'Stary Zapas Dane i Rotacja'!A:AA,22,0)+VLOOKUP(A12,'Stary Zapas Dane i Rotacja'!A:AA,26,0),"") -> 0.08906791146 | W12: =IFERROR(VLOOKUP(A12,'EPV Sklep Sport'!A:I,8,0),"") -> 0.03669968476 | X12: =IFERROR(VLOOKUP(D12,'[3]Shortage rate_Stores'!$B$115:$C$192,2,0),"") -> 0.1204429302 | Y12: =IFERROR(VLOOKUP(D12,'[3]Shortage rate_Stores'!$F$115:$G$189,2,0),"") -> 0.08246227847 | Z12: =IFERROR(VLOOKUP(A12,'zamówienia reczne Polska'!A:M,10,0),"") -> 0.2439161467 | AA12: =IFERROR(VLOOKUP(A12,'zamówienia reczne Polska'!A:M,13,0),"") -> 0.3987663668 | AB12: =IFERROR(VLOOKUP(A12,'Stary Zapas Dane i Rotacja'!A:N,9,0),"") -> 92974 | AC12: 11 | AD12: -4 | AE12: =IFERROR(VLOOKUP(D12,[4]LTD!$B$1:$C$65536,2,0),"") -> 2.228700889 | AF12: =IFERROR(VLOOKUP(D12,[4]LTD!$F$1:$G$65536,2,0),"") -> 1.859587488 | AG12: =IFERROR(VLOOKUP(D12,[4]LTD!$J$1:$K$65536,2,0),"") -> 1.968067486 | AH12: =IFERROR(VLOOKUP(D12,'[4]% delivery'!$B$1:$H$65536,2,0),"") -> 0.002698327037 | AI12: =IFERROR(VLOOKUP(D12,'[4]% delivery'!$B$1:$H$65536,3,0),"") -> 0.734664508 | AJ12: =IFERROR(VLOOKUP(D12,'[4]% delivery'!$B$1:$H$65536,4,0),"") -> 0.9815614319 | AK12: =IFERROR(VLOOKUP(D12,'[4]% delivery'!$B$1:$H$65536,5,0),"") -> 0.9992804461 | AL12: =IFERROR(VLOOKUP(D12,'[4]% delivery'!$B$1:$H$65536,7,0),"") -> 0.0007195538766 | AM12: =IFERROR(VLOOKUP(D12,'[4]% delivery YTD'!$B$1:$H$65536,2,0),"") -> 0.007663761775 | AN12: =IFERROR(VLOOKUP(D12,'[4]% delivery YTD'!$B$1:$H$65536,3,0),"") -> 0.6774213962 | AO12: =IFERROR(VLOOKUP(D12,'[4]% delivery YTD'!$B$1:$H$65536,4,0),"") -> 0.8783267642 | AP12: =IFERROR(VLOOKUP(D12,'[4]% delivery YTD'!$B$1:$H$65536,5,0),"") -> 0.9473390407 | AQ12: =IFERROR(VLOOKUP(D12,'[4]% delivery YTD'!$B$1:$H$65536,6,0),"") -> 0.972287512
A13: 480Result | B13: Result | C13: 480 | D13: Gliwice | E13: =IFERROR(VLOOKUP(D13,'WYNIKI EKO SKLEPY'!C:H,2,0),"") -> 446942.45 | F13: =IFERROR(VLOOKUP(D13,'WYNIKI EKO SKLEPY'!J:O,2,),"") -> 24449306.64 | G13: =VLOOKUP(C13,[1]Produktywnosc!$B$6:$L$56,10,0) -> 579.2330928 | H13: =VLOOKUP(C13,[1]Produktywnosc!$B$6:$L$56,11,0) -> 572.4424763 | I13: 26 | J13: =VLOOKUP(C13,'Open voice'!K:S,6,0) -> 4.29 | K13: =VLOOKUP(C13,'Open voice'!A:I,6,0) -> 4.25 | L13: =IFERROR(VLOOKUP(D13,'WYNIKI EKO SKLEPY'!C:H,3,0),"") -> 0.1341090132 | M13: =IFERROR(VLOOKUP(D13,'WYNIKI EKO SKLEPY'!J:O,3,),"") -> 0.04308981022 | N13: =IFERROR(VLOOKUP(D13,'WYNIKI EKO SKLEPY'!C:H,6,0),"") -> 0.1685835665 | O13: =IFERROR(VLOOKUP(D13,'WYNIKI EKO SKLEPY'!J:O,6,),"") -> 0.0002196722559 | P13: =IFERROR(VLOOKUP(D13,'WYNIKI EKO SKLEPY'!C:H,4,0),"") -> 0.243760869 | Q13: =IFERROR(VLOOKUP(D13,'WYNIKI EKO SKLEPY'!J:O,4,),"") -> 0.2435264295 | R13: =IFERROR(VLOOKUP(D13,[2]Sheet1!$D$1:$L$65536,6,0),"") -> 118.9052867 | S13: =IFERROR(VLOOKUP(D13,[2]Sheet1!$D$1:$L$65536,7,0),"") -> 0.04230815043 | T13: =IFERROR(VLOOKUP(D13,[2]Sheet1!$D$1:$L$65536,9,0),"") -> 2.810197995 | U13: =IFERROR(VLOOKUP(D13,[2]Sheet1!$D$1:$L$65536,5,0),"") -> 0.01160238785 | V13: =IFERROR(VLOOKUP(A13,'Stary Zapas Dane i Rotacja'!A:AA,22,0)+VLOOKUP(A13,'Stary Zapas Dane i Rotacja'!A:AA,26,0),"") -> 0.1066135197 | W13: =IFERROR(VLOOKUP(A13,'EPV Sklep Sport'!A:I,8,0),"") -> 0.04225846712 | X13: =IFERROR(VLOOKUP(D13,'[3]Shortage rate_Stores'!$B$115:$C$192,2,0),"") -> 0.135263042 | Y13: =IFERROR(VLOOKUP(D13,'[3]Shortage rate_Stores'!$F$115:$G$189,2,0),"") -> 0.08831342637 | Z13: =IFERROR(VLOOKUP(A13,'zamówienia reczne Polska'!A:M,10,0),"") -> 0.3130984985 | AA13: =IFERROR(VLOOKUP(A13,'zamówienia reczne Polska'!A:M,13,0),"") -> 0.3984152591 | AB13: =IFERROR(VLOOKUP(A13,'Stary Zapas Dane i Rotacja'!A:N,9,0),"") -> 79277 | AC13: 21 | AD13: -5 | AE13: =IFERROR(VLOOKUP(D13,[4]LTD!$B$1:$C$65536,2,0),"") -> 2.244081861 | AF13: =IFERROR(VLOOKUP(D13,[4]LTD!$F$1:$G$65536,2,0),"") -> 2.092289776 | AG13: =IFERROR(VLOOKUP(D13,[4]LTD!$J$1:$K$65536,2,0),"") -> 1.985916825 | AH13: =IFERROR(VLOOKUP(D13,'[4]% delivery'!$B$1:$H$65536,2,0),"") -> 0.1631851455 | AI13: =IFERROR(VLOOKUP(D13,'[4]% delivery'!$B$1:$H$65536,3,0),"") -> 0.6232815569 | AJ13: =IFERROR(VLOOKUP(D13,'[4]% delivery'!$B$1:$H$65536,4,0),"") -> 0.8682378147 | AK13: =IFERROR(VLOOKUP(D13,'[4]% delivery'!$B$1:$H$65536,5,0),"") -> 0.9982146045 | AL13: =IFERROR(VLOOKUP(D13,'[4]% delivery'!$B$1:$H$65536,7,0),"") -> 0.0005356186395 | AM13: =IFERROR(VLOOKUP(D13,'[4]% delivery YTD'!$B$1:$H$65536,2,0),"") -> 0.2954582538 | AN13: =IFERROR(VLOOKUP(D13,'[4]% delivery YTD'!$B$1:$H$65536,3,0),"") -> 0.578678951 | AO13: =IFERROR(VLOOKUP(D13,'[4]% delivery YTD'!$B$1:$H$65536,4,0),"") -> 0.7729999658 | AP13: =IFERROR(VLOOKUP(D13,'[4]% delivery YTD'!$B$1:$H$65536,5,0),"") -> 0.879157449 | AQ13: =IFERROR(VLOOKUP(D13,'[4]% delivery YTD'!$B$1:$H$65536,6,0),"") -> 0.9382050825
A14: 511Result | B14: Result | C14: 511 | D14: Opole | E14: =IFERROR(VLOOKUP(D14,'WYNIKI EKO SKLEPY'!C:H,2,0),"") -> 542753.53 | F14: =IFERROR(VLOOKUP(D14,'WYNIKI EKO SKLEPY'!J:O,2,),"") -> 29045239.82 | G14: =VLOOKUP(C14,[1]Produktywnosc!$B$6:$L$56,10,0) -> 756.2736704 | H14: =VLOOKUP(C14,[1]Produktywnosc!$B$6:$L$56,11,0) -> 616.8690806 | I14: 22 | J14: =VLOOKUP(C14,'Open voice'!K:S,6,0) -> 4.14 | K14: =VLOOKUP(C14,'Open voice'!A:I,6,0) -> 4.26 | L14: =IFERROR(VLOOKUP(D14,'WYNIKI EKO SKLEPY'!C:H,3,0),"") -> 0.07919497808 | M14: =IFERROR(VLOOKUP(D14,'WYNIKI EKO SKLEPY'!J:O,3,),"") -> 0.0431303598 | N14: =IFERROR(VLOOKUP(D14,'WYNIKI EKO SKLEPY'!C:H,6,0),"") -> 0.09995060102 | O14: =IFERROR(VLOOKUP(D14,'WYNIKI EKO SKLEPY'!J:O,6,),"") -> 0.003037602193 | P14: =IFERROR(VLOOKUP(D14,'WYNIKI EKO SKLEPY'!C:H,4,0),"") -> 0.2468558979 | Q14: =IFERROR(VLOOKUP(D14,'WYNIKI EKO SKLEPY'!J:O,4,),"") -> 0.2470086801 | R14: =IFERROR(VLOOKUP(D14,[2]Sheet1!$D$1:$L$65536,6,0),"") -> 117.2694248 | S14: =IFERROR(VLOOKUP(D14,[2]Sheet1!$D$1:$L$65536,7,0),"") -> 0.03939168102 | T14: =IFERROR(VLOOKUP(D14,[2]Sheet1!$D$1:$L$65536,9,0),"") -> 2.729566046 | U14: =IFERROR(VLOOKUP(D14,[2]Sheet1!$D$1:$L$65536,5,0),"") -> 0.01330484847 | V14: =IFERROR(VLOOKUP(A14,'Stary Zapas Dane i Rotacja'!A:AA,22,0)+VLOOKUP(A14,'Stary Zapas Dane i Rotacja'!A:AA,26,0),"") -> 0.1053964466 | W14: =IFERROR(VLOOKUP(A14,'EPV Sklep Sport'!A:I,8,0),"") -> 0.03317009988 | X14: =IFERROR(VLOOKUP(D14,'[3]Shortage rate_Stores'!$B$115:$C$192,2,0),"") -> 0.05324334458 | Y14: =IFERROR(VLOOKUP(D14,'[3]Shortage rate_Stores'!$F$115:$G$189,2,0),"") -> 0.08329186667 | Z14: =IFERROR(VLOOKUP(A14,'zamówienia reczne Polska'!A:M,10,0),"") -> 0.4641594916 | AA14: =IFERROR(VLOOKUP(A14,'zamówienia reczne Polska'!A:M,13,0),"") -> 0.4034035598 | AB14: =IFERROR(VLOOKUP(A14,'Stary Zapas Dane i Rotacja'!A:N,9,0),"") -> 75420 | AC14: 26 | AD14: 4 | AE14: =IFERROR(VLOOKUP(D14,[4]LTD!$B$1:$C$65536,2,0),"") -> 1.925473374 | AF14: =IFERROR(VLOOKUP(D14,[4]LTD!$F$1:$G$65536,2,0),"") -> 1.340389128 | AG14: =IFERROR(VLOOKUP(D14,[4]LTD!$J$1:$K$65536,2,0),"") -> 1.403124914 | AH14: =IFERROR(VLOOKUP(D14,'[4]% delivery'!$B$1:$H$65536,2,0),"") -> 0.3352343169 | AI14: =IFERROR(VLOOKUP(D14,'[4]% delivery'!$B$1:$H$65536,3,0),"") -> 0.8078353583 | AJ14: =IFERROR(VLOOKUP(D14,'[4]% delivery'!$B$1:$H$65536,4,0),"") -> 0.9852467146 | AK14: =IFERROR(VLOOKUP(D14,'[4]% delivery'!$B$1:$H$65536,5,0),"") -> 0.9998760228 | AL14: =IFERROR(VLOOKUP(D14,'[4]% delivery'!$B$1:$H$65536,7,0),"") -> 0 | AM14: =IFERROR(VLOOKUP(D14,'[4]% delivery YTD'!$B$1:$H$65536,2,0),"") -> 0.3203809732 | AN14: =IFERROR(VLOOKUP(D14,'[4]% delivery YTD'!$B$1:$H$65536,3,0),"") -> 0.6887239707 | AO14: =IFERROR(VLOOKUP(D14,'[4]% delivery YTD'!$B$1:$H$65536,4,0),"") -> 0.8493368829 | AP14: =IFERROR(VLOOKUP(D14,'[4]% delivery YTD'!$B$1:$H$65536,5,0),"") -> 0.9210854211 | AQ14: =IFERROR(VLOOKUP(D14,'[4]% delivery YTD'!$B$1:$H$65536,6,0),"") -> 0.962088059
A15: 512Result | B15: Result | C15: 512 | D15: Krakow Plaza | E15: =IFERROR(VLOOKUP(D15,'WYNIKI EKO SKLEPY'!C:H,2,0),"") -> 904648.15 | F15: =IFERROR(VLOOKUP(D15,'WYNIKI EKO SKLEPY'!J:O,2,),"") -> 47096257.94 | G15: =VLOOKUP(C15,[1]Produktywnosc!$B$6:$L$56,10,0) -> 784.1261488 | H15: =VLOOKUP(C15,[1]Produktywnosc!$B$6:$L$56,11,0) -> 704.2019256 | I15: 6 | J15: =VLOOKUP(C15,'Open voice'!K:S,6,0) -> 4.21 | K15: =VLOOKUP(C15,'Open voice'!A:I,6,0) -> 4.16 | L15: =IFERROR(VLOOKUP(D15,'WYNIKI EKO SKLEPY'!C:H,3,0),"") -> 0.01272508775 | M15: =IFERROR(VLOOKUP(D15,'WYNIKI EKO SKLEPY'!J:O,3,),"") -> 0.02202539089 | N15: =IFERROR(VLOOKUP(D15,'WYNIKI EKO SKLEPY'!C:H,6,0),"") -> 0.01279993058 | O15: =IFERROR(VLOOKUP(D15,'WYNIKI EKO SKLEPY'!J:O,6,),"") -> -0.02334340823 | P15: =IFERROR(VLOOKUP(D15,'WYNIKI EKO SKLEPY'!C:H,4,0),"") -> 0.2565615262 | Q15: =IFERROR(VLOOKUP(D15,'WYNIKI EKO SKLEPY'!J:O,4,),"") -> 0.2559259323 | R15: =IFERROR(VLOOKUP(D15,[2]Sheet1!$D$1:$L$65536,6,0),"") -> 120.5087511 | S15: =IFERROR(VLOOKUP(D15,[2]Sheet1!$D$1:$L$65536,7,0),"") -> 0.01555646284 | T15: =IFERROR(VLOOKUP(D15,[2]Sheet1!$D$1:$L$65536,9,0),"") -> 2.923227098 | U15: =IFERROR(VLOOKUP(D15,[2]Sheet1!$D$1:$L$65536,5,0),"") -> 0.01778847542 | V15: =IFERROR(VLOOKUP(A15,'Stary Zapas Dane i Rotacja'!A:AA,22,0)+VLOOKUP(A15,'Stary Zapas Dane i Rotacja'!A:AA,26,0),"") -> 0.08738479206 | W15: =IFERROR(VLOOKUP(A15,'EPV Sklep Sport'!A:I,8,0),"") -> 0.02848293807 | X15: =IFERROR(VLOOKUP(D15,'[3]Shortage rate_Stores'!$B$115:$C$192,2,0),"") -> 0.06044936904 | Y15: =IFERROR(VLOOKUP(D15,'[3]Shortage rate_Stores'!$F$115:$G$189,2,0),"") -> 0.09008802198 | Z15: =IFERROR(VLOOKUP(A15,'zamówienia reczne Polska'!A:M,10,0),"") -> 0.3712140746 | AA15: =IFERROR(VLOOKUP(A15,'zamówienia reczne Polska'!A:M,13,0),"") -> 0.3544978306 | AB15: =IFERROR(VLOOKUP(A15,'Stary Zapas Dane i Rotacja'!A:N,9,0),"") -> 101013 | AC15: 7 | AD15: 1 | AE15: =IFERROR(VLOOKUP(D15,[4]LTD!$B$1:$C$65536,2,0),"") -> 2.426592473 | AF15: =IFERROR(VLOOKUP(D15,[4]LTD!$F$1:$G$65536,2,0),"") -> 1.949356923 | AG15: =IFERROR(VLOOKUP(D15,[4]LTD!$J$1:$K$65536,2,0),"") -> 1.949012503 | AH15: =IFERROR(VLOOKUP(D15,'[4]% delivery'!$B$1:$H$65536,2,0),"") -> 0.164369717 | AI15: =IFERROR(VLOOKUP(D15,'[4]% delivery'!$B$1:$H$65536,3,0),"") -> 0.6474641676 | AJ15: =IFERROR(VLOOKUP(D15,'[4]% delivery'!$B$1:$H$65536,4,0),"") -> 0.8577728776 | AK15: =IFERROR(VLOOKUP(D15,'[4]% delivery'!$B$1:$H$65536,5,0),"") -> 0.9924660051 | AL15: =IFERROR(VLOOKUP(D15,'[4]% delivery'!$B$1:$H$65536,7,0),"") -> 0 | AM15: =IFERROR(VLOOKUP(D15,'[4]% delivery YTD'!$B$1:$H$65536,2,0),"") -> 0.118207979 | AN15: =IFERROR(VLOOKUP(D15,'[4]% delivery YTD'!$B$1:$H$65536,3,0),"") -> 0.5221377966 | AO15: =IFERROR(VLOOKUP(D15,'[4]% delivery YTD'!$B$1:$H$65536,4,0),"") -> 0.7623245819 | AP15: =IFERROR(VLOOKUP(D15,'[4]% delivery YTD'!$B$1:$H$65536,5,0),"") -> 0.8782761069 | AQ15: =IFERROR(VLOOKUP(D15,'[4]% delivery YTD'!$B$1:$H$65536,6,0),"") -> 0.9394628318
A16: 527Result | B16: Result | C16: 527 | D16: Poznan Swadzim | E16: =IFERROR(VLOOKUP(D16,'WYNIKI EKO SKLEPY'!C:H,2,0),"") -> 570566.54 | F16: =IFERROR(VLOOKUP(D16,'WYNIKI EKO SKLEPY'!J:O,2,),"") -> 33817426.61 | G16: =VLOOKUP(C16,[1]Produktywnosc!$B$6:$L$56,10,0) -> 602.8508832 | H16: =VLOOKUP(C16,[1]Produktywnosc!$B$6:$L$56,11,0) -> 599.673463 | I16: 16 | J16: =VLOOKUP(C16,'Open voice'!K:S,6,0) -> 4.22 | K16: =VLOOKUP(C16,'Open voice'!A:I,6,0) -> 4.25 | L16: =IFERROR(VLOOKUP(D16,'WYNIKI EKO SKLEPY'!C:H,3,0),"") -> 0.09476752939 | M16: =IFERROR(VLOOKUP(D16,'WYNIKI EKO SKLEPY'!J:O,3,),"") -> 0.04226196246 | N16: =IFERROR(VLOOKUP(D16,'WYNIKI EKO SKLEPY'!C:H,6,0),"") -> 0.05731753917 | O16: =IFERROR(VLOOKUP(D16,'WYNIKI EKO SKLEPY'!J:O,6,),"") -> 0.01706304955 | P16: =IFERROR(VLOOKUP(D16,'WYNIKI EKO SKLEPY'!C:H,4,0),"") -> 0.2517463607 | Q16: =IFERROR(VLOOKUP(D16,'WYNIKI EKO SKLEPY'!J:O,4,),"") -> 0.2473209087 | R16: =IFERROR(VLOOKUP(D16,[2]Sheet1!$D$1:$L$65536,6,0),"") -> 149.5913048 | S16: =IFERROR(VLOOKUP(D16,[2]Sheet1!$D$1:$L$65536,7,0),"") -> 0.0318046468 | T16: =IFERROR(VLOOKUP(D16,[2]Sheet1!$D$1:$L$65536,9,0),"") -> 3.399366417 | U16: =IFERROR(VLOOKUP(D16,[2]Sheet1!$D$1:$L$65536,5,0),"") -> 0.0211846284 | V16: =IFERROR(VLOOKUP(A16,'Stary Zapas Dane i Rotacja'!A:AA,22,0)+VLOOKUP(A16,'Stary Zapas Dane i Rotacja'!A:AA,26,0),"") -> 0.09780929645 | W16: =IFERROR(VLOOKUP(A16,'EPV Sklep Sport'!A:I,8,0),"") -> 0.03269384714 | X16: =IFERROR(VLOOKUP(D16,'[3]Shortage rate_Stores'!$B$115:$C$192,2,0),"") -> 0.06410932883 | Y16: =IFERROR(VLOOKUP(D16,'[3]Shortage rate_Stores'!$F$115:$G$189,2,0),"") -> 0.08812725757 | Z16: =IFERROR(VLOOKUP(A16,'zamówienia reczne Polska'!A:M,10,0),"") -> 0.3751834522 | AA16: =IFERROR(VLOOKUP(A16,'zamówienia reczne Polska'!A:M,13,0),"") -> 0.390464041 | AB16: =IFERROR(VLOOKUP(A16,'Stary Zapas Dane i Rotacja'!A:N,9,0),"") -> 85452 | AC16: 17 | AD16: 1 | AE16: =IFERROR(VLOOKUP(D16,[4]LTD!$B$1:$C$65536,2,0),"") -> 1.924720649 | AF16: =IFERROR(VLOOKUP(D16,[4]LTD!$F$1:$G$65536,2,0),"") -> 1.749515947 | AG16: =IFERROR(VLOOKUP(D16,[4]LTD!$J$1:$K$65536,2,0),"") -> 1.850799422 | AH16: =IFERROR(VLOOKUP(D16,'[4]% delivery'!$B$1:$H$65536,2,0),"") -> 0.1067257785 | AI16: =IFERROR(VLOOKUP(D16,'[4]% delivery'!$B$1:$H$65536,3,0),"") -> 0.7689230104 | AJ16: =IFERROR(VLOOKUP(D16,'[4]% delivery'!$B$1:$H$65536,4,0),"") -> 0.9711288927 | AK16: =IFERROR(VLOOKUP(D16,'[4]% delivery'!$B$1:$H$65536,5,0),"") -> 0.9978373702 | AL16: =IFERROR(VLOOKUP(D16,'[4]% delivery'!$B$1:$H$65536,7,0),"") -> 0.001946366782 | AM16: =IFERROR(VLOOKUP(D16,'[4]% delivery YTD'!$B$1:$H$65536,2,0),"") -> 0.1558894119 | AN16: =IFERROR(VLOOKUP(D16,'[4]% delivery YTD'!$B$1:$H$65536,3,0),"") -> 0.739917643 | AO16: =IFERROR(VLOOKUP(D16,'[4]% delivery YTD'!$B$1:$H$65536,4,0),"") -> 0.9047887822 | AP16: =IFERROR(VLOOKUP(D16,'[4]% delivery YTD'!$B$1:$H$65536,5,0),"") -> 0.9553956623 | AQ16: =IFERROR(VLOOKUP(D16,'[4]% delivery YTD'!$B$1:$H$65536,6,0),"") -> 0.9784978429
A17: 566Result | B17: Result | C17: 566 | D17: Zory | E17: =IFERROR(VLOOKUP(D17,'WYNIKI EKO SKLEPY'!C:H,2,0),"") -> 338631.2 | F17: =IFERROR(VLOOKUP(D17,'WYNIKI EKO SKLEPY'!J:O,2,),"") -> 17616936.36 | G17: =VLOOKUP(C17,[1]Produktywnosc!$B$6:$L$56,10,0) -> 583.8031641 | H17: =VLOOKUP(C17,[1]Produktywnosc!$B$6:$L$56,11,0) -> 551.1725656 | I17: 34 | J17: =VLOOKUP(C17,'Open voice'!K:S,6,0) -> 4.39 | K17: =VLOOKUP(C17,'Open voice'!A:I,6,0) -> 4.36 | L17: =IFERROR(VLOOKUP(D17,'WYNIKI EKO SKLEPY'!C:H,3,0),"") -> 0.1766681191 | M17: =IFERROR(VLOOKUP(D17,'WYNIKI EKO SKLEPY'!J:O,3,),"") -> 0.02424994845 | N17: =IFERROR(VLOOKUP(D17,'WYNIKI EKO SKLEPY'!C:H,6,0),"") -> 0.1115745568 | O17: =IFERROR(VLOOKUP(D17,'WYNIKI EKO SKLEPY'!J:O,6,),"") -> 0.0002765839751 | P17: =IFERROR(VLOOKUP(D17,'WYNIKI EKO SKLEPY'!C:H,4,0),"") -> 0.2450044178 | Q17: =IFERROR(VLOOKUP(D17,'WYNIKI EKO SKLEPY'!J:O,4,),"") -> 0.2442912617 | R17: =IFERROR(VLOOKUP(D17,[2]Sheet1!$D$1:$L$65536,6,0),"") -> 115.7358059 | S17: =IFERROR(VLOOKUP(D17,[2]Sheet1!$D$1:$L$65536,7,0),"") -> 0.03621953492 | T17: =IFERROR(VLOOKUP(D17,[2]Sheet1!$D$1:$L$65536,9,0),"") -> 2.779748242 | U17: =IFERROR(VLOOKUP(D17,[2]Sheet1!$D$1:$L$65536,5,0),"") -> -0.0001984035131 | V17: =IFERROR(VLOOKUP(A17,'Stary Zapas Dane i Rotacja'!A:AA,22,0)+VLOOKUP(A17,'Stary Zapas Dane i Rotacja'!A:AA,26,0),"") -> 0.1133519137 | W17: =IFERROR(VLOOKUP(A17,'EPV Sklep Sport'!A:I,8,0),"") -> 0.0359574817 | X17: =IFERROR(VLOOKUP(D17,'[3]Shortage rate_Stores'!$B$115:$C$192,2,0),"") -> 0.07548425255 | Y17: =IFERROR(VLOOKUP(D17,'[3]Shortage rate_Stores'!$F$115:$G$189,2,0),"") -> 0.07742650167 | Z17: =IFERROR(VLOOKUP(A17,'zamówienia reczne Polska'!A:M,10,0),"") -> 0.374767447 | AA17: =IFERROR(VLOOKUP(A17,'zamówienia reczne Polska'!A:M,13,0),"") -> 0.3966232775 | AB17: =IFERROR(VLOOKUP(A17,'Stary Zapas Dane i Rotacja'!A:N,9,0),"") -> 57767 | AC17: 39 | AD17: 5 | AE17: =IFERROR(VLOOKUP(D17,[4]LTD!$B$1:$C$65536,2,0),"") -> 1.703508114 | AF17: =IFERROR(VLOOKUP(D17,[4]LTD!$F$1:$G$65536,2,0),"") -> 1.320747053 | AG17: =IFERROR(VLOOKUP(D17,[4]LTD!$J$1:$K$65536,2,0),"") -> 1.197202912 | AH17: =IFERROR(VLOOKUP(D17,'[4]% delivery'!$B$1:$H$65536,2,0),"") -> 0.5178758102 | AI17: =IFERROR(VLOOKUP(D17,'[4]% delivery'!$B$1:$H$65536,3,0),"") -> 0.9379050805 | AJ17: =IFERROR(VLOOKUP(D17,'[4]% delivery'!$B$1:$H$65536,4,0),"") -> 0.9987455572 | AK17: =IFERROR(VLOOKUP(D17,'[4]% delivery'!$B$1:$H$65536,5,0),"") -> 1 | AL17: =IFERROR(VLOOKUP(D17,'[4]% delivery'!$B$1:$H$65536,7,0),"") -> 0 | AM17: =IFERROR(VLOOKUP(D17,'[4]% delivery YTD'!$B$1:$H$65536,2,0),"") -> 0.3960298954 | AN17: =IFERROR(VLOOKUP(D17,'[4]% delivery YTD'!$B$1:$H$65536,3,0),"") -> 0.7351777914 | AO17: =IFERROR(VLOOKUP(D17,'[4]% delivery YTD'!$B$1:$H$65536,4,0),"") -> 0.8897735323 | AP17: =IFERROR(VLOOKUP(D17,'[4]% delivery YTD'!$B$1:$H$65536,5,0),"") -> 0.9440938713 | AQ17: =IFERROR(VLOOKUP(D17,'[4]% delivery YTD'!$B$1:$H$65536,6,0),"") -> 0.9720516273
A18: 568Result | B18: Result | C18: 568 | D18: Bielsko - Biala | E18: =IFERROR(VLOOKUP(D18,'WYNIKI EKO SKLEPY'!C:H,2,0),"") -> 875408.91 | F18: =IFERROR(VLOOKUP(D18,'WYNIKI EKO SKLEPY'!J:O,2,),"") -> 47552610.22 | G18: =VLOOKUP(C18,[1]Produktywnosc!$B$6:$L$56,10,0) -> 744.4705588 | H18: =VLOOKUP(C18,[1]Produktywnosc!$B$6:$L$56,11,0) -> 642.8772688 | I18: 5 | J18: =VLOOKUP(C18,'Open voice'!K:S,6,0) -> 4.26 | K18: =VLOOKUP(C18,'Open voice'!A:I,6,0) -> 4.27 | L18: =IFERROR(VLOOKUP(D18,'WYNIKI EKO SKLEPY'!C:H,3,0),"") -> 0.1932608926 | M18: =IFERROR(VLOOKUP(D18,'WYNIKI EKO SKLEPY'!J:O,3,),"") -> 0.03918449265 | N18: =IFERROR(VLOOKUP(D18,'WYNIKI EKO SKLEPY'!C:H,6,0),"") -> 0.2072698715 | O18: =IFERROR(VLOOKUP(D18,'WYNIKI EKO SKLEPY'!J:O,6,),"") -> -0.02310798828 | P18: =IFERROR(VLOOKUP(D18,'WYNIKI EKO SKLEPY'!C:H,4,0),"") -> 0.2451371668 | Q18: =IFERROR(VLOOKUP(D18,'WYNIKI EKO SKLEPY'!J:O,4,),"") -> 0.2482037601 | R18: =IFERROR(VLOOKUP(D18,[2]Sheet1!$D$1:$L$65536,6,0),"") -> 138.969483 | S18: =IFERROR(VLOOKUP(D18,[2]Sheet1!$D$1:$L$65536,7,0),"") -> 0.006940528984 | T18: =IFERROR(VLOOKUP(D18,[2]Sheet1!$D$1:$L$65536,9,0),"") -> 3.117838758 | U18: =IFERROR(VLOOKUP(D18,[2]Sheet1!$D$1:$L$65536,5,0),"") -> 0.0408834255 | V18: =IFERROR(VLOOKUP(A18,'Stary Zapas Dane i Rotacja'!A:AA,22,0)+VLOOKUP(A18,'Stary Zapas Dane i Rotacja'!A:AA,26,0),"") -> 0.1162570888 | W18: =IFERROR(VLOOKUP(A18,'EPV Sklep Sport'!A:I,8,0),"") -> 0.03476998918 | X18: =IFERROR(VLOOKUP(D18,'[3]Shortage rate_Stores'!$B$115:$C$192,2,0),"") -> 0.07034268225 | Y18: =IFERROR(VLOOKUP(D18,'[3]Shortage rate_Stores'!$F$115:$G$189,2,0),"") -> 0.08937438525 | Z18: =IFERROR(VLOOKUP(A18,'zamówienia reczne Polska'!A:M,10,0),"") -> 0.4273345098 | AA18: =IFERROR(VLOOKUP(A18,'zamówienia reczne Polska'!A:M,13,0),"") -> 0.3381249272 | AB18: =IFERROR(VLOOKUP(A18,'Stary Zapas Dane i Rotacja'!A:N,9,0),"") -> 108974 | AC18: 6 | AD18: 1 | AE18: =IFERROR(VLOOKUP(D18,[4]LTD!$B$1:$C$65536,2,0),"") -> 2.434059592 | AF18: =IFERROR(VLOOKUP(D18,[4]LTD!$F$1:$G$65536,2,0),"") -> 2.168255106 | AG18: =IFERROR(VLOOKUP(D18,[4]LTD!$J$1:$K$65536,2,0),"") -> 2.148517565 | AH18: =IFERROR(VLOOKUP(D18,'[4]% delivery'!$B$1:$H$65536,2,0),"") -> 0.1601852981 | AI18: =IFERROR(VLOOKUP(D18,'[4]% delivery'!$B$1:$H$65536,3,0),"") -> 0.559429477 | AJ18: =IFERROR(VLOOKUP(D18,'[4]% delivery'!$B$1:$H$65536,4,0),"") -> 0.811288553 | AK18: =IFERROR(VLOOKUP(D18,'[4]% delivery'!$B$1:$H$65536,5,0),"") -> 0.9806168475 | AL18: =IFERROR(VLOOKUP(D18,'[4]% delivery'!$B$1:$H$65536,7,0),"") -> 0.002072412532 | AM18: =IFERROR(VLOOKUP(D18,'[4]% delivery YTD'!$B$1:$H$65536,2,0),"") -> 0.1908744153 | AN18: =IFERROR(VLOOKUP(D18,'[4]% delivery YTD'!$B$1:$H$65536,3,0),"") -> 0.5342353365 | AO18: =IFERROR(VLOOKUP(D18,'[4]% delivery YTD'!$B$1:$H$65536,4,0),"") -> 0.7317548279 | AP18: =IFERROR(VLOOKUP(D18,'[4]% delivery YTD'!$B$1:$H$65536,5,0),"") -> 0.8686338011 | AQ18: =IFERROR(VLOOKUP(D18,'[4]% delivery YTD'!$B$1:$H$65536,6,0),"") -> 0.936413578
A19: 569Result | B19: Result | C19: 569 | D19: Legnica | E19: =IFERROR(VLOOKUP(D19,'WYNIKI EKO SKLEPY'!C:H,2,0),"") -> 348663.64 | F19: =IFERROR(VLOOKUP(D19,'WYNIKI EKO SKLEPY'!J:O,2,),"") -> 18822854.71 | G19: =VLOOKUP(C19,[1]Produktywnosc!$B$6:$L$56,10,0) -> 589.0838932 | H19: =VLOOKUP(C19,[1]Produktywnosc!$B$6:$L$56,11,0) -> 532.2016673 | I19: 33 | J19: =VLOOKUP(C19,'Open voice'!K:S,6,0) -> 4.35 | K19: =VLOOKUP(C19,'Open voice'!A:I,6,0) -> 4.31 | L19: =IFERROR(VLOOKUP(D19,'WYNIKI EKO SKLEPY'!C:H,3,0),"") -> 0.07573667416 | M19: =IFERROR(VLOOKUP(D19,'WYNIKI EKO SKLEPY'!J:O,3,),"") -> -0.03212780573 | N19: =IFERROR(VLOOKUP(D19,'WYNIKI EKO SKLEPY'!C:H,6,0),"") -> -0.07014578491 | O19: =IFERROR(VLOOKUP(D19,'WYNIKI EKO SKLEPY'!J:O,6,),"") -> -0.07525038058 | P19: =IFERROR(VLOOKUP(D19,'WYNIKI EKO SKLEPY'!C:H,4,0),"") -> 0.2337943813 | Q19: =IFERROR(VLOOKUP(D19,'WYNIKI EKO SKLEPY'!J:O,4,),"") -> 0.2379231758 | R19: =IFERROR(VLOOKUP(D19,[2]Sheet1!$D$1:$L$65536,6,0),"") -> 127.1343129 | S19: =IFERROR(VLOOKUP(D19,[2]Sheet1!$D$1:$L$65536,7,0),"") -> 0.02374068994 | T19: =IFERROR(VLOOKUP(D19,[2]Sheet1!$D$1:$L$65536,9,0),"") -> 3.118529612 | U19: =IFERROR(VLOOKUP(D19,[2]Sheet1!$D$1:$L$65536,5,0),"") -> -0.04582507876 | V19: =IFERROR(VLOOKUP(A19,'Stary Zapas Dane i Rotacja'!A:AA,22,0)+VLOOKUP(A19,'Stary Zapas Dane i Rotacja'!A:AA,26,0),"") -> 0.1087418849 | W19: =IFERROR(VLOOKUP(A19,'EPV Sklep Sport'!A:I,8,0),"") -> 0.04086561624 | X19: =IFERROR(VLOOKUP(D19,'[3]Shortage rate_Stores'!$B$115:$C$192,2,0),"") -> 0.111816019 | Y19: =IFERROR(VLOOKUP(D19,'[3]Shortage rate_Stores'!$F$115:$G$189,2,0),"") -> 0.07583296265 | Z19: =IFERROR(VLOOKUP(A19,'zamówienia reczne Polska'!A:M,10,0),"") -> 0.4184223328 | AA19: =IFERROR(VLOOKUP(A19,'zamówienia reczne Polska'!A:M,13,0),"") -> 0.4302534369 | AB19: =IFERROR(VLOOKUP(A19,'Stary Zapas Dane i Rotacja'!A:N,9,0),"") -> 71472 | AC19: 28 | AD19: -5 | AE19: =IFERROR(VLOOKUP(D19,[4]LTD!$B$1:$C$65536,2,0),"") -> 2.167012503 | AF19: =IFERROR(VLOOKUP(D19,[4]LTD!$F$1:$G$65536,2,0),"") -> 1.566372652 | AG19: =IFERROR(VLOOKUP(D19,[4]LTD!$J$1:$K$65536,2,0),"") -> 1.47177178 | AH19: =IFERROR(VLOOKUP(D19,'[4]% delivery'!$B$1:$H$65536,2,0),"") -> 0.1401515152 | AI19: =IFERROR(VLOOKUP(D19,'[4]% delivery'!$B$1:$H$65536,3,0),"") -> 0.7224242424 | AJ19: =IFERROR(VLOOKUP(D19,'[4]% delivery'!$B$1:$H$65536,4,0),"") -> 0.9836363636 | AK19: =IFERROR(VLOOKUP(D19,'[4]% delivery'!$B$1:$H$65536,5,0),"") -> 1 | AL19: =IFERROR(VLOOKUP(D19,'[4]% delivery'!$B$1:$H$65536,7,0),"") -> 0 | AM19: =IFERROR(VLOOKUP(D19,'[4]% delivery YTD'!$B$1:$H$65536,2,0),"") -> 0.06690974846 | AN19: =IFERROR(VLOOKUP(D19,'[4]% delivery YTD'!$B$1:$H$65536,3,0),"") -> 0.5303286273 | AO19: =IFERROR(VLOOKUP(D19,'[4]% delivery YTD'!$B$1:$H$65536,4,0),"") -> 0.8042243597 | AP19: =IFERROR(VLOOKUP(D19,'[4]% delivery YTD'!$B$1:$H$65536,5,0),"") -> 0.912961721 | AQ19: =IFERROR(VLOOKUP(D19,'[4]% delivery YTD'!$B$1:$H$65536,6,0),"") -> 0.9603838938
A20: 570Result | B20: Result | C20: 570 | D20: Czestochowa | E20: =IFERROR(VLOOKUP(D20,'WYNIKI EKO SKLEPY'!C:H,2,0),"") -> 289760.69 | F20: =IFERROR(VLOOKUP(D20,'WYNIKI EKO SKLEPY'!J:O,2,),"") -> 17525979.15 | G20: =VLOOKUP(C20,[1]Produktywnosc!$B$6:$L$56,10,0) -> 660.6700066 | H20: =VLOOKUP(C20,[1]Produktywnosc!$B$6:$L$56,11,0) -> 601.531543 | I20: 35 | J20: =VLOOKUP(C20,'Open voice'!K:S,6,0) -> 4.27 | K20: =VLOOKUP(C20,'Open voice'!A:I,6,0) -> 4.19 | L20: =IFERROR(VLOOKUP(D20,'WYNIKI EKO SKLEPY'!C:H,3,0),"") -> 0.1897701933 | M20: =IFERROR(VLOOKUP(D20,'WYNIKI EKO SKLEPY'!J:O,3,),"") -> 0.05255317724 | N20: =IFERROR(VLOOKUP(D20,'WYNIKI EKO SKLEPY'!C:H,6,0),"") -> 0.1568988614 | O20: =IFERROR(VLOOKUP(D20,'WYNIKI EKO SKLEPY'!J:O,6,),"") -> 0.01157100525 | P20: =IFERROR(VLOOKUP(D20,'WYNIKI EKO SKLEPY'!C:H,4,0),"") -> 0.2458042186 | Q20: =IFERROR(VLOOKUP(D20,'WYNIKI EKO SKLEPY'!J:O,4,),"") -> 0.237590269 | R20: =IFERROR(VLOOKUP(D20,[2]Sheet1!$D$1:$L$65536,6,0),"") -> 132.5621491 | S20: =IFERROR(VLOOKUP(D20,[2]Sheet1!$D$1:$L$65536,7,0),"") -> 0.05401286807 | T20: =IFERROR(VLOOKUP(D20,[2]Sheet1!$D$1:$L$65536,9,0),"") -> 2.819681118 | U20: =IFERROR(VLOOKUP(D20,[2]Sheet1!$D$1:$L$65536,5,0),"") -> 0.008322456814 | V20: =IFERROR(VLOOKUP(A20,'Stary Zapas Dane i Rotacja'!A:AA,22,0)+VLOOKUP(A20,'Stary Zapas Dane i Rotacja'!A:AA,26,0),"") -> 0.1258653862 | W20: =IFERROR(VLOOKUP(A20,'EPV Sklep Sport'!A:I,8,0),"") -> 0.03118032723 | X20: =IFERROR(VLOOKUP(D20,'[3]Shortage rate_Stores'!$B$115:$C$192,2,0),"") -> 0.07117271453 | Y20: =IFERROR(VLOOKUP(D20,'[3]Shortage rate_Stores'!$F$115:$G$189,2,0),"") -> 0.08217345688 | Z20: =IFERROR(VLOOKUP(A20,'zamówienia reczne Polska'!A:M,10,0),"") -> 0.4410760874 | AA20: =IFERROR(VLOOKUP(A20,'zamówienia reczne Polska'!A:M,13,0),"") -> 0.3286769447 | AB20: =IFERROR(VLOOKUP(A20,'Stary Zapas Dane i Rotacja'!A:N,9,0),"") -> 60811 | AC20: 35 | AD20: 0 | AE20: =IFERROR(VLOOKUP(D20,[4]LTD!$B$1:$C$65536,2,0),"") -> 2.603455837 | AF20: =IFERROR(VLOOKUP(D20,[4]LTD!$F$1:$G$65536,2,0),"") -> 1.903923157 | AG20: =IFERROR(VLOOKUP(D20,[4]LTD!$J$1:$K$65536,2,0),"") -> 1.795633853 | AH20: =IFERROR(VLOOKUP(D20,'[4]% delivery'!$B$1:$H$65536,2,0),"") -> 0.2224751656 | AI20: =IFERROR(VLOOKUP(D20,'[4]% delivery'!$B$1:$H$65536,3,0),"") -> 0.6270695364 | AJ20: =IFERROR(VLOOKUP(D20,'[4]% delivery'!$B$1:$H$65536,4,0),"") -> 0.9054221854 | AK20: =IFERROR(VLOOKUP(D20,'[4]% delivery'!$B$1:$H$65536,5,0),"") -> 0.9983443709 | AL20: =IFERROR(VLOOKUP(D20,'[4]% delivery'!$B$1:$H$65536,7,0),"") -> 0.0006208609272 | AM20: =IFERROR(VLOOKUP(D20,'[4]% delivery YTD'!$B$1:$H$65536,2,0),"") -> 0.1895910118 | AN20: =IFERROR(VLOOKUP(D20,'[4]% delivery YTD'!$B$1:$H$65536,3,0),"") -> 0.4865771014 | AO20: =IFERROR(VLOOKUP(D20,'[4]% delivery YTD'!$B$1:$H$65536,4,0),"") -> 0.7170609916 | AP20: =IFERROR(VLOOKUP(D20,'[4]% delivery YTD'!$B$1:$H$65536,5,0),"") -> 0.8260373321 | AQ20: =IFERROR(VLOOKUP(D20,'[4]% delivery YTD'!$B$1:$H$65536,6,0),"") -> 0.9064142195
A21: 571Result | B21: Result | C21: 571 | D21: Warszawa Okecie | E21: =IFERROR(VLOOKUP(D21,'WYNIKI EKO SKLEPY'!C:H,2,0),"") -> 624815.39 | F21: =IFERROR(VLOOKUP(D21,'WYNIKI EKO SKLEPY'!J:O,2,),"") -> 33614298.98 | G21: =VLOOKUP(C21,[1]Produktywnosc!$B$6:$L$56,10,0) -> 595.9379073 | H21: =VLOOKUP(C21,[1]Produktywnosc!$B$6:$L$56,11,0) -> 616.1140388 | I21: 18 | J21: =VLOOKUP(C21,'Open voice'!K:S,6,0) -> 4.14 | K21: =VLOOKUP(C21,'Open voice'!A:I,6,0) -> 4.22 | L21: =IFERROR(VLOOKUP(D21,'WYNIKI EKO SKLEPY'!C:H,3,0),"") -> 0.07938221885 | M21: =IFERROR(VLOOKUP(D21,'WYNIKI EKO SKLEPY'!J:O,3,),"") -> 0.02948763813 | N21: =IFERROR(VLOOKUP(D21,'WYNIKI EKO SKLEPY'!C:H,6,0),"") -> 0.06920415225 | O21: =IFERROR(VLOOKUP(D21,'WYNIKI EKO SKLEPY'!J:O,6,),"") -> -0.003644633126 | P21: =IFERROR(VLOOKUP(D21,'WYNIKI EKO SKLEPY'!C:H,4,0),"") -> 0.2667465985 | Q21: =IFERROR(VLOOKUP(D21,'WYNIKI EKO SKLEPY'!J:O,4,),"") -> 0.2520396863 | R21: =IFERROR(VLOOKUP(D21,[2]Sheet1!$D$1:$L$65536,6,0),"") -> 145.9208862 | S21: =IFERROR(VLOOKUP(D21,[2]Sheet1!$D$1:$L$65536,7,0),"") -> 0.0368776554 | T21: =IFERROR(VLOOKUP(D21,[2]Sheet1!$D$1:$L$65536,9,0),"") -> 3.426828628 | U21: =IFERROR(VLOOKUP(D21,[2]Sheet1!$D$1:$L$65536,5,0),"") -> 0.00385974927 | V21: =IFERROR(VLOOKUP(A21,'Stary Zapas Dane i Rotacja'!A:AA,22,0)+VLOOKUP(A21,'Stary Zapas Dane i Rotacja'!A:AA,26,0),"") -> 0.09629386758 | W21: =IFERROR(VLOOKUP(A21,'EPV Sklep Sport'!A:I,8,0),"") -> 0.02898166229 | X21: =IFERROR(VLOOKUP(D21,'[3]Shortage rate_Stores'!$B$115:$C$192,2,0),"") -> 0.06568144499 | Y21: =IFERROR(VLOOKUP(D21,'[3]Shortage rate_Stores'!$F$115:$G$189,2,0),"") -> 0.08079943505 | Z21: =IFERROR(VLOOKUP(A21,'zamówienia reczne Polska'!A:M,10,0),"") -> 0.4698233927 | AA21: =IFERROR(VLOOKUP(A21,'zamówienia reczne Polska'!A:M,13,0),"") -> 0.4007515884 | AB21: =IFERROR(VLOOKUP(A21,'Stary Zapas Dane i Rotacja'!A:N,9,0),"") -> 88448 | AC21: 14 | AD21: -4 | AE21: =IFERROR(VLOOKUP(D21,[4]LTD!$B$1:$C$65536,2,0),"") -> 1.994720748 | AF21: =IFERROR(VLOOKUP(D21,[4]LTD!$F$1:$G$65536,2,0),"") -> 1.814663057 | AG21: =IFERROR(VLOOKUP(D21,[4]LTD!$J$1:$K$65536,2,0),"") -> 1.83048533 | AH21: =IFERROR(VLOOKUP(D21,'[4]% delivery'!$B$1:$H$65536,2,0),"") -> 0.04421175102 | AI21: =IFERROR(VLOOKUP(D21,'[4]% delivery'!$B$1:$H$65536,3,0),"") -> 0.8232499515 | AJ21: =IFERROR(VLOOKUP(D21,'[4]% delivery'!$B$1:$H$65536,4,0),"") -> 0.9945704867 | AK21: =IFERROR(VLOOKUP(D21,'[4]% delivery'!$B$1:$H$65536,5,0),"") -> 0.9965095986 | AL21: =IFERROR(VLOOKUP(D21,'[4]% delivery'!$B$1:$H$65536,7,0),"") -> 0.003005623424 | AM21: =IFERROR(VLOOKUP(D21,'[4]% delivery YTD'!$B$1:$H$65536,2,0),"") -> 0.04541152463 | AN21: =IFERROR(VLOOKUP(D21,'[4]% delivery YTD'!$B$1:$H$65536,3,0),"") -> 0.7753731584 | AO21: =IFERROR(VLOOKUP(D21,'[4]% delivery YTD'!$B$1:$H$65536,4,0),"") -> 0.9290895072 | AP21: =IFERROR(VLOOKUP(D21,'[4]% delivery YTD'!$B$1:$H$65536,5,0),"") -> 0.9701773339 | AQ21: =IFERROR(VLOOKUP(D21,'[4]% delivery YTD'!$B$1:$H$65536,6,0),"") -> 0.9895312493
A22: 576Result | B22: Result | C22: 576 | D22: Warszawa Piaseczno | E22: =IFERROR(VLOOKUP(D22,'WYNIKI EKO SKLEPY'!C:H,2,0),"") -> 943009.24 | F22: =IFERROR(VLOOKUP(D22,'WYNIKI EKO SKLEPY'!J:O,2,),"") -> 52340261.22 | G22: =VLOOKUP(C22,[1]Produktywnosc!$B$6:$L$56,10,0) -> 679.9653086 | H22: =VLOOKUP(C22,[1]Produktywnosc!$B$6:$L$56,11,0) -> 631.3765258 | I22: 4 | J22: =VLOOKUP(C22,'Open voice'!K:S,6,0) -> 4.28 | K22: =VLOOKUP(C22,'Open voice'!A:I,6,0) -> 4.18 | L22: =IFERROR(VLOOKUP(D22,'WYNIKI EKO SKLEPY'!C:H,3,0),"") -> 0.01580933935 | M22: =IFERROR(VLOOKUP(D22,'WYNIKI EKO SKLEPY'!J:O,3,),"") -> -0.06311265277 | N22: =IFERROR(VLOOKUP(D22,'WYNIKI EKO SKLEPY'!C:H,6,0),"") -> -0.04790814306 | O22: =IFERROR(VLOOKUP(D22,'WYNIKI EKO SKLEPY'!J:O,6,),"") -> -0.1343526239 | P22: =IFERROR(VLOOKUP(D22,'WYNIKI EKO SKLEPY'!C:H,4,0),"") -> 0.2550784868 | Q22: =IFERROR(VLOOKUP(D22,'WYNIKI EKO SKLEPY'!J:O,4,),"") -> 0.25292153 | R22: =IFERROR(VLOOKUP(D22,[2]Sheet1!$D$1:$L$65536,6,0),"") -> 158.5013374 | S22: =IFERROR(VLOOKUP(D22,[2]Sheet1!$D$1:$L$65536,7,0),"") -> 0.006795218029 | T22: =IFERROR(VLOOKUP(D22,[2]Sheet1!$D$1:$L$65536,9,0),"") -> 3.456822914 | U22: =IFERROR(VLOOKUP(D22,[2]Sheet1!$D$1:$L$65536,5,0),"") -> -0.05993267153 | V22: =IFERROR(VLOOKUP(A22,'Stary Zapas Dane i Rotacja'!A:AA,22,0)+VLOOKUP(A22,'Stary Zapas Dane i Rotacja'!A:AA,26,0),"") -> 0.1068156459 | W22: =IFERROR(VLOOKUP(A22,'EPV Sklep Sport'!A:I,8,0),"") -> 0.03256437137 | X22: =IFERROR(VLOOKUP(D22,'[3]Shortage rate_Stores'!$B$115:$C$192,2,0),"") -> 0.08476847819 | Y22: =IFERROR(VLOOKUP(D22,'[3]Shortage rate_Stores'!$F$115:$G$189,2,0),"") -> 0.08113314243 | Z22: =IFERROR(VLOOKUP(A22,'zamówienia reczne Polska'!A:M,10,0),"") -> 0.3987338181 | AA22: =IFERROR(VLOOKUP(A22,'zamówienia reczne Polska'!A:M,13,0),"") -> 0.4077425409 | AB22: =IFERROR(VLOOKUP(A22,'Stary Zapas Dane i Rotacja'!A:N,9,0),"") -> 131741 | AC22: 2 | AD22: -2 | AE22: =IFERROR(VLOOKUP(D22,[4]LTD!$B$1:$C$65536,2,0),"") -> 1.925663868 | AF22: =IFERROR(VLOOKUP(D22,[4]LTD!$F$1:$G$65536,2,0),"") -> 1.808802973 | AG22: =IFERROR(VLOOKUP(D22,[4]LTD!$J$1:$K$65536,2,0),"") -> 1.913068318 | AH22: =IFERROR(VLOOKUP(D22,'[4]% delivery'!$B$1:$H$65536,2,0),"") -> 0.04813564193 | AI22: =IFERROR(VLOOKUP(D22,'[4]% delivery'!$B$1:$H$65536,3,0),"") -> 0.7516344565 | AJ22: =IFERROR(VLOOKUP(D22,'[4]% delivery'!$B$1:$H$65536,4,0),"") -> 0.9834039802 | AK22: =IFERROR(VLOOKUP(D22,'[4]% delivery'!$B$1:$H$65536,5,0),"") -> 0.9984194267 | AL22: =IFERROR(VLOOKUP(D22,'[4]% delivery'!$B$1:$H$65536,7,0),"") -> 0 | AM22: =IFERROR(VLOOKUP(D22,'[4]% delivery YTD'!$B$1:$H$65536,2,0),"") -> 0.06678784986 | AN22: =IFERROR(VLOOKUP(D22,'[4]% delivery YTD'!$B$1:$H$65536,3,0),"") -> 0.7742793747 | AO22: =IFERROR(VLOOKUP(D22,'[4]% delivery YTD'!$B$1:$H$65536,4,0),"") -> 0.9371201389 | AP22: =IFERROR(VLOOKUP(D22,'[4]% delivery YTD'!$B$1:$H$65536,5,0),"") -> 0.9717825946 | AQ22: =IFERROR(VLOOKUP(D22,'[4]% delivery YTD'!$B$1:$H$65536,6,0),"") -> 0.9903104219
A23: 642Result | B23: Result | C23: 642 | D23: Lodz | E23: =IFERROR(VLOOKUP(D23,'WYNIKI EKO SKLEPY'!C:H,2,0),"") -> 634241.79 | F23: =IFERROR(VLOOKUP(D23,'WYNIKI EKO SKLEPY'!J:O,2,),"") -> 37245321.9 | G23: =VLOOKUP(C23,[1]Produktywnosc!$B$6:$L$56,10,0) -> 701.668549 | H23: =VLOOKUP(C23,[1]Produktywnosc!$B$6:$L$56,11,0) -> 640.355108 | I23: 11 | J23: =VLOOKUP(C23,'Open voice'!K:S,6,0) -> 4.41 | K23: =VLOOKUP(C23,'Open voice'!A:I,6,0) -> 4.28 | L23: =IFERROR(VLOOKUP(D23,'WYNIKI EKO SKLEPY'!C:H,3,0),"") -> -0.01281103801 | M23: =IFERROR(VLOOKUP(D23,'WYNIKI EKO SKLEPY'!J:O,3,),"") -> -0.03445026282 | N23: =IFERROR(VLOOKUP(D23,'WYNIKI EKO SKLEPY'!C:H,6,0),"") -> -0.03778033005 | O23: =IFERROR(VLOOKUP(D23,'WYNIKI EKO SKLEPY'!J:O,6,),"") -> -0.0912951191 | P23: =IFERROR(VLOOKUP(D23,'WYNIKI EKO SKLEPY'!C:H,4,0),"") -> 0.2552141984 | Q23: =IFERROR(VLOOKUP(D23,'WYNIKI EKO SKLEPY'!J:O,4,),"") -> 0.2493940808 | R23: =IFERROR(VLOOKUP(D23,[2]Sheet1!$D$1:$L$65536,6,0),"") -> 124.9236308 | S23: =IFERROR(VLOOKUP(D23,[2]Sheet1!$D$1:$L$65536,7,0),"") -> 0.0457934279 | T23: =IFERROR(VLOOKUP(D23,[2]Sheet1!$D$1:$L$65536,9,0),"") -> 2.777775152 | U23: =IFERROR(VLOOKUP(D23,[2]Sheet1!$D$1:$L$65536,5,0),"") -> -0.06735495165 | V23: =IFERROR(VLOOKUP(A23,'Stary Zapas Dane i Rotacja'!A:AA,22,0)+VLOOKUP(A23,'Stary Zapas Dane i Rotacja'!A:AA,26,0),"") -> 0.09234561659 | W23: =IFERROR(VLOOKUP(A23,'EPV Sklep Sport'!A:I,8,0),"") -> 0.026472873 | X23: =IFERROR(VLOOKUP(D23,'[3]Shortage rate_Stores'!$B$115:$C$192,2,0),"") -> 0.1146443515 | Y23: =IFERROR(VLOOKUP(D23,'[3]Shortage rate_Stores'!$F$115:$G$189,2,0),"") -> 0.09424845604 | Z23: =IFERROR(VLOOKUP(A23,'zamówienia reczne Polska'!A:M,10,0),"") -> 0.458338954 | AA23: =IFERROR(VLOOKUP(A23,'zamówienia reczne Polska'!A:M,13,0),"") -> 0.4289529502 | AB23: =IFERROR(VLOOKUP(A23,'Stary Zapas Dane i Rotacja'!A:N,9,0),"") -> 79105 | AC23: 22 | AD23: 11 | AE23: =IFERROR(VLOOKUP(D23,[4]LTD!$B$1:$C$65536,2,0),"") -> 1.28365513 | AF23: =IFERROR(VLOOKUP(D23,[4]LTD!$F$1:$G$65536,2,0),"") -> 1.109575402 | AG23: =IFERROR(VLOOKUP(D23,[4]LTD!$J$1:$K$65536,2,0),"") -> 1.164128961 | AH23: =IFERROR(VLOOKUP(D23,'[4]% delivery'!$B$1:$H$65536,2,0),"") -> 0.5201670644 | AI23: =IFERROR(VLOOKUP(D23,'[4]% delivery'!$B$1:$H$65536,3,0),"") -> 0.9713603819 | AJ23: =IFERROR(VLOOKUP(D23,'[4]% delivery'!$B$1:$H$65536,4,0),"") -> 0.996778043 | AK23: =IFERROR(VLOOKUP(D23,'[4]% delivery'!$B$1:$H$65536,5,0),"") -> 0.9972553699 | AL23: =IFERROR(VLOOKUP(D23,'[4]% delivery'!$B$1:$H$65536,7,0),"") -> 0 | AM23: =IFERROR(VLOOKUP(D23,'[4]% delivery YTD'!$B$1:$H$65536,2,0),"") -> 0.5398160329 | AN23: =IFERROR(VLOOKUP(D23,'[4]% delivery YTD'!$B$1:$H$65536,3,0),"") -> 0.8955806247 | AO23: =IFERROR(VLOOKUP(D23,'[4]% delivery YTD'!$B$1:$H$65536,4,0),"") -> 0.974152863 | AP23: =IFERROR(VLOOKUP(D23,'[4]% delivery YTD'!$B$1:$H$65536,5,0),"") -> 0.990480007 | AQ23: =IFERROR(VLOOKUP(D23,'[4]% delivery YTD'!$B$1:$H$65536,6,0),"") -> 0.9948063178
A24: 643Result | B24: Result | C24: 643 | D24: Gdansk Przymorze | E24: =IFERROR(VLOOKUP(D24,'WYNIKI EKO SKLEPY'!C:H,2,0),"") -> 639227.19 | F24: =IFERROR(VLOOKUP(D24,'WYNIKI EKO SKLEPY'!J:O,2,),"") -> 33661840.46 | G24: =VLOOKUP(C24,[1]Produktywnosc!$B$6:$L$56,10,0) -> 568.1664193 | H24: =VLOOKUP(C24,[1]Produktywnosc!$B$6:$L$56,11,0) -> 544.9227103 | I24: 17 | J24: =VLOOKUP(C24,'Open voice'!K:S,6,0) -> 4.29 | K24: =VLOOKUP(C24,'Open voice'!A:I,6,0) -> 4.34 | L24: =IFERROR(VLOOKUP(D24,'WYNIKI EKO SKLEPY'!C:H,3,0),"") -> 0.134284747 | M24: =IFERROR(VLOOKUP(D24,'WYNIKI EKO SKLEPY'!J:O,3,),"") -> 0.009554444917 | N24: =IFERROR(VLOOKUP(D24,'WYNIKI EKO SKLEPY'!C:H,6,0),"") -> 0.1269657567 | O24: =IFERROR(VLOOKUP(D24,'WYNIKI EKO SKLEPY'!J:O,6,),"") -> -0.02213050089 | P24: =IFERROR(VLOOKUP(D24,'WYNIKI EKO SKLEPY'!C:H,4,0),"") -> 0.2534625287 | Q24: =IFERROR(VLOOKUP(D24,'WYNIKI EKO SKLEPY'!J:O,4,),"") -> 0.2464733528 | R24: =IFERROR(VLOOKUP(D24,[2]Sheet1!$D$1:$L$65536,6,0),"") -> 113.0252861 | S24: =IFERROR(VLOOKUP(D24,[2]Sheet1!$D$1:$L$65536,7,0),"") -> 0.02578845404 | T24: =IFERROR(VLOOKUP(D24,[2]Sheet1!$D$1:$L$65536,9,0),"") -> 2.63568474 | U24: =IFERROR(VLOOKUP(D24,[2]Sheet1!$D$1:$L$65536,5,0),"") -> -0.006174706895 | V24: =IFERROR(VLOOKUP(A24,'Stary Zapas Dane i Rotacja'!A:AA,22,0)+VLOOKUP(A24,'Stary Zapas Dane i Rotacja'!A:AA,26,0),"") -> 0.103846608 | W24: =IFERROR(VLOOKUP(A24,'EPV Sklep Sport'!A:I,8,0),"") -> 0.03762188285 | X24: =IFERROR(VLOOKUP(D24,'[3]Shortage rate_Stores'!$B$115:$C$192,2,0),"") -> 0.1080604904 | Y24: =IFERROR(VLOOKUP(D24,'[3]Shortage rate_Stores'!$F$115:$G$189,2,0),"") -> 0.08319568114 | Z24: =IFERROR(VLOOKUP(A24,'zamówienia reczne Polska'!A:M,10,0),"") -> 0.3118431589 | AA24: =IFERROR(VLOOKUP(A24,'zamówienia reczne Polska'!A:M,13,0),"") -> 0.3185646369 | AB24: =IFERROR(VLOOKUP(A24,'Stary Zapas Dane i Rotacja'!A:N,9,0),"") -> 93147 | AC24: 10 | AD24: -7 | AE24: =IFERROR(VLOOKUP(D24,[4]LTD!$B$1:$C$65536,2,0),"") -> 2.225373326 | AF24: =IFERROR(VLOOKUP(D24,[4]LTD!$F$1:$G$65536,2,0),"") -> 1.749248833 | AG24: =IFERROR(VLOOKUP(D24,[4]LTD!$J$1:$K$65536,2,0),"") -> 1.800215148 | AH24: =IFERROR(VLOOKUP(D24,'[4]% delivery'!$B$1:$H$65536,2,0),"") -> 0.009645628014 | AI24: =IFERROR(VLOOKUP(D24,'[4]% delivery'!$B$1:$H$65536,3,0),"") -> 0.8007968127 | AJ24: =IFERROR(VLOOKUP(D24,'[4]% delivery'!$B$1:$H$65536,4,0),"") -> 0.9980079681 | AK24: =IFERROR(VLOOKUP(D24,'[4]% delivery'!$B$1:$H$65536,5,0),"") -> 0.9998951562 | AL24: =IFERROR(VLOOKUP(D24,'[4]% delivery'!$B$1:$H$65536,7,0),"") -> 0.0001048437828 | AM24: =IFERROR(VLOOKUP(D24,'[4]% delivery YTD'!$B$1:$H$65536,2,0),"") -> 0.01979068867 | AN24: =IFERROR(VLOOKUP(D24,'[4]% delivery YTD'!$B$1:$H$65536,3,0),"") -> 0.7103483395 | AO24: =IFERROR(VLOOKUP(D24,'[4]% delivery YTD'!$B$1:$H$65536,4,0),"") -> 0.9296133628 | AP24: =IFERROR(VLOOKUP(D24,'[4]% delivery YTD'!$B$1:$H$65536,5,0),"") -> 0.9769736319 | AQ24: =IFERROR(VLOOKUP(D24,'[4]% delivery YTD'!$B$1:$H$65536,6,0),"") -> 0.9904414846
A25: 651Result | B25: Result | C25: 651 | D25: Gdansk Kartuska | E25: =IFERROR(VLOOKUP(D25,'WYNIKI EKO SKLEPY'!C:H,2,0),"") -> 663459.74 | F25: =IFERROR(VLOOKUP(D25,'WYNIKI EKO SKLEPY'!J:O,2,),"") -> 42378121 | G25: =VLOOKUP(C25,[1]Produktywnosc!$B$6:$L$56,10,0) -> 714.9637989 | H25: =VLOOKUP(C25,[1]Produktywnosc!$B$6:$L$56,11,0) -> 643.4519704 | I25: 7 | J25: =VLOOKUP(C25,'Open voice'!K:S,6,0) -> 4.38 | K25: =VLOOKUP(C25,'Open voice'!A:I,6,0) -> 4.28 | L25: =IFERROR(VLOOKUP(D25,'WYNIKI EKO SKLEPY'!C:H,3,0),"") -> -0.01627950851 | M25: =IFERROR(VLOOKUP(D25,'WYNIKI EKO SKLEPY'!J:O,3,),"") -> 0.02526161637 | N25: =IFERROR(VLOOKUP(D25,'WYNIKI EKO SKLEPY'!C:H,6,0),"") -> 0.04995368941 | O25: =IFERROR(VLOOKUP(D25,'WYNIKI EKO SKLEPY'!J:O,6,),"") -> -0.005642041094 | P25: =IFERROR(VLOOKUP(D25,'WYNIKI EKO SKLEPY'!C:H,4,0),"") -> 0.2505706978 | Q25: =IFERROR(VLOOKUP(D25,'WYNIKI EKO SKLEPY'!J:O,4,),"") -> 0.2450845966 | R25: =IFERROR(VLOOKUP(D25,[2]Sheet1!$D$1:$L$65536,6,0),"") -> 147.2061409 | S25: =IFERROR(VLOOKUP(D25,[2]Sheet1!$D$1:$L$65536,7,0),"") -> 0.02129397404 | T25: =IFERROR(VLOOKUP(D25,[2]Sheet1!$D$1:$L$65536,9,0),"") -> 3.215507017 | U25: =IFERROR(VLOOKUP(D25,[2]Sheet1!$D$1:$L$65536,5,0),"") -> 0.01375105518 | V25: =IFERROR(VLOOKUP(A25,'Stary Zapas Dane i Rotacja'!A:AA,22,0)+VLOOKUP(A25,'Stary Zapas Dane i Rotacja'!A:AA,26,0),"") -> 0.09966375252 | W25: =IFERROR(VLOOKUP(A25,'EPV Sklep Sport'!A:I,8,0),"") -> 0.03679768461 | X25: =IFERROR(VLOOKUP(D25,'[3]Shortage rate_Stores'!$B$115:$C$192,2,0),"") -> 0.07263748135 | Y25: =IFERROR(VLOOKUP(D25,'[3]Shortage rate_Stores'!$F$115:$G$189,2,0),"") -> 0.08613446021 | Z25: =IFERROR(VLOOKUP(A25,'zamówienia reczne Polska'!A:M,10,0),"") -> 0.3928708122 | AA25: =IFERROR(VLOOKUP(A25,'zamówienia reczne Polska'!A:M,13,0),"") -> 0.3678358805 | AB25: =IFERROR(VLOOKUP(A25,'Stary Zapas Dane i Rotacja'!A:N,9,0),"") -> 96655 | AC25: 9 | AD25: 2 | AE25: =IFERROR(VLOOKUP(D25,[4]LTD!$B$1:$C$65536,2,0),"") -> 1.883782595 | AF25: =IFERROR(VLOOKUP(D25,[4]LTD!$F$1:$G$65536,2,0),"") -> 1.705013148 | AG25: =IFERROR(VLOOKUP(D25,[4]LTD!$J$1:$K$65536,2,0),"") -> 1.712156593 | AH25: =IFERROR(VLOOKUP(D25,'[4]% delivery'!$B$1:$H$65536,2,0),"") -> 0.03514028875 | AI25: =IFERROR(VLOOKUP(D25,'[4]% delivery'!$B$1:$H$65536,3,0),"") -> 0.8513574866 | AJ25: =IFERROR(VLOOKUP(D25,'[4]% delivery'!$B$1:$H$65536,4,0),"") -> 0.9985471715 | AK25: =IFERROR(VLOOKUP(D25,'[4]% delivery'!$B$1:$H$65536,5,0),"") -> 1 | AL25: =IFERROR(VLOOKUP(D25,'[4]% delivery'!$B$1:$H$65536,7,0),"") -> 0 | AM25: =IFERROR(VLOOKUP(D25,'[4]% delivery YTD'!$B$1:$H$65536,2,0),"") -> 0.02900567158 | AN25: =IFERROR(VLOOKUP(D25,'[4]% delivery YTD'!$B$1:$H$65536,3,0),"") -> 0.7850901767 | AO25: =IFERROR(VLOOKUP(D25,'[4]% delivery YTD'!$B$1:$H$65536,4,0),"") -> 0.9416699819 | AP25: =IFERROR(VLOOKUP(D25,'[4]% delivery YTD'!$B$1:$H$65536,5,0),"") -> 0.9765305251 | AQ25: =IFERROR(VLOOKUP(D25,'[4]% delivery YTD'!$B$1:$H$65536,6,0),"") -> 0.9903106144
A26: 653Result | B26: Result | C26: 653 | D26: Slupsk | E26: =IFERROR(VLOOKUP(D26,'WYNIKI EKO SKLEPY'!C:H,2,0),"") -> 214421.33 | F26: =IFERROR(VLOOKUP(D26,'WYNIKI EKO SKLEPY'!J:O,2,),"") -> 12437372.52 | G26: =VLOOKUP(C26,[1]Produktywnosc!$B$6:$L$56,10,0) -> 486.9476952 | H26: =VLOOKUP(C26,[1]Produktywnosc!$B$6:$L$56,11,0) -> 406.0538019 | I26: 44 | J26: =VLOOKUP(C26,'Open voice'!K:S,6,0) -> 4.5 | K26: =VLOOKUP(C26,'Open voice'!A:I,6,0) -> 4.23 | L26: =IFERROR(VLOOKUP(D26,'WYNIKI EKO SKLEPY'!C:H,3,0),"") -> 0.01128527373 | M26: =IFERROR(VLOOKUP(D26,'WYNIKI EKO SKLEPY'!J:O,3,),"") -> -0.04737938644 | N26: =IFERROR(VLOOKUP(D26,'WYNIKI EKO SKLEPY'!C:H,6,0),"") -> -0.02710551791 | O26: =IFERROR(VLOOKUP(D26,'WYNIKI EKO SKLEPY'!J:O,6,),"") -> -0.1222128373 | P26: =IFERROR(VLOOKUP(D26,'WYNIKI EKO SKLEPY'!C:H,4,0),"") -> 0.2513644981 | Q26: =IFERROR(VLOOKUP(D26,'WYNIKI EKO SKLEPY'!J:O,4,),"") -> 0.2314376783 | R26: =IFERROR(VLOOKUP(D26,[2]Sheet1!$D$1:$L$65536,6,0),"") -> 96.51576135 | S26: =IFERROR(VLOOKUP(D26,[2]Sheet1!$D$1:$L$65536,7,0),"") -> 0.002104390192 | T26: =IFERROR(VLOOKUP(D26,[2]Sheet1!$D$1:$L$65536,9,0),"") -> 2.303803408 | U26: =IFERROR(VLOOKUP(D26,[2]Sheet1!$D$1:$L$65536,5,0),"") -> -0.04238379844 | V26: =IFERROR(VLOOKUP(A26,'Stary Zapas Dane i Rotacja'!A:AA,22,0)+VLOOKUP(A26,'Stary Zapas Dane i Rotacja'!A:AA,26,0),"") -> 0.1357485251 | W26: =IFERROR(VLOOKUP(A26,'EPV Sklep Sport'!A:I,8,0),"") -> 0.04007243728 | X26: =IFERROR(VLOOKUP(D26,'[3]Shortage rate_Stores'!$B$115:$C$192,2,0),"") -> 0.1007288357 | Y26: =IFERROR(VLOOKUP(D26,'[3]Shortage rate_Stores'!$F$115:$G$189,2,0),"") -> 0.07836017956 | Z26: =IFERROR(VLOOKUP(A26,'zamówienia reczne Polska'!A:M,10,0),"") -> 0.2696550132 | AA26: =IFERROR(VLOOKUP(A26,'zamówienia reczne Polska'!A:M,13,0),"") -> 0.3477405408 | AB26: =IFERROR(VLOOKUP(A26,'Stary Zapas Dane i Rotacja'!A:N,9,0),"") -> 54240 | AC26: 42 | AD26: -2 | AE26: =IFERROR(VLOOKUP(D26,[4]LTD!$B$1:$C$65536,2,0),"") -> 2.154568727 | AF26: =IFERROR(VLOOKUP(D26,[4]LTD!$F$1:$G$65536,2,0),"") -> 2.045304401 | AG26: =IFERROR(VLOOKUP(D26,[4]LTD!$J$1:$K$65536,2,0),"") -> 2.255299166 | AH26: =IFERROR(VLOOKUP(D26,'[4]% delivery'!$B$1:$H$65536,2,0),"") -> 0.01514673399 | AI26: =IFERROR(VLOOKUP(D26,'[4]% delivery'!$B$1:$H$65536,3,0),"") -> 0.4906910697 | AJ26: =IFERROR(VLOOKUP(D26,'[4]% delivery'!$B$1:$H$65536,4,0),"") -> 0.8747238877 | AK26: =IFERROR(VLOOKUP(D26,'[4]% delivery'!$B$1:$H$65536,5,0),"") -> 0.9968444304 | AL26: =IFERROR(VLOOKUP(D26,'[4]% delivery'!$B$1:$H$65536,7,0),"") -> 0 | AM26: =IFERROR(VLOOKUP(D26,'[4]% delivery YTD'!$B$1:$H$65536,2,0),"") -> 0.009877943239 | AN26: =IFERROR(VLOOKUP(D26,'[4]% delivery YTD'!$B$1:$H$65536,3,0),"") -> 0.6065236205 | AO26: =IFERROR(VLOOKUP(D26,'[4]% delivery YTD'!$B$1:$H$65536,4,0),"") -> 0.8869915545 | AP26: =IFERROR(VLOOKUP(D26,'[4]% delivery YTD'!$B$1:$H$65536,5,0),"") -> 0.9738398639 | AQ26: =IFERROR(VLOOKUP(D26,'[4]% delivery YTD'!$B$1:$H$65536,6,0),"") -> 0.9934286311
A27: 654Result | B27: Result | C27: 654 | D27: Bydgoszcz Fordon | E27: =IFERROR(VLOOKUP(D27,'WYNIKI EKO SKLEPY'!C:H,2,0),"") -> 472996.52 | F27: =IFERROR(VLOOKUP(D27,'WYNIKI EKO SKLEPY'!J:O,2,),"") -> 28732185.7 | G27: =VLOOKUP(C27,[1]Produktywnosc!$B$6:$L$56,10,0) -> 542.3644664 | H27: =VLOOKUP(C27,[1]Produktywnosc!$B$6:$L$56,11,0) -> 557.0604073 | I27: 23 | J27: =VLOOKUP(C27,'Open voice'!K:S,6,0) -> 4.25 | K27: =VLOOKUP(C27,'Open voice'!A:I,6,0) -> 4.23 | L27: =IFERROR(VLOOKUP(D27,'WYNIKI EKO SKLEPY'!C:H,3,0),"") -> 0.02541135449 | M27: =IFERROR(VLOOKUP(D27,'WYNIKI EKO SKLEPY'!J:O,3,),"") -> -0.00117625788 | N27: =IFERROR(VLOOKUP(D27,'WYNIKI EKO SKLEPY'!C:H,6,0),"") -> 0.02140780548 | O27: =IFERROR(VLOOKUP(D27,'WYNIKI EKO SKLEPY'!J:O,6,),"") -> -0.06636100885 | P27: =IFERROR(VLOOKUP(D27,'WYNIKI EKO SKLEPY'!C:H,4,0),"") -> 0.2522395936 | Q27: =IFERROR(VLOOKUP(D27,'WYNIKI EKO SKLEPY'!J:O,4,),"") -> 0.2453825892 | R27: =IFERROR(VLOOKUP(D27,[2]Sheet1!$D$1:$L$65536,6,0),"") -> 135.8536914 | S27: =IFERROR(VLOOKUP(D27,[2]Sheet1!$D$1:$L$65536,7,0),"") -> 0.04315602421 | T27: =IFERROR(VLOOKUP(D27,[2]Sheet1!$D$1:$L$65536,9,0),"") -> 2.988445583 | U27: =IFERROR(VLOOKUP(D27,[2]Sheet1!$D$1:$L$65536,5,0),"") -> -0.03198694335 | V27: =IFERROR(VLOOKUP(A27,'Stary Zapas Dane i Rotacja'!A:AA,22,0)+VLOOKUP(A27,'Stary Zapas Dane i Rotacja'!A:AA,26,0),"") -> 0.1229540918 | W27: =IFERROR(VLOOKUP(A27,'EPV Sklep Sport'!A:I,8,0),"") -> 0.02816923997 | X27: =IFERROR(VLOOKUP(D27,'[3]Shortage rate_Stores'!$B$115:$C$192,2,0),"") -> 0.11790479 | Y27: =IFERROR(VLOOKUP(D27,'[3]Shortage rate_Stores'!$F$115:$G$189,2,0),"") -> 0.08551052038 | Z27: =IFERROR(VLOOKUP(A27,'zamówienia reczne Polska'!A:M,10,0),"") -> 0.3643208361 | AA27: =IFERROR(VLOOKUP(A27,'zamówienia reczne Polska'!A:M,13,0),"") -> 0.4085757422 | AB27: =IFERROR(VLOOKUP(A27,'Stary Zapas Dane i Rotacja'!A:N,9,0),"") -> 87675 | AC27: 15 | AD27: -8 | AE27: =IFERROR(VLOOKUP(D27,[4]LTD!$B$1:$C$65536,2,0),"") -> 2.145553001 | AF27: =IFERROR(VLOOKUP(D27,[4]LTD!$F$1:$G$65536,2,0),"") -> 1.191596872 | AG27: =IFERROR(VLOOKUP(D27,[4]LTD!$J$1:$K$65536,2,0),"") -> 1.342354894 | AH27: =IFERROR(VLOOKUP(D27,'[4]% delivery'!$B$1:$H$65536,2,0),"") -> 0.3707073672 | AI27: =IFERROR(VLOOKUP(D27,'[4]% delivery'!$B$1:$H$65536,3,0),"") -> 0.8925741121 | AJ27: =IFERROR(VLOOKUP(D27,'[4]% delivery'!$B$1:$H$65536,4,0),"") -> 0.981361902 | AK27: =IFERROR(VLOOKUP(D27,'[4]% delivery'!$B$1:$H$65536,5,0),"") -> 0.9994129733 | AL27: =IFERROR(VLOOKUP(D27,'[4]% delivery'!$B$1:$H$65536,7,0),"") -> 0 | AM27: =IFERROR(VLOOKUP(D27,'[4]% delivery YTD'!$B$1:$H$65536,2,0),"") -> 0.1857131615 | AN27: =IFERROR(VLOOKUP(D27,'[4]% delivery YTD'!$B$1:$H$65536,3,0),"") -> 0.7464058934 | AO27: =IFERROR(VLOOKUP(D27,'[4]% delivery YTD'!$B$1:$H$65536,4,0),"") -> 0.9272522563 | AP27: =IFERROR(VLOOKUP(D27,'[4]% delivery YTD'!$B$1:$H$65536,5,0),"") -> 0.9677877253 | AQ27: =IFERROR(VLOOKUP(D27,'[4]% delivery YTD'!$B$1:$H$65536,6,0),"") -> 0.982996471
A28: 663Result | B28: Result | C28: 663 | D28: Wroclaw Korona | E28: =IFERROR(VLOOKUP(D28,'WYNIKI EKO SKLEPY'!C:H,2,0),"") -> 583096.97 | F28: =IFERROR(VLOOKUP(D28,'WYNIKI EKO SKLEPY'!J:O,2,),"") -> 31009281.53 | G28: =VLOOKUP(C28,[1]Produktywnosc!$B$6:$L$56,10,0) -> 633.592856 | H28: =VLOOKUP(C28,[1]Produktywnosc!$B$6:$L$56,11,0) -> 528.2701297 | I28: 19 | J28: =VLOOKUP(C28,'Open voice'!K:S,6,0) -> 4.28 | K28: =VLOOKUP(C28,'Open voice'!A:I,6,0) -> 4.31 | L28: =IFERROR(VLOOKUP(D28,'WYNIKI EKO SKLEPY'!C:H,3,0),"") -> 0.05766358886 | M28: =IFERROR(VLOOKUP(D28,'WYNIKI EKO SKLEPY'!J:O,3,),"") -> 0.001501712815 | N28: =IFERROR(VLOOKUP(D28,'WYNIKI EKO SKLEPY'!C:H,6,0),"") -> 0.04595300261 | O28: =IFERROR(VLOOKUP(D28,'WYNIKI EKO SKLEPY'!J:O,6,),"") -> -0.02302481651 | P28: =IFERROR(VLOOKUP(D28,'WYNIKI EKO SKLEPY'!C:H,4,0),"") -> 0.2507411589 | Q28: =IFERROR(VLOOKUP(D28,'WYNIKI EKO SKLEPY'!J:O,4,),"") -> 0.2499160109 | R28: =IFERROR(VLOOKUP(D28,[2]Sheet1!$D$1:$L$65536,6,0),"") -> 114.9610167 | S28: =IFERROR(VLOOKUP(D28,[2]Sheet1!$D$1:$L$65536,7,0),"") -> 0.04880204477 | T28: =IFERROR(VLOOKUP(D28,[2]Sheet1!$D$1:$L$65536,9,0),"") -> 2.762527559 | U28: =IFERROR(VLOOKUP(D28,[2]Sheet1!$D$1:$L$65536,5,0),"") -> -0.03481183862 | V28: =IFERROR(VLOOKUP(A28,'Stary Zapas Dane i Rotacja'!A:AA,22,0)+VLOOKUP(A28,'Stary Zapas Dane i Rotacja'!A:AA,26,0),"") -> 0.09685540566 | W28: =IFERROR(VLOOKUP(A28,'EPV Sklep Sport'!A:I,8,0),"") -> 0.03050864725 | X28: =IFERROR(VLOOKUP(D28,'[3]Shortage rate_Stores'!$B$115:$C$192,2,0),"") -> 0.05602129075 | Y28: =IFERROR(VLOOKUP(D28,'[3]Shortage rate_Stores'!$F$115:$G$189,2,0),"") -> 0.08360436623 | Z28: =IFERROR(VLOOKUP(A28,'zamówienia reczne Polska'!A:M,10,0),"") -> 0.4641148919 | AA28: =IFERROR(VLOOKUP(A28,'zamówienia reczne Polska'!A:M,13,0),"") -> 0.4287722949 | AB28: =IFERROR(VLOOKUP(A28,'Stary Zapas Dane i Rotacja'!A:N,9,0),"") -> 84208 | AC28: 18 | AD28: -1 | AE28: =IFERROR(VLOOKUP(D28,[4]LTD!$B$1:$C$65536,2,0),"") -> 2.370514039 | AF28: =IFERROR(VLOOKUP(D28,[4]LTD!$F$1:$G$65536,2,0),"") -> 1.940531998 | AG28: =IFERROR(VLOOKUP(D28,[4]LTD!$J$1:$K$65536,2,0),"") -> 1.960334185 | AH28: =IFERROR(VLOOKUP(D28,'[4]% delivery'!$B$1:$H$65536,2,0),"") -> 0.06871165644 | AI28: =IFERROR(VLOOKUP(D28,'[4]% delivery'!$B$1:$H$65536,3,0),"") -> 0.5505521472 | AJ28: =IFERROR(VLOOKUP(D28,'[4]% delivery'!$B$1:$H$65536,4,0),"") -> 0.9879754601 | AK28: =IFERROR(VLOOKUP(D28,'[4]% delivery'!$B$1:$H$65536,5,0),"") -> 0.9992638037 | AL28: =IFERROR(VLOOKUP(D28,'[4]% delivery'!$B$1:$H$65536,7,0),"") -> 0 | AM28: =IFERROR(VLOOKUP(D28,'[4]% delivery YTD'!$B$1:$H$65536,2,0),"") -> 0.06724405142 | AN28: =IFERROR(VLOOKUP(D28,'[4]% delivery YTD'!$B$1:$H$65536,3,0),"") -> 0.5354466483 | AO28: =IFERROR(VLOOKUP(D28,'[4]% delivery YTD'!$B$1:$H$65536,4,0),"") -> 0.7874607661 | AP28: =IFERROR(VLOOKUP(D28,'[4]% delivery YTD'!$B$1:$H$65536,5,0),"") -> 0.8959535314 | AQ28: =IFERROR(VLOOKUP(D28,'[4]% delivery YTD'!$B$1:$H$65536,6,0),"") -> 0.9487412578
A29: 695Result | B29: Result | C29: 695 | D29: Franowo | E29: =IFERROR(VLOOKUP(D29,'WYNIKI EKO SKLEPY'!C:H,2,0),"") -> 874180.2 | F29: =IFERROR(VLOOKUP(D29,'WYNIKI EKO SKLEPY'!J:O,2,),"") -> 52365089.11 | G29: =VLOOKUP(C29,[1]Produktywnosc!$B$6:$L$56,10,0) -> 659.028432 | H29: =VLOOKUP(C29,[1]Produktywnosc!$B$6:$L$56,11,0) -> 605.4630562 | I29: 3 | J29: =VLOOKUP(C29,'Open voice'!K:S,6,0) -> 4.43 | K29: =VLOOKUP(C29,'Open voice'!A:I,6,0) -> 4.29 | L29: =IFERROR(VLOOKUP(D29,'WYNIKI EKO SKLEPY'!C:H,3,0),"") -> 0.01214303913 | M29: =IFERROR(VLOOKUP(D29,'WYNIKI EKO SKLEPY'!J:O,3,),"") -> 0.01520667297 | N29: =IFERROR(VLOOKUP(D29,'WYNIKI EKO SKLEPY'!C:H,6,0),"") -> -0.005198996056 | O29: =IFERROR(VLOOKUP(D29,'WYNIKI EKO SKLEPY'!J:O,6,),"") -> -0.008814326873 | P29: =IFERROR(VLOOKUP(D29,'WYNIKI EKO SKLEPY'!C:H,4,0),"") -> 0.249306985 | Q29: =IFERROR(VLOOKUP(D29,'WYNIKI EKO SKLEPY'!J:O,4,),"") -> 0.2492529852 | R29: =IFERROR(VLOOKUP(D29,[2]Sheet1!$D$1:$L$65536,6,0),"") -> 142.1450597 | S29: =IFERROR(VLOOKUP(D29,[2]Sheet1!$D$1:$L$65536,7,0),"") -> 0.05154648398 | T29: =IFERROR(VLOOKUP(D29,[2]Sheet1!$D$1:$L$65536,9,0),"") -> 3.25505857 | U29: =IFERROR(VLOOKUP(D29,[2]Sheet1!$D$1:$L$65536,5,0),"") -> -0.02324140399 | V29: =IFERROR(VLOOKUP(A29,'Stary Zapas Dane i Rotacja'!A:AA,22,0)+VLOOKUP(A29,'Stary Zapas Dane i Rotacja'!A:AA,26,0),"") -> 0.09607607657 | W29: =IFERROR(VLOOKUP(A29,'EPV Sklep Sport'!A:I,8,0),"") -> 0.0304617217 | X29: =IFERROR(VLOOKUP(D29,'[3]Shortage rate_Stores'!$B$115:$C$192,2,0),"") -> 0.08772010694 | Y29: =IFERROR(VLOOKUP(D29,'[3]Shortage rate_Stores'!$F$115:$G$189,2,0),"") -> 0.09536314326 | Z29: =IFERROR(VLOOKUP(A29,'zamówienia reczne Polska'!A:M,10,0),"") -> 0.5186205986 | AA29: =IFERROR(VLOOKUP(A29,'zamówienia reczne Polska'!A:M,13,0),"") -> 0.4222925004 | AB29: =IFERROR(VLOOKUP(A29,'Stary Zapas Dane i Rotacja'!A:N,9,0),"") -> 122403 | AC29: 4 | AD29: 1 | AE29: =IFERROR(VLOOKUP(D29,[4]LTD!$B$1:$C$65536,2,0),"") -> 1.736969705 | AF29: =IFERROR(VLOOKUP(D29,[4]LTD!$F$1:$G$65536,2,0),"") -> 1.645622781 | AG29: =IFERROR(VLOOKUP(D29,[4]LTD!$J$1:$K$65536,2,0),"") -> 1.68204495 | AH29: =IFERROR(VLOOKUP(D29,'[4]% delivery'!$B$1:$H$65536,2,0),"") -> 0.1586081063 | AI29: =IFERROR(VLOOKUP(D29,'[4]% delivery'!$B$1:$H$65536,3,0),"") -> 0.8074416786 | AJ29: =IFERROR(VLOOKUP(D29,'[4]% delivery'!$B$1:$H$65536,4,0),"") -> 0.9925061905 | AK29: =IFERROR(VLOOKUP(D29,'[4]% delivery'!$B$1:$H$65536,5,0),"") -> 0.9942656067 | AL29: =IFERROR(VLOOKUP(D29,'[4]% delivery'!$B$1:$H$65536,7,0),"") -> 0.004691776359 | AM29: =IFERROR(VLOOKUP(D29,'[4]% delivery YTD'!$B$1:$H$65536,2,0),"") -> 0.1701170285 | AN29: =IFERROR(VLOOKUP(D29,'[4]% delivery YTD'!$B$1:$H$65536,3,0),"") -> 0.8144571225 | AO29: =IFERROR(VLOOKUP(D29,'[4]% delivery YTD'!$B$1:$H$65536,4,0),"") -> 0.948692048 | AP29: =IFERROR(VLOOKUP(D29,'[4]% delivery YTD'!$B$1:$H$65536,5,0),"") -> 0.9770378821 | AQ29: =IFERROR(VLOOKUP(D29,'[4]% delivery YTD'!$B$1:$H$65536,6,0),"") -> 0.9898551424
A30: 697Result | B30: Result | C30: 697 | D30: Kalisz | E30: =IFERROR(VLOOKUP(D30,'WYNIKI EKO SKLEPY'!C:H,2,0),"") -> 248729.4 | F30: =IFERROR(VLOOKUP(D30,'WYNIKI EKO SKLEPY'!J:O,2,),"") -> 15955069.11 | G30: =VLOOKUP(C30,[1]Produktywnosc!$B$6:$L$56,10,0) -> 563.8149975 | H30: =VLOOKUP(C30,[1]Produktywnosc!$B$6:$L$56,11,0) -> 532.219082 | I30: 39 | J30: =VLOOKUP(C30,'Open voice'!K:S,6,0) -> 4.17 | K30: =VLOOKUP(C30,'Open voice'!A:I,6,0) -> 4.2 | L30: =IFERROR(VLOOKUP(D30,'WYNIKI EKO SKLEPY'!C:H,3,0),"") -> -0.0573088116 | M30: =IFERROR(VLOOKUP(D30,'WYNIKI EKO SKLEPY'!J:O,3,),"") -> 0.03756171276 | N30: =IFERROR(VLOOKUP(D30,'WYNIKI EKO SKLEPY'!C:H,6,0),"") -> -0.04075533216 | O30: =IFERROR(VLOOKUP(D30,'WYNIKI EKO SKLEPY'!J:O,6,),"") -> 0.01932147247 | P30: =IFERROR(VLOOKUP(D30,'WYNIKI EKO SKLEPY'!C:H,4,0),"") -> 0.2541461122 | Q30: =IFERROR(VLOOKUP(D30,'WYNIKI EKO SKLEPY'!J:O,4,),"") -> 0.2426807401 | R30: =IFERROR(VLOOKUP(D30,[2]Sheet1!$D$1:$L$65536,6,0),"") -> 115.5890728 | S30: =IFERROR(VLOOKUP(D30,[2]Sheet1!$D$1:$L$65536,7,0),"") -> 0.01274952599 | T30: =IFERROR(VLOOKUP(D30,[2]Sheet1!$D$1:$L$65536,9,0),"") -> 2.869253083 | U30: =IFERROR(VLOOKUP(D30,[2]Sheet1!$D$1:$L$65536,5,0),"") -> 0.03644837927 | V30: =IFERROR(VLOOKUP(A30,'Stary Zapas Dane i Rotacja'!A:AA,22,0)+VLOOKUP(A30,'Stary Zapas Dane i Rotacja'!A:AA,26,0),"") -> 0.104963341 | W30: =IFERROR(VLOOKUP(A30,'EPV Sklep Sport'!A:I,8,0),"") -> 0.03703905268 | X30: =IFERROR(VLOOKUP(D30,'[3]Shortage rate_Stores'!$B$115:$C$192,2,0),"") -> 0.1256374594 | Y30: =IFERROR(VLOOKUP(D30,'[3]Shortage rate_Stores'!$F$115:$G$189,2,0),"") -> 0.07594689723 | Z30: =IFERROR(VLOOKUP(A30,'zamówienia reczne Polska'!A:M,10,0),"") -> 0.4216043218 | AA30: =IFERROR(VLOOKUP(A30,'zamówienia reczne Polska'!A:M,13,0),"") -> 0.4181668514 | AB30: =IFERROR(VLOOKUP(A30,'Stary Zapas Dane i Rotacja'!A:N,9,0),"") -> 55648 | AC30: 40 | AD30: 1 | AE30: =IFERROR(VLOOKUP(D30,[4]LTD!$B$1:$C$65536,2,0),"") -> 1.663249178 | AF30: =IFERROR(VLOOKUP(D30,[4]LTD!$F$1:$G$65536,2,0),"") -> 1.366041406 | AG30: =IFERROR(VLOOKUP(D30,[4]LTD!$J$1:$K$65536,2,0),"") -> 1.487139889 | AH30: =IFERROR(VLOOKUP(D30,'[4]% delivery'!$B$1:$H$65536,2,0),"") -> 0.2249552773 | AI30: =IFERROR(VLOOKUP(D30,'[4]% delivery'!$B$1:$H$65536,3,0),"") -> 0.8611359571 | AJ30: =IFERROR(VLOOKUP(D30,'[4]% delivery'!$B$1:$H$65536,4,0),"") -> 0.9982110912 | AK30: =IFERROR(VLOOKUP(D30,'[4]% delivery'!$B$1:$H$65536,5,0),"") -> 0.9997763864 | AL30: =IFERROR(VLOOKUP(D30,'[4]% delivery'!$B$1:$H$65536,7,0),"") -> 0 | AM30: =IFERROR(VLOOKUP(D30,'[4]% delivery YTD'!$B$1:$H$65536,2,0),"") -> 0.3304330685 | AN30: =IFERROR(VLOOKUP(D30,'[4]% delivery YTD'!$B$1:$H$65536,3,0),"") -> 0.8030904521 | AO30: =IFERROR(VLOOKUP(D30,'[4]% delivery YTD'!$B$1:$H$65536,4,0),"") -> 0.9290247335 | AP30: =IFERROR(VLOOKUP(D30,'[4]% delivery YTD'!$B$1:$H$65536,5,0),"") -> 0.9714500047 | AQ30: =IFERROR(VLOOKUP(D30,'[4]% delivery YTD'!$B$1:$H$65536,6,0),"") -> 0.9834307085
A31: 698Result | B31: Result | C31: 698 | D31: Walbrzych (Szczawno – Zdroj) | E31: =IFERROR(VLOOKUP(D31,'WYNIKI EKO SKLEPY'!C:H,2,0),"") -> 270280.18 | F31: =IFERROR(VLOOKUP(D31,'WYNIKI EKO SKLEPY'!J:O,2,),"") -> 15107854.05 | G31: =VLOOKUP(C31,[1]Produktywnosc!$B$6:$L$56,10,0) -> 556.071262 | H31: =VLOOKUP(C31,[1]Produktywnosc!$B$6:$L$56,11,0) -> 522.3175522 | I31: 40 | J31: =VLOOKUP(C31,'Open voice'!K:S,6,0) -> 4.27 | K31: =VLOOKUP(C31,'Open voice'!A:I,6,0) -> 4.19 | L31: =IFERROR(VLOOKUP(D31,'WYNIKI EKO SKLEPY'!C:H,3,0),"") -> 0.1321664364 | M31: =IFERROR(VLOOKUP(D31,'WYNIKI EKO SKLEPY'!J:O,3,),"") -> 0.1156578905 | N31: =IFERROR(VLOOKUP(D31,'WYNIKI EKO SKLEPY'!C:H,6,0),"") -> 0.07416679706 | O31: =IFERROR(VLOOKUP(D31,'WYNIKI EKO SKLEPY'!J:O,6,),"") -> 0.04610650817 | P31: =IFERROR(VLOOKUP(D31,'WYNIKI EKO SKLEPY'!C:H,4,0),"") -> 0.2473704509 | Q31: =IFERROR(VLOOKUP(D31,'WYNIKI EKO SKLEPY'!J:O,4,),"") -> 0.2382507488 | R31: =IFERROR(VLOOKUP(D31,[2]Sheet1!$D$1:$L$65536,6,0),"") -> 124.742895 | S31: =IFERROR(VLOOKUP(D31,[2]Sheet1!$D$1:$L$65536,7,0),"") -> 0.106890414 | T31: =IFERROR(VLOOKUP(D31,[2]Sheet1!$D$1:$L$65536,9,0),"") -> 2.875419222 | U31: =IFERROR(VLOOKUP(D31,[2]Sheet1!$D$1:$L$65536,5,0),"") -> 0.01666765375 | V31: =IFERROR(VLOOKUP(A31,'Stary Zapas Dane i Rotacja'!A:AA,22,0)+VLOOKUP(A31,'Stary Zapas Dane i Rotacja'!A:AA,26,0),"") -> 0.1285022336 | W31: =IFERROR(VLOOKUP(A31,'EPV Sklep Sport'!A:I,8,0),"") -> 0.03452066312 | X31: =IFERROR(VLOOKUP(D31,'[3]Shortage rate_Stores'!$B$115:$C$192,2,0),"") -> 0.05354942659 | Y31: =IFERROR(VLOOKUP(D31,'[3]Shortage rate_Stores'!$F$115:$G$189,2,0),"") -> 0.06990153367 | Z31: =IFERROR(VLOOKUP(A31,'zamówienia reczne Polska'!A:M,10,0),"") -> 0.4078618728 | AA31: =IFERROR(VLOOKUP(A31,'zamówienia reczne Polska'!A:M,13,0),"") -> 0.4074357005 | AB31: =IFERROR(VLOOKUP(A31,'Stary Zapas Dane i Rotacja'!A:N,9,0),"") -> 58427 | AC31: 38 | AD31: -2 | AE31: =IFERROR(VLOOKUP(D31,[4]LTD!$B$1:$C$65536,2,0),"") -> 2.627616993 | AF31: =IFERROR(VLOOKUP(D31,[4]LTD!$F$1:$G$65536,2,0),"") -> 1.973298962 | AG31: =IFERROR(VLOOKUP(D31,[4]LTD!$J$1:$K$65536,2,0),"") -> 2.088279164 | AH31: =IFERROR(VLOOKUP(D31,'[4]% delivery'!$B$1:$H$65536,2,0),"") -> 0.01579308766 | AI31: =IFERROR(VLOOKUP(D31,'[4]% delivery'!$B$1:$H$65536,3,0),"") -> 0.6385900664 | AJ31: =IFERROR(VLOOKUP(D31,'[4]% delivery'!$B$1:$H$65536,4,0),"") -> 0.9391165026 | AK31: =IFERROR(VLOOKUP(D31,'[4]% delivery'!$B$1:$H$65536,5,0),"") -> 1 | AL31: =IFERROR(VLOOKUP(D31,'[4]% delivery'!$B$1:$H$65536,7,0),"") -> 0 | AM31: =IFERROR(VLOOKUP(D31,'[4]% delivery YTD'!$B$1:$H$65536,2,0),"") -> 0.008077843931 | AN31: =IFERROR(VLOOKUP(D31,'[4]% delivery YTD'!$B$1:$H$65536,3,0),"") -> 0.4476555713 | AO31: =IFERROR(VLOOKUP(D31,'[4]% delivery YTD'!$B$1:$H$65536,4,0),"") -> 0.7617380342 | AP31: =IFERROR(VLOOKUP(D31,'[4]% delivery YTD'!$B$1:$H$65536,5,0),"") -> 0.8885204568 | AQ31: =IFERROR(VLOOKUP(D31,'[4]% delivery YTD'!$B$1:$H$65536,6,0),"") -> 0.9461353476
A32: 729Result | B32: Result | C32: 729 | D32: Rumia | E32: =IFERROR(VLOOKUP(D32,'WYNIKI EKO SKLEPY'!C:H,2,0),"") -> 530781.2 | F32: =IFERROR(VLOOKUP(D32,'WYNIKI EKO SKLEPY'!J:O,2,),"") -> 29393679.64 | G32: =VLOOKUP(C32,[1]Produktywnosc!$B$6:$L$56,10,0) -> 557.0537099 | H32: =VLOOKUP(C32,[1]Produktywnosc!$B$6:$L$56,11,0) -> 542.6370158 | I32: 21 | J32: =VLOOKUP(C32,'Open voice'!K:S,6,0) -> 4.27 | K32: =VLOOKUP(C32,'Open voice'!A:I,6,0) -> 4.18 | L32: =IFERROR(VLOOKUP(D32,'WYNIKI EKO SKLEPY'!C:H,3,0),"") -> 0.1593853284 | M32: =IFERROR(VLOOKUP(D32,'WYNIKI EKO SKLEPY'!J:O,3,),"") -> 0.03497972123 | N32: =IFERROR(VLOOKUP(D32,'WYNIKI EKO SKLEPY'!C:H,6,0),"") -> 0.1833831657 | O32: =IFERROR(VLOOKUP(D32,'WYNIKI EKO SKLEPY'!J:O,6,),"") -> -0.0269156624 | P32: =IFERROR(VLOOKUP(D32,'WYNIKI EKO SKLEPY'!C:H,4,0),"") -> 0.2519598094 | Q32: =IFERROR(VLOOKUP(D32,'WYNIKI EKO SKLEPY'!J:O,4,),"") -> 0.2440105903 | R32: =IFERROR(VLOOKUP(D32,[2]Sheet1!$D$1:$L$65536,6,0),"") -> 130.3627265 | S32: =IFERROR(VLOOKUP(D32,[2]Sheet1!$D$1:$L$65536,7,0),"") -> 0.04516293218 | T32: =IFERROR(VLOOKUP(D32,[2]Sheet1!$D$1:$L$65536,9,0),"") -> 2.947025698 | U32: =IFERROR(VLOOKUP(D32,[2]Sheet1!$D$1:$L$65536,5,0),"") -> -0.001606354023 | V32: =IFERROR(VLOOKUP(A32,'Stary Zapas Dane i Rotacja'!A:AA,22,0)+VLOOKUP(A32,'Stary Zapas Dane i Rotacja'!A:AA,26,0),"") -> 0.1248764584 | W32: =IFERROR(VLOOKUP(A32,'EPV Sklep Sport'!A:I,8,0),"") -> 0.03075135764 | X32: =IFERROR(VLOOKUP(D32,'[3]Shortage rate_Stores'!$B$115:$C$192,2,0),"") -> 0.0640567201 | Y32: =IFERROR(VLOOKUP(D32,'[3]Shortage rate_Stores'!$F$115:$G$189,2,0),"") -> 0.08791483872 | Z32: =IFERROR(VLOOKUP(A32,'zamówienia reczne Polska'!A:M,10,0),"") -> 0.3325744152 | AA32: =IFERROR(VLOOKUP(A32,'zamówienia reczne Polska'!A:M,13,0),"") -> 0.3331332295 | AB32: =IFERROR(VLOOKUP(A32,'Stary Zapas Dane i Rotacja'!A:N,9,0),"") -> 77909 | AC32: 24 | AD32: 3 | AE32: =IFERROR(VLOOKUP(D32,[4]LTD!$B$1:$C$65536,2,0),"") -> 2.005155353 | AF32: =IFERROR(VLOOKUP(D32,[4]LTD!$F$1:$G$65536,2,0),"") -> 1.830349595 | AG32: =IFERROR(VLOOKUP(D32,[4]LTD!$J$1:$K$65536,2,0),"") -> 2.078232436 | AH32: =IFERROR(VLOOKUP(D32,'[4]% delivery'!$B$1:$H$65536,2,0),"") -> 0.003986254296 | AI32: =IFERROR(VLOOKUP(D32,'[4]% delivery'!$B$1:$H$65536,3,0),"") -> 0.6937457045 | AJ32: =IFERROR(VLOOKUP(D32,'[4]% delivery'!$B$1:$H$65536,4,0),"") -> 0.9740206186 | AK32: =IFERROR(VLOOKUP(D32,'[4]% delivery'!$B$1:$H$65536,5,0),"") -> 0.9928522337 | AL32: =IFERROR(VLOOKUP(D32,'[4]% delivery'!$B$1:$H$65536,7,0),"") -> 0.007147766323 | AM32: =IFERROR(VLOOKUP(D32,'[4]% delivery YTD'!$B$1:$H$65536,2,0),"") -> 0.01400192632 | AN32: =IFERROR(VLOOKUP(D32,'[4]% delivery YTD'!$B$1:$H$65536,3,0),"") -> 0.7272453648 | AO32: =IFERROR(VLOOKUP(D32,'[4]% delivery YTD'!$B$1:$H$65536,4,0),"") -> 0.9307970142 | AP32: =IFERROR(VLOOKUP(D32,'[4]% delivery YTD'!$B$1:$H$65536,5,0),"") -> 0.977194197 | AQ32: =IFERROR(VLOOKUP(D32,'[4]% delivery YTD'!$B$1:$H$65536,6,0),"") -> 0.9910937876
A33: 802Result | B33: Result | C33: 802 | D33: Szczecin Ustowo | E33: =IFERROR(VLOOKUP(D33,'WYNIKI EKO SKLEPY'!C:H,2,0),"") -> 427690.2 | F33: =IFERROR(VLOOKUP(D33,'WYNIKI EKO SKLEPY'!J:O,2,),"") -> 25211536.41 | G33: =VLOOKUP(C33,[1]Produktywnosc!$B$6:$L$56,10,0) -> 571.2652117 | H33: =VLOOKUP(C33,[1]Produktywnosc!$B$6:$L$56,11,0) -> 508.9518812 | I33: 25 | J33: =VLOOKUP(C33,'Open voice'!K:S,6,0) -> 4.17 | K33: =VLOOKUP(C33,'Open voice'!A:I,6,0) -> 4.33 | L33: =IFERROR(VLOOKUP(D33,'WYNIKI EKO SKLEPY'!C:H,3,0),"") -> -0.01742792438 | M33: =IFERROR(VLOOKUP(D33,'WYNIKI EKO SKLEPY'!J:O,3,),"") -> -0.003433611043 | N33: =IFERROR(VLOOKUP(D33,'WYNIKI EKO SKLEPY'!C:H,6,0),"") -> 0.05034153645 | O33: =IFERROR(VLOOKUP(D33,'WYNIKI EKO SKLEPY'!J:O,6,),"") -> -0.01604835982 | P33: =IFERROR(VLOOKUP(D33,'WYNIKI EKO SKLEPY'!C:H,4,0),"") -> 0.2535159562 | Q33: =IFERROR(VLOOKUP(D33,'WYNIKI EKO SKLEPY'!J:O,4,),"") -> 0.2413249586 | R33: =IFERROR(VLOOKUP(D33,[2]Sheet1!$D$1:$L$65536,6,0),"") -> 142.7980543 | S33: =IFERROR(VLOOKUP(D33,[2]Sheet1!$D$1:$L$65536,7,0),"") -> 0.03094699163 | T33: =IFERROR(VLOOKUP(D33,[2]Sheet1!$D$1:$L$65536,9,0),"") -> 3.293237671 | U33: =IFERROR(VLOOKUP(D33,[2]Sheet1!$D$1:$L$65536,5,0),"") -> -0.02297422296 | V33: =IFERROR(VLOOKUP(A33,'Stary Zapas Dane i Rotacja'!A:AA,22,0)+VLOOKUP(A33,'Stary Zapas Dane i Rotacja'!A:AA,26,0),"") -> 0.1029350733 | W33: =IFERROR(VLOOKUP(A33,'EPV Sklep Sport'!A:I,8,0),"") -> 0.04117601013 | X33: =IFERROR(VLOOKUP(D33,'[3]Shortage rate_Stores'!$B$115:$C$192,2,0),"") -> 0.05285977312 | Y33: =IFERROR(VLOOKUP(D33,'[3]Shortage rate_Stores'!$F$115:$G$189,2,0),"") -> 0.07729760911 | Z33: =IFERROR(VLOOKUP(A33,'zamówienia reczne Polska'!A:M,10,0),"") -> 0.4973623331 | AA33: =IFERROR(VLOOKUP(A33,'zamówienia reczne Polska'!A:M,13,0),"") -> 0.4239236495 | AB33: =IFERROR(VLOOKUP(A33,'Stary Zapas Dane i Rotacja'!A:N,9,0),"") -> 86744 | AC33: 16 | AD33: -9 | AE33: =IFERROR(VLOOKUP(D33,[4]LTD!$B$1:$C$65536,2,0),"") -> 1.964276576 | AF33: =IFERROR(VLOOKUP(D33,[4]LTD!$F$1:$G$65536,2,0),"") -> 1.795451862 | AG33: =IFERROR(VLOOKUP(D33,[4]LTD!$J$1:$K$65536,2,0),"") -> 1.895233635 | AH33: =IFERROR(VLOOKUP(D33,'[4]% delivery'!$B$1:$H$65536,2,0),"") -> 0 | AI33: =IFERROR(VLOOKUP(D33,'[4]% delivery'!$B$1:$H$65536,3,0),"") -> 0.7944501542 | AJ33: =IFERROR(VLOOKUP(D33,'[4]% delivery'!$B$1:$H$65536,4,0),"") -> 0.9951181912 | AK33: =IFERROR(VLOOKUP(D33,'[4]% delivery'!$B$1:$H$65536,5,0),"") -> 0.9988437821 | AL33: =IFERROR(VLOOKUP(D33,'[4]% delivery'!$B$1:$H$65536,7,0),"") -> 0.001027749229 | AM33: =IFERROR(VLOOKUP(D33,'[4]% delivery YTD'!$B$1:$H$65536,2,0),"") -> 0.009937484881 | AN33: =IFERROR(VLOOKUP(D33,'[4]% delivery YTD'!$B$1:$H$65536,3,0),"") -> 0.7801434919 | AO33: =IFERROR(VLOOKUP(D33,'[4]% delivery YTD'!$B$1:$H$65536,4,0),"") -> 0.94027005 | AP33: =IFERROR(VLOOKUP(D33,'[4]% delivery YTD'!$B$1:$H$65536,5,0),"") -> 0.9792815218 | AQ33: =IFERROR(VLOOKUP(D33,'[4]% delivery YTD'!$B$1:$H$65536,6,0),"") -> 0.9930991457
A34: 808Result | B34: Result | C34: 808 | D34: Mikolow | E34: =IFERROR(VLOOKUP(D34,'WYNIKI EKO SKLEPY'!C:H,2,0),"") -> 478521.74 | F34: =IFERROR(VLOOKUP(D34,'WYNIKI EKO SKLEPY'!J:O,2,),"") -> 23557966.31 | G34: =VLOOKUP(C34,[1]Produktywnosc!$B$6:$L$56,10,0) -> 640.0980845 | H34: =VLOOKUP(C34,[1]Produktywnosc!$B$6:$L$56,11,0) -> 586.136521 | I34: 27 | J34: =VLOOKUP(C34,'Open voice'!K:S,6,0) -> 4.48 | K34: =VLOOKUP(C34,'Open voice'!A:I,6,0) -> 4.35 | L34: =IFERROR(VLOOKUP(D34,'WYNIKI EKO SKLEPY'!C:H,3,0),"") -> 0.08955910085 | M34: =IFERROR(VLOOKUP(D34,'WYNIKI EKO SKLEPY'!J:O,3,),"") -> -0.009242849257 | N34: =IFERROR(VLOOKUP(D34,'WYNIKI EKO SKLEPY'!C:H,6,0),"") -> 0.1335024885 | O34: =IFERROR(VLOOKUP(D34,'WYNIKI EKO SKLEPY'!J:O,6,),"") -> -0.0127470397 | P34: =IFERROR(VLOOKUP(D34,'WYNIKI EKO SKLEPY'!C:H,4,0),"") -> 0.2535898578 | Q34: =IFERROR(VLOOKUP(D34,'WYNIKI EKO SKLEPY'!J:O,4,),"") -> 0.2479237916 | R34: =IFERROR(VLOOKUP(D34,[2]Sheet1!$D$1:$L$65536,6,0),"") -> 128.7669823 | S34: =IFERROR(VLOOKUP(D34,[2]Sheet1!$D$1:$L$65536,7,0),"") -> 0.02250304281 | T34: =IFERROR(VLOOKUP(D34,[2]Sheet1!$D$1:$L$65536,9,0),"") -> 2.971321764 | U34: =IFERROR(VLOOKUP(D34,[2]Sheet1!$D$1:$L$65536,5,0),"") -> -0.0194770141 | V34: =IFERROR(VLOOKUP(A34,'Stary Zapas Dane i Rotacja'!A:AA,22,0)+VLOOKUP(A34,'Stary Zapas Dane i Rotacja'!A:AA,26,0),"") -> 0.1077585578 | W34: =IFERROR(VLOOKUP(A34,'EPV Sklep Sport'!A:I,8,0),"") -> 0.03623974572 | X34: =IFERROR(VLOOKUP(D34,'[3]Shortage rate_Stores'!$B$115:$C$192,2,0),"") -> 0.07565559205 | Y34: =IFERROR(VLOOKUP(D34,'[3]Shortage rate_Stores'!$F$115:$G$189,2,0),"") -> 0.08386568387 | Z34: =IFERROR(VLOOKUP(A34,'zamówienia reczne Polska'!A:M,10,0),"") -> 0.3677156528 | AA34: =IFERROR(VLOOKUP(A34,'zamówienia reczne Polska'!A:M,13,0),"") -> 0.3931043478 | AB34: =IFERROR(VLOOKUP(A34,'Stary Zapas Dane i Rotacja'!A:N,9,0),"") -> 68505 | AC34: 30 | AD34: 3 | AE34: =IFERROR(VLOOKUP(D34,[4]LTD!$B$1:$C$65536,2,0),"") -> 1.983298247 | AF34: =IFERROR(VLOOKUP(D34,[4]LTD!$F$1:$G$65536,2,0),"") -> 1.224361107 | AG34: =IFERROR(VLOOKUP(D34,[4]LTD!$J$1:$K$65536,2,0),"") -> 1.236071196 | AH34: =IFERROR(VLOOKUP(D34,'[4]% delivery'!$B$1:$H$65536,2,0),"") -> 0.4599681483 | AI34: =IFERROR(VLOOKUP(D34,'[4]% delivery'!$B$1:$H$65536,3,0),"") -> 0.8921384103 | AJ34: =IFERROR(VLOOKUP(D34,'[4]% delivery'!$B$1:$H$65536,4,0),"") -> 0.9988417547 | AK34: =IFERROR(VLOOKUP(D34,'[4]% delivery'!$B$1:$H$65536,5,0),"") -> 1 | AL34: =IFERROR(VLOOKUP(D34,'[4]% delivery'!$B$1:$H$65536,7,0),"") -> 0 | AM34: =IFERROR(VLOOKUP(D34,'[4]% delivery YTD'!$B$1:$H$65536,2,0),"") -> 0.3453899033 | AN34: =IFERROR(VLOOKUP(D34,'[4]% delivery YTD'!$B$1:$H$65536,3,0),"") -> 0.6817973728 | AO34: =IFERROR(VLOOKUP(D34,'[4]% delivery YTD'!$B$1:$H$65536,4,0),"") -> 0.8182026272 | AP34: =IFERROR(VLOOKUP(D34,'[4]% delivery YTD'!$B$1:$H$65536,5,0),"") -> 0.8879687812 | AQ34: =IFERROR(VLOOKUP(D34,'[4]% delivery YTD'!$B$1:$H$65536,6,0),"") -> 0.9362590544
A35: 809Result | B35: Result | C35: 809 | D35: Bialystok | E35: =IFERROR(VLOOKUP(D35,'WYNIKI EKO SKLEPY'!C:H,2,0),"") -> 662442.09 | F35: =IFERROR(VLOOKUP(D35,'WYNIKI EKO SKLEPY'!J:O,2,),"") -> 35427523.26 | G35: =VLOOKUP(C35,[1]Produktywnosc!$B$6:$L$56,10,0) -> 764.8828673 | H35: =VLOOKUP(C35,[1]Produktywnosc!$B$6:$L$56,11,0) -> 635.1994851 | I35: 14 | J35: =VLOOKUP(C35,'Open voice'!K:S,6,0) -> 4.44 | K35: =VLOOKUP(C35,'Open voice'!A:I,6,0) -> 4.32 | L35: =IFERROR(VLOOKUP(D35,'WYNIKI EKO SKLEPY'!C:H,3,0),"") -> 0.01832867464 | M35: =IFERROR(VLOOKUP(D35,'WYNIKI EKO SKLEPY'!J:O,3,),"") -> -0.0276562414 | N35: =IFERROR(VLOOKUP(D35,'WYNIKI EKO SKLEPY'!C:H,6,0),"") -> 0.04164162961 | O35: =IFERROR(VLOOKUP(D35,'WYNIKI EKO SKLEPY'!J:O,6,),"") -> -0.04195290926 | P35: =IFERROR(VLOOKUP(D35,'WYNIKI EKO SKLEPY'!C:H,4,0),"") -> 0.2557612847 | Q35: =IFERROR(VLOOKUP(D35,'WYNIKI EKO SKLEPY'!J:O,4,),"") -> 0.2473365695 | R35: =IFERROR(VLOOKUP(D35,[2]Sheet1!$D$1:$L$65536,6,0),"") -> 129.0450483 | S35: =IFERROR(VLOOKUP(D35,[2]Sheet1!$D$1:$L$65536,7,0),"") -> -0.02443091631 | T35: =IFERROR(VLOOKUP(D35,[2]Sheet1!$D$1:$L$65536,9,0),"") -> 2.997364799 | U35: =IFERROR(VLOOKUP(D35,[2]Sheet1!$D$1:$L$65536,5,0),"") -> 0.007431920282 | V35: =IFERROR(VLOOKUP(A35,'Stary Zapas Dane i Rotacja'!A:AA,22,0)+VLOOKUP(A35,'Stary Zapas Dane i Rotacja'!A:AA,26,0),"") -> 0.09582247717 | W35: =IFERROR(VLOOKUP(A35,'EPV Sklep Sport'!A:I,8,0),"") -> 0.032476967 | X35: =IFERROR(VLOOKUP(D35,'[3]Shortage rate_Stores'!$B$115:$C$192,2,0),"") -> 0.09017536867 | Y35: =IFERROR(VLOOKUP(D35,'[3]Shortage rate_Stores'!$F$115:$G$189,2,0),"") -> 0.08575138657 | Z35: =IFERROR(VLOOKUP(A35,'zamówienia reczne Polska'!A:M,10,0),"") -> 0.351434019 | AA35: =IFERROR(VLOOKUP(A35,'zamówienia reczne Polska'!A:M,13,0),"") -> 0.3739220706 | AB35: =IFERROR(VLOOKUP(A35,'Stary Zapas Dane i Rotacja'!A:N,9,0),"") -> 91346 | AC35: 12 | AD35: -2 | AE35: =IFERROR(VLOOKUP(D35,[4]LTD!$B$1:$C$65536,2,0),"") -> 1.992879341 | AF35: =IFERROR(VLOOKUP(D35,[4]LTD!$F$1:$G$65536,2,0),"") -> 1.887100318 | AG35: =IFERROR(VLOOKUP(D35,[4]LTD!$J$1:$K$65536,2,0),"") -> 2.00869485 | AH35: =IFERROR(VLOOKUP(D35,'[4]% delivery'!$B$1:$H$65536,2,0),"") -> 0.00576872651 | AI35: =IFERROR(VLOOKUP(D35,'[4]% delivery'!$B$1:$H$65536,3,0),"") -> 0.5926055415 | AJ35: =IFERROR(VLOOKUP(D35,'[4]% delivery'!$B$1:$H$65536,4,0),"") -> 0.9618040381 | AK35: =IFERROR(VLOOKUP(D35,'[4]% delivery'!$B$1:$H$65536,5,0),"") -> 0.9978148763 | AL35: =IFERROR(VLOOKUP(D35,'[4]% delivery'!$B$1:$H$65536,7,0),"") -> 0 | AM35: =IFERROR(VLOOKUP(D35,'[4]% delivery YTD'!$B$1:$H$65536,2,0),"") -> 0.02758098891 | AN35: =IFERROR(VLOOKUP(D35,'[4]% delivery YTD'!$B$1:$H$65536,3,0),"") -> 0.7362540442 | AO35: =IFERROR(VLOOKUP(D35,'[4]% delivery YTD'!$B$1:$H$65536,4,0),"") -> 0.9400696343 | AP35: =IFERROR(VLOOKUP(D35,'[4]% delivery YTD'!$B$1:$H$65536,5,0),"") -> 0.981856812 | AQ35: =IFERROR(VLOOKUP(D35,'[4]% delivery YTD'!$B$1:$H$65536,6,0),"") -> 0.9931311461
A36: 829Result | B36: Result | C36: 829 | D36: Plock | E36: =IFERROR(VLOOKUP(D36,'WYNIKI EKO SKLEPY'!C:H,2,0),"") -> 245484.2 | F36: =IFERROR(VLOOKUP(D36,'WYNIKI EKO SKLEPY'!J:O,2,),"") -> 14756909.53 | G36: =VLOOKUP(C36,[1]Produktywnosc!$B$6:$L$56,10,0) -> 566.7306265 | H36: =VLOOKUP(C36,[1]Produktywnosc!$B$6:$L$56,11,0) -> 463.2047506 | I36: 41 | J36: =VLOOKUP(C36,'Open voice'!K:S,6,0) -> 4.15 | K36: =VLOOKUP(C36,'Open voice'!A:I,6,0) -> 4.2 | L36: =IFERROR(VLOOKUP(D36,'WYNIKI EKO SKLEPY'!C:H,3,0),"") -> 0.2001150229 | M36: =IFERROR(VLOOKUP(D36,'WYNIKI EKO SKLEPY'!J:O,3,),"") -> 0.1003333799 | N36: =IFERROR(VLOOKUP(D36,'WYNIKI EKO SKLEPY'!C:H,6,0),"") -> 0.1423286947 | O36: =IFERROR(VLOOKUP(D36,'WYNIKI EKO SKLEPY'!J:O,6,),"") -> 0.02596345816 | P36: =IFERROR(VLOOKUP(D36,'WYNIKI EKO SKLEPY'!C:H,4,0),"") -> 0.2503784358 | Q36: =IFERROR(VLOOKUP(D36,'WYNIKI EKO SKLEPY'!J:O,4,),"") -> 0.2350827857 | R36: =IFERROR(VLOOKUP(D36,[2]Sheet1!$D$1:$L$65536,6,0),"") -> 117.913866 | S36: =IFERROR(VLOOKUP(D36,[2]Sheet1!$D$1:$L$65536,7,0),"") -> 0.04441586047 | T36: =IFERROR(VLOOKUP(D36,[2]Sheet1!$D$1:$L$65536,9,0),"") -> 2.70660941 | U36: =IFERROR(VLOOKUP(D36,[2]Sheet1!$D$1:$L$65536,5,0),"") -> 0.06421052632 | V36: =IFERROR(VLOOKUP(A36,'Stary Zapas Dane i Rotacja'!A:AA,22,0)+VLOOKUP(A36,'Stary Zapas Dane i Rotacja'!A:AA,26,0),"") -> 0.1165744057 | W36: =IFERROR(VLOOKUP(A36,'EPV Sklep Sport'!A:I,8,0),"") -> 0.0382349914 | X36: =IFERROR(VLOOKUP(D36,'[3]Shortage rate_Stores'!$B$115:$C$192,2,0),"") -> 0.08265462463 | Y36: =IFERROR(VLOOKUP(D36,'[3]Shortage rate_Stores'!$F$115:$G$189,2,0),"") -> 0.07540246813 | Z36: =IFERROR(VLOOKUP(A36,'zamówienia reczne Polska'!A:M,10,0),"") -> 0.412051162 | AA36: =IFERROR(VLOOKUP(A36,'zamówienia reczne Polska'!A:M,13,0),"") -> 0.3505555124 | AB36: =IFERROR(VLOOKUP(A36,'Stary Zapas Dane i Rotacja'!A:N,9,0),"") -> 55278 | AC36: 41 | AD36: 0 | AE36: =IFERROR(VLOOKUP(D36,[4]LTD!$B$1:$C$65536,2,0),"") -> 1.793947719 | AF36: =IFERROR(VLOOKUP(D36,[4]LTD!$F$1:$G$65536,2,0),"") -> 1.345882462 | AG36: =IFERROR(VLOOKUP(D36,[4]LTD!$J$1:$K$65536,2,0),"") -> 1.438406278 | AH36: =IFERROR(VLOOKUP(D36,'[4]% delivery'!$B$1:$H$65536,2,0),"") -> 0.3484936269 | AI36: =IFERROR(VLOOKUP(D36,'[4]% delivery'!$B$1:$H$65536,3,0),"") -> 0.8253186559 | AJ36: =IFERROR(VLOOKUP(D36,'[4]% delivery'!$B$1:$H$65536,4,0),"") -> 0.9881228273 | AK36: =IFERROR(VLOOKUP(D36,'[4]% delivery'!$B$1:$H$65536,5,0),"") -> 1 | AL36: =IFERROR(VLOOKUP(D36,'[4]% delivery'!$B$1:$H$65536,7,0),"") -> 0 | AM36: =IFERROR(VLOOKUP(D36,'[4]% delivery YTD'!$B$1:$H$65536,2,0),"") -> 0.2892264739 | AN36: =IFERROR(VLOOKUP(D36,'[4]% delivery YTD'!$B$1:$H$65536,3,0),"") -> 0.7317621814 | AO36: =IFERROR(VLOOKUP(D36,'[4]% delivery YTD'!$B$1:$H$65536,4,0),"") -> 0.9261099359 | AP36: =IFERROR(VLOOKUP(D36,'[4]% delivery YTD'!$B$1:$H$65536,5,0),"") -> 0.9732018215 | AQ36: =IFERROR(VLOOKUP(D36,'[4]% delivery YTD'!$B$1:$H$65536,6,0),"") -> 0.9886796594
A37: 830Result | B37: Result | C37: 830 | D37: Poznan Komorniki | E37: =IFERROR(VLOOKUP(D37,'WYNIKI EKO SKLEPY'!C:H,2,0),"") -> 398857.51 | F37: =IFERROR(VLOOKUP(D37,'WYNIKI EKO SKLEPY'!J:O,2,),"") -> 22749707.14 | G37: =VLOOKUP(C37,[1]Produktywnosc!$B$6:$L$56,10,0) -> 632.3709055 | H37: =VLOOKUP(C37,[1]Produktywnosc!$B$6:$L$56,11,0) -> 577.8379198 | I37: 28 | J37: =VLOOKUP(C37,'Open voice'!K:S,6,0) -> 4.31 | K37: =VLOOKUP(C37,'Open voice'!A:I,6,0) -> 4.31 | L37: =IFERROR(VLOOKUP(D37,'WYNIKI EKO SKLEPY'!C:H,3,0),"") -> 0.2023042148 | M37: =IFERROR(VLOOKUP(D37,'WYNIKI EKO SKLEPY'!J:O,3,),"") -> 0.07129688686 | N37: =IFERROR(VLOOKUP(D37,'WYNIKI EKO SKLEPY'!C:H,6,0),"") -> 0.1708088075 | O37: =IFERROR(VLOOKUP(D37,'WYNIKI EKO SKLEPY'!J:O,6,),"") -> 0.03355801387 | P37: =IFERROR(VLOOKUP(D37,'WYNIKI EKO SKLEPY'!C:H,4,0),"") -> 0.2518151407 | Q37: =IFERROR(VLOOKUP(D37,'WYNIKI EKO SKLEPY'!J:O,4,),"") -> 0.2461937591 | R37: =IFERROR(VLOOKUP(D37,[2]Sheet1!$D$1:$L$65536,6,0),"") -> 126.9149646 | S37: =IFERROR(VLOOKUP(D37,[2]Sheet1!$D$1:$L$65536,7,0),"") -> 0.02898533869 | T37: =IFERROR(VLOOKUP(D37,[2]Sheet1!$D$1:$L$65536,9,0),"") -> 2.998324807 | U37: =IFERROR(VLOOKUP(D37,[2]Sheet1!$D$1:$L$65536,5,0),"") -> 0.05190020874 | V37: =IFERROR(VLOOKUP(A37,'Stary Zapas Dane i Rotacja'!A:AA,22,0)+VLOOKUP(A37,'Stary Zapas Dane i Rotacja'!A:AA,26,0),"") -> 0.1008691514 | W37: =IFERROR(VLOOKUP(A37,'EPV Sklep Sport'!A:I,8,0),"") -> 0.03517329067 | X37: =IFERROR(VLOOKUP(D37,'[3]Shortage rate_Stores'!$B$115:$C$192,2,0),"") -> 0.05915112649 | Y37: =IFERROR(VLOOKUP(D37,'[3]Shortage rate_Stores'!$F$115:$G$189,2,0),"") -> 0.08421283875 | Z37: =IFERROR(VLOOKUP(A37,'zamówienia reczne Polska'!A:M,10,0),"") -> 0.4754964607 | AA37: =IFERROR(VLOOKUP(A37,'zamówienia reczne Polska'!A:M,13,0),"") -> 0.462113236 | AB37: =IFERROR(VLOOKUP(A37,'Stary Zapas Dane i Rotacja'!A:N,9,0),"") -> 71449 | AC37: 29 | AD37: 1 | AE37: =IFERROR(VLOOKUP(D37,[4]LTD!$B$1:$C$65536,2,0),"") -> 2.000516027 | AF37: =IFERROR(VLOOKUP(D37,[4]LTD!$F$1:$G$65536,2,0),"") -> 1.772233608 | AG37: =IFERROR(VLOOKUP(D37,[4]LTD!$J$1:$K$65536,2,0),"") -> 1.878869289 | AH37: =IFERROR(VLOOKUP(D37,'[4]% delivery'!$B$1:$H$65536,2,0),"") -> 0.1149931642 | AI37: =IFERROR(VLOOKUP(D37,'[4]% delivery'!$B$1:$H$65536,3,0),"") -> 0.7116816041 | AJ37: =IFERROR(VLOOKUP(D37,'[4]% delivery'!$B$1:$H$65536,4,0),"") -> 0.9811636032 | AK37: =IFERROR(VLOOKUP(D37,'[4]% delivery'!$B$1:$H$65536,5,0),"") -> 0.9992404679 | AL37: =IFERROR(VLOOKUP(D37,'[4]% delivery'!$B$1:$H$65536,7,0),"") -> 0.0001519064256 | AM37: =IFERROR(VLOOKUP(D37,'[4]% delivery YTD'!$B$1:$H$65536,2,0),"") -> 0.143464941 | AN37: =IFERROR(VLOOKUP(D37,'[4]% delivery YTD'!$B$1:$H$65536,3,0),"") -> 0.7500210944 | AO37: =IFERROR(VLOOKUP(D37,'[4]% delivery YTD'!$B$1:$H$65536,4,0),"") -> 0.9117018998 | AP37: =IFERROR(VLOOKUP(D37,'[4]% delivery YTD'!$B$1:$H$65536,5,0),"") -> 0.9581616029 | AQ37: =IFERROR(VLOOKUP(D37,'[4]% delivery YTD'!$B$1:$H$65536,6,0),"") -> 0.9763385236
A38: 831Result | B38: Result | C38: 831 | D38: Katowice | E38: =IFERROR(VLOOKUP(D38,'WYNIKI EKO SKLEPY'!C:H,2,0),"") -> 539356.4 | F38: =IFERROR(VLOOKUP(D38,'WYNIKI EKO SKLEPY'!J:O,2,),"") -> 29601808.73 | G38: =VLOOKUP(C38,[1]Produktywnosc!$B$6:$L$56,10,0) -> 576.4638865 | H38: =VLOOKUP(C38,[1]Produktywnosc!$B$6:$L$56,11,0) -> 589.8965035 | I38: 20 | J38: =VLOOKUP(C38,'Open voice'!K:S,6,0) -> 4.45 | K38: =VLOOKUP(C38,'Open voice'!A:I,6,0) -> 4.33 | L38: =IFERROR(VLOOKUP(D38,'WYNIKI EKO SKLEPY'!C:H,3,0),"") -> 0.1390349761 | M38: =IFERROR(VLOOKUP(D38,'WYNIKI EKO SKLEPY'!J:O,3,),"") -> 0.12574147 | N38: =IFERROR(VLOOKUP(D38,'WYNIKI EKO SKLEPY'!C:H,6,0),"") -> 0.1937007874 | O38: =IFERROR(VLOOKUP(D38,'WYNIKI EKO SKLEPY'!J:O,6,),"") -> 0.01729491309 | P38: =IFERROR(VLOOKUP(D38,'WYNIKI EKO SKLEPY'!C:H,4,0),"") -> 0.2482712359 | Q38: =IFERROR(VLOOKUP(D38,'WYNIKI EKO SKLEPY'!J:O,4,),"") -> 0.238137514 | R38: =IFERROR(VLOOKUP(D38,[2]Sheet1!$D$1:$L$65536,6,0),"") -> 120.8533674 | S38: =IFERROR(VLOOKUP(D38,[2]Sheet1!$D$1:$L$65536,7,0),"") -> 0.08381922784 | T38: =IFERROR(VLOOKUP(D38,[2]Sheet1!$D$1:$L$65536,9,0),"") -> 2.71743805 | U38: =IFERROR(VLOOKUP(D38,[2]Sheet1!$D$1:$L$65536,5,0),"") -> 0.0505262976 | V38: =IFERROR(VLOOKUP(A38,'Stary Zapas Dane i Rotacja'!A:AA,22,0)+VLOOKUP(A38,'Stary Zapas Dane i Rotacja'!A:AA,26,0),"") -> 0.1108982574 | W38: =IFERROR(VLOOKUP(A38,'EPV Sklep Sport'!A:I,8,0),"") -> 0.05069196907 | X38: =IFERROR(VLOOKUP(D38,'[3]Shortage rate_Stores'!$B$115:$C$192,2,0),"") -> 0.07453514025 | Y38: =IFERROR(VLOOKUP(D38,'[3]Shortage rate_Stores'!$F$115:$G$189,2,0),"") -> 0.09192169621 | Z38: =IFERROR(VLOOKUP(A38,'zamówienia reczne Polska'!A:M,10,0),"") -> 0.435501017 | AA38: =IFERROR(VLOOKUP(A38,'zamówienia reczne Polska'!A:M,13,0),"") -> 0.4237198162 | AB38: =IFERROR(VLOOKUP(A38,'Stary Zapas Dane i Rotacja'!A:N,9,0),"") -> 75691 | AC38: 25 | AD38: 5 | AE38: =IFERROR(VLOOKUP(D38,[4]LTD!$B$1:$C$65536,2,0),"") -> 1.620987513 | AF38: =IFERROR(VLOOKUP(D38,[4]LTD!$F$1:$G$65536,2,0),"") -> 1.241204302 | AG38: =IFERROR(VLOOKUP(D38,[4]LTD!$J$1:$K$65536,2,0),"") -> 1.375562441 | AH38: =IFERROR(VLOOKUP(D38,'[4]% delivery'!$B$1:$H$65536,2,0),"") -> 0.4956256628 | AI38: =IFERROR(VLOOKUP(D38,'[4]% delivery'!$B$1:$H$65536,3,0),"") -> 0.7983828208 | AJ38: =IFERROR(VLOOKUP(D38,'[4]% delivery'!$B$1:$H$65536,4,0),"") -> 0.9846235419 | AK38: =IFERROR(VLOOKUP(D38,'[4]% delivery'!$B$1:$H$65536,5,0),"") -> 0.9973488865 | AL38: =IFERROR(VLOOKUP(D38,'[4]% delivery'!$B$1:$H$65536,7,0),"") -> 0 | AM38: =IFERROR(VLOOKUP(D38,'[4]% delivery YTD'!$B$1:$H$65536,2,0),"") -> 0.4603127046 | AN38: =IFERROR(VLOOKUP(D38,'[4]% delivery YTD'!$B$1:$H$65536,3,0),"") -> 0.764693164 | AO38: =IFERROR(VLOOKUP(D38,'[4]% delivery YTD'!$B$1:$H$65536,4,0),"") -> 0.9005701825 | AP38: =IFERROR(VLOOKUP(D38,'[4]% delivery YTD'!$B$1:$H$65536,5,0),"") -> 0.9510773546 | AQ38: =IFERROR(VLOOKUP(D38,'[4]% delivery YTD'!$B$1:$H$65536,6,0),"") -> 0.972874634
A39: 832Result | B39: Result | C39: 832 | D39: Szczecin Struga | E39: =IFERROR(VLOOKUP(D39,'WYNIKI EKO SKLEPY'!C:H,2,0),"") -> 355474.06 | F39: =IFERROR(VLOOKUP(D39,'WYNIKI EKO SKLEPY'!J:O,2,),"") -> 19500649.55 | G39: =VLOOKUP(C39,[1]Produktywnosc!$B$6:$L$56,10,0) -> 494.5476005 | H39: =VLOOKUP(C39,[1]Produktywnosc!$B$6:$L$56,11,0) -> 505.460478 | I39: 31 | J39: =VLOOKUP(C39,'Open voice'!K:S,6,0) -> 4.29 | K39: =VLOOKUP(C39,'Open voice'!A:I,6,0) -> 4.25 | L39: =IFERROR(VLOOKUP(D39,'WYNIKI EKO SKLEPY'!C:H,3,0),"") -> 0.1008854087 | M39: =IFERROR(VLOOKUP(D39,'WYNIKI EKO SKLEPY'!J:O,3,),"") -> 0.006464166208 | N39: =IFERROR(VLOOKUP(D39,'WYNIKI EKO SKLEPY'!C:H,6,0),"") -> 0.1380039967 | O39: =IFERROR(VLOOKUP(D39,'WYNIKI EKO SKLEPY'!J:O,6,),"") -> -0.02338733587 | P39: =IFERROR(VLOOKUP(D39,'WYNIKI EKO SKLEPY'!C:H,4,0),"") -> 0.2594451477 | Q39: =IFERROR(VLOOKUP(D39,'WYNIKI EKO SKLEPY'!J:O,4,),"") -> 0.2442720073 | R39: =IFERROR(VLOOKUP(D39,[2]Sheet1!$D$1:$L$65536,6,0),"") -> 125.240221 | S39: =IFERROR(VLOOKUP(D39,[2]Sheet1!$D$1:$L$65536,7,0),"") -> 0.03267967449 | T39: =IFERROR(VLOOKUP(D39,[2]Sheet1!$D$1:$L$65536,9,0),"") -> 3.086651948 | U39: =IFERROR(VLOOKUP(D39,[2]Sheet1!$D$1:$L$65536,5,0),"") -> -0.01689877285 | V39: =IFERROR(VLOOKUP(A39,'Stary Zapas Dane i Rotacja'!A:AA,22,0)+VLOOKUP(A39,'Stary Zapas Dane i Rotacja'!A:AA,26,0),"") -> 0.1040863531 | W39: =IFERROR(VLOOKUP(A39,'EPV Sklep Sport'!A:I,8,0),"") -> 0.03687516113 | X39: =IFERROR(VLOOKUP(D39,'[3]Shortage rate_Stores'!$B$115:$C$192,2,0),"") -> 0.05431895209 | Y39: =IFERROR(VLOOKUP(D39,'[3]Shortage rate_Stores'!$F$115:$G$189,2,0),"") -> 0.08253136606 | Z39: =IFERROR(VLOOKUP(A39,'zamówienia reczne Polska'!A:M,10,0),"") -> 0.4260228938 | AA39: =IFERROR(VLOOKUP(A39,'zamówienia reczne Polska'!A:M,13,0),"") -> 0.4090434727 | AB39: =IFERROR(VLOOKUP(A39,'Stary Zapas Dane i Rotacja'!A:N,9,0),"") -> 67444 | AC39: 32 | AD39: =IFERROR(AC39-I39,"") -> 1 | AE39: =IFERROR(VLOOKUP(D39,[4]LTD!$B$1:$C$65536,2,0),"") -> 1.993842717 | AF39: =IFERROR(VLOOKUP(D39,[4]LTD!$F$1:$G$65536,2,0),"") -> 1.845901087 | AG39: =IFERROR(VLOOKUP(D39,[4]LTD!$J$1:$K$65536,2,0),"") -> 1.966881131 | AH39: =IFERROR(VLOOKUP(D39,'[4]% delivery'!$B$1:$H$65536,2,0),"") -> 0 | AI39: =IFERROR(VLOOKUP(D39,'[4]% delivery'!$B$1:$H$65536,3,0),"") -> 0.720040282 | AJ39: =IFERROR(VLOOKUP(D39,'[4]% delivery'!$B$1:$H$65536,4,0),"") -> 0.9773413897 | AK39: =IFERROR(VLOOKUP(D39,'[4]% delivery'!$B$1:$H$65536,5,0),"") -> 0.9998321584 | AL39: =IFERROR(VLOOKUP(D39,'[4]% delivery'!$B$1:$H$65536,7,0),"") -> 0 | AM39: =IFERROR(VLOOKUP(D39,'[4]% delivery YTD'!$B$1:$H$65536,2,0),"") -> 0.01075122632 | AN39: =IFERROR(VLOOKUP(D39,'[4]% delivery YTD'!$B$1:$H$65536,3,0),"") -> 0.7635648803 | AO39: =IFERROR(VLOOKUP(D39,'[4]% delivery YTD'!$B$1:$H$65536,4,0),"") -> 0.9352905513 | AP39: =IFERROR(VLOOKUP(D39,'[4]% delivery YTD'!$B$1:$H$65536,5,0),"") -> 0.9841965057 | AQ39: =IFERROR(VLOOKUP(D39,'[4]% delivery YTD'!$B$1:$H$65536,6,0),"") -> 0.9938233727
A40: 868Result | B40: Result | C40: 868 | D40: Radom | E40: =IFERROR(VLOOKUP(D40,'WYNIKI EKO SKLEPY'!C:H,2,0),"") -> 294158.47 | F40: =IFERROR(VLOOKUP(D40,'WYNIKI EKO SKLEPY'!J:O,2,),"") -> 16527751.31 | G40: =VLOOKUP(C40,[1]Produktywnosc!$B$6:$L$56,10,0) -> 584.5763527 | H40: =VLOOKUP(C40,[1]Produktywnosc!$B$6:$L$56,11,0) -> 555.3705858 | I40: 38 | J40: =VLOOKUP(C40,'Open voice'!K:S,6,0) -> 4.17 | K40: =VLOOKUP(C40,'Open voice'!A:I,6,0) -> 4.21 | L40: =IFERROR(VLOOKUP(D40,'WYNIKI EKO SKLEPY'!C:H,3,0),"") -> 0.04298476875 | M40: =IFERROR(VLOOKUP(D40,'WYNIKI EKO SKLEPY'!J:O,3,),"") -> 0.02910112256 | N40: =IFERROR(VLOOKUP(D40,'WYNIKI EKO SKLEPY'!C:H,6,0),"") -> 0.02957393484 | O40: =IFERROR(VLOOKUP(D40,'WYNIKI EKO SKLEPY'!J:O,6,),"") -> -0.02308480166 | P40: =IFERROR(VLOOKUP(D40,'WYNIKI EKO SKLEPY'!C:H,4,0),"") -> 0.247359731 | Q40: =IFERROR(VLOOKUP(D40,'WYNIKI EKO SKLEPY'!J:O,4,),"") -> 0.2412409254 | R40: =IFERROR(VLOOKUP(D40,[2]Sheet1!$D$1:$L$65536,6,0),"") -> 105.7022191 | S40: =IFERROR(VLOOKUP(D40,[2]Sheet1!$D$1:$L$65536,7,0),"") -> 0.04843737192 | T40: =IFERROR(VLOOKUP(D40,[2]Sheet1!$D$1:$L$65536,9,0),"") -> 2.578161615 | U40: =IFERROR(VLOOKUP(D40,[2]Sheet1!$D$1:$L$65536,5,0),"") -> -0.00769786057 | V40: =IFERROR(VLOOKUP(A40,'Stary Zapas Dane i Rotacja'!A:AA,22,0)+VLOOKUP(A40,'Stary Zapas Dane i Rotacja'!A:AA,26,0),"") -> 0.1188384425 | W40: =IFERROR(VLOOKUP(A40,'EPV Sklep Sport'!A:I,8,0),"") -> 0.03643357164 | X40: =IFERROR(VLOOKUP(D40,'[3]Shortage rate_Stores'!$B$115:$C$192,2,0),"") -> 0.09138172366 | Y40: =IFERROR(VLOOKUP(D40,'[3]Shortage rate_Stores'!$F$115:$G$189,2,0),"") -> 0.08000109603 | Z40: =IFERROR(VLOOKUP(A40,'zamówienia reczne Polska'!A:M,10,0),"") -> 0.2446094305 | AA40: =IFERROR(VLOOKUP(A40,'zamówienia reczne Polska'!A:M,13,0),"") -> 0.3474349193 | AB40: =IFERROR(VLOOKUP(A40,'Stary Zapas Dane i Rotacja'!A:N,9,0),"") -> 63742 | AC40: 33 | AD40: -5 | AE40: =IFERROR(VLOOKUP(D40,[4]LTD!$B$1:$C$65536,2,0),"") -> 2.064048841 | AF40: =IFERROR(VLOOKUP(D40,[4]LTD!$F$1:$G$65536,2,0),"") -> 1.813338632 | AG40: =IFERROR(VLOOKUP(D40,[4]LTD!$J$1:$K$65536,2,0),"") -> 1.863443727 | AH40: =IFERROR(VLOOKUP(D40,'[4]% delivery'!$B$1:$H$65536,2,0),"") -> 0.05921975863 | AI40: =IFERROR(VLOOKUP(D40,'[4]% delivery'!$B$1:$H$65536,3,0),"") -> 0.7294414819 | AJ40: =IFERROR(VLOOKUP(D40,'[4]% delivery'!$B$1:$H$65536,4,0),"") -> 0.9750210497 | AK40: =IFERROR(VLOOKUP(D40,'[4]% delivery'!$B$1:$H$65536,5,0),"") -> 0.9977547011 | AL40: =IFERROR(VLOOKUP(D40,'[4]% delivery'!$B$1:$H$65536,7,0),"") -> 0.002245298905 | AM40: =IFERROR(VLOOKUP(D40,'[4]% delivery YTD'!$B$1:$H$65536,2,0),"") -> 0.1217851698 | AN40: =IFERROR(VLOOKUP(D40,'[4]% delivery YTD'!$B$1:$H$65536,3,0),"") -> 0.6731198891 | AO40: =IFERROR(VLOOKUP(D40,'[4]% delivery YTD'!$B$1:$H$65536,4,0),"") -> 0.8846070686 | AP40: =IFERROR(VLOOKUP(D40,'[4]% delivery YTD'!$B$1:$H$65536,5,0),"") -> 0.9447428967 | AQ40: =IFERROR(VLOOKUP(D40,'[4]% delivery YTD'!$B$1:$H$65536,6,0),"") -> 0.9722189882
A41: 869Result | B41: Result | C41: 869 | D41: Kielce | E41: =IFERROR(VLOOKUP(D41,'WYNIKI EKO SKLEPY'!C:H,2,0),"") -> 344379.7 | F41: =IFERROR(VLOOKUP(D41,'WYNIKI EKO SKLEPY'!J:O,2,),"") -> 19408330.51 | G41: =VLOOKUP(C41,[1]Produktywnosc!$B$6:$L$56,10,0) -> 631.1206343 | H41: =VLOOKUP(C41,[1]Produktywnosc!$B$6:$L$56,11,0) -> 570.1299318 | I41: 32 | J41: =VLOOKUP(C41,'Open voice'!K:S,6,0) -> 4.24 | K41: =VLOOKUP(C41,'Open voice'!A:I,6,0) -> 4.23 | L41: =IFERROR(VLOOKUP(D41,'WYNIKI EKO SKLEPY'!C:H,3,0),"") -> 0.09424787599 | M41: =IFERROR(VLOOKUP(D41,'WYNIKI EKO SKLEPY'!J:O,3,),"") -> 0.1177111788 | N41: =IFERROR(VLOOKUP(D41,'WYNIKI EKO SKLEPY'!C:H,6,0),"") -> 0.02637337326 | O41: =IFERROR(VLOOKUP(D41,'WYNIKI EKO SKLEPY'!J:O,6,),"") -> 0.03458529169 | P41: =IFERROR(VLOOKUP(D41,'WYNIKI EKO SKLEPY'!C:H,4,0),"") -> 0.2487209031 | Q41: =IFERROR(VLOOKUP(D41,'WYNIKI EKO SKLEPY'!J:O,4,),"") -> 0.2425697541 | R41: =IFERROR(VLOOKUP(D41,[2]Sheet1!$D$1:$L$65536,6,0),"") -> 117.6227641 | S41: =IFERROR(VLOOKUP(D41,[2]Sheet1!$D$1:$L$65536,7,0),"") -> 0.0810690823 | T41: =IFERROR(VLOOKUP(D41,[2]Sheet1!$D$1:$L$65536,9,0),"") -> 2.703061941 | U41: =IFERROR(VLOOKUP(D41,[2]Sheet1!$D$1:$L$65536,5,0),"") -> 0.0446671174 | V41: =IFERROR(VLOOKUP(A41,'Stary Zapas Dane i Rotacja'!A:AA,22,0)+VLOOKUP(A41,'Stary Zapas Dane i Rotacja'!A:AA,26,0),"") -> 0.08098264104 | W41: =IFERROR(VLOOKUP(A41,'EPV Sklep Sport'!A:I,8,0),"") -> 0.03228031615 | X41: =IFERROR(VLOOKUP(D41,'[3]Shortage rate_Stores'!$B$115:$C$192,2,0),"") -> 0.1188248937 | Y41: =IFERROR(VLOOKUP(D41,'[3]Shortage rate_Stores'!$F$115:$G$189,2,0),"") -> 0.1014122442 | Z41: =IFERROR(VLOOKUP(A41,'zamówienia reczne Polska'!A:M,10,0),"") -> 0.3024618093 | AA41: =IFERROR(VLOOKUP(A41,'zamówienia reczne Polska'!A:M,13,0),"") -> 0.3573125461 | AB41: =IFERROR(VLOOKUP(A41,'Stary Zapas Dane i Rotacja'!A:N,9,0),"") -> 51616 | AC41: 44 | AD41: 12 | AE41: =IFERROR(VLOOKUP(D41,[4]LTD!$B$1:$C$65536,2,0),"") -> 2.315709653 | AF41: =IFERROR(VLOOKUP(D41,[4]LTD!$F$1:$G$65536,2,0),"") -> 1.733152315 | AG41: =IFERROR(VLOOKUP(D41,[4]LTD!$J$1:$K$65536,2,0),"") -> 1.647810921 | AH41: =IFERROR(VLOOKUP(D41,'[4]% delivery'!$B$1:$H$65536,2,0),"") -> 0.2112999541 | AI41: =IFERROR(VLOOKUP(D41,'[4]% delivery'!$B$1:$H$65536,3,0),"") -> 0.8323380799 | AJ41: =IFERROR(VLOOKUP(D41,'[4]% delivery'!$B$1:$H$65536,4,0),"") -> 0.9875976114 | AK41: =IFERROR(VLOOKUP(D41,'[4]% delivery'!$B$1:$H$65536,5,0),"") -> 0.9995406523 | AL41: =IFERROR(VLOOKUP(D41,'[4]% delivery'!$B$1:$H$65536,7,0),"") -> 0.0002296738631 | AM41: =IFERROR(VLOOKUP(D41,'[4]% delivery YTD'!$B$1:$H$65536,2,0),"") -> 0.1794587173 | AN41: =IFERROR(VLOOKUP(D41,'[4]% delivery YTD'!$B$1:$H$65536,3,0),"") -> 0.7013549106 | AO41: =IFERROR(VLOOKUP(D41,'[4]% delivery YTD'!$B$1:$H$65536,4,0),"") -> 0.8765536682 | AP41: =IFERROR(VLOOKUP(D41,'[4]% delivery YTD'!$B$1:$H$65536,5,0),"") -> 0.9412466346 | AQ41: =IFERROR(VLOOKUP(D41,'[4]% delivery YTD'!$B$1:$H$65536,6,0),"") -> 0.9742698429
A42: 872Result | B42: Result | C42: 872 | D42: Wroclaw Magnolia | E42: =IFERROR(VLOOKUP(D42,'WYNIKI EKO SKLEPY'!C:H,2,0),"") -> 681508.91 | F42: =IFERROR(VLOOKUP(D42,'WYNIKI EKO SKLEPY'!J:O,2,),"") -> 36444097.15 | G42: =VLOOKUP(C42,[1]Produktywnosc!$B$6:$L$56,10,0) -> 560.9161539 | H42: =VLOOKUP(C42,[1]Produktywnosc!$B$6:$L$56,11,0) -> 514.4825016 | I42: 12 | J42: =VLOOKUP(C42,'Open voice'!K:S,6,0) -> 4.21 | K42: =VLOOKUP(C42,'Open voice'!A:I,6,0) -> 4.3 | L42: =IFERROR(VLOOKUP(D42,'WYNIKI EKO SKLEPY'!C:H,3,0),"") -> 0.02050176974 | M42: =IFERROR(VLOOKUP(D42,'WYNIKI EKO SKLEPY'!J:O,3,),"") -> 0.05090247665 | N42: =IFERROR(VLOOKUP(D42,'WYNIKI EKO SKLEPY'!C:H,6,0),"") -> -0.01539025284 | O42: =IFERROR(VLOOKUP(D42,'WYNIKI EKO SKLEPY'!J:O,6,),"") -> -0.01140064098 | P42: =IFERROR(VLOOKUP(D42,'WYNIKI EKO SKLEPY'!C:H,4,0),"") -> 0.2451364576 | Q42: =IFERROR(VLOOKUP(D42,'WYNIKI EKO SKLEPY'!J:O,4,),"") -> 0.251392661 | R42: =IFERROR(VLOOKUP(D42,[2]Sheet1!$D$1:$L$65536,6,0),"") -> 107.014434 | S42: =IFERROR(VLOOKUP(D42,[2]Sheet1!$D$1:$L$65536,7,0),"") -> 0.0602389908 | T42: =IFERROR(VLOOKUP(D42,[2]Sheet1!$D$1:$L$65536,9,0),"") -> 2.704214884 | U42: =IFERROR(VLOOKUP(D42,[2]Sheet1!$D$1:$L$65536,5,0),"") -> 0.002181183656 | V42: =IFERROR(VLOOKUP(A42,'Stary Zapas Dane i Rotacja'!A:AA,22,0)+VLOOKUP(A42,'Stary Zapas Dane i Rotacja'!A:AA,26,0),"") -> 0.08881015788 | W42: =IFERROR(VLOOKUP(A42,'EPV Sklep Sport'!A:I,8,0),"") -> 0.03727528785 | X42: =IFERROR(VLOOKUP(D42,'[3]Shortage rate_Stores'!$B$115:$C$192,2,0),"") -> 0.07823256978 | Y42: =IFERROR(VLOOKUP(D42,'[3]Shortage rate_Stores'!$F$115:$G$189,2,0),"") -> 0.09152856749 | Z42: =IFERROR(VLOOKUP(A42,'zamówienia reczne Polska'!A:M,10,0),"") -> 0.3872293891 | AA42: =IFERROR(VLOOKUP(A42,'zamówienia reczne Polska'!A:M,13,0),"") -> 0.3680451593 | AB42: =IFERROR(VLOOKUP(A42,'Stary Zapas Dane i Rotacja'!A:N,9,0),"") -> 84112 | AC42: 19 | AD42: 7 | AE42: =IFERROR(VLOOKUP(D42,[4]LTD!$B$1:$C$65536,2,0),"") -> 2.404224056 | AF42: =IFERROR(VLOOKUP(D42,[4]LTD!$F$1:$G$65536,2,0),"") -> 2.032373861 | AG42: =IFERROR(VLOOKUP(D42,[4]LTD!$J$1:$K$65536,2,0),"") -> 1.971925791 | AH42: =IFERROR(VLOOKUP(D42,'[4]% delivery'!$B$1:$H$65536,2,0),"") -> 0.08265518865 | AI42: =IFERROR(VLOOKUP(D42,'[4]% delivery'!$B$1:$H$65536,3,0),"") -> 0.6053534199 | AJ42: =IFERROR(VLOOKUP(D42,'[4]% delivery'!$B$1:$H$65536,4,0),"") -> 0.9733001547 | AK42: =IFERROR(VLOOKUP(D42,'[4]% delivery'!$B$1:$H$65536,5,0),"") -> 0.9981841415 | AL42: =IFERROR(VLOOKUP(D42,'[4]% delivery'!$B$1:$H$65536,7,0),"") -> 0 | AM42: =IFERROR(VLOOKUP(D42,'[4]% delivery YTD'!$B$1:$H$65536,2,0),"") -> 0.07784529887 | AN42: =IFERROR(VLOOKUP(D42,'[4]% delivery YTD'!$B$1:$H$65536,3,0),"") -> 0.5448719107 | AO42: =IFERROR(VLOOKUP(D42,'[4]% delivery YTD'!$B$1:$H$65536,4,0),"") -> 0.8060972304 | AP42: =IFERROR(VLOOKUP(D42,'[4]% delivery YTD'!$B$1:$H$65536,5,0),"") -> 0.9117245742 | AQ42: =IFERROR(VLOOKUP(D42,'[4]% delivery YTD'!$B$1:$H$65536,6,0),"") -> 0.9522003343
A43: 936Result | B43: Result | C43: 936 | D43: Bytom | E43: =IFERROR(VLOOKUP(D43,'WYNIKI EKO SKLEPY'!C:H,2,0),"") -> 238703.06 | F43: =IFERROR(VLOOKUP(D43,'WYNIKI EKO SKLEPY'!J:O,2,),"") -> 13327262.34 | G43: =VLOOKUP(C43,[1]Produktywnosc!$B$6:$L$56,10,0) -> 463.4915262 | H43: =VLOOKUP(C43,[1]Produktywnosc!$B$6:$L$56,11,0) -> 459.7081026 | I43: 42 | J43: =VLOOKUP(C43,'Open voice'!K:S,6,0) -> 4.38 | K43: =VLOOKUP(C43,'Open voice'!A:I,6,0) -> 4.29 | L43: =IFERROR(VLOOKUP(D43,'WYNIKI EKO SKLEPY'!C:H,3,0),"") -> 0.06733534272 | M43: =IFERROR(VLOOKUP(D43,'WYNIKI EKO SKLEPY'!J:O,3,),"") -> 0.1404444625 | N43: =IFERROR(VLOOKUP(D43,'WYNIKI EKO SKLEPY'!C:H,6,0),"") -> 0.167520117 | O43: =IFERROR(VLOOKUP(D43,'WYNIKI EKO SKLEPY'!J:O,6,),"") -> 0.05660089386 | P43: =IFERROR(VLOOKUP(D43,'WYNIKI EKO SKLEPY'!C:H,4,0),"") -> 0.2523532375 | Q43: =IFERROR(VLOOKUP(D43,'WYNIKI EKO SKLEPY'!J:O,4,),"") -> 0.2425210623 | R43: =IFERROR(VLOOKUP(D43,[2]Sheet1!$D$1:$L$65536,6,0),"") -> 107.7830952 | S43: =IFERROR(VLOOKUP(D43,[2]Sheet1!$D$1:$L$65536,7,0),"") -> 0.06722628138 | T43: =IFERROR(VLOOKUP(D43,[2]Sheet1!$D$1:$L$65536,9,0),"") -> 2.573360472 | U43: =IFERROR(VLOOKUP(D43,[2]Sheet1!$D$1:$L$65536,5,0),"") -> 0.08176781955 | V43: =IFERROR(VLOOKUP(A43,'Stary Zapas Dane i Rotacja'!A:AA,22,0)+VLOOKUP(A43,'Stary Zapas Dane i Rotacja'!A:AA,26,0),"") -> 0.1322131541 | W43: =IFERROR(VLOOKUP(A43,'EPV Sklep Sport'!A:I,8,0),"") -> 0.03233418464 | X43: =IFERROR(VLOOKUP(D43,'[3]Shortage rate_Stores'!$B$115:$C$192,2,0),"") -> 0.1403185371 | Y43: =IFERROR(VLOOKUP(D43,'[3]Shortage rate_Stores'!$F$115:$G$189,2,0),"") -> 0.07521757662 | Z43: =IFERROR(VLOOKUP(A43,'zamówienia reczne Polska'!A:M,10,0),"") -> 0.3937340689 | AA43: =IFERROR(VLOOKUP(A43,'zamówienia reczne Polska'!A:M,13,0),"") -> 0.4164283387 | AB43: =IFERROR(VLOOKUP(A43,'Stary Zapas Dane i Rotacja'!A:N,9,0),"") -> 52075 | AC43: 43 | AD43: 1 | AE43: =IFERROR(VLOOKUP(D43,[4]LTD!$B$1:$C$65536,2,0),"") -> 1.698887266 | AF43: =IFERROR(VLOOKUP(D43,[4]LTD!$F$1:$G$65536,2,0),"") -> 1.356483389 | AG43: =IFERROR(VLOOKUP(D43,[4]LTD!$J$1:$K$65536,2,0),"") -> 1.42410816 | AH43: =IFERROR(VLOOKUP(D43,'[4]% delivery'!$B$1:$H$65536,2,0),"") -> 0.5841269841 | AI43: =IFERROR(VLOOKUP(D43,'[4]% delivery'!$B$1:$H$65536,3,0),"") -> 0.7499389499 | AJ43: =IFERROR(VLOOKUP(D43,'[4]% delivery'!$B$1:$H$65536,4,0),"") -> 0.9333333333 | AK43: =IFERROR(VLOOKUP(D43,'[4]% delivery'!$B$1:$H$65536,5,0),"") -> 0.9904761905 | AL43: =IFERROR(VLOOKUP(D43,'[4]% delivery'!$B$1:$H$65536,7,0),"") -> 0 | AM43: =IFERROR(VLOOKUP(D43,'[4]% delivery YTD'!$B$1:$H$65536,2,0),"") -> 0.421580227 | AN43: =IFERROR(VLOOKUP(D43,'[4]% delivery YTD'!$B$1:$H$65536,3,0),"") -> 0.7506663373 | AO43: =IFERROR(VLOOKUP(D43,'[4]% delivery YTD'!$B$1:$H$65536,4,0),"") -> 0.8893555056 | AP43: =IFERROR(VLOOKUP(D43,'[4]% delivery YTD'!$B$1:$H$65536,5,0),"") -> 0.943442591 | AQ43: =IFERROR(VLOOKUP(D43,'[4]% delivery YTD'!$B$1:$H$65536,6,0),"") -> 0.9697905426
A44: 937Result | B44: Result | C44: 937 | D44: Torun | E44: =IFERROR(VLOOKUP(D44,'WYNIKI EKO SKLEPY'!C:H,2,0),"") -> 338616.92 | F44: =IFERROR(VLOOKUP(D44,'WYNIKI EKO SKLEPY'!J:O,2,),"") -> 20049661.78 | G44: =VLOOKUP(C44,[1]Produktywnosc!$B$6:$L$56,10,0) -> 568.7195379 | H44: =VLOOKUP(C44,[1]Produktywnosc!$B$6:$L$56,11,0) -> 531.2779125 | I44: 30 | J44: =VLOOKUP(C44,'Open voice'!K:S,6,0) -> 3.91 | K44: =VLOOKUP(C44,'Open voice'!A:I,6,0) -> 4.09 | L44: =IFERROR(VLOOKUP(D44,'WYNIKI EKO SKLEPY'!C:H,3,0),"") -> 0.03767815394 | M44: =IFERROR(VLOOKUP(D44,'WYNIKI EKO SKLEPY'!J:O,3,),"") -> 0.07761012444 | N44: =IFERROR(VLOOKUP(D44,'WYNIKI EKO SKLEPY'!C:H,6,0),"") -> 0.0747160089 | O44: =IFERROR(VLOOKUP(D44,'WYNIKI EKO SKLEPY'!J:O,6,),"") -> 0.0292375832 | P44: =IFERROR(VLOOKUP(D44,'WYNIKI EKO SKLEPY'!C:H,4,0),"") -> 0.2553573224 | Q44: =IFERROR(VLOOKUP(D44,'WYNIKI EKO SKLEPY'!J:O,4,),"") -> 0.245271113 | R44: =IFERROR(VLOOKUP(D44,[2]Sheet1!$D$1:$L$65536,6,0),"") -> 102.6533603 | S44: =IFERROR(VLOOKUP(D44,[2]Sheet1!$D$1:$L$65536,7,0),"") -> 0.03775793612 | T44: =IFERROR(VLOOKUP(D44,[2]Sheet1!$D$1:$L$65536,9,0),"") -> 2.411570026 | U44: =IFERROR(VLOOKUP(D44,[2]Sheet1!$D$1:$L$65536,5,0),"") -> 0.05019137798 | V44: =IFERROR(VLOOKUP(A44,'Stary Zapas Dane i Rotacja'!A:AA,22,0)+VLOOKUP(A44,'Stary Zapas Dane i Rotacja'!A:AA,26,0),"") -> 0.1105546095 | W44: =IFERROR(VLOOKUP(A44,'EPV Sklep Sport'!A:I,8,0),"") -> 0.02893119857 | X44: =IFERROR(VLOOKUP(D44,'[3]Shortage rate_Stores'!$B$115:$C$192,2,0),"") -> 0.1485012585 | Y44: =IFERROR(VLOOKUP(D44,'[3]Shortage rate_Stores'!$F$115:$G$189,2,0),"") -> 0.08149492825 | Z44: =IFERROR(VLOOKUP(A44,'zamówienia reczne Polska'!A:M,10,0),"") -> 0.377437192 | AA44: =IFERROR(VLOOKUP(A44,'zamówienia reczne Polska'!A:M,13,0),"") -> 0.4189636128 | AB44: =IFERROR(VLOOKUP(A44,'Stary Zapas Dane i Rotacja'!A:N,9,0),"") -> 59898 | AC44: 36 | AD44: 6 | AE44: =IFERROR(VLOOKUP(D44,[4]LTD!$B$1:$C$65536,2,0),"") -> 1.993045853 | AF44: =IFERROR(VLOOKUP(D44,[4]LTD!$F$1:$G$65536,2,0),"") -> 1.443208001 | AG44: =IFERROR(VLOOKUP(D44,[4]LTD!$J$1:$K$65536,2,0),"") -> 1.340699299 | AH44: =IFERROR(VLOOKUP(D44,'[4]% delivery'!$B$1:$H$65536,2,0),"") -> 0.4982338725 | AI44: =IFERROR(VLOOKUP(D44,'[4]% delivery'!$B$1:$H$65536,3,0),"") -> 0.7876928797 | AJ44: =IFERROR(VLOOKUP(D44,'[4]% delivery'!$B$1:$H$65536,4,0),"") -> 0.9202453988 | AK44: =IFERROR(VLOOKUP(D44,'[4]% delivery'!$B$1:$H$65536,5,0),"") -> 0.9990704592 | AL44: =IFERROR(VLOOKUP(D44,'[4]% delivery'!$B$1:$H$65536,7,0),"") -> 0.0009295408068 | AM44: =IFERROR(VLOOKUP(D44,'[4]% delivery YTD'!$B$1:$H$65536,2,0),"") -> 0.06554949308 | AN44: =IFERROR(VLOOKUP(D44,'[4]% delivery YTD'!$B$1:$H$65536,3,0),"") -> 0.7121102763 | AO44: =IFERROR(VLOOKUP(D44,'[4]% delivery YTD'!$B$1:$H$65536,4,0),"") -> 0.9247459808 | AP44: =IFERROR(VLOOKUP(D44,'[4]% delivery YTD'!$B$1:$H$65536,5,0),"") -> 0.9735116922 | AQ44: =IFERROR(VLOOKUP(D44,'[4]% delivery YTD'!$B$1:$H$65536,6,0),"") -> 0.9902393783
A45: 1064Result | B45: Result | C45: 1064 | D45: Koszalin | E45: =IFERROR(VLOOKUP(D45,'WYNIKI EKO SKLEPY'!C:H,2,0),"") -> 283354.11 | F45: =IFERROR(VLOOKUP(D45,'WYNIKI EKO SKLEPY'!J:O,2,),"") -> 17125678.65 | G45: =VLOOKUP(C45,[1]Produktywnosc!$B$6:$L$56,10,0) -> 675.5195574 | H45: =VLOOKUP(C45,[1]Produktywnosc!$B$6:$L$56,11,0) -> 533.6499786 | I45: 36 | J45: =VLOOKUP(C45,'Open voice'!K:S,6,0) -> 4.58 | K45: =VLOOKUP(C45,'Open voice'!A:I,6,0) -> 4.48 | L45: =IFERROR(VLOOKUP(D45,'WYNIKI EKO SKLEPY'!C:H,3,0),"") -> 0.09176364798 | M45: =IFERROR(VLOOKUP(D45,'WYNIKI EKO SKLEPY'!J:O,3,),"") -> 0.008440171373 | N45: =IFERROR(VLOOKUP(D45,'WYNIKI EKO SKLEPY'!C:H,6,0),"") -> 0.05307497894 | O45: =IFERROR(VLOOKUP(D45,'WYNIKI EKO SKLEPY'!J:O,6,),"") -> -0.04597140666 | P45: =IFERROR(VLOOKUP(D45,'WYNIKI EKO SKLEPY'!C:H,4,0),"") -> 0.2423678626 | Q45: =IFERROR(VLOOKUP(D45,'WYNIKI EKO SKLEPY'!J:O,4,),"") -> 0.2389543319 | R45: =IFERROR(VLOOKUP(D45,[2]Sheet1!$D$1:$L$65536,6,0),"") -> 113.5819346 | S45: =IFERROR(VLOOKUP(D45,[2]Sheet1!$D$1:$L$65536,7,0),"") -> 0.04786270069 | T45: =IFERROR(VLOOKUP(D45,[2]Sheet1!$D$1:$L$65536,9,0),"") -> 2.761733334 | U45: =IFERROR(VLOOKUP(D45,[2]Sheet1!$D$1:$L$65536,5,0),"") -> -0.02929182254 | V45: =IFERROR(VLOOKUP(A45,'Stary Zapas Dane i Rotacja'!A:AA,22,0)+VLOOKUP(A45,'Stary Zapas Dane i Rotacja'!A:AA,26,0),"") -> 0.09301350331 | W45: =IFERROR(VLOOKUP(A45,'EPV Sklep Sport'!A:I,8,0),"") -> 0.03985539055 | X45: =IFERROR(VLOOKUP(D45,'[3]Shortage rate_Stores'!$B$115:$C$192,2,0),"") -> 0.12970996 | Y45: =IFERROR(VLOOKUP(D45,'[3]Shortage rate_Stores'!$F$115:$G$189,2,0),"") -> 0.07815192612 | Z45: =IFERROR(VLOOKUP(A45,'zamówienia reczne Polska'!A:M,10,0),"") -> 0.3624451206 | AA45: =IFERROR(VLOOKUP(A45,'zamówienia reczne Polska'!A:M,13,0),"") -> 0.4142690738 | AB45: =IFERROR(VLOOKUP(A45,'Stary Zapas Dane i Rotacja'!A:N,9,0),"") -> 59615 | AC45: 37 | AD45: 1 | AE45: =IFERROR(VLOOKUP(D45,[4]LTD!$B$1:$C$65536,2,0),"") -> 2.168838861 | AF45: =IFERROR(VLOOKUP(D45,[4]LTD!$F$1:$G$65536,2,0),"") -> 2.08995657 | AG45: =IFERROR(VLOOKUP(D45,[4]LTD!$J$1:$K$65536,2,0),"") -> 2.334730907 | AH45: =IFERROR(VLOOKUP(D45,'[4]% delivery'!$B$1:$H$65536,2,0),"") -> 0.002315886985 | AI45: =IFERROR(VLOOKUP(D45,'[4]% delivery'!$B$1:$H$65536,3,0),"") -> 0.4842519685 | AJ45: =IFERROR(VLOOKUP(D45,'[4]% delivery'!$B$1:$H$65536,4,0),"") -> 0.8568781843 | AK45: =IFERROR(VLOOKUP(D45,'[4]% delivery'!$B$1:$H$65536,5,0),"") -> 0.9993052339 | AL45: =IFERROR(VLOOKUP(D45,'[4]% delivery'!$B$1:$H$65536,7,0),"") -> 0 | AM45: =IFERROR(VLOOKUP(D45,'[4]% delivery YTD'!$B$1:$H$65536,2,0),"") -> 0.005279587868 | AN45: =IFERROR(VLOOKUP(D45,'[4]% delivery YTD'!$B$1:$H$65536,3,0),"") -> 0.628569479 | AO45: =IFERROR(VLOOKUP(D45,'[4]% delivery YTD'!$B$1:$H$65536,4,0),"") -> 0.8908814097 | AP45: =IFERROR(VLOOKUP(D45,'[4]% delivery YTD'!$B$1:$H$65536,5,0),"") -> 0.9740626386 | AQ45: =IFERROR(VLOOKUP(D45,'[4]% delivery YTD'!$B$1:$H$65536,6,0),"") -> 0.9887670158
A46: 1149Result | B46: Result | C46: 1149 | D46: Warszawa Bemowo | E46: =IFERROR(VLOOKUP(D46,'WYNIKI EKO SKLEPY'!C:H,2,0),"") -> 507661.98 | F46: =IFERROR(VLOOKUP(D46,'WYNIKI EKO SKLEPY'!J:O,2,),"") -> 27702402.84 | G46: =VLOOKUP(C46,[1]Produktywnosc!$B$6:$L$56,10,0) -> 524.1741881 | H46: =VLOOKUP(C46,[1]Produktywnosc!$B$6:$L$56,11,0) -> 518.9773703 | I46: 24 | J46: =VLOOKUP(C46,'Open voice'!K:S,6,0) -> 4.25 | K46: =VLOOKUP(C46,'Open voice'!A:I,6,0) -> 4.21 | L46: =IFERROR(VLOOKUP(D46,'WYNIKI EKO SKLEPY'!C:H,3,0),"") -> 0.2208990083 | M46: =IFERROR(VLOOKUP(D46,'WYNIKI EKO SKLEPY'!J:O,3,),"") -> 0.06017867764 | N46: =IFERROR(VLOOKUP(D46,'WYNIKI EKO SKLEPY'!C:H,6,0),"") -> 0.2818607942 | O46: =IFERROR(VLOOKUP(D46,'WYNIKI EKO SKLEPY'!J:O,6,),"") -> 0.04656990092 | P46: =IFERROR(VLOOKUP(D46,'WYNIKI EKO SKLEPY'!C:H,4,0),"") -> 0.2528028985 | Q46: =IFERROR(VLOOKUP(D46,'WYNIKI EKO SKLEPY'!J:O,4,),"") -> 0.2526765028 | R46: =IFERROR(VLOOKUP(D46,[2]Sheet1!$D$1:$L$65536,6,0),"") -> 128.665952 | S46: =IFERROR(VLOOKUP(D46,[2]Sheet1!$D$1:$L$65536,7,0),"") -> 0.01424181419 | T46: =IFERROR(VLOOKUP(D46,[2]Sheet1!$D$1:$L$65536,9,0),"") -> 3.215374969 | U46: =IFERROR(VLOOKUP(D46,[2]Sheet1!$D$1:$L$65536,5,0),"") -> 0.05575398296 | V46: =IFERROR(VLOOKUP(A46,'Stary Zapas Dane i Rotacja'!A:AA,22,0)+VLOOKUP(A46,'Stary Zapas Dane i Rotacja'!A:AA,26,0),"") -> 0.08777166309 | W46: =IFERROR(VLOOKUP(A46,'EPV Sklep Sport'!A:I,8,0),"") -> 0.03005419643 | X46: =IFERROR(VLOOKUP(D46,'[3]Shortage rate_Stores'!$B$115:$C$192,2,0),"") -> 0.1466165414 | Y46: =IFERROR(VLOOKUP(D46,'[3]Shortage rate_Stores'!$F$115:$G$189,2,0),"") -> 0.08757488499 | Z46: =IFERROR(VLOOKUP(A46,'zamówienia reczne Polska'!A:M,10,0),"") -> 0.3838615939 | AA46: =IFERROR(VLOOKUP(A46,'zamówienia reczne Polska'!A:M,13,0),"") -> 0.3813405885 | AB46: =IFERROR(VLOOKUP(A46,'Stary Zapas Dane i Rotacja'!A:N,9,0),"") -> 75047 | AC46: 27 | AD46: 3 | AE46: =IFERROR(VLOOKUP(D46,[4]LTD!$B$1:$C$65536,2,0),"") -> 1.871781353 | AF46: =IFERROR(VLOOKUP(D46,[4]LTD!$F$1:$G$65536,2,0),"") -> 1.641420911 | AG46: =IFERROR(VLOOKUP(D46,[4]LTD!$J$1:$K$65536,2,0),"") -> 1.702564395 | AH46: =IFERROR(VLOOKUP(D46,'[4]% delivery'!$B$1:$H$65536,2,0),"") -> 0.1248391248 | AI46: =IFERROR(VLOOKUP(D46,'[4]% delivery'!$B$1:$H$65536,3,0),"") -> 0.7865722866 | AJ46: =IFERROR(VLOOKUP(D46,'[4]% delivery'!$B$1:$H$65536,4,0),"") -> 0.9997854998 | AK46: =IFERROR(VLOOKUP(D46,'[4]% delivery'!$B$1:$H$65536,5,0),"") -> 1 | AL46: =IFERROR(VLOOKUP(D46,'[4]% delivery'!$B$1:$H$65536,7,0),"") -> 0 | AM46: =IFERROR(VLOOKUP(D46,'[4]% delivery YTD'!$B$1:$H$65536,2,0),"") -> 0.1485970712 | AN46: =IFERROR(VLOOKUP(D46,'[4]% delivery YTD'!$B$1:$H$65536,3,0),"") -> 0.768734249 | AO46: =IFERROR(VLOOKUP(D46,'[4]% delivery YTD'!$B$1:$H$65536,4,0),"") -> 0.9318264735 | AP46: =IFERROR(VLOOKUP(D46,'[4]% delivery YTD'!$B$1:$H$65536,5,0),"") -> 0.9689666205 | AQ46: =IFERROR(VLOOKUP(D46,'[4]% delivery YTD'!$B$1:$H$65536,6,0),"") -> 0.9874609206
A47: 1152Result | B47: Result | C47: 1152 | D47: Katowice Dabrowka | E47: =IFERROR(VLOOKUP(D47,'WYNIKI EKO SKLEPY'!C:H,2,0),"") -> 149443.52 | F47: =IFERROR(VLOOKUP(D47,'WYNIKI EKO SKLEPY'!J:O,2,),"") -> 8730087.35 | G47: =VLOOKUP(C47,[1]Produktywnosc!$B$6:$L$56,10,0) -> 586.1435225 | H47: =VLOOKUP(C47,[1]Produktywnosc!$B$6:$L$56,11,0) -> 491.7659922 | I47: 47 | J47: =VLOOKUP(C47,'Open voice'!K:S,6,0) -> 4.04 | K47: =VLOOKUP(C47,'Open voice'!A:I,6,0) -> 4.13 | L47: =IFERROR(VLOOKUP(D47,'WYNIKI EKO SKLEPY'!C:H,3,0),"") -> 0.07064016885 | M47: =IFERROR(VLOOKUP(D47,'WYNIKI EKO SKLEPY'!J:O,3,),"") -> 0.1035864593 | N47: =IFERROR(VLOOKUP(D47,'WYNIKI EKO SKLEPY'!C:H,6,0),"") -> -0.05946070523 | O47: =IFERROR(VLOOKUP(D47,'WYNIKI EKO SKLEPY'!J:O,6,),"") -> 0.0590441083 | P47: =IFERROR(VLOOKUP(D47,'WYNIKI EKO SKLEPY'!C:H,4,0),"") -> 0.2393537706 | Q47: =IFERROR(VLOOKUP(D47,'WYNIKI EKO SKLEPY'!J:O,4,),"") -> 0.2333958881 | R47: =IFERROR(VLOOKUP(D47,[2]Sheet1!$D$1:$L$65536,6,0),"") -> 88.58247513 | S47: =IFERROR(VLOOKUP(D47,[2]Sheet1!$D$1:$L$65536,7,0),"") -> 0.06883848986 | T47: =IFERROR(VLOOKUP(D47,[2]Sheet1!$D$1:$L$65536,9,0),"") -> 2.196049595 | U47: =IFERROR(VLOOKUP(D47,[2]Sheet1!$D$1:$L$65536,5,0),"") -> 0.04548657826 | V47: =IFERROR(VLOOKUP(A47,'Stary Zapas Dane i Rotacja'!A:AA,22,0)+VLOOKUP(A47,'Stary Zapas Dane i Rotacja'!A:AA,26,0),"") -> 0.1244315408 | W47: =IFERROR(VLOOKUP(A47,'EPV Sklep Sport'!A:I,8,0),"") -> 0.04549961365 | X47: =IFERROR(VLOOKUP(D47,'[3]Shortage rate_Stores'!$B$115:$C$192,2,0),"") -> 0.1116038433 | Y47: =IFERROR(VLOOKUP(D47,'[3]Shortage rate_Stores'!$F$115:$G$189,2,0),"") -> 0.08571350618 | Z47: =IFERROR(VLOOKUP(A47,'zamówienia reczne Polska'!A:M,10,0),"") -> 0.3704694144 | AA47: =IFERROR(VLOOKUP(A47,'zamówienia reczne Polska'!A:M,13,0),"") -> 0.3240800374 | AB47: =IFERROR(VLOOKUP(A47,'Stary Zapas Dane i Rotacja'!A:N,9,0),"") -> 38921 | AC47: 49 | AD47: 2 | AE47: =IFERROR(VLOOKUP(D47,[4]LTD!$B$1:$C$65536,2,0),"") -> 3.111455984 | AF47: =IFERROR(VLOOKUP(D47,[4]LTD!$F$1:$G$65536,2,0),"") -> 2.193444198 | AG47: =IFERROR(VLOOKUP(D47,[4]LTD!$J$1:$K$65536,2,0),"") -> 1.952413377 | AH47: =IFERROR(VLOOKUP(D47,'[4]% delivery'!$B$1:$H$65536,2,0),"") -> 0.204785077 | AI47: =IFERROR(VLOOKUP(D47,'[4]% delivery'!$B$1:$H$65536,3,0),"") -> 0.6330089213 | AJ47: =IFERROR(VLOOKUP(D47,'[4]% delivery'!$B$1:$H$65536,4,0),"") -> 0.8730738037 | AK47: =IFERROR(VLOOKUP(D47,'[4]% delivery'!$B$1:$H$65536,5,0),"") -> 0.9724249797 | AL47: =IFERROR(VLOOKUP(D47,'[4]% delivery'!$B$1:$H$65536,7,0),"") -> 0 | AM47: =IFERROR(VLOOKUP(D47,'[4]% delivery YTD'!$B$1:$H$65536,2,0),"") -> 0.09024761176 | AN47: =IFERROR(VLOOKUP(D47,'[4]% delivery YTD'!$B$1:$H$65536,3,0),"") -> 0.342440055 | AO47: =IFERROR(VLOOKUP(D47,'[4]% delivery YTD'!$B$1:$H$65536,4,0),"") -> 0.6054968172 | AP47: =IFERROR(VLOOKUP(D47,'[4]% delivery YTD'!$B$1:$H$65536,5,0),"") -> 0.775710552 | AQ47: =IFERROR(VLOOKUP(D47,'[4]% delivery YTD'!$B$1:$H$65536,6,0),"") -> 0.8709486472
A48: 1153Result | B48: Result | C48: 1153 | D48: Rybnik | E48: =IFERROR(VLOOKUP(D48,'WYNIKI EKO SKLEPY'!C:H,2,0),"") -> 208087.94 | F48: =IFERROR(VLOOKUP(D48,'WYNIKI EKO SKLEPY'!J:O,2,),"") -> 11370363.77 | G48: =VLOOKUP(C48,[1]Produktywnosc!$B$6:$L$56,10,0) -> 656.3336833 | H48: =VLOOKUP(C48,[1]Produktywnosc!$B$6:$L$56,11,0) -> 599.8324436 | I48: 45 | J48: =VLOOKUP(C48,'Open voice'!K:S,6,0) -> 4.52 | K48: =VLOOKUP(C48,'Open voice'!A:I,6,0) -> 4.3 | L48: =IFERROR(VLOOKUP(D48,'WYNIKI EKO SKLEPY'!C:H,3,0),"") -> 0.2443291986 | M48: =IFERROR(VLOOKUP(D48,'WYNIKI EKO SKLEPY'!J:O,3,),"") -> 0.1194093128 | N48: =IFERROR(VLOOKUP(D48,'WYNIKI EKO SKLEPY'!C:H,6,0),"") -> 0.2147637396 | O48: =IFERROR(VLOOKUP(D48,'WYNIKI EKO SKLEPY'!J:O,6,),"") -> 0.05029375431 | P48: =IFERROR(VLOOKUP(D48,'WYNIKI EKO SKLEPY'!C:H,4,0),"") -> 0.2522846831 | Q48: =IFERROR(VLOOKUP(D48,'WYNIKI EKO SKLEPY'!J:O,4,),"") -> 0.2411167651 | R48: =IFERROR(VLOOKUP(D48,[2]Sheet1!$D$1:$L$65536,6,0),"") -> 92.90383525 | S48: =IFERROR(VLOOKUP(D48,[2]Sheet1!$D$1:$L$65536,7,0),"") -> 0.06584743887 | T48: =IFERROR(VLOOKUP(D48,[2]Sheet1!$D$1:$L$65536,9,0),"") -> 2.387575012 | U48: =IFERROR(VLOOKUP(D48,[2]Sheet1!$D$1:$L$65536,5,0),"") -> 0.06046929832 | V48: =IFERROR(VLOOKUP(A48,'Stary Zapas Dane i Rotacja'!A:AA,22,0)+VLOOKUP(A48,'Stary Zapas Dane i Rotacja'!A:AA,26,0),"") -> 0.1324079343 | W48: =IFERROR(VLOOKUP(A48,'EPV Sklep Sport'!A:I,8,0),"") -> 0.0397585258 | X48: =IFERROR(VLOOKUP(D48,'[3]Shortage rate_Stores'!$B$115:$C$192,2,0),"") -> 0.05979249118 | Y48: =IFERROR(VLOOKUP(D48,'[3]Shortage rate_Stores'!$F$115:$G$189,2,0),"") -> 0.07771071566 | Z48: =IFERROR(VLOOKUP(A48,'zamówienia reczne Polska'!A:M,10,0),"") -> 0.3485886013 | AA48: =IFERROR(VLOOKUP(A48,'zamówienia reczne Polska'!A:M,13,0),"") -> 0.2859529009 | AB48: =IFERROR(VLOOKUP(A48,'Stary Zapas Dane i Rotacja'!A:N,9,0),"") -> 49204 | AC48: 46 | AD48: 1 | AE48: =IFERROR(VLOOKUP(D48,[4]LTD!$B$1:$C$65536,2,0),"") -> 2.766742687 | AF48: =IFERROR(VLOOKUP(D48,[4]LTD!$F$1:$G$65536,2,0),"") -> 2.449967813 | AG48: =IFERROR(VLOOKUP(D48,[4]LTD!$J$1:$K$65536,2,0),"") -> 2.146851066 | AH48: =IFERROR(VLOOKUP(D48,'[4]% delivery'!$B$1:$H$65536,2,0),"") -> 0.1641039236 | AI48: =IFERROR(VLOOKUP(D48,'[4]% delivery'!$B$1:$H$65536,3,0),"") -> 0.5360551432 | AJ48: =IFERROR(VLOOKUP(D48,'[4]% delivery'!$B$1:$H$65536,4,0),"") -> 0.8064687169 | AK48: =IFERROR(VLOOKUP(D48,'[4]% delivery'!$B$1:$H$65536,5,0),"") -> 0.980116649 | AL48: =IFERROR(VLOOKUP(D48,'[4]% delivery'!$B$1:$H$65536,7,0),"") -> 0.01113467656 | AM48: =IFERROR(VLOOKUP(D48,'[4]% delivery YTD'!$B$1:$H$65536,2,0),"") -> 0.1311462083 | AN48: =IFERROR(VLOOKUP(D48,'[4]% delivery YTD'!$B$1:$H$65536,3,0),"") -> 0.4253586289 | AO48: =IFERROR(VLOOKUP(D48,'[4]% delivery YTD'!$B$1:$H$65536,4,0),"") -> 0.6577117222 | AP48: =IFERROR(VLOOKUP(D48,'[4]% delivery YTD'!$B$1:$H$65536,5,0),"") -> 0.8207483722 | AQ48: =IFERROR(VLOOKUP(D48,'[4]% delivery YTD'!$B$1:$H$65536,6,0),"") -> 0.9062650122
A49: 1155Result | B49: Result | C49: 1155 | D49: Rzeszow | E49: =IFERROR(VLOOKUP(D49,'WYNIKI EKO SKLEPY'!C:H,2,0),"") -> 466816.52 | F49: =IFERROR(VLOOKUP(D49,'WYNIKI EKO SKLEPY'!J:O,2,),"") -> 22295062.03 | G49: =VLOOKUP(C49,[1]Produktywnosc!$B$6:$L$56,10,0) -> 595.7002166 | H49: =VLOOKUP(C49,[1]Produktywnosc!$B$6:$L$56,11,0) -> 597.106737 | I49: 29 | J49: =VLOOKUP(C49,'Open voice'!K:S,6,0) -> 4.75 | K49: =VLOOKUP(C49,'Open voice'!A:I,6,0) -> 4.32 | L49: =IFERROR(VLOOKUP(D49,'WYNIKI EKO SKLEPY'!C:H,3,0),"") -> 0.1658758905 | M49: =IFERROR(VLOOKUP(D49,'WYNIKI EKO SKLEPY'!J:O,3,),"") -> 0.4954747165 | N49: =IFERROR(VLOOKUP(D49,'WYNIKI EKO SKLEPY'!C:H,6,0),"") -> 0.1203292638 | O49: =IFERROR(VLOOKUP(D49,'WYNIKI EKO SKLEPY'!J:O,6,),"") -> 0.2926926794 | P49: =IFERROR(VLOOKUP(D49,'WYNIKI EKO SKLEPY'!C:H,4,0),"") -> 0.254256726 | Q49: =IFERROR(VLOOKUP(D49,'WYNIKI EKO SKLEPY'!J:O,4,),"") -> 0.2478879172 | R49: =IFERROR(VLOOKUP(D49,[2]Sheet1!$D$1:$L$65536,6,0),"") -> 101.6086691 | S49: =IFERROR(VLOOKUP(D49,[2]Sheet1!$D$1:$L$65536,7,0),"") -> 0.1560717822 | T49: =IFERROR(VLOOKUP(D49,[2]Sheet1!$D$1:$L$65536,9,0),"") -> 2.473057111 | U49: =IFERROR(VLOOKUP(D49,[2]Sheet1!$D$1:$L$65536,5,0),"") -> 0.3092393397 | V49: =IFERROR(VLOOKUP(A49,'Stary Zapas Dane i Rotacja'!A:AA,22,0)+VLOOKUP(A49,'Stary Zapas Dane i Rotacja'!A:AA,26,0),"") -> 0.09576891782 | W49: =IFERROR(VLOOKUP(A49,'EPV Sklep Sport'!A:I,8,0),"") -> 0.02905707088 | X49: =IFERROR(VLOOKUP(D49,'[3]Shortage rate_Stores'!$B$115:$C$192,2,0),"") -> 0.1214229923 | Y49: =IFERROR(VLOOKUP(D49,'[3]Shortage rate_Stores'!$F$115:$G$189,2,0),"") -> 0.0842272719 | Z49: =IFERROR(VLOOKUP(A49,'zamówienia reczne Polska'!A:M,10,0),"") -> 0.2904653982 | AA49: =IFERROR(VLOOKUP(A49,'zamówienia reczne Polska'!A:M,13,0),"") -> 0.2891359345 | AB49: =IFERROR(VLOOKUP(A49,'Stary Zapas Dane i Rotacja'!A:N,9,0),"") -> 61450 | AC49: 34 | AD49: 5 | AE49: =IFERROR(VLOOKUP(D49,[4]LTD!$B$1:$C$65536,2,0),"") -> 2.807250983 | AF49: =IFERROR(VLOOKUP(D49,[4]LTD!$F$1:$G$65536,2,0),"") -> 2.276244999 | AG49: =IFERROR(VLOOKUP(D49,[4]LTD!$J$1:$K$65536,2,0),"") -> 2.14672444 | AH49: =IFERROR(VLOOKUP(D49,'[4]% delivery'!$B$1:$H$65536,2,0),"") -> 0.1402281369 | AI49: =IFERROR(VLOOKUP(D49,'[4]% delivery'!$B$1:$H$65536,3,0),"") -> 0.5411406844 | AJ49: =IFERROR(VLOOKUP(D49,'[4]% delivery'!$B$1:$H$65536,4,0),"") -> 0.8372623574 | AK49: =IFERROR(VLOOKUP(D49,'[4]% delivery'!$B$1:$H$65536,5,0),"") -> 0.9733840304 | AL49: =IFERROR(VLOOKUP(D49,'[4]% delivery'!$B$1:$H$65536,7,0),"") -> 0.0003041825095 | AM49: =IFERROR(VLOOKUP(D49,'[4]% delivery YTD'!$B$1:$H$65536,2,0),"") -> 0.03929307581 | AN49: =IFERROR(VLOOKUP(D49,'[4]% delivery YTD'!$B$1:$H$65536,3,0),"") -> 0.4362890297 | AO49: =IFERROR(VLOOKUP(D49,'[4]% delivery YTD'!$B$1:$H$65536,4,0),"") -> 0.6953584243 | AP49: =IFERROR(VLOOKUP(D49,'[4]% delivery YTD'!$B$1:$H$65536,5,0),"") -> 0.850584014 | AQ49: =IFERROR(VLOOKUP(D49,'[4]% delivery YTD'!$B$1:$H$65536,6,0),"") -> 0.9211504695
A50: =C50&B50 -> 1531Result | B50: Result | C50: 1531 | D50: Tarnow | E50: =IFERROR(VLOOKUP(D50,'WYNIKI EKO SKLEPY'!C:H,2,0),"") -> 215857.61 | F50: =IFERROR(VLOOKUP(D50,'WYNIKI EKO SKLEPY'!J:O,2,),"") -> 11074777 | G50: =VLOOKUP(C50,[1]Produktywnosc!$B$6:$L$56,10,0) -> 619.4186881 | H50: =VLOOKUP(C50,[1]Produktywnosc!$B$6:$L$56,11,0) -> 471.4733181 | I50: 46 | J50: =VLOOKUP(C50,'Open voice'!K:S,6,0) -> 4.6 | K50: =VLOOKUP(C50,'Open voice'!A:I,6,0) -> 4.55 | L50: =IFERROR(VLOOKUP(D50,'WYNIKI EKO SKLEPY'!C:H,3,0),"") -> 0.208114899 | M50: =IFERROR(VLOOKUP(D50,'WYNIKI EKO SKLEPY'!J:O,3,),"") -> 0.031068488 | N50: =IFERROR(VLOOKUP(D50,'WYNIKI EKO SKLEPY'!C:H,6,0),"") -> 0.1674824431 | O50: =IFERROR(VLOOKUP(D50,'WYNIKI EKO SKLEPY'!J:O,6,),"") -> -0.01750080773 | P50: =IFERROR(VLOOKUP(D50,'WYNIKI EKO SKLEPY'!C:H,4,0),"") -> 0.2518680717 | Q50: =IFERROR(VLOOKUP(D50,'WYNIKI EKO SKLEPY'!J:O,4,),"") -> 0.2360074718 | R50: =IFERROR(VLOOKUP(D50,[2]Sheet1!$D$1:$L$65536,6,0),"") -> 109.4781596 | S50: =IFERROR(VLOOKUP(D50,[2]Sheet1!$D$1:$L$65536,7,0),"") -> 0.006329440547 | T50: =IFERROR(VLOOKUP(D50,[2]Sheet1!$D$1:$L$65536,9,0),"") -> 2.523066493 | U50: =IFERROR(VLOOKUP(D50,[2]Sheet1!$D$1:$L$65536,5,0),"") -> 0.03329727502 | V50: =IFERROR(VLOOKUP(A50,'Stary Zapas Dane i Rotacja'!A:AA,22,0)+VLOOKUP(A50,'Stary Zapas Dane i Rotacja'!A:AA,26,0),"") -> 0.1252605908 | W50: =IFERROR(VLOOKUP(A50,'EPV Sklep Sport'!A:I,8,0),"") -> 0.03669639098 | X50: =IFERROR(VLOOKUP(D50,'[3]Shortage rate_Stores'!$B$115:$C$192,2,0),"") -> 0.07040283476 | Y50: =IFERROR(VLOOKUP(D50,'[3]Shortage rate_Stores'!$F$115:$G$189,2,0),"") -> 0.08428098205 | Z50: =IFERROR(VLOOKUP(A50,'zamówienia reczne Polska'!A:M,10,0),"") -> 0.3418304742 | AA50: =IFERROR(VLOOKUP(A50,'zamówienia reczne Polska'!A:M,13,0),"") -> 0.3184259307 | AB50: =IFERROR(VLOOKUP(A50,'Stary Zapas Dane i Rotacja'!A:N,9,0),"") -> 50846 | AC50: 45 | AD50: -1 | AE50: =IFERROR(VLOOKUP(D50,[4]LTD!$B$1:$C$65536,2,0),"") -> 2.538314277 | AF50: =IFERROR(VLOOKUP(D50,[4]LTD!$F$1:$G$65536,2,0),"") -> 1.86039772 | AG50: =IFERROR(VLOOKUP(D50,[4]LTD!$J$1:$K$65536,2,0),"") -> 1.87159447 | AH50: =IFERROR(VLOOKUP(D50,'[4]% delivery'!$B$1:$H$65536,2,0),"") -> 0.2370426829 | AI50: =IFERROR(VLOOKUP(D50,'[4]% delivery'!$B$1:$H$65536,3,0),"") -> 0.6162347561 | AJ50: =IFERROR(VLOOKUP(D50,'[4]% delivery'!$B$1:$H$65536,4,0),"") -> 0.9104420732 | AK50: =IFERROR(VLOOKUP(D50,'[4]% delivery'!$B$1:$H$65536,5,0),"") -> 0.9927591463 | AL50: =IFERROR(VLOOKUP(D50,'[4]% delivery'!$B$1:$H$65536,7,0),"") -> 0 | AM50: =IFERROR(VLOOKUP(D50,'[4]% delivery YTD'!$B$1:$H$65536,2,0),"") -> 0.195001738 | AN50: =IFERROR(VLOOKUP(D50,'[4]% delivery YTD'!$B$1:$H$65536,3,0),"") -> 0.5119296963 | AO50: =IFERROR(VLOOKUP(D50,'[4]% delivery YTD'!$B$1:$H$65536,4,0),"") -> 0.7269137871 | AP50: =IFERROR(VLOOKUP(D50,'[4]% delivery YTD'!$B$1:$H$65536,5,0),"") -> 0.8584122853 | AQ50: =IFERROR(VLOOKUP(D50,'[4]% delivery YTD'!$B$1:$H$65536,6,0),"") -> 0.9269066569
A51: 1889Result | B51: Result | C51: 1889 | D51: Ostrobramska | E51: =IFERROR(VLOOKUP(D51,'WYNIKI EKO SKLEPY'!C:H,2,0),"") -> 685456.22 | F51: =IFERROR(VLOOKUP(D51,'WYNIKI EKO SKLEPY'!J:O,2,),"") -> 35593290.94 | G51: =VLOOKUP(C51,[1]Produktywnosc!$B$6:$L$56,10,0) -> 607.961645 | H51: =VLOOKUP(C51,[1]Produktywnosc!$B$6:$L$56,11,0) -> 632.2036175 | I51: 13 | J51: =VLOOKUP(C51,'Open voice'!K:S,6,0) -> 4.18 | K51: =VLOOKUP(C51,'Open voice'!A:I,6,0) -> 4.06 | L51: =IFERROR(VLOOKUP(D51,'WYNIKI EKO SKLEPY'!C:H,3,0),"") -> DIV/0 | M51: =IFERROR(VLOOKUP(D51,'WYNIKI EKO SKLEPY'!J:O,3,),"") -> DIV/0 | N51: =IFERROR(VLOOKUP(D51,'WYNIKI EKO SKLEPY'!C:H,6,0),"") -> DIV/0 | O51: =IFERROR(VLOOKUP(D51,'WYNIKI EKO SKLEPY'!J:O,6,),"") -> DIV/0 | P51: =IFERROR(VLOOKUP(D51,'WYNIKI EKO SKLEPY'!C:H,4,0),"") -> 0.2579916628 | Q51: =IFERROR(VLOOKUP(D51,'WYNIKI EKO SKLEPY'!J:O,4,),"") -> 0.2582415337 | R51: =IFERROR(VLOOKUP(D51,[2]Sheet1!$D$1:$L$65536,6,0),"") -> 131.2236944 | S51: =IFERROR(VLOOKUP(D51,[2]Sheet1!$D$1:$L$65536,7,0),"") -> DIV/0 | T51: =IFERROR(VLOOKUP(D51,[2]Sheet1!$D$1:$L$65536,9,0),"") -> 3.131975091 | U51: =IFERROR(VLOOKUP(D51,[2]Sheet1!$D$1:$L$65536,5,0),"") -> DIV/0 | V51: =IFERROR(VLOOKUP(A51,'Stary Zapas Dane i Rotacja'!A:AA,22,0)+VLOOKUP(A51,'Stary Zapas Dane i Rotacja'!A:AA,26,0),"") -> 0.08110245259 | W51: =IFERROR(VLOOKUP(A51,'EPV Sklep Sport'!A:I,8,0),"") -> 0.02370250564 | X51: =IFERROR(VLOOKUP(D51,'[3]Shortage rate_Stores'!$B$115:$C$192,2,0),"") -> 0.1175267464 | Y51: =IFERROR(VLOOKUP(D51,'[3]Shortage rate_Stores'!$F$115:$G$189,2,0),"") -> 0.09844735003 | Z51: =IFERROR(VLOOKUP(A51,'zamówienia reczne Polska'!A:M,10,0),"") -> 0.3217537681 | AA51: =IFERROR(VLOOKUP(A51,'zamówienia reczne Polska'!A:M,13,0),"") -> 0.3572080426 | AB51: =IFERROR(VLOOKUP(A51,'Stary Zapas Dane i Rotacja'!A:N,9,0),"") -> 78407 | AC51: 23 | AD51: 10 | AE51: =IFERROR(VLOOKUP(D51,[4]LTD!$B$1:$C$65536,2,0),"") -> 1.908684556 | AF51: =IFERROR(VLOOKUP(D51,[4]LTD!$F$1:$G$65536,2,0),"") -> 1.738296139 | AG51: =IFERROR(VLOOKUP(D51,[4]LTD!$J$1:$K$65536,2,0),"") -> 1.864537527 | AH51: =IFERROR(VLOOKUP(D51,'[4]% delivery'!$B$1:$H$65536,2,0),"") -> 0.2115064197 | AI51: =IFERROR(VLOOKUP(D51,'[4]% delivery'!$B$1:$H$65536,3,0),"") -> 0.5781632853 | AJ51: =IFERROR(VLOOKUP(D51,'[4]% delivery'!$B$1:$H$65536,4,0),"") -> 0.9249240419 | AK51: =IFERROR(VLOOKUP(D51,'[4]% delivery'!$B$1:$H$65536,5,0),"") -> 0.995981574 | AL51: =IFERROR(VLOOKUP(D51,'[4]% delivery'!$B$1:$H$65536,7,0),"") -> 0.002744290895 | AM51: =IFERROR(VLOOKUP(D51,'[4]% delivery YTD'!$B$1:$H$65536,2,0),"") -> 0.1749106981 | AN51: =IFERROR(VLOOKUP(D51,'[4]% delivery YTD'!$B$1:$H$65536,3,0),"") -> 0.7510274263 | AO51: =IFERROR(VLOOKUP(D51,'[4]% delivery YTD'!$B$1:$H$65536,4,0),"") -> 0.9086129442 | AP51: =IFERROR(VLOOKUP(D51,'[4]% delivery YTD'!$B$1:$H$65536,5,0),"") -> 0.9555899982 | AQ51: =IFERROR(VLOOKUP(D51,'[4]% delivery YTD'!$B$1:$H$65536,6,0),"") -> 0.9752666949
A52: 1899Result | B52: Result | C52: 1899 | D52: Zielona Gora | E52: =IFERROR(VLOOKUP(D52,'WYNIKI EKO SKLEPY'!C:H,2,0),"") -> 298887.71 | F52: =IFERROR(VLOOKUP(D52,'WYNIKI EKO SKLEPY'!J:O,2,),"") -> 17048582.69 | G52: =VLOOKUP(C52,[1]Produktywnosc!$B$6:$L$56,10,0) -> 541.0757767 | H52: =VLOOKUP(C52,[1]Produktywnosc!$B$6:$L$56,11,0) -> 521.7153175 | I52: 37 | J52: =VLOOKUP(C52,'Open voice'!K:S,6,0) -> 4.08 | K52: =VLOOKUP(C52,'Open voice'!A:I,6,0) -> 4.17 | L52: =IFERROR(VLOOKUP(D52,'WYNIKI EKO SKLEPY'!C:H,3,0),"") -> DIV/0 | M52: =IFERROR(VLOOKUP(D52,'WYNIKI EKO SKLEPY'!J:O,3,),"") -> DIV/0 | N52: =IFERROR(VLOOKUP(D52,'WYNIKI EKO SKLEPY'!C:H,6,0),"") -> DIV/0 | O52: =IFERROR(VLOOKUP(D52,'WYNIKI EKO SKLEPY'!J:O,6,),"") -> DIV/0 | P52: =IFERROR(VLOOKUP(D52,'WYNIKI EKO SKLEPY'!C:H,4,0),"") -> 0.2522653407 | Q52: =IFERROR(VLOOKUP(D52,'WYNIKI EKO SKLEPY'!J:O,4,),"") -> 0.2509563104 | R52: =IFERROR(VLOOKUP(D52,[2]Sheet1!$D$1:$L$65536,6,0),"") -> 114.3514251 | S52: =IFERROR(VLOOKUP(D52,[2]Sheet1!$D$1:$L$65536,7,0),"") -> DIV/0 | T52: =IFERROR(VLOOKUP(D52,[2]Sheet1!$D$1:$L$65536,9,0),"") -> 2.743883239 | U52: =IFERROR(VLOOKUP(D52,[2]Sheet1!$D$1:$L$65536,5,0),"") -> DIV/0 | V52: =IFERROR(VLOOKUP(A52,'Stary Zapas Dane i Rotacja'!A:AA,22,0)+VLOOKUP(A52,'Stary Zapas Dane i Rotacja'!A:AA,26,0),"") -> 0.1032057332 | W52: =IFERROR(VLOOKUP(A52,'EPV Sklep Sport'!A:I,8,0),"") -> 0.02401961229 | X52: =IFERROR(VLOOKUP(D52,'[3]Shortage rate_Stores'!$B$115:$C$192,2,0),"") -> 0.09176641277 | Y52: =IFERROR(VLOOKUP(D52,'[3]Shortage rate_Stores'!$F$115:$G$189,2,0),"") -> 0.08585642689 | Z52: =IFERROR(VLOOKUP(A52,'zamówienia reczne Polska'!A:M,10,0),"") -> 0.2996921007 | AA52: =IFERROR(VLOOKUP(A52,'zamówienia reczne Polska'!A:M,13,0),"") -> 0.3382401537 | AB52: =IFERROR(VLOOKUP(A52,'Stary Zapas Dane i Rotacja'!A:N,9,0),"") -> 67816 | AC52: 31 | AD52: -6 | AE52: =IFERROR(VLOOKUP(D52,[4]LTD!$B$1:$C$65536,2,0),"") -> 2.529869602 | AF52: =IFERROR(VLOOKUP(D52,[4]LTD!$F$1:$G$65536,2,0),"") -> 1.906667903 | AG52: =IFERROR(VLOOKUP(D52,[4]LTD!$J$1:$K$65536,2,0),"") -> 2.025625229 | AH52: =IFERROR(VLOOKUP(D52,'[4]% delivery'!$B$1:$H$65536,2,0),"") -> 0 | AI52: =IFERROR(VLOOKUP(D52,'[4]% delivery'!$B$1:$H$65536,3,0),"") -> 0.6357378855 | AJ52: =IFERROR(VLOOKUP(D52,'[4]% delivery'!$B$1:$H$65536,4,0),"") -> 0.9865088106 | AK52: =IFERROR(VLOOKUP(D52,'[4]% delivery'!$B$1:$H$65536,5,0),"") -> 0.9977973568 | AL52: =IFERROR(VLOOKUP(D52,'[4]% delivery'!$B$1:$H$65536,7,0),"") -> 0.002202643172 | AM52: =IFERROR(VLOOKUP(D52,'[4]% delivery YTD'!$B$1:$H$65536,2,0),"") -> 0.002912140843 | AN52: =IFERROR(VLOOKUP(D52,'[4]% delivery YTD'!$B$1:$H$65536,3,0),"") -> 0.5417112252 | AO52: =IFERROR(VLOOKUP(D52,'[4]% delivery YTD'!$B$1:$H$65536,4,0),"") -> 0.8329562428 | AP52: =IFERROR(VLOOKUP(D52,'[4]% delivery YTD'!$B$1:$H$65536,5,0),"") -> 0.9404668263 | AQ52: =IFERROR(VLOOKUP(D52,'[4]% delivery YTD'!$B$1:$H$65536,6,0),"") -> 0.9839898539
A53: =C53&B53 -> 1900Result | B53: Result | C53: 1900 | D53: Inowroclaw | E53: =IFERROR(VLOOKUP(D53,'WYNIKI EKO SKLEPY'!C:H,2,0),"") -> 99985.12 | F53: =IFERROR(VLOOKUP(D53,'WYNIKI EKO SKLEPY'!J:O,2,),"") -> 5856840.33 | G53: =VLOOKUP(C53,[1]Produktywnosc!$B$6:$L$56,10,0) -> 454.1927455 | H53: =VLOOKUP(C53,[1]Produktywnosc!$B$6:$L$56,11,0) -> 439.4905654 | I53: 49 | J53: =VLOOKUP(C53,'Open voice'!K:S,6,0) -> 4.45 | K53: =VLOOKUP(C53,'Open voice'!A:I,6,0) -> 4.29 | L53: =IFERROR(VLOOKUP(D53,'WYNIKI EKO SKLEPY'!C:H,3,0),"") -> DIV/0 | M53: =IFERROR(VLOOKUP(D53,'WYNIKI EKO SKLEPY'!J:O,3,),"") -> DIV/0 | N53: =IFERROR(VLOOKUP(D53,'WYNIKI EKO SKLEPY'!C:H,6,0),"") -> DIV/0 | O53: =IFERROR(VLOOKUP(D53,'WYNIKI EKO SKLEPY'!J:O,6,),"") -> DIV/0 | P53: =IFERROR(VLOOKUP(D53,'WYNIKI EKO SKLEPY'!C:H,4,0),"") -> 0.2250382857 | Q53: =IFERROR(VLOOKUP(D53,'WYNIKI EKO SKLEPY'!J:O,4,),"") -> 0.2350065415 | R53: =IFERROR(VLOOKUP(D53,[2]Sheet1!$D$1:$L$65536,6,0),"") -> 99.998769 | S53: =IFERROR(VLOOKUP(D53,[2]Sheet1!$D$1:$L$65536,7,0),"") -> DIV/0 | T53: =IFERROR(VLOOKUP(D53,[2]Sheet1!$D$1:$L$65536,9,0),"") -> 2.314336751 | U53: =IFERROR(VLOOKUP(D53,[2]Sheet1!$D$1:$L$65536,5,0),"") -> DIV/0 | V53: =IFERROR(VLOOKUP(A53,'Stary Zapas Dane i Rotacja'!A:AA,22,0)+VLOOKUP(A53,'Stary Zapas Dane i Rotacja'!A:AA,26,0),"") -> 0.1467753484 | W53: =IFERROR(VLOOKUP(A53,'EPV Sklep Sport'!A:I,8,0),"") -> 0.03899801436 | X53: =IFERROR(VLOOKUP(D53,'[3]Shortage rate_Stores'!$B$115:$C$192,2,0),"") -> 0.07325473573 | Y53: =IFERROR(VLOOKUP(D53,'[3]Shortage rate_Stores'!$F$115:$G$189,2,0),"") -> 0.07275647741 | Z53: =IFERROR(VLOOKUP(A53,'zamówienia reczne Polska'!A:M,10,0),"") -> 0.2298645886 | AA53: =IFERROR(VLOOKUP(A53,'zamówienia reczne Polska'!A:M,13,0),"") -> 0.2701187184 | AB53: =IFERROR(VLOOKUP(A53,'Stary Zapas Dane i Rotacja'!A:N,9,0),"") -> 36314 | AC53: 50 | AD53: 1 | AE53: =IFERROR(VLOOKUP(D53,[4]LTD!$B$1:$C$65536,2,0),"") -> 2.751516161 | AF53: =IFERROR(VLOOKUP(D53,[4]LTD!$F$1:$G$65536,2,0),"") -> 2.215218077 | AG53: =IFERROR(VLOOKUP(D53,[4]LTD!$J$1:$K$65536,2,0),"") -> 2.66934407 | AH53: =IFERROR(VLOOKUP(D53,'[4]% delivery'!$B$1:$H$65536,2,0),"") -> 0.01765860039 | AI53: =IFERROR(VLOOKUP(D53,'[4]% delivery'!$B$1:$H$65536,3,0),"") -> 0.5559189012 | AJ53: =IFERROR(VLOOKUP(D53,'[4]% delivery'!$B$1:$H$65536,4,0),"") -> 0.9411379987 | AK53: =IFERROR(VLOOKUP(D53,'[4]% delivery'!$B$1:$H$65536,5,0),"") -> 0.9738391105 | AL53: =IFERROR(VLOOKUP(D53,'[4]% delivery'!$B$1:$H$65536,7,0),"") -> 0.02616088947 | AM53: =IFERROR(VLOOKUP(D53,'[4]% delivery YTD'!$B$1:$H$65536,2,0),"") -> 0.0199643543 | AN53: =IFERROR(VLOOKUP(D53,'[4]% delivery YTD'!$B$1:$H$65536,3,0),"") -> 0.455518866 | AO53: =IFERROR(VLOOKUP(D53,'[4]% delivery YTD'!$B$1:$H$65536,4,0),"") -> 0.8149186919 | AP53: =IFERROR(VLOOKUP(D53,'[4]% delivery YTD'!$B$1:$H$65536,5,0),"") -> 0.9367219774 | AQ53: =IFERROR(VLOOKUP(D53,'[4]% delivery YTD'!$B$1:$H$65536,6,0),"") -> 0.9616877824
A54: =C54&B54 -> 1901Result | B54: Result | C54: 1901 | D54: Lodz Manufaktura | E54: =IFERROR(VLOOKUP(D54,'WYNIKI EKO SKLEPY'!C:H,2,0),"") -> 128612.44 | F54: =IFERROR(VLOOKUP(D54,'WYNIKI EKO SKLEPY'!J:O,2,),"") -> 6759331.1 | G54: =VLOOKUP(C54,[1]Produktywnosc!$B$6:$L$56,10,0) -> 455.6286042 | H54: =VLOOKUP(C54,[1]Produktywnosc!$B$6:$L$56,11,0) -> 345.1087154 | I54: 48 | J54: =VLOOKUP(C54,'Open voice'!K:S,6,0) -> 3.58 | K54: =VLOOKUP(C54,'Open voice'!A:I,6,0) -> 4.07 | L54: =IFERROR(VLOOKUP(D54,'WYNIKI EKO SKLEPY'!C:H,3,0),"") -> DIV/0 | M54: =IFERROR(VLOOKUP(D54,'WYNIKI EKO SKLEPY'!J:O,3,),"") -> DIV/0 | N54: =IFERROR(VLOOKUP(D54,'WYNIKI EKO SKLEPY'!C:H,6,0),"") -> DIV/0 | O54: =IFERROR(VLOOKUP(D54,'WYNIKI EKO SKLEPY'!J:O,6,),"") -> DIV/0 | P54: =IFERROR(VLOOKUP(D54,'WYNIKI EKO SKLEPY'!C:H,4,0),"") -> 0.2621305528 | Q54: =IFERROR(VLOOKUP(D54,'WYNIKI EKO SKLEPY'!J:O,4,),"") -> 0.249889009 | R54: =IFERROR(VLOOKUP(D54,[2]Sheet1!$D$1:$L$65536,6,0),"") -> 79.98036103 | S54: =IFERROR(VLOOKUP(D54,[2]Sheet1!$D$1:$L$65536,7,0),"") -> DIV/0 | T54: =IFERROR(VLOOKUP(D54,[2]Sheet1!$D$1:$L$65536,9,0),"") -> 1.901240014 | U54: =IFERROR(VLOOKUP(D54,[2]Sheet1!$D$1:$L$65536,5,0),"") -> DIV/0 | V54: =IFERROR(VLOOKUP(A54,'Stary Zapas Dane i Rotacja'!A:AA,22,0)+VLOOKUP(A54,'Stary Zapas Dane i Rotacja'!A:AA,26,0),"") -> 0.1273213184 | W54: =IFERROR(VLOOKUP(A54,'EPV Sklep Sport'!A:I,8,0),"") -> 0.02807773854 | X54: =IFERROR(VLOOKUP(D54,'[3]Shortage rate_Stores'!$B$115:$C$192,2,0),"") -> 0.2216424059 | Y54: =IFERROR(VLOOKUP(D54,'[3]Shortage rate_Stores'!$F$115:$G$189,2,0),"") -> 0.08455891237 | Z54: =IFERROR(VLOOKUP(A54,'zamówienia reczne Polska'!A:M,10,0),"") -> 0.360130284 | AA54: =IFERROR(VLOOKUP(A54,'zamówienia reczne Polska'!A:M,13,0),"") -> 0.3820609395 | AB54: =IFERROR(VLOOKUP(A54,'Stary Zapas Dane i Rotacja'!A:N,9,0),"") -> 29186 | AC54: 51 | AD54: 3 | AE54: =IFERROR(VLOOKUP(D54,[4]LTD!$B$1:$C$65536,2,0),"") -> 1.417382415 | AF54: =IFERROR(VLOOKUP(D54,[4]LTD!$F$1:$G$65536,2,0),"") -> 1.153026698 | AG54: =IFERROR(VLOOKUP(D54,[4]LTD!$J$1:$K$65536,2,0),"") -> 1.563671227 | AH54: =IFERROR(VLOOKUP(D54,'[4]% delivery'!$B$1:$H$65536,2,0),"") -> 0.4941084053 | AI54: =IFERROR(VLOOKUP(D54,'[4]% delivery'!$B$1:$H$65536,3,0),"") -> 0.9450117832 | AJ54: =IFERROR(VLOOKUP(D54,'[4]% delivery'!$B$1:$H$65536,4,0),"") -> 0.9685781618 | AK54: =IFERROR(VLOOKUP(D54,'[4]% delivery'!$B$1:$H$65536,5,0),"") -> 0.9685781618 | AL54: =IFERROR(VLOOKUP(D54,'[4]% delivery'!$B$1:$H$65536,7,0),"") -> 0.03142183818 | AM54: =IFERROR(VLOOKUP(D54,'[4]% delivery YTD'!$B$1:$H$65536,2,0),"") -> 0.4534186798 | AN54: =IFERROR(VLOOKUP(D54,'[4]% delivery YTD'!$B$1:$H$65536,3,0),"") -> 0.8401724455 | AO54: =IFERROR(VLOOKUP(D54,'[4]% delivery YTD'!$B$1:$H$65536,4,0),"") -> 0.9565337399 | AP54: =IFERROR(VLOOKUP(D54,'[4]% delivery YTD'!$B$1:$H$65536,5,0),"") -> 0.9822428432 | AQ54: =IFERROR(VLOOKUP(D54,'[4]% delivery YTD'!$B$1:$H$65536,6,0),"") -> 0.9921532031
A55: 1903Result | B55: Result | C55: 1903 | D55: Lublin Weglin | E55: =IFERROR(VLOOKUP(D55,'WYNIKI EKO SKLEPY'!C:H,2,0),"") -> 245297.54 | F55: =IFERROR(VLOOKUP(D55,'WYNIKI EKO SKLEPY'!J:O,2,),"") -> 12969423.98 | G55: =VLOOKUP(C55,[1]Produktywnosc!$B$6:$L$56,10,0) -> 396.9870453 | H55: =VLOOKUP(C55,[1]Produktywnosc!$B$6:$L$56,11,0) -> 355.3030505 | I55: 43 | J55: =VLOOKUP(C55,'Open voice'!K:S,6,0) -> 4.32 | K55: =VLOOKUP(C55,'Open voice'!A:I,6,0) -> 4.31 | L55: =IFERROR(VLOOKUP(D55,'WYNIKI EKO SKLEPY'!C:H,3,0),"") -> DIV/0 | M55: =IFERROR(VLOOKUP(D55,'WYNIKI EKO SKLEPY'!J:O,3,),"") -> DIV/0 | N55: =IFERROR(VLOOKUP(D55,'WYNIKI EKO SKLEPY'!C:H,6,0),"") -> DIV/0 | O55: =IFERROR(VLOOKUP(D55,'WYNIKI EKO SKLEPY'!J:O,6,),"") -> DIV/0 | P55: =IFERROR(VLOOKUP(D55,'WYNIKI EKO SKLEPY'!C:H,4,0),"") -> 0.2409166843 | Q55: =IFERROR(VLOOKUP(D55,'WYNIKI EKO SKLEPY'!J:O,4,),"") -> 0.2399401535 | R55: =IFERROR(VLOOKUP(D55,[2]Sheet1!$D$1:$L$65536,6,0),"") -> 115.1065391 | S55: =IFERROR(VLOOKUP(D55,[2]Sheet1!$D$1:$L$65536,7,0),"") -> DIV/0 | T55: =IFERROR(VLOOKUP(D55,[2]Sheet1!$D$1:$L$65536,9,0),"") -> 2.73190406 | U55: =IFERROR(VLOOKUP(D55,[2]Sheet1!$D$1:$L$65536,5,0),"") -> DIV/0 | V55: =IFERROR(VLOOKUP(A55,'Stary Zapas Dane i Rotacja'!A:AA,22,0)+VLOOKUP(A55,'Stary Zapas Dane i Rotacja'!A:AA,26,0),"") -> 0.1155156126 | W55: =IFERROR(VLOOKUP(A55,'EPV Sklep Sport'!A:I,8,0),"") -> 0.03491989737 | X55: =IFERROR(VLOOKUP(D55,'[3]Shortage rate_Stores'!$B$115:$C$192,2,0),"") -> 0.114389942 | Y55: =IFERROR(VLOOKUP(D55,'[3]Shortage rate_Stores'!$F$115:$G$189,2,0),"") -> 0.06481226336 | Z55: =IFERROR(VLOOKUP(A55,'zamówienia reczne Polska'!A:M,10,0),"") -> 0.1633930524 | AA55: =IFERROR(VLOOKUP(A55,'zamówienia reczne Polska'!A:M,13,0),"") -> 0.3024453605 | AB55: =IFERROR(VLOOKUP(A55,'Stary Zapas Dane i Rotacja'!A:N,9,0),"") -> 80448 | AC55: 20 | AD55: -23 | AE55: =IFERROR(VLOOKUP(D55,[4]LTD!$B$1:$C$65536,2,0),"") -> 2.414487566 | AF55: =IFERROR(VLOOKUP(D55,[4]LTD!$F$1:$G$65536,2,0),"") -> 1.902145827 | AG55: =IFERROR(VLOOKUP(D55,[4]LTD!$J$1:$K$65536,2,0),"") -> 1.983025718 | AH55: =IFERROR(VLOOKUP(D55,'[4]% delivery'!$B$1:$H$65536,2,0),"") -> 0.03292317925 | AI55: =IFERROR(VLOOKUP(D55,'[4]% delivery'!$B$1:$H$65536,3,0),"") -> 0.6458264051 | AJ55: =IFERROR(VLOOKUP(D55,'[4]% delivery'!$B$1:$H$65536,4,0),"") -> 0.9750581975 | AK55: =IFERROR(VLOOKUP(D55,'[4]% delivery'!$B$1:$H$65536,5,0),"") -> 1 | AL55: =IFERROR(VLOOKUP(D55,'[4]% delivery'!$B$1:$H$65536,7,0),"") -> 0 | AM55: =IFERROR(VLOOKUP(D55,'[4]% delivery YTD'!$B$1:$H$65536,2,0),"") -> 0.008801140289 | AN55: =IFERROR(VLOOKUP(D55,'[4]% delivery YTD'!$B$1:$H$65536,3,0),"") -> 0.5892220265 | AO55: =IFERROR(VLOOKUP(D55,'[4]% delivery YTD'!$B$1:$H$65536,4,0),"") -> 0.8364195418 | AP55: =IFERROR(VLOOKUP(D55,'[4]% delivery YTD'!$B$1:$H$65536,5,0),"") -> 0.9213561474 | AQ55: =IFERROR(VLOOKUP(D55,'[4]% delivery YTD'!$B$1:$H$65536,6,0),"") -> 0.9494214526
A56: 1934Result | B56: Result | C56: 1934 | D56: OSTROLEKA | E56: =IFERROR(VLOOKUP(D56,'WYNIKI EKO SKLEPY'!C:H,2,0),"") -> 93028.53 | F56: =IFERROR(VLOOKUP(D56,'WYNIKI EKO SKLEPY'!J:O,2,),"") -> 4517762.47 | G56: =VLOOKUP(C56,[1]Produktywnosc!$B$6:$L$56,10,0) -> 594.7778491 | H56: =VLOOKUP(C56,[1]Produktywnosc!$B$6:$L$56,11,0) -> 512.0322753 | I56: 50 | J56: =VLOOKUP(C56,'Open voice'!K:S,6,0) -> 4.61 | K56: =VLOOKUP(C56,'Open voice'!A:I,6,0) -> 4.38 | L56: =IFERROR(VLOOKUP(D56,'WYNIKI EKO SKLEPY'!C:H,3,0),"") -> DIV/0 | M56: =IFERROR(VLOOKUP(D56,'WYNIKI EKO SKLEPY'!J:O,3,),"") -> DIV/0 | N56: =IFERROR(VLOOKUP(D56,'WYNIKI EKO SKLEPY'!C:H,6,0),"") -> DIV/0 | O56: =IFERROR(VLOOKUP(D56,'WYNIKI EKO SKLEPY'!J:O,6,),"") -> DIV/0 | P56: =IFERROR(VLOOKUP(D56,'WYNIKI EKO SKLEPY'!C:H,4,0),"") -> 0.2324525605 | Q56: =IFERROR(VLOOKUP(D56,'WYNIKI EKO SKLEPY'!J:O,4,),"") -> 0.2407072256 | R56: =IFERROR(VLOOKUP(D56,[2]Sheet1!$D$1:$L$65536,6,0),"") -> 90.88652832 | S56: =IFERROR(VLOOKUP(D56,[2]Sheet1!$D$1:$L$65536,7,0),"") -> DIV/0 | T56: =IFERROR(VLOOKUP(D56,[2]Sheet1!$D$1:$L$65536,9,0),"") -> 2.310978578 | U56: =IFERROR(VLOOKUP(D56,[2]Sheet1!$D$1:$L$65536,5,0),"") -> DIV/0 | V56: =IFERROR(VLOOKUP(A56,'Stary Zapas Dane i Rotacja'!A:AA,22,0)+VLOOKUP(A56,'Stary Zapas Dane i Rotacja'!A:AA,26,0),"") -> 0.1024169544 | W56: =IFERROR(VLOOKUP(A56,'EPV Sklep Sport'!A:I,8,0),"") -> 0.02276002623 | X56: =IFERROR(VLOOKUP(D56,'[3]Shortage rate_Stores'!$B$115:$C$192,2,0),"") -> 0.1220696938 | Y56: =IFERROR(VLOOKUP(D56,'[3]Shortage rate_Stores'!$F$115:$G$189,2,0),"") -> 0.06126494304 | Z56: =IFERROR(VLOOKUP(A56,'zamówienia reczne Polska'!A:M,10,0),"") -> 0.3532362365 | AA56: =IFERROR(VLOOKUP(A56,'zamówienia reczne Polska'!A:M,13,0),"") -> 0.2643494698 | AB56: =IFERROR(VLOOKUP(A56,'Stary Zapas Dane i Rotacja'!A:N,9,0),"") -> 41995 | AC56: 47 | AD56: -3 | AE56: =IFERROR(VLOOKUP(D56,[4]LTD!$B$1:$C$65536,2,0),"") -> 3.193711085 | AF56: =IFERROR(VLOOKUP(D56,[4]LTD!$F$1:$G$65536,2,0),"") -> 2.779311973 | AG56: =IFERROR(VLOOKUP(D56,[4]LTD!$J$1:$K$65536,2,0),"") -> 2.675310118 | AH56: =IFERROR(VLOOKUP(D56,'[4]% delivery'!$B$1:$H$65536,2,0),"") -> 0 | AI56: =IFERROR(VLOOKUP(D56,'[4]% delivery'!$B$1:$H$65536,3,0),"") -> 0.3931398417 | AJ56: =IFERROR(VLOOKUP(D56,'[4]% delivery'!$B$1:$H$65536,4,0),"") -> 0.639182058 | AK56: =IFERROR(VLOOKUP(D56,'[4]% delivery'!$B$1:$H$65536,5,0),"") -> 0.9327176781 | AL56: =IFERROR(VLOOKUP(D56,'[4]% delivery'!$B$1:$H$65536,7,0),"") -> 0 | AM56: =IFERROR(VLOOKUP(D56,'[4]% delivery YTD'!$B$1:$H$65536,2,0),"") -> 0.006460999343 | AN56: =IFERROR(VLOOKUP(D56,'[4]% delivery YTD'!$B$1:$H$65536,3,0),"") -> 0.2526203811 | AO56: =IFERROR(VLOOKUP(D56,'[4]% delivery YTD'!$B$1:$H$65536,4,0),"") -> 0.5655642815 | AP56: =IFERROR(VLOOKUP(D56,'[4]% delivery YTD'!$B$1:$H$65536,5,0),"") -> 0.8162447983 | AQ56: =IFERROR(VLOOKUP(D56,'[4]% delivery YTD'!$B$1:$H$65536,6,0),"") -> 0.943994243
A57: =C57&B57 -> 1952Result | B57: Result | C57: 1952 | D57: GNIEZNO | E57: =IFERROR(VLOOKUP(D57,'WYNIKI EKO SKLEPY'!C:H,2,0),"") -> 146829.55 | F57: =IFERROR(VLOOKUP(D57,'WYNIKI EKO SKLEPY'!J:O,2,),"") -> 946401.57 | G57: =VLOOKUP(C57,[1]Produktywnosc!$B$6:$L$56,10,0) ->  | H57: =VLOOKUP(C57,[1]Produktywnosc!$B$6:$L$56,11,0) ->  | I57: 51 | J57: =VLOOKUP(C57,'Open voice'!K:S,6,0) -> 4.51 | K57: =VLOOKUP(C57,'Open voice'!A:I,6,0) -> 4.59 | L57: =IFERROR(VLOOKUP(D57,'WYNIKI EKO SKLEPY'!C:H,3,0),"") -> DIV/0 | M57: =IFERROR(VLOOKUP(D57,'WYNIKI EKO SKLEPY'!J:O,3,),"") -> DIV/0 | N57: =IFERROR(VLOOKUP(D57,'WYNIKI EKO SKLEPY'!C:H,6,0),"") -> DIV/0 | O57: =IFERROR(VLOOKUP(D57,'WYNIKI EKO SKLEPY'!J:O,6,),"") -> DIV/0 | P57: =IFERROR(VLOOKUP(D57,'WYNIKI EKO SKLEPY'!C:H,4,0),"") -> 0.2502605232 | Q57: =IFERROR(VLOOKUP(D57,'WYNIKI EKO SKLEPY'!J:O,4,),"") -> 0.2478132512 | R57: =IFERROR(VLOOKUP(D57,[2]Sheet1!$D$1:$L$65536,6,0),"") -> 88.16493394 | S57: =IFERROR(VLOOKUP(D57,[2]Sheet1!$D$1:$L$65536,7,0),"") -> DIV/0 | T57: =IFERROR(VLOOKUP(D57,[2]Sheet1!$D$1:$L$65536,9,0),"") -> 2.396765924 | U57: =IFERROR(VLOOKUP(D57,[2]Sheet1!$D$1:$L$65536,5,0),"") -> DIV/0 | V57: =IFERROR(VLOOKUP(A57,'Stary Zapas Dane i Rotacja'!A:AA,22,0)+VLOOKUP(A57,'Stary Zapas Dane i Rotacja'!A:AA,26,0),"") -> 0.02602408485 | W57: =IFERROR(VLOOKUP(A57,'EPV Sklep Sport'!A:I,8,0),"") -> 0.005208980165 | X57: =IFERROR(VLOOKUP(D57,'[3]Shortage rate_Stores'!$B$115:$C$192,2,0),"") -> 0.07744531054 | Y57: =IFERROR(VLOOKUP(D57,'[3]Shortage rate_Stores'!$F$115:$G$189,2,0),"") -> 0.08593650063 | Z57: =IFERROR(VLOOKUP(A57,'zamówienia reczne Polska'!A:M,10,0),"") -> 0.5109949208 | AA57: =IFERROR(VLOOKUP(A57,'zamówienia reczne Polska'!A:M,13,0),"") -> 0.3816776976 | AB57: =IFERROR(VLOOKUP(A57,'Stary Zapas Dane i Rotacja'!A:N,9,0),"") -> 41769 | AC57: 48 | AD57: -3 | AE57: =IFERROR(VLOOKUP(D57,[4]LTD!$B$1:$C$65536,2,0),"") ->  | AF57: =IFERROR(VLOOKUP(D57,[4]LTD!$F$1:$G$65536,2,0),"") -> 2.240541168 | AG57: =IFERROR(VLOOKUP(D57,[4]LTD!$J$1:$K$65536,2,0),"") -> 2.176951089 | AH57: =IFERROR(VLOOKUP(D57,'[4]% delivery'!$B$1:$H$65536,2,0),"") -> 0.02275894101 | AI57: =IFERROR(VLOOKUP(D57,'[4]% delivery'!$B$1:$H$65536,3,0),"") -> 0.5020901068 | AJ57: =IFERROR(VLOOKUP(D57,'[4]% delivery'!$B$1:$H$65536,4,0),"") -> 0.9275429633 | AK57: =IFERROR(VLOOKUP(D57,'[4]% delivery'!$B$1:$H$65536,5,0),"") -> 0.9962842545 | AL57: =IFERROR(VLOOKUP(D57,'[4]% delivery'!$B$1:$H$65536,7,0),"") -> 0.0004644681839 | AM57: =IFERROR(VLOOKUP(D57,'[4]% delivery YTD'!$B$1:$H$65536,2,0),"") -> 0.08978316228 | AN57: =IFERROR(VLOOKUP(D57,'[4]% delivery YTD'!$B$1:$H$65536,3,0),"") -> 0.4155413226 | AO57: =IFERROR(VLOOKUP(D57,'[4]% delivery YTD'!$B$1:$H$65536,4,0),"") -> 0.698240605 | AP57: =IFERROR(VLOOKUP(D57,'[4]% delivery YTD'!$B$1:$H$65536,5,0),"") -> 0.8388378733 | AQ57: =IFERROR(VLOOKUP(D57,'[4]% delivery YTD'!$B$1:$H$65536,6,0),"") -> 0.9185122309
AB71: result | AC71: =X71&AB71 -> result
AB72: result | AC72: =X72&AB72 -> result
AB73: result | AC73: result
AB74: result | AC74: result
AB75: result | AC75: result
AB76: result | AC76: result
AB77: result | AC77: result
AB78: result | AC78: result
AB79: result | AC79: result
AB80: result | AC80: result
AB81: result | AC81: result
AB82: result | AC82: result
AB83: result | AC83: result
AB84: result | AC84: result
AB85: result | AC85: result
AB86: result | AC86: result
AB87: result | AC87: result
AB88: result | AC88: result
AB89: result | AC89: result
AB90: result | AC90: result
AB91: result | AC91: result
AB92: result | AC92: result
AB93: result | AC93: result
AB94: result | AC94: result
AB95: result | AC95: result
AB96: result | AC96: result
AB97: result | AC97: result
AB98: result | AC98: result
AB99: result | AC99: result
AB100: result | AC100: result
AB101: result | AC101: result
AB102: result | AC102: result
AB103: result | AC103: result
AB104: result | AC104: result
AB105: result | AC105: result
AB106: result | AC106: result
AB107: result | AC107: result
AB108: result | AC108: result
AB109: result | AC109: result
AB110: result | AC110: result
AB111: result | AC111: result
AB112: result | AC112: result
AB113: result | AC113: result
AB114: result | AC114: result
AB115: result | AC115: result
AB116: result | AC116: result
AB117: result | AC117: result
AB118: result | AC118: result
AB119: result | AC119: result
AB120: result | AC120: result

Sheet Wykresy Zapas
A1: Końce serii Cały sklep
X4: E8
X5: Produkt tylko w sklepach
X7: E7
X8: Produkt dostępny w CAR
X10: E3
X11: Produkt dostępny CAC i CAR
A30: Końce serii na sport | I30: Filtruj twój sport !!! | M30: Dla cały sklep wybieraj "Result"
X32: E8
X33: Produkt tylko w sklepach
X35: E7
X36: Produkt dostępny w CAR
X38: E3
X39: Produkt dostępny CAC i CAR
A58: Zamówienie ręcznie i na klienta ostatnie 4 tygodnie
Y62: % zam. Na klient
Y65: % zam. Ręcznie
A86: Zamówienie ręcznie i na klienta na sport ostatnie 4 tygodnie | K86: Filtruj twój sport !!! | O86: Dla cały sklep wybieraj "Result"
Y90: % zam. Na klient
Y93: % zam. Ręcznie
A113: EPV Sklep + Central YTD
X116: EPV Sklep
X117: To udział obniżka cen lokalny
X118: w obrocie sklepu
X121: EPV Central
X122: To udział obniżka cen centralny
X123: w obrocie sklepu
A142: EPV Sklep + Central YTD => Szczegóły na sport | J142: Filtruj twój sport !!! | N142: Dla cały sklep wybieraj "Result"
X145: EPV Sklep
X146: To udział obniżka cen lokalny
X147: w obrocie sklepu
X150: EPV Central
X151: To udział obniżka cen centralny
X152: w obrocie sklepu
A171: Dostępność OPEN VOICE M-1
A200: Ranking obrót vs ranking ilości zapasu sklepu
X205: Potentialny braki
X211: Potentialny nadstock

Sheet Open voice
C1: YTD | D1: % zadowolony | E1: Wybór produktów | F1: Dostępność produktów | G1: Miła obsługa | H1: Atrakcyjny ceny | I1: Easy to find products | M1: September | N1: % zadowolony | O1: Wybór produktów | P1: Dostępność produktów | Q1: Miła obsługa | R1: Atrakcyjny ceny | S1: Easy to find products
C2: TOTAL | D2: 91.85 | E2: 4.3 | F2: 4.26 | G2: 4.62 | H2: 4.35 | I2: 4.53 | M2: TOTAL | N2: 93.25 | O2: 4.33 | P2: 4.31 | Q2: 4.67 | R2: 4.39 | S2: 4.58
A3: =VALUE(B3) -> 272 | B3: =LEFT(C3,8) -> 272 | C3: 272 - Warszawa Targowek | D3: 88.28 | E3: 4.34 | F3: 4.26 | G3: 4.52 | H3: 4.28 | I3: 4.47 | K3: =VALUE(L3) -> 380 | L3: =LEFT(M3,8) -> 380 | M3: 380 - Krakow Zakopianska | N3: 93.06 | O3: 4.32 | P3: 4.3 | Q3: 4.67 | R3: 4.38 | S3: 4.52
A4: =VALUE(B4) -> 380 | B4: =LEFT(C4,8) -> 380 | C4: 380 - Krakow Zakopianska | D4: 91.65 | E4: 4.33 | F4: 4.28 | G4: 4.56 | H4: 4.34 | I4: 4.46 | K4: =VALUE(L4) -> 272 | L4: =LEFT(M4,8) -> 272 | M4: 272 - Warszawa Targowek | N4: 93.13 | O4: 4.34 | P4: 4.31 | Q4: 4.57 | R4: 4.32 | S4: 4.57
A5: 695 | B5: 695 | C5: 695 - Franowo | D5: 93.38 | E5: 4.33 | F5: 4.29 | G5: 4.66 | H5: 4.36 | I5: 4.51 | K5: 695 | L5: 695 | M5: 695 - Franowo | N5: 98.04 | O5: 4.42 | P5: 4.43 | Q5: 4.66 | R5: 4.36 | S5: 4.52
A6: 376 | B6: 376 | C6: 376 - Wroclaw Bielany | D6: 92.69 | E6: 4.33 | F6: 4.24 | G6: 4.64 | H6: 4.32 | I6: 4.53 | K6: 831 | L6: 831 | M6: 831 - Katowice | N6: 94.9 | O6: 4.45 | P6: 4.45 | Q6: 4.63 | R6: 4.54 | S6: 4.62
A7: 568 | B7: 568 | C7: 568 - Bielsko - Biala | D7: 91.52 | E7: 4.28 | F7: 4.27 | G7: 4.58 | H7: 4.28 | I7: 4.51 | K7: 1889 | L7: 1889 | M7: 1889 - Ostrobramska | N7: 91.75 | O7: 4.22 | P7: 4.18 | Q7: 4.67 | R7: 4.28 | S7: 4.58
A8: 1889 | B8: 1889 | C8: 1889 - Ostrobramska | D8: 89.73 | E8: 4.13 | F8: 4.06 | G8: 4.64 | H8: 4.29 | I8: 4.5 | K8: 376 | L8: 376 | M8: 376 - Wroclaw Bielany | N8: 92.71 | O8: 4.27 | P8: 4.14 | Q8: 4.59 | R8: 4.31 | S8: 4.46
A9: 445 | B9: 445 | C9: 445 - Sosnowiec | D9: 91.59 | E9: 4.32 | F9: 4.3 | G9: 4.55 | H9: 4.3 | I9: 4.51 | K9: 445 | L9: 445 | M9: 445 - Sosnowiec | N9: 94.19 | O9: 4.35 | P9: 4.28 | Q9: 4.56 | R9: 4.33 | S9: 4.64
A10: 576 | B10: 576 | C10: 576 - Warszawa Piaseczno | D10: 90.63 | E10: 4.22 | F10: 4.18 | G10: 4.5 | H10: 4.2 | I10: 4.49 | K10: 1952 | L10: 1952 | M10: 1952 - GNIEZNO | N10: 91.76 | O10: 4.41 | P10: 4.51 | Q10: 4.73 | R10: 4.63 | S10: 4.65
A11: 831 | B11: 831 | C11: 831 - Katowice | D11: 92.66 | E11: 4.38 | F11: 4.33 | G11: 4.61 | H11: 4.37 | I11: 4.55 | K11: 576 | L11: 576 | M11: 576 - Warszawa Piaseczno | N11: 92.77 | O11: 4.29 | P11: 4.28 | Q11: 4.58 | R11: 4.25 | S11: 4.57
A12: 872 | B12: 872 | C12: 872 - Wroclaw Magnolia | D12: 93.13 | E12: 4.31 | F12: 4.3 | G12: 4.71 | H12: 4.4 | I12: 4.53 | K12: 809 | L12: 809 | M12: 809 - Bialystok | N12: 98.72 | O12: 4.49 | P12: 4.44 | Q12: 4.72 | R12: 4.49 | S12: 4.66
A13: 512 | B13: 512 | C13: 512 - Krakow Plaza | D13: 89.53 | E13: 4.24 | F13: 4.16 | G13: 4.57 | H13: 4.33 | I13: 4.38 | K13: 453 | L13: 453 | M13: 453 - Lublin Czechow | N13: 93.42 | O13: 4.5 | P13: 4.44 | Q13: 4.74 | R13: 4.47 | S13: 4.66
A14: 339 | B14: 339 | C14: 339 - Warszawa Reduta | D14: 89.36 | E14: 4.22 | F14: 4.21 | G14: 4.6 | H14: 4.29 | I14: 4.44 | K14: 512 | L14: 512 | M14: 512 - Krakow Plaza | N14: 93.33 | O14: 4.19 | P14: 4.21 | Q14: 4.67 | R14: 4.36 | S14: 4.45
A15: 809 | B15: 809 | C15: 809 - Bialystok | D15: 93.16 | E15: 4.37 | F15: 4.32 | G15: 4.68 | H15: 4.36 | I15: 4.61 | K15: 339 | L15: 339 | M15: 339 - Warszawa Reduta | N15: 94.67 | O15: 4.26 | P15: 4.42 | Q15: 4.78 | R15: 4.21 | S15: 4.62
A16: 1149 | B16: 1149 | C16: 1149 - Warszawa Bemowo | D16: 90.35 | E16: 4.26 | F16: 4.21 | G16: 4.61 | H16: 4.35 | I16: 4.52 | K16: 511 | L16: 511 | M16: 511 - Opole | N16: 91.78 | O16: 4.22 | P16: 4.14 | Q16: 4.66 | R16: 4.36 | S16: 4.38
A17: 453 | B17: 453 | C17: 453 - Lublin Czechow | D17: 92.78 | E17: 4.36 | F17: 4.38 | G17: 4.67 | H17: 4.37 | I17: 4.59 | K17: 568 | L17: 568 | M17: 568 - Bielsko - Biala | N17: 93.06 | O17: 4.19 | P17: 4.26 | Q17: 4.48 | R17: 4.18 | S17: 4.54
A18: 663 | B18: 663 | C18: 663 - Wroclaw Korona | D18: 92.43 | E18: 4.3 | F18: 4.31 | G18: 4.61 | H18: 4.34 | I18: 4.52 | K18: 663 | L18: 663 | M18: 663 - Wroclaw Korona | N18: 90.14 | O18: 4.43 | P18: 4.28 | Q18: 4.72 | R18: 4.35 | S18: 4.58
A19: 808 | B19: 808 | C19: 808 - Mikolow | D19: 93.18 | E19: 4.37 | F19: 4.35 | G19: 4.65 | H19: 4.4 | I19: 4.57 | K19: 527 | L19: 527 | M19: 527 - Poznan Swadzim | N19: 89.86 | O19: 4.31 | P19: 4.22 | Q19: 4.54 | R19: 4.2 | S19: 4.52
A20: 643 | B20: 643 | C20: 643 - Gdansk Przymorze | D20: 93.72 | E20: 4.28 | F20: 4.34 | G20: 4.64 | H20: 4.32 | I20: 4.55 | K20: 651 | L20: 651 | M20: 651 - Gdansk Kartuska | N20: 95.65 | O20: 4.4 | P20: 4.38 | Q20: 4.7 | R20: 4.43 | S20: 4.57
A21: 527 | B21: 527 | C21: 527 - Poznan Swadzim | D21: 92.76 | E21: 4.35 | F21: 4.25 | G21: 4.58 | H21: 4.27 | I21: 4.47 | K21: 1149 | L21: 1149 | M21: 1149 - Warszawa Bemowo | N21: 91.18 | O21: 4.18 | P21: 4.25 | Q21: 4.53 | R21: 4.41 | S21: 4.44
A22: 511 | B22: 511 | C22: 511 - Opole | D22: 91.07 | E22: 4.29 | F22: 4.26 | G22: 4.64 | H22: 4.4 | I22: 4.52 | K22: 808 | L22: 808 | M22: 808 - Mikolow | N22: 97.01 | O22: 4.44 | P22: 4.48 | Q22: 4.73 | R22: 4.52 | S22: 4.68
A23: 651 | B23: 651 | C23: 651 - Gdansk Kartuska | D23: 92.05 | E23: 4.33 | F23: 4.28 | G23: 4.66 | H23: 4.33 | I23: 4.54 | K23: 571 | L23: 571 | M23: 571 - Warszawa Okecie | N23: 92.42 | O23: 4.19 | P23: 4.14 | Q23: 4.57 | R23: 4.21 | S23: 4.46
A24: 729 | B24: 729 | C24: 729 - Rumia | D24: 90.74 | E24: 4.31 | F24: 4.18 | G24: 4.65 | H24: 4.35 | I24: 4.56 | K24: 872 | L24: 872 | M24: 872 - Wroclaw Magnolia | N24: 89.39 | O24: 4.32 | P24: 4.21 | Q24: 4.63 | R24: 4.44 | S24: 4.44
A25: 571 | B25: 571 | C25: 571 - Warszawa Okecie | D25: 93.76 | E25: 4.26 | F25: 4.22 | G25: 4.61 | H25: 4.28 | I25: 4.56 | K25: 654 | L25: 654 | M25: 654 - Bydgoszcz Fordon | N25: 88.89 | O25: 4.27 | P25: 4.25 | Q25: 4.57 | R25: 4.25 | S25: 4.52
A26: 654 | B26: 654 | C26: 654 - Bydgoszcz Fordon | D26: 90.34 | E26: 4.29 | F26: 4.23 | G26: 4.56 | H26: 4.28 | I26: 4.49 | K26: 729 | L26: 729 | M26: 729 - Rumia | N26: 93.22 | O26: 4.45 | P26: 4.27 | Q26: 4.72 | R26: 4.39 | S26: 4.57
A27: 802 | B27: 802 | C27: 802 - Szczecin Ustowo | D27: 93.79 | E27: 4.36 | F27: 4.33 | G27: 4.73 | H27: 4.4 | I27: 4.65 | K27: 643 | L27: 643 | M27: 643 - Gdansk Przymorze | N27: 98.28 | O27: 4.2 | P27: 4.29 | Q27: 4.82 | R27: 4.26 | S27: 4.66
A28: 642 | B28: 642 | C28: 642 - Lodz | D28: 93.74 | E28: 4.34 | F28: 4.28 | G28: 4.6 | H28: 4.36 | I28: 4.53 | K28: 569 | L28: 569 | M28: 569 - Legnica | N28: 87.04 | O28: 4.27 | P28: 4.35 | Q28: 4.7 | R28: 4.37 | S28: 4.54
A29: 1899 | B29: 1899 | C29: 1899 - Zielona Gora | D29: 90.22 | E29: 4.21 | F29: 4.17 | G29: 4.55 | H29: 4.36 | I29: 4.51 | K29: 642 | L29: 642 | M29: 642 - Lodz | N29: 100 | O29: 4.45 | P29: 4.41 | Q29: 4.58 | R29: 4.57 | S29: 4.64
A30: 480 | B30: 480 | C30: 480 - Gliwice | D30: 90.71 | E30: 4.33 | F30: 4.25 | G30: 4.54 | H30: 4.31 | I30: 4.53 | K30: 480 | L30: 480 | M30: 480 - Gliwice | N30: 88.46 | O30: 4.27 | P30: 4.29 | Q30: 4.55 | R30: 4.19 | S30: 4.57
A31: 830 | B31: 830 | C31: 830 - Poznan Komorniki | D31: 93.92 | E31: 4.35 | F31: 4.31 | G31: 4.71 | H31: 4.41 | I31: 4.61 | K31: 830 | L31: 830 | M31: 830 - Poznan Komorniki | N31: 89.58 | O31: 4.31 | P31: 4.31 | Q31: 4.82 | R31: 4.59 | S31: 4.66
A32: 698 | B32: 698 | C32: 698 - Walbrzych (Szczawno # Zdroj) | D32: 92.91 | E32: 4.25 | F32: 4.19 | G32: 4.62 | H32: 4.32 | I32: 4.53 | K32: 869 | L32: 869 | M32: 869 - Kielce | N32: 91.3 | O32: 4.27 | P32: 4.24 | Q32: 4.8 | R32: 4.4 | S32: 4.51
A33: 569 | B33: 569 | C33: 569 - Legnica | D33: 89.7 | E33: 4.3 | F33: 4.31 | G33: 4.67 | H33: 4.39 | I33: 4.56 | K33: 802 | L33: 802 | M33: 802 - Szczecin Ustowo | N33: 93.48 | O33: 4.33 | P33: 4.17 | Q33: 4.81 | R33: 4.55 | S33: 4.66
A34: 1531 | B34: 1531 | C34: 1531 - Tarnow | D34: 96.94 | E34: 4.59 | F34: 4.55 | G34: 4.86 | H34: 4.65 | I34: 4.81 | K34: 566 | L34: 566 | M34: 566 - Zory | N34: 95.56 | O34: 4.41 | P34: 4.39 | Q34: 4.79 | R34: 4.5 | S34: 4.75
A35: 869 | B35: 869 | C35: 869 - Kielce | D35: 91.19 | E35: 4.21 | F35: 4.23 | G35: 4.61 | H35: 4.3 | I35: 4.51 | K35: 832 | L35: 832 | M35: 832 - Szczecin Struga | N35: 88.37 | O35: 4.23 | P35: 4.29 | Q35: 4.63 | R35: 4.28 | S35: 4.42
A36: 936 | B36: 936 | C36: 936 - Bytom | D36: 95.29 | E36: 4.34 | F36: 4.29 | G36: 4.7 | H36: 4.42 | I36: 4.62 | K36: 1899 | L36: 1899 | M36: 1899 - Zielona Gora | N36: 87.5 | O36: 4.22 | P36: 4.08 | Q36: 4.62 | R36: 4.36 | S36: 4.67
A37: 832 | B37: 832 | C37: 832 - Szczecin Struga | D37: 89.71 | E37: 4.3 | F37: 4.25 | G37: 4.58 | H37: 4.36 | I37: 4.49 | K37: 1531 | L37: 1531 | M37: 1531 - Tarnow | N37: 97.3 | O37: 4.58 | P37: 4.6 | Q37: 4.91 | R37: 4.63 | S37: 4.86
A38: 566 | B38: 566 | C38: 566 - Zory | D38: 94.82 | E38: 4.35 | F38: 4.36 | G38: 4.76 | H38: 4.39 | I38: 4.7 | K38: 868 | L38: 868 | M38: 868 - Radom | N38: 94.59 | O38: 4.26 | P38: 4.17 | Q38: 4.84 | R38: 4.42 | S38: 4.56
A39: 937 | B39: 937 | C39: 937 - Torun | D39: 88.71 | E39: 4.03 | F39: 4.09 | G39: 4.47 | H39: 4.22 | I39: 4.34 | K39: 936 | L39: 936 | M39: 936 - Bytom | N39: 97.3 | O39: 4.36 | P39: 4.38 | Q39: 4.86 | R39: 4.53 | S39: 4.58
A40: 1064 | B40: 1064 | C40: 1064 - Koszalin | D40: 94.46 | E40: 4.48 | F40: 4.48 | G40: 4.71 | H40: 4.53 | I40: 4.69 | K40: 698 | L40: 698 | M40: 698 - Walbrzych (Szczawno # Zdroj) | N40: 97.3 | O40: 4.3 | P40: 4.27 | Q40: 4.81 | R40: 4.5 | S40: 4.63
A41: 1903 | B41: 1903 | C41: 1903 - Lublin Weglin | D41: 94.77 | E41: 4.28 | F41: 4.31 | G41: 4.68 | H41: 4.36 | I41: 4.6 | K41: 1903 | L41: 1903 | M41: 1903 - Lublin Weglin | N41: 97.22 | O41: 4.43 | P41: 4.32 | Q41: 4.75 | R41: 4.5 | S41: 4.78
A42: 868 | B42: 868 | C42: 868 - Radom | D42: 91.46 | E42: 4.26 | F42: 4.21 | G42: 4.65 | H42: 4.35 | I42: 4.53 | K42: 570 | L42: 570 | M42: 570 - Czestochowa | N42: 91.18 | O42: 4.25 | P42: 4.27 | Q42: 4.75 | R42: 4.45 | S42: 4.69
A43: 653 | B43: 653 | C43: 653 - Slupsk | D43: 91.69 | E43: 4.32 | F43: 4.23 | G43: 4.65 | H43: 4.47 | I43: 4.52 | K43: 1155 | L43: 1155 | M43: 1155 - Rzeszow | N43: 100 | O43: 4.74 | P43: 4.75 | Q43: 4.74 | R43: 4.68 | S43: 4.83
A44: 829 | B44: 829 | C44: 829 - Plock | D44: 92.36 | E44: 4.25 | F44: 4.2 | G44: 4.6 | H44: 4.36 | I44: 4.51 | K44: 937 | L44: 937 | M44: 937 - Torun | N44: 90.91 | O44: 3.91 | P44: 3.91 | Q44: 4.42 | R44: 4.19 | S44: 4.3
A45: 570 | B45: 570 | C45: 570 - Czestochowa | D45: 91.78 | E45: 4.23 | F45: 4.19 | G45: 4.62 | H45: 4.35 | I45: 4.57 | K45: 1152 | L45: 1152 | M45: 1152 - Katowice Dabrowka | N45: 79.31 | O45: 3.88 | P45: 4.04 | Q45: 4.64 | R45: 4.39 | S45: 4.54
A46: 697 | B46: 697 | C46: 697 - Kalisz | D46: 90.44 | E46: 4.29 | F46: 4.2 | G46: 4.58 | H46: 4.34 | I46: 4.54 | K46: 829 | L46: 829 | M46: 829 - Plock | N46: 92.86 | O46: 4.12 | P46: 4.15 | Q46: 4.7 | R46: 4.27 | S46: 4.56
A47: 1155 | B47: 1155 | C47: 1155 - Rzeszow | D47: 94.74 | E47: 4.44 | F47: 4.32 | G47: 4.7 | H47: 4.46 | I47: 4.65 | K47: 1064 | L47: 1064 | M47: 1064 - Koszalin | N47: 100 | O47: 4.64 | P47: 4.58 | Q47: 4.88 | R47: 4.75 | S47: 4.84
A48: 1152 | B48: 1152 | C48: 1152 - Katowice Dabrowka | D48: 91.8 | E48: 4.1 | F48: 4.13 | G48: 4.7 | H48: 4.37 | I48: 4.5 | K48: 1153 | L48: 1153 | M48: 1153 - Rybnik | N48: 95.65 | O48: 4.52 | P48: 4.52 | Q48: 4.71 | R48: 4.52 | S48: 4.64
A49: 1901 | B49: 1901 | C49: 1901 - Lodz Manufaktura | D49: 83.25 | E49: 4.02 | F49: 4.07 | G49: 4.52 | H49: 4.35 | I49: 4.37 | K49: 697 | L49: 697 | M49: 697 - Kalisz | N49: 95.65 | O49: 4.05 | P49: 4.17 | Q49: 4.39 | R49: 4.25 | S49: 4.48
A50: 1153 | B50: 1153 | C50: 1153 - Rybnik | D50: 94.87 | E50: 4.26 | F50: 4.3 | G50: 4.69 | H50: 4.44 | I50: 4.6 | K50: 653 | L50: 653 | M50: 653 - Slupsk | N50: 100 | O50: 4.47 | P50: 4.5 | Q50: 4.85 | R50: 4.48 | S50: 4.85
A51: =VALUE(B51) -> 1900 | B51: =LEFT(C51,8) -> 1900 | C51: 1900 - Inowroclaw | D51: 93.26 | E51: 4.31 | F51: 4.29 | G51: 4.62 | H51: 4.52 | I51: 4.57 | K51: =VALUE(L51) -> 1934 | L51: =LEFT(M51,8) -> 1934 | M51: 1934 - OSTROLEKA | N51: 88.89 | O51: 4.67 | P51: 4.61 | Q51: 4.71 | R51: 4.72 | S51: 4.72
A52: 1934 | B52: 1934 | C52: 1934 - OSTROLEKA | D52: 91.61 | E52: 4.27 | F52: 4.38 | G52: 4.76 | H52: 4.52 | I52: 4.7 | K52: 1901 | L52: 1901 | M52: 1901 - Lodz Manufaktura | N52: 76.92 | O52: 3.67 | P52: 3.58 | Q52: 4.33 | R52: 3.83 | S52: 4
A53: =VALUE(B53) -> 1952 | B53: =LEFT(C53,8) -> 1952 | C53: 1952 - GNIEZNO | D53: 93.52 | E53: 4.5 | F53: 4.59 | G53: 4.78 | H53: 4.7 | I53: 4.72 | K53: =VALUE(L53) -> 1900 | L53: =LEFT(M53,8) -> 1900 | M53: 1900 - Inowroclaw | N53: 100 | O53: 4.5 | P53: 4.45 | Q53: 4.83 | R53: 4.6 | S53: 4.8

Sheet WYNIKI EKO SPORTS
A1: PROGRESJA T-1 z @ | B1: -- KLIK -- | E1: Progresja to tylko sklepy otwarty więcej niż 24 mce
A2: WZROST T-1 z @ | B2: -- KLIK -- | E2: Wrzost to razem z sklepami otwarty mniej niż 24 mce | J2: MENU
A3: PROGRESJA YTD z @ | B3: -- KLIK --
A4: WZROST YTD z @ | B4: -- KLIK --
A5: PROGRESJA T-1 bez @ | B5: -- KLIK --
A6: PROGRESJA OPR bez @ | B6: -- KLIK --
A9: PROGRESJA T-1 z @
A10: Secteur (Sales) | B10: Obrót | C10: Marża % | D10: Wrzost obrotu | E10: Wzrost ilości | F10: Udział w obrocie | G10: Udział w ilościach | H10: Marża % 2017r. | I10: Ilości sprzedany
A11: Hiking univ | B11: 4914426.06 | C11: 0.2442095771 | D11: 0.151776352 | E11: 0.1508588395 | F11: 0.1829284608 | G11: 0.1248470399 | H11: 0.2509117509 | I11: 82947
A12: Football univ | B12: 2735978.92 | C12: 0.2390795102 | D12: 0.1355030604 | E12: 0.1883203318 | F12: 0.1018406639 | G12: 0.1155573015 | H12: 0.2429447146 | I12: 76775
A13: Gym, Pilates univ | B13: 2267439.38 | C13: 0.2531825437 | D13: -0.04065922668 | E13: -0.08659641339 | F13: 0.08440033297 | G13: 0.1115445921 | H13: 0.2658672891 | I13: 74109
A14: Trekking several days univ | B14: 2107641.95 | C14: 0.2540729653 | D14: 0.1109092107 | E14: 0.2240721912 | F14: 0.07845223292 | G14: 0.04348807702 | H14: 0.2646279179 | I14: 28893
A15: Swimming univ | B15: 1635828.58 | C15: 0.313377744 | D15: 0.0265528911 | E15: 0.02060571036 | F15: 0.06089004101 | G15: 0.085061613 | H15: 0.31930388 | I15: 56514
A16: Jogging Univ | B16: 1486661.14 | C16: 0.246335066 | D16: 0.1721442736 | E16: 0.2402409031 | F16: 0.05533761843 | G16: 0.05920176282 | H16: 0.2347771342 | I16: 39333
A17: Fitness Cardio univ | B17: 1073699.61 | C17: 0.2169740287 | D17: -0.1131244056 | E17: -0.1255827795 | F17: 0.03996605395 | G17: 0.02653565908 | H17: 0.2097737096 | I17: 17630
A18: Skate Scooter Inline univ | B18: 861931.02 | C18: 0.2243321513 | D18: -0.01349632441 | E18: -0.007809172228 | F18: 0.03208344431 | G18: 0.01051793452 | H18: 0.2212848975 | I18: 6988
A19: Road cycling Univ | B19: 855366.42 | C19: 0.2769675129 | D19: 0.5578003687 | E19: 0.4964545066 | F19: 0.03183909184 | G19: 0.02636407285 | H19: 0.2668512983 | I19: 17516
A20: Boating, Dinghy, Windsurf | B20: 810815.2 | C20: 0.2050205275 | D20: 0.1094196777 | E20: 0.137921906 | F20: 0.03018077284 | G20: 0.01293970851 | H20: 0.2638129602 | I20: 8597
A21: Hunting univ | B21: 809000.23 | C21: 0.250118495 | D21: -0.06449991417 | E21: 0.01432259139 | F21: 0.03011321466 | G21: 0.01833413858 | H21: 0.2915031778 | I21: 12181
A22: Horse riding univ | B22: 586176.29 | C22: 0.2682890842 | D22: 0.05139214291 | E22: 0.03351955307 | F22: 0.02181909448 | G22: 0.01531482309 | H22: 0.2817145395 | I22: 10175
A23: Ski Snowboard Sledge univ | B23: 585181.21 | C23: 0.2247479717 | D23: 0.2325105051 | E23: 0.3638658199 | F23: 0.02178205486 | G23: 0.02521263898 | H23: 0.174898014 | I23: 16751
A24: Tennis univ | B24: 573372.57 | C24: 0.2487154033 | D24: -0.02319421641 | E24: -0.04149627941 | F24: 0.02134250479 | G24: 0.04304104975 | H24: 0.2579696957 | I24: 28596
A25: Mountain Bike Univ | B25: 546147.67 | C25: 0.1532724474 | D25: 0.05008339465 | E25: 0.03986181238 | F25: 0.0203291191 | G25: 0.005889621893 | H25: 0.1790762353 | I25: 3913
A26: Cross-training, bodybuilding univ | B26: 468219.61 | C26: 0.2588341185 | D26: -0.1154344128 | E26: -0.1220033865 | F26: 0.01742842227 | G26: 0.01482866212 | H26: 0.2633588889 | I26: 9852
A27: Walking univ | B27: 401348.02 | C27: 0.2639075932 | D27: -0.2240241004 | E27: -0.1278975193 | F27: 0.01493927768 | G27: 0.006455555405 | H27: 0.2517046806 | I27: 4289
A28: Road running Univ | B28: 386612.02 | C28: 0.2259183768 | D28: 0.2167164211 | E28: 0.09588235294 | F28: 0.01439076321 | G28: 0.01682448084 | H28: 0.2411889071 | I28: 11178
A29: Hybrid cycling Univ | B29: 294511.29 | C29: 0.3047597938 | D29: 0.1942429155 | E29: 0.1131317639 | F29: 0.01096252061 | G29: 0.01501680491 | H29: 0.3121377061 | I29: 9977
A30: Diving univ | B30: 290376.81 | C30: 0.1809161689 | D30: 0.07221889753 | E30: 0.1628108108 | F30: 0.01080862389 | G30: 0.00809465539 | H30: 0.284985606 | I30: 5378
A31: Urban cycling univ | B31: 290093.24 | C31: 0.2527813127 | D31: 0.1313365292 | E31: 0.1731349286 | F31: 0.01079806863 | G31: 0.008781000287 | H31: 0.2540268875 | I31: 5834
A32: Triathlon, Nutrition & Care univ | B32: 241284.13 | C32: 0.2783192993 | D32: -0.05369101642 | E32: 0.01204083781 | F32: 0.008981259253 | G32: 0.07236272726 | H32: 0.2890938972 | I32: 48077
A33: Kid cycling Univ | B33: 235066.45 | C33: 0.1605042744 | D33: -0.09919742402 | E33: 0.008659981768 | F33: 0.008749820095 | G33: 0.003330879951 | H33: 0.2069239567 | I33: 2213
A34: Atlhétic running univ | B34: 220286.69 | C34: 0.2094191891 | D34: 0.1352259478 | E34: 0.120663321 | F34: 0.008199676758 | G34: 0.007730410949 | H34: 0.2466201411 | I34: 5136
A35: Dance, Artistic/Rhythmic Gym univ | B35: 218077.82 | C35: 0.3039410427 | D35: -0.05515664852 | E35: -0.07785119219 | F35: 0.008117456539 | G35: 0.009663013686 | H35: 0.3218509687 | I35: 6420
A36: Basket univ | B36: 210605.67 | C36: 0.2589605968 | D36: -0.06717468106 | E36: 0.02826645582 | F36: 0.007839322555 | G36: 0.007829750342 | H36: 0.264336178 | I36: 5202
A37: Climbing, Mountaineering univ | B37: 180755.24 | C37: 0.2509376768 | D37: 0.3535810711 | E37: 0.1969457609 | F37: 0.006728207412 | G37: 0.00342118849 | H37: 0.2429265739 | I37: 2273
A38: Trail running Univ | B38: 169076.07 | C38: 0.1917600167 | D38: 0.05894962883 | E38: 0.124137931 | F38: 0.006293476567 | G38: 0.002208043782 | H38: 0.2336435516 | I38: 1467
A39: Surf, bodyboard, towed/aerial sports | B39: 149736.27 | C39: 0.1492166193 | D39: 0.01693848523 | E39: -0.1151782292 | F39: 0.005573595994 | G39: 0.006949242086 | H39: 0.1002829963 | I39: 4617
A40: Yoga univ | B40: 120500.18 | C40: 0.2684353667 | D40: 0.2722935321 | E40: 0.3122028526 | F40: 0.004485348276 | G40: 0.00373877352 | H40: 0.2915086201 | I40: 2484
A41: Boxing Univ | B41: 119366.22 | C41: 0.3123011686 | D41: -0.04603023885 | E41: 0.1063432836 | F41: 0.004443139165 | G41: 0.00357019758 | H41: 0.2983853289 | I41: 2372
A42: Workshop Univ | B42: 111574.2 | C42: 0.8253181291 | D42: -0.06778284544 | E42: -0.0475877193 | F42: 0.004153098739 | G42: 0.01307366618 | H42: 0.7036424699 | I42: 8686
A43: Table tennis univ | B43: 90562.11 | C43: 0.2338978189 | D43: 0.04819052456 | E43: -0.2104110922 | F43: 0.003370970931 | G43: 0.004885691967 | H43: 0.2182275808 | I43: 3246
A44: Volleyball Univ | B44: 86675.85 | C44: 0.2042277059 | D44: -0.1224688397 | E44: -0.05203323131 | F44: 0.00322631364 | G44: 0.003263148547 | H44: 0.2098403208 | I44: 2168
A45: Martial Arts Univ | B45: 84226.92 | C45: 0.2206851444 | D45: -0.1660011496 | E45: -0.1777681661 | F45: 0.003135157727 | G45: 0.002861275548 | H45: 0.2315701348 | I45: 1901
A46: predator fishing | B46: 82759.21 | C46: 0.2026630027 | D46: 0.005509334948 | E46: -0.1174946004 | F46: 0.003080525522 | G46: 0.006150011514 | H46: 0.2022333552 | I46: 4086
A47: Badminton univ | B47: 71404.43 | C47: 0.1357169296 | D47: 0.0839688225 | E47: -0.03377386197 | F47: 0.002657869366 | G47: 0.001980767291 | H47: 0.1748896439 | I47: 1316
A48: Aquagym univ | B48: 66457.42 | C48: 0.2381642261 | D48: -0.1730011604 | E48: 0.01538461538 | F48: 0.002473728041 | G48: 0.001887448468 | H48: 0.3094957364 | I48: 1254
A49: Target sport univ | B49: 57796.58 | C49: 0.258664613 | D49: -0.08808097058 | E49: -0.2001836547 | F49: 0.002151347745 | G49: 0.002621957919 | H49: 0.267126198 | I49: 1742
A50: Golf univ | B50: 52786.4 | C50: 0.2882566343 | D50: -0.2338138858 | E50: -0.289445629 | F50: 0.001964855059 | G50: 0.002006354711 | H50: 0.2263393241 | I50: 1333
A51: Kayak, stand up paddle Univ | B51: 49697.94 | C51: 0.1980325543 | D51: 0.3255541153 | E51: 0.4078341014 | F51: 0.001849894079 | G51: 0.0009196419567 | H51: 0.2246891353 | I51: 611
A52: Carpe fishing univ | B52: 36704.82 | C52: 0.1842496435 | D52: 3.212345486 | E52: 2.686915888 | F52: 0.0013662544 | G52: 0.001187557289 | H52: 0.1890394703 | I52: 789
A53: Handball univ | B53: 35819.69 | C53: 0.2067522081 | D53: 0.1873385917 | E53: 0.2620545073 | F53: 0.001333307426 | G53: 0.0009060956759 | H53: 0.2453217891 | I53: 602
A54: Coarse fishing univ | B54: 27278.46 | C54: 0.2364590963 | D54: -0.08775838412 | E54: -0.1681304893 | F54: 0.001015379343 | G54: 0.001995818715 | H54: 0.246040571 | I54: 1326
A55: Univ Iceskating, Ice hockey | B55: 25912.74 | C55: 0.1658037707 | D55: -0.1482127343 | E55: 0.02173913043 | F55: 0.0009645434861 | G55: 0.0005659335118 | H55: 0.1069006538 | I55: 376
A56: Fixt and Furnit | B56: 23684.03 | C56: -0.02343731198 | D56: 0.9512300214 | E56: -0.2281819623 | F56: 0.0008815847673 | G56: 0.03664570003 | H56: 0.1588235294 | I56: 24347
A57: Intermodal Cyling Univ | B57: 21253.95 | C57: 0.3982845542 | D57: 0.7221082466 | E57: 0.9523809524 | F57: 0.0007911305029 | G57: 6.171083507e-05 | H57: 0.07486010977 | I57: 41
A58: Squash univ | B58: 17488.01 | C58: 0.1988493831 | D58: -0.1059994315 | E58: -0.1073825503 | F58: 0.0006509518534 | G58: 0.0006005517852 | H58: 0.2292659262 | I58: 399
A59: Orienteering | B59: 16534.57 | C59: 0.3479189359 | D59: 0.5215395233 | E59: 0.7225 | F59: 0.0006154621931 | G59: 0.001037043058 | H59: 0.3930431582 | I59: 689
A60: saltwater Fishing univ | B60: 11443.07 | C60: 0.2402781771 | D60: -0.3104910409 | E60: -0.2906137184 | F60: 0.000425942553 | G60: 0.0005915209313 | H60: 0.2598594719 | I60: 393
A61: Waterpolo Univ | B61: 11354.35 | C61: 0.2379414057 | D61: -0.1501305004 | E61: -0.1501650165 | F61: 0.0004226401504 | G61: 0.0007751482941 | H61: 0.274116755 | I61: 515
A62: Kite sports univ | B62: 10144.88 | C62: 0.2436381702 | D62: 0.1467222797 | E62: 0.05472636816 | F62: 0.000377620349 | G62: 0.0003190901716 | H62: 0.1824751183 | I62: 212
A63: Cross country ski univ | B63: 9070.29 | C63: 0.004368107304 | D63: 0.04058973279 | E63: 0.6666666667 | F63: 0.0003376211523 | G63: 0.0002633999058 | H63: 0.1114577083 | I63: 175
A64: Baseball American Football Univ | B64: 8600.62 | C64: 0.3047140788 | D64: -0.2878848974 | E64: -0.4204081633 | F64: 0.0003201387425 | G64: 0.0002137302093 | H64: 0.3131664731 | I64: 142
A65: Rugby univ | B65: 4845.38 | C65: 0.2728908775 | D65: -0.4970630578 | E65: -0.40625 | F65: 0.0001803583765 | G65: 0.0002573793365 | H65: 0.271958041 | I65: 171
A66: Services | B66: 3655.39 | C66: 0.2179767412 | D66: -0.9307175081 | E66: -0.9325775656 | F66: 0.0001360636742 | G66: 0.000170081082 | H66: 0.2431610977 | I66: 113
A67: Padel univ | B67: 1211.53 | C67: 0.1755466229 | D67: 1.321783791 | E67: 1 | F67: 4.509648033e-05 | G67: 5.719540811e-05 | H67: 0.03526187693 | I67: 38
A68: Field hockey univ | B68: 764.69 | C68: 0.2716525651 | D68: -0.6562542143 | E68: -0.2619047619 | F68: 2.846386598e-05 | G68: 4.665941188e-05 | H68: 0.2913673592 | I68: 31
A69: Canyoning univ | B69: 0 | C69: 0 | D69: -1 | E69: -1 | F69: 0 | G69: 0 | H69: 0.2106367161 | I69: 0
A70: Overall Result | B70: 26865289.51 | C70: 0.2474675353 | D70: 0.06538517813 | E70: 0.04672200752 | F70: 1 | G70: 1 | H70: 0.2555478564 | I70: 664389
A73: WZROST T-1 z @
A74: Secteur (Sales) | B74: Obrót | C74: Marża % | D74: Wrzost obrotu | E74: Wzrost ilości | F74: Udział w obrocie | G74: Udział w ilościach | H74: Marża % 2017r. | I74: Ilości sprzedany
A75: Hiking univ | B75: 5223697.28 | C75: 0.2447265704 | D75: 0.2072502686 | E75: 0.2112248249 | F75: 0.181509189 | G75: 0.1241337727 | H75: 0.2508170778 | I75: 88526
A76: Football univ | B76: 2958061.37 | C76: 0.2391760587 | D76: 0.2140040224 | E76: 0.2707893368 | F76: 0.1027845397 | G76: 0.1164425436 | H76: 0.2431499839 | I76: 83041
A77: Gym, Pilates univ | B77: 2440672.66 | C77: 0.2544060948 | D77: 0.01782542255 | E77: -0.0341263769 | F77: 0.08480669751 | G77: 0.1115207179 | H77: 0.2657031565 | I77: 79531
A78: Trekking several days univ | B78: 2248465.23 | C78: 0.2536517053 | D78: 0.1741785236 | E78: 0.2938535767 | F78: 0.07812801518 | G78: 0.04324335694 | H78: 0.2649875945 | I78: 30839
A79: Swimming univ | B79: 1771801.65 | C79: 0.3135755235 | D79: 0.09632168947 | E79: 0.08655793625 | F79: 0.06156525987 | G79: 0.08575755451 | H79: 0.3194163062 | I79: 61158
A80: Jogging Univ | B80: 1608624.33 | C80: 0.2461681218 | D80: 0.2506588717 | E80: 0.3199614691 | F80: 0.05589529444 | G80: 0.05956530884 | H80: 0.2344912987 | I80: 42479
A81: Fitness Cardio univ | B81: 1138561.91 | C81: 0.2188454205 | D81: -0.07161505547 | E81: -0.06735978913 | F81: 0.03956191139 | G81: 0.02679239992 | H81: 0.2098182496 | I81: 19107
A82: Skate Scooter Inline univ | B82: 927879.16 | C82: 0.2255868102 | D82: 0.05432121477 | E82: 0.06423439921 | F82: 0.03224126223 | G82: 0.01059384421 | H82: 0.2213522851 | I82: 7555
A83: Road cycling Univ | B83: 913992.77 | C83: 0.2764201625 | D83: 0.6548783475 | E83: 0.5850495805 | F83: 0.03175874817 | G83: 0.02622449695 | H83: 0.2672525827 | I83: 18702
A84: Hunting univ | B84: 867178.11 | C84: 0.2498768333 | D84: -0.003830501663 | E84: 0.07994041708 | F84: 0.03013206681 | G84: 0.01829909556 | H84: 0.2915413598 | I84: 13050
A85: Boating, Dinghy, Windsurf | B85: 864640.56 | C85: 0.205629308 | D85: 0.1763804499 | E85: 0.2053947368 | F85: 0.03004389389 | G85: 0.01284582486 | H85: 0.2641859065 | I85: 9161
A86: Ski Snowboard Sledge univ | B86: 647465.72 | C86: 0.2236587908 | D86: 0.3648485072 | E86: 0.4880312653 | F86: 0.02249766237 | G86: 0.02562714716 | H86: 0.1748909976 | I86: 18276
A87: Horse riding univ | B87: 612601.6 | C87: 0.2691889966 | D87: 0.09219310573 | E87: 0.07940671981 | F87: 0.02128622959 | G87: 0.01500105167 | H87: 0.2818465767 | I87: 10698
A88: Mountain Bike Univ | B88: 606448.29 | C88: 0.1568800862 | D88: 0.1589630301 | E88: 0.1262519768 | F88: 0.0210724189 | G88: 0.005991726846 | H88: 0.1788839494 | I88: 4273
A89: Tennis univ | B89: 603039.76 | C89: 0.2487907762 | D89: 0.01957012753 | E89: -0.0005649717514 | F89: 0.02095398181 | G89: 0.04216924911 | H89: 0.2585804949 | I89: 30073
A90: Cross-training, bodybuilding univ | B90: 503794.82 | C90: 0.2591546892 | D90: -0.05490565008 | E90: -0.05633554084 | F90: 0.01750549167 | G90: 0.01498562715 | H90: 0.2638672402 | I90: 10687
A91: Walking univ | B91: 419895.88 | C91: 0.2634859861 | D91: -0.1976253452 | E91: -0.09536237703 | F91: 0.01459023304 | G91: 0.00631844633 | H91: 0.2514622509 | I91: 4506
A92: Road running Univ | B92: 417178.96 | C92: 0.22512818 | D92: 0.3005315178 | E92: 0.1574780342 | F92: 0.0144958275 | G92: 0.01680992779 | H92: 0.2415264945 | I92: 11988
A93: Hybrid cycling Univ | B93: 317957.36 | C93: 0.304771275 | D93: 0.2780074302 | E93: 0.2043165468 | F93: 0.01104814836 | G93: 0.01525765968 | H93: 0.3121122154 | I93: 10881
A94: Urban cycling univ | B94: 313933.5 | C94: 0.2516481994 | D94: 0.2094014903 | E94: 0.247084404 | F94: 0.01090833024 | G94: 0.008846666199 | H94: 0.2551054777 | I94: 6309
A95: Diving univ | B95: 307655.29 | C95: 0.1815347625 | D95: 0.1265004369 | E95: 0.2261930238 | F95: 0.01069017961 | G95: 0.008034775293 | H95: 0.2853580676 | I95: 5730
A96: Triathlon, Nutrition & Care univ | B96: 258600.3 | C96: 0.2780162668 | D96: 0.003981484677 | E96: 0.07028421622 | F96: 0.008985652922 | G96: 0.07213068779 | H96: 0.2892381501 | I96: 51440
A97: Kid cycling Univ | B97: 254199.63 | C97: 0.160844648 | D97: -0.03013181108 | E97: 0.08465368945 | F97: 0.008832741679 | G97: 0.00335974199 | H97: 0.2071296557 | I97: 2396
A98: Atlhétic running univ | B98: 237183.51 | C98: 0.2098702393 | D98: 0.2177845357 | E98: 0.2087410307 | F98: 0.008241478063 | G98: 0.007794994041 | H98: 0.2465690181 | I98: 5559
A99: Dance, Artistic/Rhythmic Gym univ | B99: 231864.8 | C99: 0.3038199847 | D99: 0.002362848791 | E99: -0.02305599313 | F99: 0.008056667442 | G99: 0.009566009956 | H99: 0.3218435486 | I99: 6822
A100: Basket univ | B100: 228117.17 | C100: 0.2585156128 | D100: 0.004699534649 | E100: 0.102809208 | F100: 0.007926447553 | G100: 0.007926803618 | H100: 0.2641699758 | I100: 5653
A101: Climbing, Mountaineering univ | B101: 189401.56 | C101: 0.250710765 | D101: 0.4150763563 | E101: 0.2806925498 | F101: 0.006581186027 | G101: 0.003422842319 | H101: 0.243114541 | I101: 2441
A102: Trail running Univ | B102: 178728.21 | C102: 0.1927212274 | D102: 0.1145513738 | E102: 0.1845919146 | F102: 0.006210316316 | G102: 0.002177662483 | H102: 0.233405035 | I102: 1553
A103: Surf, bodyboard, towed/aerial sports | B103: 153153.62 | C103: 0.1475614484 | D103: 0.02699852609 | E103: -0.09773584906 | F103: 0.005321669283 | G103: 0.006705461684 | H103: 0.1018453349 | I103: 4782
A104: Boxing Univ | B104: 133888.32 | C104: 0.311547191 | D104: 0.05959889219 | E104: 0.2272936837 | F104: 0.004652252816 | G104: 0.003732735049 | H104: 0.297492631 | I104: 2662
A105: Yoga univ | B105: 126069.17 | C105: 0.2684952237 | D105: 0.3117756546 | E105: 0.3477580813 | F105: 0.004380558745 | G105: 0.003624763374 | H105: 0.292636007 | I105: 2585
A106: Workshop Univ | B106: 116809.56 | C106: 0.8251194508 | D106: -0.02746989525 | E106: -0.01442465304 | F106: 0.004058812631 | G106: 0.01264670827 | H106: 0.7051479265 | I106: 9019
A107: Table tennis univ | B107: 94680.9 | C107: 0.2347058382 | D107: 0.07982694193 | E107: -0.1760931559 | F107: 0.003289902238 | G107: 0.004861529832 | H107: 0.2199274534 | I107: 3467
A108: Volleyball Univ | B108: 92518.47 | C108: 0.2040778452 | D108: -0.07509230985 | E108: 0.01072501073 | F108: 0.003214763712 | G108: 0.003303652808 | H108: 0.2098308557 | I108: 2356
A109: Martial Arts Univ | B109: 89150.83 | C109: 0.2219705638 | D109: -0.1279074454 | E109: -0.1421254802 | F109: 0.003097747435 | G109: 0.002818481385 | H109: 0.2308818843 | I109: 2010
A110: predator fishing | B110: 87729.84 | C110: 0.2025889937 | D110: 0.05910423256 | E110: -0.08070401374 | F110: 0.00304837192 | G110: 0.006005749141 | H110: 0.2024895574 | I110: 4283
A111: Badminton univ | B111: 81042.78 | C111: 0.131660217 | D111: 0.2140923967 | E111: 0.05634807418 | F111: 0.00281601488 | G111: 0.002076701956 | H111: 0.1747121498 | I111: 1481
A112: Aquagym univ | B112: 71185.54 | C112: 0.236410934 | D112: -0.1236505694 | E112: 0.07618283881 | F112: 0.002473502759 | G112: 0.001881792049 | H112: 0.309653017 | I112: 1342
A113: Target sport univ | B113: 60548.81 | C113: 0.2590113662 | D113: -0.04943714741 | E113: -0.1731818182 | F113: 0.002103905492 | G113: 0.002550655542 | H113: 0.2678671258 | I113: 1819
A114: Golf univ | B114: 53096.28 | C114: 0.2880714054 | D114: -0.2292041476 | E114: -0.2830490405 | F114: 0.001844950464 | G114: 0.001885998738 | H114: 0.2262541589 | I114: 1345
A115: Kayak, stand up paddle Univ | B115: 51752.63 | C115: 0.199522034 | D115: 0.3785195745 | E115: 0.4724770642 | F115: 0.001798262303 | G115: 0.0009002313679 | H115: 0.2249373904 | I115: 642
A116: Handball univ | B116: 38909.05 | C116: 0.198102241 | D116: 0.2666572259 | E116: 0.3617886179 | F116: 0.001351983036 | G116: 0.0009394937951 | H116: 0.2479632397 | I116: 670
A117: Carpe fishing univ | B117: 37742.44 | C117: 0.1837552103 | D117: 3.315350059 | E117: 2.793577982 | F117: 0.001311446531 | G117: 0.001159643834 | H117: 0.1896767584 | I117: 827
A118: Coarse fishing univ | B118: 28907.34 | C118: 0.2362680205 | D118: -0.04671996644 | E118: -0.1029320025 | F118: 0.001004450978 | G118: 0.002016406086 | H118: 0.2456331734 | I118: 1438
A119: Univ Iceskating, Ice hockey | B119: 25982.73 | C119: 0.1654006334 | D119: -0.1523200435 | E119: 0.01617250674 | F119: 0.0009028287815 | G119: 0.0005286405385 | H119: 0.1069001989 | I119: 377
A120: Fixt and Furnit | B120: 25718.65 | C120: -0.02390560935 | D120: 1.103528994 | E120: -0.1710431823 | F120: 0.000893652724 | G120: 0.03722779219 | H120: 0.1584182791 | I120: 26549
A121: Intermodal Cyling Univ | B121: 21283.94 | C121: 0.3980376754 | D121: 0.7245381961 | E121: 1 | F121: 0.0007395586844 | G121: 5.889364089e-05 | H121: 0.07486010977 | I121: 42
A122: Orienteering | B122: 17124.29 | C122: 0.3475782062 | D122: 0.563579371 | E122: 0.7835820896 | F122: 0.0005950222272 | G122: 0.001005398584 | H122: 0.394118689 | I122: 717
A123: Squash univ | B123: 16457.81 | C123: 0.1935834719 | D123: -0.1767163821 | E123: -0.07709251101 | F123: 0.0005718638707 | G123: 0.0005875341793 | H123: 0.2297341981 | I123: 419
A124: saltwater Fishing univ | B124: 12091.82 | C124: 0.2358131365 | D124: -0.2752610526 | E124: -0.2486678508 | F124: 0.000420157663 | G124: 0.0005931430975 | H124: 0.2597189707 | I124: 423
A125: Waterpolo Univ | B125: 11616.17 | C125: 0.2387490886 | D125: -0.1458685969 | E125: -0.1389337641 | F125: 0.0004036301269 | G125: 0.0007473883475 | H125: 0.2735680494 | I125: 533
A126: Kite sports univ | B126: 10919.72 | C126: 0.2447278868 | D126: 0.1951374607 | E126: 0.09615384615 | F126: 0.0003794303948 | G126: 0.0003197083363 | H126: 0.1812419898 | I126: 228
A127: Cross country ski univ | B127: 9120.28 | C127: 0.004301403027 | D127: 0.04632483947 | E127: 0.6761904762 | F127: 0.0003169047779 | G127: 0.0002467923999 | H127: 0.1114577083 | I127: 176
A128: Baseball American Football Univ | B128: 8830.56 | C128: 0.3039693972 | D128: -0.2688462994 | E128: -0.3918367347 | F128: 0.0003068378005 | G128: 0.0002089322022 | H128: 0.3131664731 | I128: 149
A129: Rugby univ | B129: 5480.22 | C129: 0.2786384488 | D129: -0.4335192239 | E129: -0.3482758621 | F129: 0.0001904226517 | G129: 0.000265021384 | H129: 0.2724714833 | I129: 189
A130: Services | B130: 3779.86 | C130: 0.2196642204 | D130: -0.9289706279 | E130: -0.9316440778 | F130: 0.0001313397937 | G130: 0.0001626586272 | H130: 0.2447396386 | I130: 116
A131: Padel univ | B131: 1211.53 | C131: 0.1755466229 | D131: 1.321783791 | E131: 1 | F131: 4.209735288e-05 | G131: 5.328472271e-05 | H131: 0.03526187693 | I131: 38
A132: Field hockey univ | B132: 764.69 | C132: 0.2716525651 | D132: -0.6562542143 | E132: -0.2619047619 | F132: 2.657088539e-05 | G132: 4.346911589e-05 | H132: 0.2913673592 | I132: 31
A133: Canyoning univ | B133: 34.99 | C133: 0.2963703915 | D133: -0.9690315614 | E133: -0.9444444444 | F133: 1.215806771e-06 | G133: 1.402229545e-06 | H133: 0.2106367161 | I133: 1
A134: Overall Result | B134: 28779244.23 | C134: 0.2476985123 | D134: 0.1292973865 | E134: 0.1099887312 | F134: 1 | G134: 1 | H134: 0.2556530492 | I134: 713150
A137: PROGRESJA YTD z @
A138: Secteur (Sales) | B138: Obrót | C138: Marża % | D138: Wrzost obrotu | E138: Wzrost ilości | F138: Udział w obrocie | G138: Udział w ilościach | H138: Marża % 2017r. | I138: Ilości sprzedany
A139: Hiking univ | B139: 239645852.9 | C139: 0.2471958459 | D139: -0.02247245839 | E139: -0.006180912302 | F139: 0.1644109924 | G139: 0.1266310926 | H139: 0.2386969421 | I139: 4185644
A140: Skate Scooter Inline univ | B140: 99057890.39 | C140: 0.2372393714 | D140: 0.114251344 | E140: 0.06836518047 | F140: 0.06795947383 | G140: 0.02473842601 | H140: 0.2347907327 | I140: 817700
A141: Gym, Pilates univ | B141: 94482026.84 | C141: 0.2525001695 | D141: -0.1175278994 | E141: -0.1212666947 | F141: 0.06482016531 | G141: 0.1023583008 | H141: 0.2483025751 | I141: 3383335
A142: Mountain Bike Univ | B142: 91766229.33 | C142: 0.1460825294 | D142: 0.1852087176 | E142: 0.02609341035 | F142: 0.06295697027 | G142: 0.01116762799 | H142: 0.1702120954 | I142: 369133
A143: Swimming univ | B143: 78679555.7 | C143: 0.3127965452 | D143: 0.1173045077 | E143: 0.09593287309 | F143: 0.05397875106 | G143: 0.07698194591 | H143: 0.3050337539 | I143: 2544549
A144: Ski Snowboard Sledge univ | B144: 77981206.03 | C144: 0.2615964417 | D144: -0.03400142042 | E144: 0.01177477602 | F144: 0.05349964257 | G144: 0.04473679776 | H144: 0.2384902957 | I144: 1478723
A145: Football univ | B145: 77952064.9 | C145: 0.2262304529 | D145: -0.03321664939 | E145: 0.03560391998 | F145: 0.05347965006 | G145: 0.05848978338 | H145: 0.2357393101 | I145: 1933312
A146: Trekking several days univ | B146: 71791463.31 | C146: 0.2739423678 | D146: -0.006684397631 | E146: 0.005952181322 | F146: 0.04925311909 | G146: 0.03811260543 | H146: 0.2639429325 | I146: 1259768
A147: Fitness Cardio univ | B147: 56780788.77 | C147: 0.2269051852 | D147: -0.004558382043 | E147: 0.03584724573 | F147: 0.03895492336 | G147: 0.03506823912 | H147: 0.2376189194 | I147: 1159140
A148: Jogging Univ | B148: 55537244.34 | C148: 0.2264919612 | D148: -0.01460335907 | E148: 0.04530660815 | F148: 0.03810177956 | G148: 0.04313268767 | H148: 0.2293961795 | I148: 1425701
A149: Kid cycling Univ | B149: 54269275.97 | C149: 0.1942397493 | D149: 0.1565564783 | E149: 0.1585787111 | F149: 0.03723187951 | G149: 0.01151696712 | H149: 0.2171359483 | I149: 380680
A150: Road cycling Univ | B150: 37126970.32 | C150: 0.2709656014 | D150: 0.1942576586 | E150: 0.07364171416 | F150: 0.02547126087 | G150: 0.02166698267 | H150: 0.2718876273 | I150: 716177
A151: Surf, bodyboard, towed/aerial sports | B151: 36687312.73 | C151: 0.2407726899 | D151: 0.1063495566 | E151: 0.1281051309 | F151: 0.0251696302 | G151: 0.03532043371 | H151: 0.2462137487 | I151: 1167476
A152: Urban cycling univ | B152: 33900479.89 | C152: 0.2354243797 | D152: 0.311773071 | E152: 0.209142708 | F152: 0.02325770079 | G152: 0.01233302962 | H152: 0.2538017099 | I152: 407654
A153: Diving univ | B153: 33835582.4 | C153: 0.2432471137 | D153: 0.08685009123 | E153: 0.2577933553 | F153: 0.02321317734 | G153: 0.02194177675 | H153: 0.2840336451 | I153: 725260
A154: Tennis univ | B154: 30012311.29 | C154: 0.2381715137 | D154: -0.07282644325 | E154: -0.03626368795 | F154: 0.020590191 | G154: 0.04509400284 | H154: 0.2373712765 | I154: 1490530
A155: Hybrid cycling Univ | B155: 29419508 | C155: 0.2966086982 | D155: 0.2560105068 | E155: 0.2610600335 | F155: 0.02018349347 | G155: 0.0243500899 | H155: 0.3067290673 | I155: 804864
A156: Walking univ | B156: 24710274.08 | C156: 0.2552795185 | D156: -0.2308978237 | E156: -0.1551938671 | F156: 0.01695268512 | G156: 0.008421623375 | H156: 0.2352038262 | I156: 278367
A157: Boating, Dinghy, Windsurf | B157: 23540683.9 | C157: 0.2253455194 | D157: -0.1912413425 | E157: -0.1067284261 | F157: 0.01615027824 | G157: 0.008384048317 | H157: 0.2230948676 | I157: 277125
A158: Cross-training, bodybuilding univ | B158: 21983376.24 | C158: 0.2642665734 | D158: -0.03986971375 | E158: -0.1092317918 | F158: 0.01508187461 | G158: 0.0138665579 | H158: 0.2568533059 | I158: 458343
A159: Horse riding univ | B159: 20130701.95 | C159: 0.2725200181 | D159: -0.02587613865 | E159: 0.01247259284 | F159: 0.0138108323 | G159: 0.01148362758 | H159: 0.2716155885 | I159: 379578
A160: Hunting univ | B160: 20049862.34 | C160: 0.2551174104 | D160: -0.06383448628 | E160: -0.05150540998 | F160: 0.01375537163 | G160: 0.01064015525 | H160: 0.2540836802 | I160: 351698
A161: Road running Univ | B161: 17310974.92 | C161: 0.2291162247 | D161: 0.02704272679 | E161: 0.00195960837 | F161: 0.01187633557 | G161: 0.01662905077 | H161: 0.2120690369 | I161: 549654
A162: Triathlon, Nutrition & Care univ | B162: 12079019.37 | C162: 0.3024091309 | D162: -0.05590088571 | E162: -0.1457152585 | F162: 0.008286909781 | G162: 0.07310424226 | H162: 0.2834427287 | I162: 2416376
A163: Basket univ | B163: 10635556.86 | C163: 0.2442793428 | D163: -0.0001590430061 | E163: 0.08463616048 | F163: 0.00729661055 | G163: 0.0071803758 | H163: 0.2488178033 | I163: 237339
A164: Atlhétic running univ | B164: 10633058.19 | C164: 0.2026765162 | D164: -0.0841589133 | E164: -0.1367458256 | F164: 0.007294896317 | G164: 0.00703842558 | H164: 0.2101664629 | I164: 232647
A165: Kayak, stand up paddle Univ | B165: 8432754.49 | C165: 0.2568820772 | D165: 0.2948760359 | E165: 0.2652435034 | F165: 0.005785360013 | G165: 0.002632281071 | H165: 0.2638246356 | I165: 87007
A166: Trail running Univ | B166: 7513628.38 | C166: 0.1954311067 | D166: 0.2122313722 | E166: 0.2353596546 | F166: 0.005154786047 | G166: 0.002146921443 | H166: 0.2280573999 | I166: 70964
A167: Workshop Univ | B167: 7198334.07 | C167: 0.7208884736 | D167: 0.06108670056 | E167: 0.01777212331 | F167: 0.004938475813 | G167: 0.01248832171 | H167: 0.7068840336 | I167: 412787
A168: Badminton univ | B168: 6915202.88 | C168: 0.1703495531 | D168: -0.03630352452 | E168: -0.07798640762 | F168: 0.004744231351 | G168: 0.006160706104 | H168: 0.1830528833 | I168: 203635
A169: Climbing, Mountaineering univ | B169: 6861127.75 | C169: 0.2452703231 | D169: 0.3261300595 | E169: 0.1283531409 | F169: 0.004707132667 | G169: 0.003418120151 | H169: 0.2377045495 | I169: 112982
A170: Univ Iceskating, Ice hockey | B170: 5160238.72 | C170: 0.1434051543 | D170: 0.1751022581 | E170: 0.2143575812 | F170: 0.003540223872 | G170: 0.001460586683 | H170: 0.1606917736 | I170: 48278
A171: Volleyball Univ | B171: 4959262.4 | C171: 0.2264784154 | D171: 0.04256061623 | E171: 0.07956135036 | F171: 0.003402342428 | G171: 0.00436617941 | H171: 0.2270069899 | I171: 144319
A172: Yoga univ | B172: 4896796.84 | C172: 0.2856122963 | D172: 0.009116809962 | E172: 0.1525402532 | F172: 0.003359487421 | G172: 0.00334581388 | H172: 0.2726497659 | I172: 110592
A173: Dance, Artistic/Rhythmic Gym univ | B173: 4869270.68 | C173: 0.3112768399 | D173: 0.02875489394 | E173: -0.001591340957 | F173: 0.003340602874 | G173: 0.004498539217 | H173: 0.2999471996 | I173: 148694
A174: Table tennis univ | B174: 4752681.75 | C174: 0.2218462282 | D174: -0.05552117638 | E174: -0.09117153407 | F174: 0.003260616087 | G174: 0.004504983248 | H174: 0.2063215424 | I174: 148907
A175: Boxing Univ | B175: 4268296 | C175: 0.3040551639 | D175: 0.1328925988 | E175: 0.2047386042 | F175: 0.002928299292 | G175: 0.002264426697 | H175: 0.3080266465 | I175: 74848
A176: Aquagym univ | B176: 4165995.46 | C176: 0.2908345416 | D176: 0.006360519449 | E176: 0.187799546 | F176: 0.002858115172 | G176: 0.002564270821 | H176: 0.3173074264 | I176: 84759
A177: predator fishing | B177: 4145789.55 | C177: 0.2086556781 | D177: -0.02377662335 | E177: -0.05283641939 | F177: 0.002844252743 | G177: 0.007046049505 | H177: 0.2060226555 | I177: 232899
A178: Target sport univ | B178: 3801230.44 | C178: 0.2809212298 | D178: -0.03793166988 | E178: -0.03873873874 | F178: 0.002607865154 | G178: 0.003615434587 | H178: 0.279491059 | I178: 119504
A179: Golf univ | B179: 2671071.83 | C179: 0.2521325494 | D179: -0.1217614839 | E179: -0.1284943777 | F179: 0.00183251062 | G179: 0.002190032922 | H179: 0.2559120648 | I179: 72389
A180: Intermodal Cyling Univ | B180: 2101076.86 | C180: 0.142070124 | D180: 0.4825068928 | E180: 0.2518597237 | F180: 0.001441460921 | G180: 0.00010691647 | H180: 0.1684720802 | I180: 3534
A181: Coarse fishing univ | B181: 1953330.29 | C181: 0.2350290846 | D181: -0.06467941986 | E181: -0.1334370271 | F181: 0.001340098181 | G181: 0.00311821552 | H181: 0.2537113044 | I181: 103069
A182: Carpe fishing univ | B182: 1748140.05 | C182: 0.1846839102 | D182: 0.5382256959 | E182: 0.7542682037 | F182: 0.001199325743 | G182: 0.001091128865 | H182: 0.1753402843 | I182: 36066
A183: Martial Arts Univ | B183: 1548678.03 | C183: 0.2587067178 | D183: -0.08822158031 | E183: -0.05597466464 | F183: 0.001062483197 | G183: 0.001109250813 | H183: 0.2673134986 | I183: 36665
A184: Cross country ski univ | B184: 1394881.52 | C184: 0.1837469536 | D184: -0.1835231346 | E184: -0.06135576447 | F184: 0.0009569698464 | G184: 0.0004591296969 | H184: 0.1593774123 | I184: 15176
A185: Waterpolo Univ | B185: 1356572.16 | C185: 0.2954772712 | D185: -0.09540686108 | E185: -0.1171202829 | F185: 0.0009306873974 | G185: 0.002356307093 | H185: 0.28226143 | I185: 77885
A186: Fixt and Furnit | B186: 1250988.78 | C186: 0.001024461626 | D186: 2.075403901 | E186: -0.473843412 | F186: 0.0008582510582 | G186: 0.03351162729 | H186: 0.08913935341 | I186: 1107688
A187: Handball univ | B187: 1070713.15 | C187: 0.182637544 | D187: 0.3454003004 | E187: 0.2933292251 | F187: 0.0007345714915 | G187: 0.0005079591204 | H187: 0.2284732439 | I187: 16790
A188: saltwater Fishing univ | B188: 1018591.81 | C188: 0.222401582 | D188: -0.06901179661 | E188: 0.1331407771 | F188: 0.000698813221 | G188: 0.001732869714 | H188: 0.2242876558 | I188: 57278
A189: Kite sports univ | B189: 1006792.1 | C189: 0.220821687 | D189: -0.03211702778 | E189: 0.01133222775 | F189: 0.0006907179337 | G189: 0.0006641890726 | H189: 0.2153130343 | I189: 21954
A190: Squash univ | B190: 944243.7 | C190: 0.2373939906 | D190: 0.1207384282 | E190: 0.02493384897 | F190: 0.0006478060936 | G190: 0.0006093694225 | H190: 0.2185597184 | I190: 20142
A191: Baseball American Football Univ | B191: 528681.06 | C191: 0.306101395 | D191: -0.1288705908 | E191: -0.1936914736 | F191: 0.0003627059542 | G191: 0.0002969700254 | H191: 0.3269581798 | I191: 9816
A192: Orienteering | B192: 407922.09 | C192: 0.3315518657 | D192: 0.2117430165 | E192: 0.3762102351 | F192: 0.0002798582777 | G192: 0.0005117408292 | H192: 0.371556938 | I192: 16915
A193: Services | B193: 327965.67 | C193: 0.1839918489 | D193: -0.9300625428 | E193: -0.8718378768 | F193: 0.0002250035235 | G193: 0.0004739237416 | H193: 0.26443433 | I193: 15665
A194: Rugby univ | B194: 226311.62 | C194: 0.2437528837 | D194: -0.002464531016 | E194: -0.04860415972 | F194: 0.0001552629332 | G194: 0.0002587898937 | H194: 0.2715185629 | I194: 8554
A195: Padel univ | B195: 58684.99 | C195: 0.1917263682 | D195: 1.054849811 | E195: 0.7410412441 | F195: 4.026131615e-05 | G195: 7.790320042e-05 | H195: 0.2240331157 | I195: 2575
A196: Canyoning univ | B196: 26808.15 | C196: 0.2221313295 | D196: 0.4092196978 | E196: -0.2336956522 | F196: 1.839195001e-05 | G196: 8.531534958e-06 | H196: 0.2788912602 | I196: 282
A197: Field hockey univ | B197: 21029.86 | C197: 0.3064846842 | D197: -0.2442834858 | E197: -0.1434034417 | F197: 1.442770702e-05 | G197: 1.355364419e-05 | H197: 0.3192102404 | I197: 448
A198: Ice fishing | B198: 9.98 | C198: -0.4048096192 | D198: -0.830675263 | E198: -0.6666666667 | F198: 6.846860418e-09 | G198: 6.050734013e-08 | H198: -0.4932134374 | I198: 2
A199: Overall Result | B199: 1457602374 | C199: 0.2440783153 | D199: 0.0175453947 | E199: -0.03188486457 | F199: 1 | G199: 1 | H199: 0.2448265373 | I199: 33053841
A201: WZROST YTD z @
A202: Secteur (Sales) | B202: Obrót | C202: Marża % | D202: Wrzost obrotu | E202: Wzrost ilości | F202: Udział w obrocie | G202: Udział w ilościach | H202: Marża % 2017r. | I202: Ilości sprzedany
A203: Hiking univ | B203: 252785859.4 | C203: 0.2472944685 | D203: 0.03112629191 | E203: 0.05010285691 | F203: 0.1640088511 | G203: 0.1261535666 | H203: 0.2386969421 | I203: 4422693
A204: Skate Scooter Inline univ | B204: 105716209.9 | C204: 0.23750177 | D204: 0.1891473611 | E204: 0.1404501062 | F204: 0.06858925643 | G204: 0.02489793345 | H204: 0.2347907327 | I204: 872872
A205: Gym, Pilates univ | B205: 99856818.33 | C205: 0.2533069544 | D205: -0.06732677971 | E205: -0.07070648305 | F205: 0.06478765107 | G205: 0.1020595293 | H205: 0.2483025751 | I205: 3578004
A206: Mountain Bike Univ | B206: 96871922.62 | C206: 0.1464118919 | D206: 0.2511514096 | E206: 0.08897388713 | F206: 0.06285103437 | G206: 0.01117445057 | H206: 0.1702120954 | I206: 391754
A207: Swimming univ | B207: 83939996.56 | C207: 0.3131401451 | D207: 0.1920064329 | E207: 0.1705276614 | F207: 0.05446072986 | G207: 0.07752134248 | H207: 0.3050337539 | I207: 2717744
... 181 more rows

Sheet WYNIKI EKO SKLEPY
C1: OBROTY TYGODNIOWE | J1: OD POCZĄTKU ROKU
C2: Sklep | D2: Obrót | E2: Wzrost obrotu | F2: marża % | G2: marża pln | H2: Wzrost ilości | J2: Sklep | K2: obrót | L2: Wzrost obrotu | M2: marża % | N2: marża pln | O2: Wzrost ilości
C3: Decathlon.pl Lodz OMS | D3: 3458519.06 | E3: 0.1694302019 | F3: 0.2229307882 | G3: 771010.38 | H3: 0.1503838503 | I3: Decathlon.pl Lodz OMS | J3: Decathlon.pl Lodz OMS | K3: 150086355.1 | L3: 0.1833329863 | M3: 0.2197291699 | N3: 32978350.22 | O3: 0.1573363434
C4: Warszawa Targowek | D4: 1551292.73 | E4: -0.02345686734 | F4: 0.2475430153 | G4: 384011.68 | H4: -0.09987614565 | I4: Warszawa Targowek | J4: Warszawa Targowek | K4: 85271507.94 | L4: -0.1185282372 | M4: 0.2483462949 | N4: 21176863.06 | O4: -0.1678969839
C5: Krakow Zakopianska | D5: 1342028.32 | E5: 0.03185703721 | F5: 0.2519210101 | G5: 338085.13 | H5: 0.01025404157 | I5: Krakow Zakopianska | J5: Krakow Zakopianska | K5: 69054993.32 | L5: 0.02237911194 | M5: 0.251613356 | N5: 17375158.62 | O5: -0.01344977064
C6: Warszawa Piaseczno | D6: 943009.24 | E6: 0.01580933935 | F6: 0.2550784868 | G6: 240541.37 | H6: -0.04790814306 | I6: Warszawa Piaseczno | J6: Franowo | K6: 52365089.11 | L6: 0.01520667297 | M6: 0.2492529852 | N6: 13052154.78 | O6: -0.008814326873
C7: Krakow Plaza | D7: 904648.15 | E7: 0.01272508775 | F7: 0.2565615262 | G7: 232097.91 | H7: 0.01279993058 | I7: Krakow Plaza | J7: Warszawa Piaseczno | K7: 52340261.22 | L7: -0.06311265277 | M7: 0.25292153 | N7: 13237978.95 | O7: -0.1343526239
C8: Bielsko - Biala | D8: 875408.91 | E8: 0.1932608926 | F8: 0.2451371668 | G8: 214595.26 | H8: 0.2072698715 | I8: Bielsko - Biala | J8: Bielsko - Biala | K8: 47552610.22 | L8: 0.03918449265 | M8: 0.2482037601 | N8: 11802736.66 | O8: -0.02310798828
C9: Franowo | D9: 874180.2 | E9: 0.01214303913 | F9: 0.249306985 | G9: 217939.23 | H9: -0.005198996056 | I9: Franowo | J9: Krakow Plaza | K9: 47096257.94 | L9: 0.02202539089 | M9: 0.2559259323 | N9: 12053153.72 | O9: -0.02334340823
C10: Warszawa Reduta | D10: 759362.94 | E10: -0.07000330267 | F10: 0.2554033517 | G10: 193943.84 | H10: -0.08364320801 | I10: Warszawa Reduta | J10: Gdansk Kartuska | K10: 42378121 | L10: 0.02526161637 | M10: 0.2450845966 | N10: 10386224.69 | O10: -0.005642041094
C11: Wroclaw Bielany | D11: 756459.3 | E11: 0.08773612405 | F11: 0.2527076473 | G11: 191163.05 | H11: -0.005303734485 | I11: Wroclaw Bielany | J11: Wroclaw Bielany | K11: 41928423.35 | L11: 0.007983768685 | M11: 0.2480731375 | N11: 10401315.53 | O11: -0.06369119445
C12: Sosnowiec | D12: 724088.74 | E12: 0.1198986189 | F12: 0.2481828125 | G12: 179706.38 | H12: 0.1427923844 | I12: Sosnowiec | J12: Warszawa Reduta | K12: 40906390.81 | L12: -0.1300009544 | M12: 0.2568807703 | N12: 10508065.18 | O12: -0.1608441924
C13: Ostrobramska | D13: 685456.22 | E13: DIV/0 | F13: 0.2579916628 | G13: 176841.99 | H13: DIV/0 | I13: Ostrobramska | J13: Sosnowiec | K13: 40050838.28 | L13: -0.01411268691 | M13: 0.2431167258 | N13: 9737028.67 | O13: -0.05954588817
C14: Wroclaw Magnolia | D14: 681508.91 | E14: 0.02050176974 | F14: 0.2451364576 | G14: 167062.68 | H14: -0.01539025284 | I14: Wroclaw Magnolia | J14: Lodz | K14: 37245321.9 | L14: -0.03445026282 | M14: 0.2493940808 | N14: 9288762.82 | O14: -0.0912951191
C15: Gdansk Kartuska | D15: 663459.74 | E15: -0.01627950851 | F15: 0.2505706978 | G15: 166243.57 | H15: 0.04995368941 | I15: Gdansk Kartuska | J15: Wroclaw Magnolia | K15: 36444097.15 | L15: 0.05090247665 | M15: 0.251392661 | N15: 9161778.56 | O15: -0.01140064098
C16: Bialystok | D16: 662442.09 | E16: 0.01832867464 | F16: 0.2557612847 | G16: 169427.04 | H16: 0.04164162961 | I16: Bialystok | J16: Ostrobramska | K16: 35593290.94 | L16: DIV/0 | M16: 0.2582415337 | N16: 9191666.04 | O16: DIV/0
C17: Gdansk Przymorze | D17: 639227.19 | E17: 0.134284747 | F17: 0.2534625287 | G17: 162020.14 | H17: 0.1269657567 | I17: Gdansk Przymorze | J17: Bialystok | K17: 35427523.26 | L17: -0.0276562414 | M17: 0.2473365695 | N17: 8762522.07 | O17: -0.04195290926
C18: Lublin Czechow | D18: 636366.83 | E18: -0.2236463042 | F18: 0.246624828 | G18: 156943.86 | H18: -0.2500582723 | I18: Lublin Czechow | J18: Lublin Czechow | K18: 35275302.93 | L18: -0.1712656226 | M18: 0.2437848714 | N18: 8599585.19 | O18: -0.1985128876
C19: Lodz | D19: 634241.79 | E19: -0.01281103801 | F19: 0.2552141984 | G19: 161867.51 | H19: -0.03778033005 | I19: Lodz | J19: Poznan Swadzim | K19: 33817426.61 | L19: 0.04226196246 | M19: 0.2473209087 | N19: 8363756.68 | O19: 0.01706304955
C20: Warszawa Okecie | D20: 624815.39 | E20: 0.07938221885 | F20: 0.2667465985 | G20: 166667.38 | H20: 0.06920415225 | I20: Warszawa Okecie | J20: Gdansk Przymorze | K20: 33661840.46 | L20: 0.009554444917 | M20: 0.2464733528 | N20: 8296746.68 | O20: -0.02213050089
C21: Wroclaw Korona | D21: 583096.97 | E21: 0.05766358886 | F21: 0.2507411589 | G21: 146206.41 | H21: 0.04595300261 | I21: Wroclaw Korona | J21: Warszawa Okecie | K21: 33614298.98 | L21: 0.02948763813 | M21: 0.2520396863 | N21: 8472137.37 | O21: -0.003644633126
C22: Poznan Swadzim | D22: 570566.54 | E22: 0.09476752939 | F22: 0.2517463607 | G22: 143638.05 | H22: 0.05731753917 | I22: Poznan Swadzim | J22: Wroclaw Korona | K22: 31009281.53 | L22: 0.001501712815 | M22: 0.2499160109 | N22: 7749715.94 | O22: -0.02302481651
C23: Opole | D23: 542753.53 | E23: 0.07919497808 | F23: 0.2468558979 | G23: 133981.91 | H23: 0.09995060102 | I23: Opole | J23: Katowice | K23: 29601808.73 | L23: 0.12574147 | M23: 0.238137514 | N23: 7049301.14 | O23: 0.01729491309
C24: Katowice | D24: 539356.4 | E24: 0.1390349761 | F24: 0.2482712359 | G24: 133906.68 | H24: 0.1937007874 | I24: Katowice | J24: Rumia | K24: 29393679.64 | L24: 0.03497972123 | M24: 0.2440105903 | N24: 7172369.12 | O24: -0.0269156624
C25: Rumia | D25: 530781.2 | E25: 0.1593853284 | F25: 0.2519598094 | G25: 133735.53 | H25: 0.1833831657 | I25: Rumia | J25: Opole | K25: 29045239.82 | L25: 0.0431303598 | M25: 0.2470086801 | N25: 7174426.35 | O25: 0.003037602193
C26: Warszawa Bemowo | D26: 507661.98 | E26: 0.2208990083 | F26: 0.2528028985 | G26: 128338.42 | H26: 0.2818607942 | I26: Warszawa Bemowo | J26: Bydgoszcz Fordon | K26: 28732185.7 | L26: -0.00117625788 | M26: 0.2453825892 | N26: 7050378.12 | O26: -0.06636100885
C27: Mikolow | D27: 478521.74 | E27: 0.08955910085 | F27: 0.2535898578 | G27: 121348.26 | H27: 0.1335024885 | I27: Mikolow | J27: Warszawa Bemowo | K27: 27702402.84 | L27: 0.06017867764 | M27: 0.2526765028 | N27: 6999746.27 | O27: 0.04656990092
C28: Bydgoszcz Fordon | D28: 472996.52 | E28: 0.02541135449 | F28: 0.2522395936 | G28: 119308.45 | H28: 0.02140780548 | I28: Bydgoszcz Fordon | J28: Szczecin Ustowo | K28: 25211536.41 | L28: -0.003433611043 | M28: 0.2413249586 | N28: 6084172.98 | O28: -0.01604835982
C29: Rzeszow | D29: 466816.52 | E29: 0.1658758905 | F29: 0.254256726 | G29: 118691.24 | H29: 0.1203292638 | I29: Rzeszow | J29: Gliwice | K29: 24449306.64 | L29: 0.04308981022 | M29: 0.2435264295 | N29: 5954052.35 | O29: 0.0002196722559
C30: Gliwice | D30: 446942.45 | E30: 0.1341090132 | F30: 0.243760869 | G30: 108947.08 | H30: 0.1685835665 | I30: Gliwice | J30: Mikolow | K30: 23557966.31 | L30: -0.009242849257 | M30: 0.2479237916 | N30: 5840580.33 | O30: -0.0127470397
C31: Szczecin Ustowo | D31: 427690.2 | E31: -0.01742792438 | F31: 0.2535159562 | G31: 108426.29 | H31: 0.05034153645 | I31: Szczecin Ustowo | J31: Poznan Komorniki | K31: 22749707.14 | L31: 0.07129688686 | M31: 0.2461937591 | N31: 5600835.92 | O31: 0.03355801387
C32: Poznan Komorniki | D32: 398857.51 | E32: 0.2023042148 | F32: 0.2518151407 | G32: 100438.36 | H32: 0.1708088075 | I32: Poznan Komorniki | J32: Rzeszow | K32: 22295062.03 | L32: 0.4954747165 | M32: 0.2478879172 | N32: 5526676.49 | O32: 0.2926926794
C33: Szczecin Struga | D33: 355474.06 | E33: 0.1008854087 | F33: 0.2594451477 | G33: 92226.02 | H33: 0.1380039967 | I33: Szczecin Struga | J33: Torun | K33: 20049661.78 | L33: 0.07761012444 | M33: 0.245271113 | N33: 4917602.86 | O33: 0.0292375832
C34: Legnica | D34: 348663.64 | E34: 0.07573667416 | F34: 0.2337943813 | G34: 81515.6 | H34: -0.07014578491 | I34: Legnica | J34: Szczecin Struga | K34: 19500649.55 | L34: 0.006464166208 | M34: 0.2442720073 | N34: 4763462.81 | O34: -0.02338733587
C35: Kielce | D35: 344379.7 | E35: 0.09424787599 | F35: 0.2487209031 | G35: 85654.43 | H35: 0.02637337326 | I35: Kielce | J35: Kielce | K35: 19408330.51 | L35: 0.1177111788 | M35: 0.2425697541 | N35: 4707873.96 | O35: 0.03458529169
C36: Zory | D36: 338631.2 | E36: 0.1766681191 | F36: 0.2450044178 | G36: 82966.14 | H36: 0.1115745568 | I36: Zory | J36: Legnica | K36: 18822854.71 | L36: -0.03212780573 | M36: 0.2379231758 | N36: 4478393.37 | O36: -0.07525038058
C37: Torun | D37: 338616.92 | E37: 0.03767815394 | F37: 0.2553573224 | G37: 86468.31 | H37: 0.0747160089 | I37: Torun | J37: Zory | K37: 17616936.36 | L37: 0.02424994845 | M37: 0.2442912617 | N37: 4303663.61 | O37: 0.0002765839751
C38: Zielona Gora | D38: 298887.71 | E38: DIV/0 | F38: 0.2522653407 | G38: 75399.01 | H38: DIV/0 | I38: Zielona Gora | J38: Czestochowa | K38: 17525979.15 | L38: 0.05255317724 | M38: 0.237590269 | N38: 4164002.1 | O38: 0.01157100525
C39: Radom | D39: 294158.47 | E39: 0.04298476875 | F39: 0.247359731 | G39: 72762.96 | H39: 0.02957393484 | I39: Radom | J39: Koszalin | K39: 17125678.65 | L39: 0.008440171373 | M39: 0.2389543319 | N39: 4092255.1 | O39: -0.04597140666
C40: Czestochowa | D40: 289760.69 | E40: 0.1897701933 | F40: 0.2458042186 | G40: 71224.4 | H40: 0.1568988614 | I40: Czestochowa | J40: Zielona Gora | K40: 17048582.69 | L40: DIV/0 | M40: 0.2509563104 | N40: 4278449.41 | O40: DIV/0
C41: Koszalin | D41: 283354.11 | E41: 0.09176364798 | F41: 0.2423678626 | G41: 68675.93 | H41: 0.05307497894 | I41: Koszalin | J41: Radom | K41: 16527751.31 | L41: 0.02910112256 | M41: 0.2412409254 | N41: 3987170.02 | O41: -0.02308480166
C42: Walbrzych (Szczawno – Zdroj) | D42: 270280.18 | E42: 0.1321664364 | F42: 0.2473704509 | G42: 66859.33 | H42: 0.07416679706 | I42: Walbrzych (Szczawno – Zdroj) | J42: Kalisz | K42: 15955069.11 | L42: 0.03756171276 | M42: 0.2426807401 | N42: 3871987.98 | O42: 0.01932147247
C43: Kalisz | D43: 248729.4 | E43: -0.0573088116 | F43: 0.2541461122 | G43: 63213.61 | H43: -0.04075533216 | I43: Kalisz | J43: Walbrzych (Szczawno – Zdroj) | K43: 15107854.05 | L43: 0.1156578905 | M43: 0.2382507488 | N43: 3599457.54 | O43: 0.04610650817
C44: Plock | D44: 245484.2 | E44: 0.2001150229 | F44: 0.2503784358 | G44: 61463.95 | H44: 0.1423286947 | I44: Plock | J44: Plock | K44: 14756909.53 | L44: 0.1003333799 | M44: 0.2350827857 | N44: 3469095.4 | O44: 0.02596345816
C45: Lublin Weglin | D45: 245297.54 | E45: DIV/0 | F45: 0.2409166843 | G45: 59096.27 | H45: DIV/0 | I45: Lublin Weglin | J45: Bytom | K45: 13327262.34 | L45: 0.1404444625 | M45: 0.2425210623 | N45: 3232141.82 | O45: 0.05660089386
C46: Bytom | D46: 238703.06 | E46: 0.06733534272 | F46: 0.2523532375 | G46: 60237.49 | H46: 0.167520117 | I46: Bytom | J46: Lublin Weglin | K46: 12969423.98 | L46: DIV/0 | M46: 0.2399401535 | N46: 3111885.58 | O46: DIV/0
C47: Tarnow | D47: 215857.61 | E47: 0.208114899 | F47: 0.2518680717 | G47: 54367.64 | H47: 0.1674824431 | I47: Tarnow | J47: Slupsk | K47: 12437372.52 | L47: -0.04737938644 | M47: 0.2314376783 | N47: 2878476.62 | O47: -0.1222128373
C48: Slupsk | D48: 214421.33 | E48: 0.01128527373 | F48: 0.2513644981 | G48: 53897.91 | H48: -0.02710551791 | I48: Slupsk | J48: Rybnik | K48: 11370363.77 | L48: 0.1194093128 | M48: 0.2411167651 | N48: 2741585.33 | O48: 0.05029375431
C49: Rybnik | D49: 208087.94 | E49: 0.2443291986 | F49: 0.2522846831 | G49: 52497.4 | H49: 0.2147637396 | J49: Tarnow | K49: 11074777 | L49: 0.031068488 | M49: 0.2360074718 | N49: 2613730.12 | O49: -0.01750080773
C50: Katowice Dabrowka | D50: 149443.52 | E50: 0.07064016885 | F50: 0.2393537706 | G50: 35769.87 | H50: -0.05946070523 | J50: Katowice Dabrowka | K50: 8730087.35 | L50: 0.1035864593 | M50: 0.2333958881 | N50: 2037566.49 | O50: 0.0590441083
C51: GNIEZNO | D51: 146829.55 | E51: DIV/0 | F51: 0.2502605232 | G51: 36745.64 | H51: DIV/0 | J51: Lodz Manufaktura | K51: 6759331.1 | L51: DIV/0 | M51: 0.249889009 | N51: 1689082.55 | O51: DIV/0
C52: Lodz Manufaktura | D52: 128612.44 | E52: DIV/0 | F52: 0.2621305528 | G52: 33713.25 | H52: DIV/0 | J52: Inowroclaw | K52: 5856840.33 | L52: DIV/0 | M52: 0.2350065415 | N52: 1376395.79 | O52: DIV/0
C53: Inowroclaw | D53: 99985.12 | E53: DIV/0 | F53: 0.2250382857 | G53: 22500.48 | H53: DIV/0 | J53: OSTROLEKA | K53: 4517762.47 | L53: DIV/0 | M53: 0.2407072256 | N53: 1087458.07 | O53: DIV/0
C54: OSTROLEKA | D54: 93028.53 | E54: DIV/0 | F54: 0.2324525605 | G54: 21624.72 | H54: DIV/0 | J54: GNIEZNO | K54: 946401.57 | L54: DIV/0 | M54: 0.2478132512 | N54: 234530.85 | O54: DIV/0
C57: Overall Result | D57: 28779244.23 | E57: 0.1292973865 | F57: 0.2476095405 | G57: 7126015.44 | H57: 0.1099887312 | J57: Overall result | K57: 1541294007 | L57: 0.07597013202 | M57: 0.2444300688 | N57: 376738600.2 | O57: 0.02681531321

Sheet Marza sklep W-1 i YTD
B1: See worksheet info, click (+)
B2: Below you find the information concerning sales value, margin rate, margin pln and sales quantities of your store for previous week.
B3: You will find as well the margin rate and the TO per range YTD
B4: If you click on the (+) below your store in rows, you will have the detail per sport.
B5: If you click on the (+) in column you will have the TO per range YTD (next to margin rate per range) Columns O - AA
C7: Filtr sklep | D7: Filtr Sport | E7: Obrót | I7: Marża pln Tydzień (-1) | M7: Marża % Tydzień (-1) | Q7: Marża % YTD na gamy | AE7: Ilości sprzedany tydzień (-1)
B8: ID | C8: Sklep | D8: Sport | E8: Produkty aktywne | F8: 900000 | G8: E8 | H8: Total | I8: Produkty aktywne | J8: 900000 | K8: E8 | L8: Total | M8: Produkty aktywne | N8: 900000 | O8: E8 | P8: Total | Q8: Total | R8: Sales Value Total | S8: Range 0 | T8: Sales Value R0 | U8: Range 1 | V8: Sales Value R1 | W8: Range 2 | X8: Sales Value R2 | Y8: Range 3 | Z8: Sales Value R3 | AA8: Range 4 | AB8: Sales Value R4 | AC8: Range 5 | AD8: Sales Value R5 | AE8: Produkty aktywne | AF8: 900000 | AG8: E8 | AH8: Total
A9: Overall Result | B9: Overall Result | E9: 26443126.42 | F9: 2264785.91 | G9: 71625.4 | H9: 28779537.73 | I9: 6880495.07 | J9: 258744.32 | K9: -13142.67 | L9: 7126096.72 | M9: 0.260199757 | N9: 0.1142467016 | O9: -0.1834917501 | P9: 0.2476132113 | Q9: 0.2444300688 | R9: 1541294007 | S9: 0.2006825734 | T9: 8114069.86 | U9: 0.253595945 | V9: 883314954.2 | W9: 0.2384669174 | X9: 493696218.9 | Y9: 0.2153082215 | Z9: 138541215.5 | AA9: 0.1971531257 | AB9: 13156724.96 | AC9: 0.2129338244 | AD9: 4470823.8 | AE9: 662789 | AF9: 47803 | AG9: 2463 | AH9: 713055
A10: I262Kid cycling Univ | B10: I262 | C10: Decathlon.pl Lodz OMS | D10: Kid cycling Univ | E10: 25817.33 | F10: 3442.18 | H10: 29259.51 | I10: 3806.48 | J10: 295.85 | L10: 4102.33 | M10: 0.147438949 | N10: 0.08594843965 | P10: 0.1402050137 | Q10: 0.1834883392 | R10: 4284343.7 | S10: 0.1144798469 | T10: 91170.37 | U10: 0.190340808 | V10: 1122287.45 | W10: 0.1886655521 | X10: 1946580.74 | Y10: 0.1742580755 | Z10: 1088798.78 | AA10: 0.1406268149 | AB10: 26086.49 | AC10: 0.1507101478 | AD10: 9419.87 | AE10: 168 | AF10: 34 | AH10: 202
A11: I262Boating, Dinghy, Windsurf | B11: I262 | C11: Decathlon.pl Lodz OMS | D11: Boating, Dinghy, Windsurf | E11: 77063.91 | F11: 10008.36 | H11: 87072.27 | I11: 15890.47 | J11: 1045.94 | L11: 16936.41 | M11: 0.2061985954 | N11: 0.1045066325 | P11: 0.194509802 | Q11: 0.2217717304 | R11: 2127477.47 | S11: 0.210850378 | T11: 1659.85 | U11: 0.2339079245 | V11: 868105.39 | W11: 0.2086014428 | X11: 745720.01 | Y11: 0.2186119752 | Z11: 419313.26 | AA11: 0.2285575928 | AB11: 92678.96 | AC11: 0 | AD11: 0 | AE11: 802 | AF11: 142 | AH11: 944
A12: I262Jogging Univ | B12: I262 | C12: Decathlon.pl Lodz OMS | D12: Jogging Univ | E12: 153741.15 | F12: 11431.59 | H12: 165172.74 | I12: 35002.42 | J12: 1540.25 | L12: 36542.67 | M12: 0.2276711212 | N12: 0.1347362878 | P12: 0.22123911 | Q12: 0.2200199916 | R12: 5305953.48 | S12: 0.1396387374 | T12: 80226.95 | U12: 0.2269882936 | V12: 2827852 | W12: 0.2167722022 | X12: 1468552.41 | Y12: 0.2131476894 | Z12: 761093.73 | AA12: 0.2002802583 | AB12: 166403.62 | AC12: 0.2354707717 | AD12: 1824.77 | AE12: 3961 | AF12: 410 | AH12: 4371
A13: I262Hiking univ | B13: I262 | C13: Decathlon.pl Lodz OMS | D13: Hiking univ | E13: 556010.23 | F13: 86797.55 | H13: 642807.78 | I13: 129217.78 | J13: 9844.83 | L13: 139062.61 | M13: 0.2324018031 | N13: 0.1134229019 | P13: 0.2163362273 | Q13: 0.2315774686 | R13: 23878773.8 | S13: 0.3517576607 | T13: 53433.52 | U13: 0.2172179047 | V13: 10801852.7 | W13: 0.2486824856 | X13: 7639593.9 | Y13: 0.2382583986 | Z13: 5097940.04 | AA13: 0.2091035069 | AB13: 154672.92 | AC13: 0.1358283989 | AD13: 131280.72 | AE13: 9040 | AF13: 1679 | AH13: 10719
A14: I262Fitness Cardio univ | B14: I262 | C14: Decathlon.pl Lodz OMS | D14: Fitness Cardio univ | E14: 148717.91 | F14: 46543.17 | H14: 195261.08 | I14: 30346.8 | J14: 5512.79 | L14: 35859.59 | M14: 0.2040561221 | N14: 0.1184446612 | P14: 0.1836494503 | Q14: 0.181531085 | R14: 8016134.37 | S14: 0.1617282073 | T14: 216277.3 | U14: 0.1907423273 | V14: 3531266.13 | W14: 0.167399596 | X14: 2744027.65 | Y14: 0.1884351633 | Z14: 1385261.41 | AA14: 0.1884858266 | AB14: 139301.88 | AC14: 0 | AD14: 0 | AE14: 1552 | AF14: 137 | AH14: 1689
A15: I262Hunting univ | B15: I262 | C15: Decathlon.pl Lodz OMS | D15: Hunting univ | E15: 90475.19 | F15: 9419.73 | H15: 99894.92 | I15: 23425.64 | J15: 1843.44 | L15: 25269.08 | M15: 0.2589178315 | N15: 0.1956998767 | P15: 0.2529566068 | Q15: 0.2472855305 | R15: 2265654.52 | S15: 0.2331005546 | T15: 69884.69 | U15: 0.2515202832 | V15: 1098436.82 | W15: 0.2546757169 | X15: 632428.69 | Y15: 0.2315063779 | Z15: 442240.3 | AA15: 0.2531086414 | AB15: 4844.56 | AC15: 0.1696123227 | AD15: 17819.46 | AE15: 1253 | AF15: 162 | AH15: 1415
A16: I262Tennis univ | B16: I262 | C16: Decathlon.pl Lodz OMS | D16: Tennis univ | E16: 52828.6 | F16: 10742.58 | H16: 63571.18 | I16: 11974.26 | J16: 745.73 | L16: 12719.99 | M16: 0.2266624518 | N16: 0.06941814722 | P16: 0.2000905127 | Q16: 0.1918973503 | R16: 3208111.78 | S16: 0.2016603536 | T16: 68893.76 | U16: 0.2252738587 | V16: 1523009.07 | W16: 0.1769963125 | X16: 847933.88 | Y16: 0.1604121798 | Z16: 530929.51 | AA16: 0.07357102248 | AB16: 143670.56 | AC16: 0.13687921 | AD16: 93675 | AE16: 2204 | AF16: 356 | AH16: 2560
A17: I262Triathlon, Nutrition & Care univ | B17: I262 | C17: Decathlon.pl Lodz OMS | D17: Triathlon, Nutrition & Care univ | E17: 12271.36 | F17: 89.97 | H17: 12361.33 | I17: 3243.1 | J17: 14.24 | L17: 3257.34 | M17: 0.2642820356 | N17: 0.1582749805 | P17: 0.2635104799 | Q17: 0.2888489046 | R17: 418791.86 | S17: 0 | T17: 0 | U17: 0.3337870528 | V17: 136802.58 | W17: 0.2908459165 | X17: 146892.04 | Y17: 0.2635434173 | Z17: 96082.84 | AA17: 0.09201638968 | AB17: 19736.81 | AC17: 0.2823786583 | AD17: 19277.59 | AE17: 414 | AF17: 3 | AH17: 417
A18: I262Football univ | B18: I262 | C18: Decathlon.pl Lodz OMS | D18: Football univ | E18: 299187.81 | F18: 19843.67 | H18: 319031.48 | I18: 73998.79 | J18: 3289.06 | L18: 77287.85 | M18: 0.2473322359 | N18: 0.1657485737 | P18: 0.2422577546 | Q18: 0.2379495697 | R18: 6518678.86 | S18: 0.1475951301 | T18: 5419.42 | U18: 0.2424251296 | V18: 3654627.52 | W18: 0.2411449561 | X18: 1759974.61 | Y18: 0.2339447744 | Z18: 945902 | AA18: 0.1216439162 | AB18: 151885.36 | AC18: 0.1949997126 | AD18: 869.95 | AE18: 10032 | AF18: 485 | AH18: 10517
A19: I262Skate Scooter Inline univ | B19: I262 | C19: Decathlon.pl Lodz OMS | D19: Skate Scooter Inline univ | E19: 81784.34 | F19: 9799.39 | H19: 91583.73 | I19: 17710.95 | J19: 704.36 | L19: 18415.31 | M19: 0.2165567393 | N19: 0.07187794342 | P19: 0.2010762174 | Q19: 0.2358782438 | R19: 8406392.67 | S19: 0.2200179762 | T19: 375251.52 | U19: 0.2331891411 | V19: 3374626.65 | W19: 0.2403032434 | X19: 2545017.21 | Y19: 0.2341906107 | Z19: 1548843.35 | AA19: 0.2507522007 | AB19: 233408.44 | AC19: 0.2447068525 | AD19: 329245.5 | AE19: 637 | AF19: 61 | AH19: 698
A20: I262Services | B20: I262 | C20: Decathlon.pl Lodz OMS | D20: Services | H20: 0 | L20: 0 | Q20: 0.33558275 | R20: 72572.89 | S20: 0 | T20: 0 | U20: 0.3474097754 | V20: 63573.83 | W20: 0.2375823852 | X20: 1629.54 | Y20: 0.2290123047 | Z20: 5719.78 | AA20: 0.3461090839 | AB20: 1649.74 | AC20: 0 | AD20: 0 | AH20: 0
A21: I262Swimming univ | B21: I262 | C21: Decathlon.pl Lodz OMS | D21: Swimming univ | E21: 117574.59 | F21: 12242.62 | H21: 129817.21 | I21: 34432.64 | J21: 2757.82 | L21: 37190.46 | M21: 0.292857836 | N21: 0.2252638733 | P21: 0.2864832791 | Q21: 0.291956981 | R21: 5732683.68 | S21: 0 | T21: 0 | U21: 0.2975583275 | V21: 2529986.36 | W21: 0.2893799453 | X21: 1786057.46 | Y21: 0.2892647035 | Z21: 1246032.84 | AA21: 0.2555714098 | AB21: 170547.05 | AC21: 0.1505752876 | AD21: 59.97 | AE21: 4448 | AF21: 517 | AH21: 4965
A22: I262Horse riding univ | B22: I262 | C22: Decathlon.pl Lodz OMS | D22: Horse riding univ | E22: 95345.9 | F22: 8911.74 | H22: 104257.64 | I22: 26648.98 | J22: 1212.01 | L22: 27860.99 | M22: 0.2794979123 | N22: 0.1360014991 | P22: 0.2672321184 | Q22: 0.2672611078 | R22: 3165671.38 | S22: 0.2220247215 | T22: 15898.68 | U22: 0.2744437428 | V22: 1745742.88 | W22: 0.2762442293 | X22: 805650.35 | Y22: 0.2615811774 | Z22: 417885.19 | AA22: 0.1881083155 | AB22: 166346.66 | AC22: 0.01868724209 | AD22: 14147.62 | AE22: 1512 | AF22: 127 | AH22: 1639
A23: I262saltwater Fishing univ | B23: I262 | C23: Decathlon.pl Lodz OMS | D23: saltwater Fishing univ | E23: 815.25 | F23: 29.98 | H23: 845.23 | I23: 203.39 | J23: 7.34 | L23: 210.73 | M23: 0.2494817541 | N23: 0.2448298866 | P23: 0.249316754 | Q23: 0.2257261082 | R23: 105153.41 | S23: 0 | T23: 0 | U23: 0.2023142901 | V23: 55725.08 | W23: 0.2566931846 | X23: 21137.92 | Y23: 0.2518661675 | Z23: 26073.49 | AA23: 0.2222222222 | AB23: 9.99 | AC23: 0.21146117 | AD23: 2206.93 | AE23: 25 | AF23: 2 | AH23: 27
A24: I262Target sport univ | B24: I262 | C24: Decathlon.pl Lodz OMS | D24: Target sport univ | E24: 5088.41 | F24: 104.98 | H24: 5193.39 | I24: 1277.09 | J24: 32.7 | L24: 1309.79 | M24: 0.2509801687 | N24: 0.3114879025 | P24: 0.2522032815 | Q24: 0.2578243034 | R24: 360952.9 | S24: 0.1814200364 | T24: 1949.95 | U24: 0.2656822742 | V24: 231373.17 | W24: 0.2479948262 | X24: 108021.81 | Y24: 0.2877950773 | Z24: 9750.41 | AA24: 0.1665675887 | AB24: 9857.56 | AC24: 0 | AD24: 0 | AE24: 94 | AF24: 2 | AH24: 96
A25: I262Golf univ | B25: I262 | C25: Decathlon.pl Lodz OMS | D25: Golf univ | E25: 20806.85 | F25: 7182.98 | G25: 34.99 | H25: 28024.82 | I25: 6438.6 | J25: 1396.53 | K25: 2.71 | L25: 7837.84 | M25: 0.309446168 | N25: 0.1944220922 | O25: 0.0774507002 | P25: 0.2796749453 | Q25: 0.2389199132 | R25: 1259258.41 | S25: 0.2382983692 | T25: 5138.6 | U25: 0.2926565399 | V25: 449751.61 | W25: 0.2305543075 | X25: 337999.02 | Y25: 0.1924566213 | Z25: 396497.66 | AA25: 0.1972035244 | AB25: 69871.52 | AC25: 0 | AD25: 0 | AE25: 527 | AF25: 164 | AG25: 1 | AH25: 692
A26: I262Walking univ | B26: I262 | C26: Decathlon.pl Lodz OMS | D26: Walking univ | E26: 64302.65 | F26: 5700.61 | G26: 179.99 | H26: 70183.25 | I26: 17936.25 | J26: 1135.45 | K26: 12.63 | L26: 19084.33 | M26: 0.2789348495 | N26: 0.1991804386 | O26: 0.07017056503 | P26: 0.2719214342 | Q26: 0.2532674214 | R26: 3348732.4 | S26: 0 | T26: 0 | U26: 0.2580720491 | V26: 1505592.3 | W26: 0.2610436359 | X26: 1164204.44 | Y26: 0.2315594941 | Z26: 642074.17 | AA26: 0.2062826038 | AB26: 27512.16 | AC26: 0.1403009627 | AD26: 9349.33 | AE26: 684 | AF26: 69 | AG26: 1 | AH26: 754
A27: I262Ski Snowboard Sledge univ | B27: I262 | C27: Decathlon.pl Lodz OMS | D27: Ski Snowboard Sledge univ | E27: 100696.05 | F27: 37319.97 | G27: 1149 | H27: 139165.02 | I27: 26530.77 | J27: 5266.09 | K27: -2.13 | L27: 31794.73 | M27: 0.2634737907 | N27: 0.1411064907 | O27: -0.001853785901 | P27: 0.2284678291 | Q27: 0.2421361573 | R27: 6275020.95 | S27: 0.1905281444 | T27: 195952.1 | U27: 0.2726278634 | V27: 2921044.79 | W27: 0.24685135 | X27: 1647611.65 | Y27: 0.2201317015 | Z27: 969999.68 | AA27: 0.113718943 | AB27: 469336.23 | AC27: 0.1702617602 | AD27: 71076.5 | AE27: 3265 | AF27: 724 | AG27: 1 | AH27: 3990
A28: I262Climbing, Mountaineering univ | B28: I262 | C28: Decathlon.pl Lodz OMS | D28: Climbing, Mountaineering univ | E28: 34630.46 | F28: 1079.94 | H28: 35710.4 | I28: 8495.79 | J28: 59.76 | L28: 8555.55 | M28: 0.2453270907 | N28: 0.05533640758 | P28: 0.2395814665 | Q28: 0.2405832914 | R28: 1319762.89 | S28: 0.2511259773 | T28: 54641.42 | U28: 0.2338283137 | V28: 458773.74 | W28: 0.2596470247 | X28: 358898.74 | Y28: 0.2307906041 | Z28: 444802.25 | AA28: 0.2524084945 | AB28: 2316.8 | AC28: 0.2690792265 | AD28: 329.94 | AE28: 255 | AF28: 6 | AH28: 261
A29: I262Boxing Univ | B29: I262 | C29: Decathlon.pl Lodz OMS | D29: Boxing Univ | E29: 5878.93 | F29: 1079.73 | H29: 6958.66 | I29: 1856.72 | J29: 138.94 | L29: 1995.66 | M29: 0.3158261793 | N29: 0.1286803182 | P29: 0.2867879735 | Q29: 0.2838729119 | R29: 392538.44 | S29: 0 | T29: 0 | U29: 0.275360014 | V29: 204794.84 | W29: 0.3123031975 | X29: 130168.6 | Y29: 0.2498766826 | Z29: 57575 | AA29: 0 | AB29: 0 | AC29: 0 | AD29: 0 | AE29: 108 | AF29: 27 | AH29: 135
A30: I262Univ Iceskating, Ice hockey | B30: I262 | C30: Decathlon.pl Lodz OMS | D30: Univ Iceskating, Ice hockey | E30: 9309.8 | F30: 3873.6 | H30: 13183.4 | I30: 2133.76 | J30: 168.94 | L30: 2302.7 | M30: 0.2291950418 | N30: 0.04361317637 | P30: 0.1746666262 | Q30: 0.1530417625 | R30: 656548.96 | S30: 0.2198740871 | T30: 8574.18 | U30: 0.1663143824 | V30: 153342.06 | W30: 0.1466279198 | X30: 236567.77 | Y30: 0.1469909557 | Z30: 239990.82 | AA30: 0.1707824029 | AB30: 16949.58 | AC30: 0.2068116135 | AD30: 1124.55 | AE30: 170 | AF30: 40 | AH30: 210
A31: I262Diving univ | B31: I262 | C31: Decathlon.pl Lodz OMS | D31: Diving univ | E31: 42361.01 | F31: 4372.52 | H31: 46733.53 | I31: 6565.71 | J31: 852.03 | L31: 7417.74 | M31: 0.1549941798 | N31: 0.1948601722 | P31: 0.1587241537 | Q31: 0.2201275022 | R31: 3622176.52 | S31: 0.2426427944 | T31: 72366.13 | U31: 0.2360708414 | V31: 1296261.53 | W31: 0.2090767444 | X31: 1240905.06 | Y31: 0.2036414412 | Z31: 863711.33 | AA31: 0.260956713 | AB31: 38495.35 | AC31: 0.2571107432 | AD31: 110437.12 | AE31: 654 | AF31: 49 | AH31: 703
A32: I262Surf, bodyboard, towed/aerial sports | B32: I262 | C32: Decathlon.pl Lodz OMS | D32: Surf, bodyboard, towed/aerial sports | E32: 32449.95 | F32: 5923.99 | H32: 38373.94 | I32: 7144.65 | J32: 874.02 | L32: 8018.67 | M32: 0.2201744533 | N32: 0.1475390742 | P32: 0.208961342 | Q32: 0.2211929107 | R32: 3681586.03 | S32: 0.1764569983 | T32: 5107.59 | U32: 0.2372995858 | V32: 1548565.83 | W32: 0.2294846201 | X32: 1289185 | Y32: 0.1787776065 | Z32: 741609.66 | AA32: 0.1630334375 | AB32: 48313.77 | AC32: 0.197879362 | AD32: 48804.18 | AE32: 1146 | AF32: 204 | AH32: 1350
A33: I262Kayak, stand up paddle univ | B33: I262 | C33: Decathlon.pl Lodz OMS | D33: Kayak, stand up paddle univ | E33: 3749.57 | F33: 4988.77 | H33: 8738.34 | I33: 977.77 | J33: 1045.97 | L33: 2023.74 | M33: 0.2607685681 | N33: 0.2096649074 | P33: 0.2315931859 | Q33: 0.245142592 | R33: 1083482.18 | S33: 0.3233843998 | T33: 3139.7 | U33: 0.244914262 | V33: 481887.29 | W33: 0.2427462288 | X33: 266468.98 | Y33: 0.2521989119 | Z33: 199556.65 | AA33: 0.2382259972 | AB33: 132169.58 | AC33: 0.2795984306 | AD33: 259.98 | AE33: 43 | AF33: 24 | AH33: 67
A34: I262Basket univ | B34: I262 | C34: Decathlon.pl Lodz OMS | D34: Basket univ | E34: 26404.67 | F34: 1280.26 | G34: 119.99 | H34: 27804.92 | I34: 6618.03 | J34: 365.61 | K34: 75.75 | L34: 7059.39 | M34: 0.2506386181 | N34: 0.2855748051 | O34: 0.6313026086 | P34: 0.253889959 | Q34: 0.200555202 | R34: 1388017.45 | S34: 0 | T34: 0 | U34: 0.2548911018 | V34: 448656.58 | W34: 0.1782571309 | X34: 570870.29 | Y34: 0.1548187252 | Z34: 294228.75 | AA34: 0.2249032915 | AB34: 74261.83 | AC34: 0 | AD34: 0 | AE34: 539 | AF34: 35 | AG34: 1 | AH34: 575
A35: I262Kite sports univ | B35: I262 | C35: Decathlon.pl Lodz OMS | D35: Kite sports univ | E35: 2873.35 | F35: 329.95 | H35: 3203.3 | I35: 704.13 | J35: 89.83 | L35: 793.96 | M35: 0.2450554231 | N35: 0.2722533717 | P35: 0.2478568976 | Q35: 0.2317961771 | R35: 121922.33 | S35: 0 | T35: 0 | U35: 0.2140820575 | V35: 47965.86 | W35: 0.2429066188 | X35: 36147.43 | Y35: 0.2497211696 | Z35: 34277.11 | AA35: 0.1846950534 | AB35: 3531.93 | AC35: 0 | AD35: 0 | AE35: 65 | AF35: 5 | AH35: 70
A36: I262Trekking several days univ | B36: I262 | C36: Decathlon.pl Lodz OMS | D36: Trekking several days univ | E36: 191658.49 | F36: 26229.65 | H36: 217888.14 | I36: 44501.77 | J36: 8010.47 | L36: 52512.24 | M36: 0.2321930534 | N36: 0.3053975177 | P36: 0.2410054994 | Q36: 0.2546647513 | R36: 7393733.37 | S36: 0.2343809912 | T36: 97252.81 | U36: 0.2701029923 | V36: 2680569.97 | W36: 0.2648073239 | X36: 2145239.08 | Y36: 0.2460608008 | Z36: 2173076.81 | AA36: 0.099076194 | AB36: 228545.82 | AC36: 0.1545513845 | AD36: 69048.88 | AE36: 2201 | AF36: 937 | AH36: 3138
A37: I262Cross country ski univ | B37: I262 | C37: Decathlon.pl Lodz OMS | D37: Cross country ski univ | E37: 959.89 | F37: 2361.39 | H37: 3321.28 | I37: 248.79 | J37: 115.69 | L37: 364.48 | M37: 0.2591859484 | N37: 0.04899233079 | P37: 0.1097408228 | Q37: 0.1821883448 | R37: 231959.24 | S37: 0 | T37: 0 | U37: 0.2165182332 | V37: 57638.61 | W37: 0.1769378802 | X37: 97457.65 | Y37: 0.1731480494 | Z37: 59544.65 | AA37: 0.1285614722 | AB37: 17318.33 | AC37: 0 | AD37: 0 | AE37: 11 | AF37: 63 | AH37: 74
A38: I262Canyoning univ | B38: I262 | C38: Decathlon.pl Lodz OMS | D38: Canyoning univ | H38: 0 | L38: 0 | Q38: 0.2221563417 | R38: 21233.74 | S38: 0 | T38: 0 | U38: 0 | V38: 0 | W38: 0.2705880948 | X38: 3349.63 | Y38: 0.1729897066 | Z38: 7384.37 | AA38: 0.2397476036 | AB38: 9329.77 | AC38: 0.2535364155 | AD38: 1169.97 | AH38: 0
A39: I262Handball univ | B39: I262 | C39: Decathlon.pl Lodz OMS | D39: Handball univ | E39: 9417.7 | F39: 265.63 | H39: 9683.33 | I39: 2197.31 | J39: 77.58 | L39: 2274.89 | M39: 0.2333170519 | N39: 0.2920603847 | P39: 0.2349284802 | Q39: 0.2270851527 | R39: 160922.63 | S39: 0 | T39: 0 | U39: 0.244897895 | V39: 57209.72 | W39: 0.2386994687 | X39: 41552.25 | Y39: 0.2026442084 | Z39: 59580.78 | AA39: 0.209467107 | AB39: 2579.88 | AC39: 0 | AD39: 0 | AE39: 176 | AF39: 6 | AH39: 182
A40: I262Cross-training, bodybuilding univ | B40: I262 | C40: Decathlon.pl Lodz OMS | D40: Cross-training, bodybuilding univ | E40: 38166.95 | F40: 5985.59 | H40: 44152.54 | I40: 7790.83 | J40: 1544.76 | L40: 9335.59 | M40: 0.2041250349 | N40: 0.2580798217 | P40: 0.2114394778 | Q40: 0.2314252336 | R40: 1789456.42 | S40: 0 | T40: 0 | U40: 0.2368318749 | V40: 709938.01 | W40: 0.229708292 | X40: 646699.38 | Y40: 0.2230767713 | Z40: 423690.64 | AA40: 0.3200641077 | AB40: 9128.39 | AC40: 0 | AD40: 0 | AE40: 428 | AF40: 132 | AH40: 560
A41: I262Yoga univ | B41: I262 | C41: Decathlon.pl Lodz OMS | D41: Yoga univ | E41: 11222.64 | F41: 2051.32 | H41: 13273.96 | I41: 3179.63 | J41: 295 | L41: 3474.63 | M41: 0.2833228189 | N41: 0.1438098395 | P41: 0.2617628801 | Q41: 0.2683650922 | R41: 586096.16 | S41: 0.2538892827 | T41: 9579.53 | U41: 0.2940627342 | V41: 281451.27 | W41: 0.223563447 | X41: 211763.33 | Y41: 0.2963043617 | Z41: 79947.76 | AA41: 0.3159763525 | AB41: 3354.27 | AC41: 0 | AD41: 0 | AE41: 237 | AF41: 68 | AH41: 305
A42: I262Dance, Artistic/Rhythmic Gym univ | B42: I262 | C42: Decathlon.pl Lodz OMS | D42: Dance, Artistic/Rhythmic Gym univ | E42: 32844.28 | F42: 2709.04 | H42: 35553.32 | I42: 11592.74 | J42: 187.79 | L42: 11780.53 | M42: 0.3529606982 | N42: 0.06931975903 | P42: 0.3313482398 | Q42: 0.3192089631 | R42: 825954.94 | S42: 0 | T42: 0 | U42: 0.3279757289 | V42: 447887.99 | W42: 0.3094184527 | X42: 269720.63 | Y42: 0.3209560209 | Z42: 74284.57 | AA42: 0.2776489758 | AB42: 34061.75 | AC42: 0 | AD42: 0 | AE42: 862 | AF42: 96 | AH42: 958
A43: I262Gym, Pilates univ | B43: I262 | C43: Decathlon.pl Lodz OMS | D43: Gym, Pilates univ | E43: 166600.36 | F43: 30506.03 | H43: 197106.39 | I43: 41285.84 | J43: 4477.47 | L43: 45763.31 | M43: 0.2478136302 | N43: 0.1467732773 | P43: 0.2321756793 | Q43: 0.2285297875 | R43: 7789377.83 | S43: 0.1835281204 | T43: 154092.19 | U43: 0.2352513794 | V43: 4519067.19 | W43: 0.2262069049 | X43: 2138425.97 | Y43: 0.2146536092 | Z43: 871640.69 | AA43: 0.2185930951 | AB43: 48608.26 | AC43: 0.1260758594 | AD43: 57543.53 | AE43: 6497 | AF43: 862 | AH43: 7359
A44: I262Rugby univ | B44: I262 | C44: Decathlon.pl Lodz OMS | D44: Rugby univ | E44: 1716.15 | F44: 189.98 | H44: 1906.13 | I44: 476.79 | J44: 61.35 | L44: 538.14 | M44: 0.2778253649 | N44: 0.3229287293 | P44: 0.2823207231 | Q44: 0.18617731 | R44: 88812.38 | S44: 0 | T44: 0 | U44: 0.1752658142 | V44: 48202.84 | W44: -0.05538117583 | X44: 12899.69 | Y44: 0.322326503 | Z44: 26969.92 | AA44: 0.1429047649 | AB44: 479.97 | AC44: 0.150907832 | AD44: 259.96 | AE44: 44 | AF44: 2 | AH44: 46
A45: I262Table tennis univ | B45: I262 | C45: Decathlon.pl Lodz OMS | D45: Table tennis univ | E45: 27337.47 | H45: 27337.47 | I45: 4689.27 | L45: 4689.27 | M45: 0.1715326985 | P45: 0.1715326985 | Q45: 0.1657718104 | R45: 1451419.27 | S45: 0.153559072 | T45: 90732.64 | U45: 0.1621622387 | V45: 324993.54 | W45: 0.2079681703 | X45: 496786.07 | Y45: 0.1396750067 | Z45: 251385.49 | AA45: 0.1815568497 | AB45: 155573.53 | AC45: 0.05529829933 | AD45: 131948 | AE45: 253 | AH45: 253
A46: I262Badminton univ | B46: I262 | C46: Decathlon.pl Lodz OMS | D46: Badminton univ | E46: 6340.26 | F46: 10076.24 | H46: 16416.5 | I46: 1069.2 | J46: 1023.66 | L46: 2092.86 | M46: 0.1686366174 | N46: 0.1015914667 | P46: 0.1274851521 | Q46: 0.159115807 | R46: 638426.2 | S46: 0.133919586 | T46: 14875.27 | U46: 0.1582705207 | V46: 324978.27 | W46: 0.1517234708 | X46: 169025.2 | Y46: 0.1749623494 | Z46: 125183.79 | AA46: 0.1392122658 | AB46: 3863.74 | AC46: 0.1434400816 | AD46: 499.93 | AE46: 180 | AF46: 77 | AH46: 257
A47: I262Padel univ | B47: I262 | C47: Decathlon.pl Lodz OMS | D47: Padel univ | E47: 429.97 | H47: 429.97 | I47: 106.37 | L47: 106.37 | M47: 0.2473893527 | P47: 0.2473893527 | Q47: 0.2039351764 | R47: 17472.66 | S47: 0.1734542153 | T47: 759.97 | U47: 0.2280354514 | V47: 1025.63 | W47: 0.2390829669 | X47: 4309.55 | Y47: 0.2967098903 | Z47: 899.97 | AA47: 0.192599421 | AB47: 8797.69 | AC47: 0.1225049856 | AD47: 1679.85 | AE47: 3 | AH47: 3
A48: I262Squash univ | B48: I262 | C48: Decathlon.pl Lodz OMS | D48: Squash univ | E48: 364.91 | H48: 364.91 | I48: 103.59 | L48: 103.59 | M48: 0.2838782165 | P48: 0.2838782165 | Q48: 0.2276909491 | R48: 68873.84 | S48: 0.3097442827 | T48: 2264.61 | U48: 0.2306939575 | V48: 20499.67 | W48: 0.204004784 | X48: 13737.57 | Y48: 0.2259418063 | Z48: 17557.22 | AA48: 0.2325064656 | AB48: 6039.66 | AC48: 0.2367662628 | AD48: 8775.11 | AE48: 9 | AH48: 9
B49: I262 | C49: Decathlon.pl Lodz OMS | D49: Workshop Univ | H49: 0 | L49: 0 | AH49: 0
A50: I262Road running Univ | B50: I262 | C50: Decathlon.pl Lodz OMS | D50: Road running Univ | E50: 44952.53 | F50: 7799.16 | H50: 52751.69 | I50: 9471.52 | J50: 900.22 | L50: 10371.74 | M50: 0.2107004878 | N50: 0.1154252509 | P50: 0.1966143644 | Q50: 0.2109535122 | R50: 2587040.17 | S50: 0.1965785899 | T50: 14164.92 | U50: 0.2770005188 | V50: 533599.47 | W50: 0.2043565589 | X50: 828115.97 | Y50: 0.2073224077 | Z50: 730142.35 | AA50: 0.1551134976 | AB50: 466738.17 | AC50: 0.1505796157 | AD50: 14279.29 | AE50: 978 | AF50: 85 | AH50: 1063
A51: I262Trail running Univ | B51: I262 | C51: Decathlon.pl Lodz OMS | D51: Trail running Univ | E51: 17529.11 | H51: 17529.11 | I51: 3316.07 | L51: 3316.07 | M51: 0.1891750351 | P51: 0.1891750351 | Q51: 0.2134630389 | R51: 1015077.51 | S51: 0.1659423008 | T51: 152855.54 | U51: 0.2533888483 | V51: 220699.61 | W51: 0.2141263933 | X51: 337301.95 | Y51: 0.212545813 | Z51: 257568.8 | AA51: 0.1610120577 | AB51: 38202.17 | AC51: 0.2689030279 | AD51: 8449.44 | AE51: 156 | AH51: 156
A52: I262Atlhétic running Univ | B52: I262 | C52: Decathlon.pl Lodz OMS | D52: Atlhétic running Univ | E52: 24751.34 | F52: 2159.48 | H52: 26910.82 | I52: 5094.46 | J52: 343.34 | L52: 5437.8 | M52: 0.205825624 | N52: 0.1589919796 | P52: 0.2020674212 | Q52: 0.2160143943 | R52: 977756.37 | S52: 0 | T52: 0 | U52: 0.212909247 | V52: 447749.74 | W52: 0.2168301065 | X52: 340859.4 | Y52: 0.2217195477 | Z52: 182589.99 | AA52: 0.2267783397 | AB52: 6557.24 | AC52: 0 | AD52: 0 | AE52: 571 | AF52: 52 | AH52: 623
A53: I262Orienting run Univ | B53: I262 | C53: Decathlon.pl Lodz OMS | D53: Orienting run Univ | H53: 0 | L53: 0 | AH53: 0
A54: I262predator fishing | B54: I262 | C54: Decathlon.pl Lodz OMS | D54: predator fishing | E54: 7063.54 | F54: 149.96 | H54: 7213.5 | I54: 1455.3 | J54: -5.7 | L54: 1449.6 | M54: 0.2060298377 | N54: -0.03801013604 | P54: 0.2009565398 | Q54: 0.2058683335 | R54: 327065.94 | S54: 0.26272034 | T54: 159.98 | U54: 0.2263311116 | V54: 158635.46 | W54: 0.2077818808 | X54: 91073.87 | Y54: 0.1573233089 | Z54: 75311.79 | AA54: 0.3384554532 | AB54: 1339.94 | AC54: 0.2955404661 | AD54: 544.9 | AE54: 182 | AF54: 4 | AH54: 186
A55: I262Coarse fishing univ | B55: I262 | C55: Decathlon.pl Lodz OMS | D55: Coarse fishing univ | E55: 2959.18 | F55: 64.96 | H55: 3024.14 | I55: 776.65 | J55: 7.94 | L55: 784.59 | M55: 0.2624544637 | N55: 0.122229064 | P55: 0.2594423539 | Q55: 0.2128109264 | R55: 223151.7 | S55: 0.1842449419 | T55: 129.99 | U55: 0.2111781035 | V55: 147696.61 | W55: 0.2343963802 | X55: 49417.7 | Y55: 0.1785471773 | Z55: 24107.69 | AA55: 0.0960960961 | AB55: 39.96 | AC55: 0.2178434437 | AD55: 1759.75 | AE55: 54 | AF55: 4 | AH55: 58
A56: I262Carpe fishing univ | B56: I262 | C56: Decathlon.pl Lodz OMS | D56: Carpe fishing univ | E56: 6863.55 | F56: 186.97 | H56: 7050.52 | I56: 1149.24 | J56: 11.18 | L56: 1160.42 | M56: 0.1674410473 | N56: 0.05979568915 | P56: 0.1645864419 | Q56: 0.1634198318 | R56: 408877.18 | S56: 0.2749983333 | T56: 1049.97 | U56: 0.1665449072 | V56: 81143.58 | W56: 0.1858570058 | X56: 176585.38 | Y56: 0.1319717499 | Z56: 133146.45 | AA56: 0.1544356363 | AB56: 16851.81 | AC56: 0.2213221322 | AD56: 99.99 | AE56: 61 | AF56: 7 | AH56: 68
A57: I262Road cycling Univ | B57: I262 | C57: Decathlon.pl Lodz OMS | D57: Road cycling Univ | E57: 161721.01 | F57: 33759.52 | H57: 195480.53 | I57: 39395.18 | J57: 2908.47 | L57: 42303.65 | M57: 0.2435996411 | N57: 0.08615258748 | P57: 0.2164085088 | Q57: 0.1943365831 | R57: 6483676.36 | S57: 0.2764669442 | T57: 55077.76 | U57: 0.2980539988 | V57: 1426962.67 | W57: 0.2047043744 | X57: 1547419.35 | Y57: 0.1676039075 | Z57: 1667726.75 | AA57: 0.1170432617 | AB57: 1640918.3 | AC57: 0.2138944339 | AD57: 145571.53 | AE57: 1979 | AF57: 1285 | AH57: 3264
A58: I262Urban cycling univ | B58: I262 | C58: Decathlon.pl Lodz OMS | D58: Urban cycling univ | E58: 40445.87 | F58: 2689.9 | H58: 43135.77 | I58: 8213.2 | J58: 192.57 | L58: 8405.77 | M58: 0.2030664688 | N58: 0.07159002193 | P58: 0.1948677397 | Q58: 0.1828758548 | R58: 4015872.74 | S58: 0.3587507676 | T58: 569.95 | U58: 0.1704723643 | V58: 1775134.88 | W58: 0.1953411711 | X58: 1504869.19 | Y58: 0.1857247102 | Z58: 667726.55 | AA58: 0.1994756247 | AB58: 66002.35 | AC58: 0.2854849601 | AD58: 1569.82 | AE58: 396 | AF58: 10 | AH58: 406
A59: I262Hybrid cycling Univ | B59: I262 | C59: Decathlon.pl Lodz OMS | D59: Hybrid cycling Univ | E59: 47193.79 | F59: 2682.8 | H59: 49876.59 | I59: 11194.99 | J59: 97.17 | L59: 11292.16 | M59: 0.2372132011 | N59: 0.03621962129 | P59: 0.2264020054 | Q59: 0.2343887508 | R59: 2833828.15 | S59: 0.1797667616 | T59: 12991 | U59: 0.2643185642 | V59: 1226739.79 | W59: 0.2262117724 | X59: 892489.36 | Y59: 0.1951571171 | Z59: 540338.48 | AA59: 0.1923746684 | AB59: 158185.12 | AC59: -0.04581766308 | AD59: 3084.4 | AE59: 582 | AF59: 21 | AH59: 603
A60: I262Mountain Bike Univ | B60: I262 | C60: Decathlon.pl Lodz OMS | D60: Mountain Bike Univ | E60: 63673.64 | F60: 7794.39 | H60: 71468.03 | I60: 8697.07 | J60: 892.79 | L60: 9589.86 | M60: 0.1365882334 | N60: 0.114542639 | P60: 0.1341839141 | Q60: 0.1302112922 | R60: 10949550.81 | S60: 0 | T60: 0 | U60: 0.1311660801 | V60: 3184886.06 | W60: 0.136867284 | X60: 2764521.36 | Y60: 0.125640544 | Z60: 3763765.78 | AA60: 0.1253080207 | AB60: 1207840.72 | AC60: 0.1892252449 | AD60: 28536.89 | AE60: 312 | AF60: 62 | AH60: 374
A61: I262Intermodal Cyling Univ | B61: I262 | C61: Decathlon.pl Lodz OMS | D61: Intermodal Cyling Univ | E61: 9991.88 | H61: 9991.88 | I61: 1238.06 | L61: 1238.06 | M61: 0.1239066122 | P61: 0.1239066122 | Q61: 0.143372236 | R61: 490427.24 | S61: 0 | T61: 0 | U61: 0.159642617 | V61: 103880.72 | W61: 0.1508651306 | X61: 197985.71 | Y61: 0.1456652864 | Z61: 145853.35 | AA61: 0.06122934963 | AB61: 42707.46 | AC61: 0 | AD61: 0 | AE61: 20 | AH61: 20
A62: I262Martial Arts Univ | B62: I262 | C62: Decathlon.pl Lodz OMS | D62: Martial Arts Univ | E62: 14791.84 | H62: 14791.84 | I62: 3252.35 | L62: 3252.35 | M62: 0.2198746065 | P62: 0.2198746065 | Q62: 0.2648851083 | R62: 288298.54 | S62: 0.3084870987 | T62: 1599.84 | U62: 0.2334629569 | V62: 174253.34 | W62: 0.3117619039 | X62: 99131.74 | Y62: 0.3218703854 | Z62: 13313.62 | AA62: 0 | AB62: 0 | AC62: 0 | AD62: 0 | AE62: 317 | AH62: 317
A63: I262Volleyball Univ | B63: I262 | C63: Decathlon.pl Lodz OMS | D63: Volleyball Univ | E63: 8786.28 | F63: 155.61 | G63: 48.76 | H63: 8990.65 | I63: 1577.51 | J63: 30.43 | K63: 9.91 | L63: 1617.85 | M63: 0.179542423 | N63: 0.195552985 | O63: 0.203240361 | P63: 0.1799480571 | Q63: 0.212750783 | R63: 462690.33 | S63: 0 | T63: 0 | U63: 0.2184080596 | V63: 193786.53 | W63: 0.2000663311 | X63: 176900.38 | Y63: 0.2246960559 | Z63: 89423.51 | AA63: 0.2435239989 | AB63: 2579.91 | AC63: 0 | AD63: 0 | AE63: 156 | AF63: 8 | AG63: 2 | AH63: 166
A64: I262Field hockey Univ | B64: I262 | C64: Decathlon.pl Lodz OMS | D64: Field hockey Univ | E64: 134.93 | F64: 24.99 | H64: 159.92 | I64: 37.98 | J64: 7.23 | L64: 45.21 | M64: 0.2814792856 | N64: 0.2893157263 | P64: 0.2827038519 | Q64: 0.3352950235 | R64: 6039.01 | S64: 0 | T64: 0 | U64: 0.2948977019 | V64: 2974.15 | W64: 0.3691041517 | X64: 1964.73 | Y64: 0.2916513649 | Z64: 490.14 | AA64: 0.4584337448 | AB64: 609.99 | AC64: 0 | AD64: 0 | AE64: 7 | AF64: 1 | AH64: 8
A65: I262Baseball American Football Univ | B65: I262 | C65: Decathlon.pl Lodz OMS | D65: Baseball American Football Univ | E65: 2444.6 | H65: 2444.6 | I65: 654.19 | L65: 654.19 | M65: 0.2676061523 | P65: 0.2676061523 | Q65: 0.3027566601 | R65: 125180.83 | S65: 0 | T65: 0 | U65: 0.317669479 | V65: 84881.62 | W65: 0.2585491843 | X65: 30405.24 | Y65: 0.3486885077 | Z65: 7854.03 | AA65: 0.1643038521 | AB65: 2039.94 | AC65: 0 | AD65: 0 | AE65: 44 | AH65: 44
A66: I262Waterpolo Univ | B66: I262 | C66: Decathlon.pl Lodz OMS | D66: Waterpolo Univ | E66: 2769.51 | F66: 239.96 | H66: 3009.47 | I66: 652.7 | J66: 18.51 | L66: 671.21 | M66: 0.2356734585 | N66: 0.07713785631 | P66: 0.223032627 | Q66: 0.2564081079 | R66: 177821.99 | S66: 0.2871251764 | T66: 559.93 | U66: 0.3254961477 | V66: 43059.25 | W66: 0.2694486456 | X66: 75157.29 | Y66: 0.1927503368 | Z66: 53686.08 | AA66: 0.1529208275 | AB66: 5359.44 | AC66: 0 | AD66: 0 | AE66: 49 | AF66: 4 | AH66: 53
A67: I262Aquagym univ | B67: I262 | C67: Decathlon.pl Lodz OMS | D67: Aquagym univ | E67: 4296.61 | F67: 1359.66 | H67: 5656.27 | I67: 840.26 | J67: 478.95 | L67: 1319.21 | M67: 0.1955634791 | N67: 0.3522571819 | P67: 0.2332296726 | Q67: 0.2850830813 | R67: 381169.27 | S67: 0 | T67: 0 | U67: 0.2534874095 | V67: 171120.57 | W67: 0.3036311092 | X67: 111501.19 | Y67: 0.3196739526 | Z67: 96887.75 | AA67: 0.2773172025 | AB67: 1659.76 | AC67: 0 | AD67: 0 | AE67: 89 | AF67: 34 | AH67: 123
A68: I262Result | B68: I262 | C68: Decathlon.pl Lodz OMS | D68: Result | E68: 3013516.51 | F68: 442461.93 | G68: 1532.73 | H68: 3457511.17 | I68: 708411.48 | J68: 61975.17 | K68: 98.87 | L68: 770485.52 | M68: 0.2350780152 | N68: 0.140068932 | O68: 0.06450581642 | P68: 0.2228439713 | Q68: 0.2197291699 | R68: 150086355.1 | S68: 0.1985957472 | T68: 1933701.63 | U68: 0.2324179378 | V68: 62595601.01 | W68: 0.2234707667 | X68: 45978975.12 | Y68: 0.2064757371 | Z68: 31544213.33 | AA68: 0.1513713414 | AB68: 6697833.82 | AC68: 0.1826704115 | AD68: 1336030.22 | AE68: 60665 | AF68: 9297 | AG68: 6 | AH68: 69968
A69: 272Kid cycling Univ | B69: 272 | C69: Warszawa Targowek | D69: Kid cycling Univ | E69: 18596.81 | F69: 2399.77 | H69: 20996.58 | I69: 3015.22 | J69: 150.83 | L69: 3166.05 | M69: 0.1621364094 | N69: 0.06285185664 | P69: 0.1507888428 | Q69: 0.1926315643 | R69: 3420255.67 | S69: 0.1881033448 | T69: 44636.58 | U69: 0.2022376797 | V69: 971766.44 | W69: 0.1935000656 | X69: 1456963.33 | Y69: 0.1823252178 | Z69: 930590.14 | AA69: 0.1431096534 | AB69: 16299.18 | AC69: 0 | AD69: 0 | AE69: 123 | AF69: 23 | AH69: 146
A70: 272Boating, Dinghy, Windsurf | B70: 272 | C70: Warszawa Targowek | D70: Boating, Dinghy, Windsurf | E70: 60189.1 | F70: 7223.97 | G70: 329.93 | H70: 67743 | I70: 13675.69 | J70: 89.76 | K70: -23 | L70: 13742.45 | M70: 0.22721207 | N70: 0.01242530077 | O70: -0.06971175704 | P70: 0.2028615503 | Q70: 0.2316457363 | R70: 2157176.16 | S70: 0 | T70: 0 | U70: 0.2491297671 | V70: 1005857.16 | W70: 0.2202610657 | X70: 801199.02 | Y70: 0.2109496515 | Z70: 330848.52 | AA70: 0.1507072854 | AB70: 19211.48 | AC70: -0.8159386462 | AD70: 59.98 | AE70: 590 | AF70: 103 | AG70: 7 | AH70: 700
A71: 272Jogging Univ | B71: 272 | C71: Warszawa Targowek | D71: Jogging Univ | E71: 68480.91 | F71: 3421.18 | G71: -300 | H71: 71602.09 | I71: 18700.33 | J71: 547.89 | K71: -141.37 | L71: 19106.85 | M71: 0.2730736201 | N71: 0.1601464992 | O71: -0.4712333333 | P71: 0.2668150349 | Q71: 0.2311856738 | R71: 2584078.72 | S71: 0.1979352661 | T71: 6827.03 | U71: 0.239867377 | V71: 1382809.76 | W71: 0.2319610883 | X71: 728796.46 | Y71: 0.2056657392 | Z71: 455796.48 | AA71: 0.1720593938 | AB71: 9799 | AC71: -2.409081816 | AD71: 49.99 | AE71: 1913 | AF71: 82 | AG71: 0 | AH71: 1995
A72: 272Hiking univ | B72: 272 | C72: Warszawa Targowek | D72: Hiking univ | E72: 179170.24 | F72: 6818.24 | G72: 649.78 | H72: 186638.26 | I72: 45784.04 | J72: 620.94 | K72: -105.13 | L72: 46299.85 | M72: 0.2555337315 | N72: 0.09107042287 | O72: -0.1617932223 | P72: 0.2482601002 | Q72: 0.2509283973 | R72: 12655683.79 | S72: 0.3153971851 | T72: 71245.88 | U72: 0.2462237735 | V72: 5791840.12 | W72: 0.2542621449 | X72: 4410260.64 | Y72: 0.2556601315 | Z72: 2294610.1 | AA72: 0.3282590836 | AB72: 5793.96 | AC72: 0.2100055057 | AD72: 81933.09 | AE72: 2742 | AF72: 185 | AG72: 22 | AH72: 2949
A73: 272Fitness Cardio univ | B73: 272 | C73: Warszawa Targowek | D73: Fitness Cardio univ | E73: 45922.86 | F73: 4059.58 | G73: -45.01 | H73: 49937.43 | I73: 9974.73 | J73: 310.8 | K73: -34.36 | L73: 10251.17 | M73: 0.2172062019 | N73: 0.0765596441 | O73: -0.7633859142 | P73: 0.2052802878 | Q73: 0.2306095189 | R73: 2473367.33 | S73: DIV/0 | T73: 0 | U73: 0.2323283341 | V73: 1263361.79 | W73: 0.2274980859 | X73: 843145.16 | Y73: 0.2341234497 | Z73: 361864.82 | AA73: 0.01396591733 | AB73: 4662.78 | AC73: 0.8030530681 | AD73: 332.78 | AE73: 748 | AF73: 44 | AG73: 1 | AH73: 793
A74: 272Hunting univ | B74: 272 | C74: Warszawa Targowek | D74: Hunting univ | E74: 36339.07 | F74: 771.75 | G74: 34.98 | H74: 37145.8 | I74: 9183.33 | J74: 0.47 | K74: 2.72 | L74: 9186.52 | M74: 0.2527123011 | N74: 0.000609005507 | O74: 0.07775871927 | P74: 0.2473097901 | Q74: 0.2431150208 | R74: 1039464.65 | S74: 0.2816697711 | T74: 2689.71 | U74: 0.2478560608 | V74: 627437.35 | W74: 0.2348228552 | X74: 352825.75 | Y74: 0.2453423121 | Z74: 52432.13 | AA74: 0.2388066895 | AB74: 1659.92 | AC74: 0.1346976391 | AD74: 2419.79 | AE74: 593 | AF74: 25 | AG74: 2 | AH74: 620
A75: 272Tennis univ | B75: 272 | C75: Warszawa Targowek | D75: Tennis univ | E75: 27044.17 | F75: 619.67 | G75: 808.93 | H75: 28472.77 | I75: 5643.15 | J75: 41.05 | K75: -183.98 | L75: 5500.22 | M75: 0.2086641964 | N75: 0.06624493682 | O75: -0.2274362429 | P75: 0.193174742 | Q75: 0.2177076293 | R75: 1511672.15 | S75: -0.968689403 | T75: 4316.43 | U75: 0.2533822581 | V75: 1191870.15 | W75: 0.1036087591 | X75: 223291.16 | Y75: 0.101774896 | Z75: 76111.5 | AA75: -0.06944902857 | AB75: 11604.05 | AC75: 0.2701178425 | AD75: 4478.86 | AE75: 1284 | AF75: 33 | AG75: 8 | AH75: 1325
A76: 272Triathlon, Nutrition & Care univ | B76: 272 | C76: Warszawa Targowek | D76: Triathlon, Nutrition & Care univ | E76: 17350.54 | F76: 432.3 | H76: 17782.84 | I76: 4660.56 | J76: 130.79 | L76: 4791.35 | M76: 0.2686118127 | N76: 0.3025445293 | P76: 0.2694367154 | Q76: 0.2849231504 | R76: 917287.59 | S76: 0 | T76: 0 | U76: 0.2905041798 | V76: 492614.53 | W76: 0.2825873143 | X76: 270309.02 | Y76: 0.2747246946 | Z76: 139408.8 | AA76: 0.1499201823 | AB76: 5036.48 | AC76: 0.2832894434 | AD76: 9918.76 | AE76: 3506 | AF76: 20 | AH76: 3526
A77: 272Football univ | B77: 272 | C77: Warszawa Targowek | D77: Football univ | E77: 151440.2 | F77: 13444.43 | G77: 704.96 | H77: 165589.59 | I77: 38018.38 | J77: 2139.16 | K77: 32.41 | L77: 40189.95 | M77: 0.2510454952 | N77: 0.1591112453 | O77: 0.04597423967 | P77: 0.242708192 | Q77: 0.237225508 | R77: 4084062.79 | S77: 0 | T77: 0 | U77: 0.2475649215 | V77: 2013391.95 | W77: 0.2431413286 | X77: 1372428.34 | Y77: 0.1953301715 | Z77: 680880.68 | AA77: 0.2131358725 | AB77: 16022.08 | AC77: 0.218833505 | AD77: 1339.74 | AE77: 4020 | AF77: 209 | AG77: 13 | AH77: 4242
A78: 272Skate Scooter Inline univ | B78: 272 | C78: Warszawa Targowek | D78: Skate Scooter Inline univ | E78: 48582.76 | F78: 2599.8 | G78: 99.98 | H78: 51282.54 | I78: 10898 | J78: 190.92 | K78: -36.64 | L78: 11052.28 | M78: 0.2243182561 | N78: 0.07343641819 | O78: -0.3664732947 | P78: 0.2155174061 | Q78: 0.2399953037 | R78: 6139239.59 | S78: 0.2125605263 | T78: 78416.3 | U78: 0.2433573699 | V78: 3007876.36 | W78: 0.2420383456 | X78: 1956000.19 | Y78: 0.2282856949 | Z78: 1004391.8 | AA78: 0.1131244842 | AB78: 18708.24 | AC78: 0.2694756841 | AD78: 73846.7 | AE78: 393 | AF78: 20 | AG78: 2 | AH78: 415
A79: 272Services | B79: 272 | C79: Warszawa Targowek | D79: Services | H79: 0 | L79: 0 | Q79: 0.1904949742 | R79: 5627.97 | S79: -15.04837364 | T79: 11.99 | U79: 0.3995962615 | V79: 4388.98 | W79: -0.3752581578 | X79: 774.72 | Y79: -0.813 | Z79: -160 | AA79: -0.131459463 | AB79: 612.28 | AC79: 0 | AD79: 0 | AH79: 0
A80: 272Swimming univ | B80: 272 | C80: Warszawa Targowek | D80: Swimming univ | E80: 89585.11 | F80: 3256.19 | G80: 79.98 | H80: 92921.28 | I80: 28768.99 | J80: 690.34 | K80: 60.13 | L80: 29519.46 | M80: 0.321135845 | N80: 0.212008513 | O80: 0.7518129532 | P80: 0.3178718108 | Q80: 0.3187337147 | R80: 4930732.23 | S80: 0 | T80: 0 | U80: 0.3141072353 | V80: 2085612.13 | W80: 0.3312868698 | X80: 1696899.7 | Y80: 0.3086351682 | Z80: 1125625.32 | AA80: 0.3055406403 | AB80: 22665.07 | AC80: -0.1215887984 | AD80: -69.99 | AE80: 2789 | AF80: 81 | AG80: 2 | AH80: 2872
A81: 272Horse riding univ | B81: 272 | C81: Warszawa Targowek | D81: Horse riding univ | E81: 54201.12 | F81: 3299.29 | G81: 679.89 | H81: 58180.3 | I81: 14878.32 | J81: 274.8 | K81: -193.41 | L81: 14959.71 | M81: 0.2745020767 | N81: 0.08329064738 | O81: -0.2844724882 | P81: 0.257126725 | Q81: 0.2634364837 | R81: 1487492.6 | S81: -0.02419767197 | T81: 664.94 | U81: 0.2776264435 | V81: 823236.35 | W81: 0.266347127 | X81: 470535.28 | Y81: 0.2084822085 | Z81: 183313.58 | AA81: -0.02300680611 | AB81: 8912.58 | AC81: -0.01754491667 | AD81: 829.87 | AE81: 743 | AF81: 53 | AG81: 11 | AH81: 807
A82: 272saltwater Fishing univ | B82: 272 | C82: Warszawa Targowek | D82: saltwater Fishing univ | E82: 885.34 | G82: 3.99 | H82: 889.33 | I82: 190.69 | K82: 0.21 | L82: 190.9 | M82: 0.2153861793 | O82: 0.05263157895 | P82: 0.214655977 | Q82: 0.1877144477 | R82: 106614.01 | S82: 0 | T82: 0 | U82: 0.2166115411 | V82: 72761.22 | W82: 0.1718279936 | X82: 20625.51 | Y82: 0.05249903506 | Z82: 13187.29 | AA82: 0 | AB82: 0 | AC82: 0.3928482121 | AD82: 39.99 | AE82: 16 | AG82: 1 | AH82: 17
A83: 272Target sport univ | B83: 272 | C83: Warszawa Targowek | D83: Target sport univ | E83: 5864.81 | F83: 199.93 | H83: 6064.74 | I83: 1206.24 | J83: 54.41 | L83: 1260.65 | M83: 0.2056741821 | N83: 0.2721452508 | P83: 0.207865465 | Q83: 0.2801075975 | R83: 313115.07 | S83: 0.03927530788 | T83: 1969.94 | U83: 0.284306218 | V83: 241536.68 | W83: 0.2682799508 | X83: 65994.16 | Y83: 0.3877879174 | Z83: 2394.35 | AA83: 0.2662016165 | AB83: 1219.94 | AC83: 0 | AD83: 0 | AE83: 170 | AF83: 7 | AH83: 177
A84: 272Golf univ | B84: 272 | C84: Warszawa Targowek | D84: Golf univ | E84: 6568.46 | F84: 564.91 | G84: 9.99 | H84: 7143.36 | I84: 1791.05 | J84: 79.35 | K84: -19.47 | L84: 1850.93 | M84: 0.2726742646 | N84: 0.1404648528 | O84: -1.948948949 | P84: 0.2591119585 | Q84: 0.2225741172 | R84: 358187.65 | S84: 0.2364007583 | T84: 479.99 | U84: 0.3039666195 | V84: 227241.86 | W84: 0.1071016564 | X84: 93678.85 | Y84: 0.01519283242 | Z84: 36242.09 | AA84: -0.08789413794 | AB84: 544.86 | AC84: 0 | AD84: 0 | AE84: 154 | AF84: 9 | AG84: 1 | AH84: 164
A85: 272Walking univ | B85: 272 | C85: Warszawa Targowek | D85: Walking univ | E85: 38241.27 | F85: 2504.67 | G85: -249.99 | H85: 40495.95 | I85: 10838.89 | J85: 203.7 | K85: -80.41 | L85: 10962.18 | M85: 0.2834343629 | N85: 0.08132807915 | O85: -0.3216528661 | P85: 0.2706981809 | Q85: 0.2533293897 | R85: 1753300.32 | S85: -2.557114228 | T85: 4.99 | U85: 0.2675628008 | V85: 836997.48 | W85: 0.2586640751 | X85: 643962.56 | Y85: 0.196491393 | Z85: 265635.91 | AA85: 0.2178429487 | AB85: 6539.39 | AC85: 0.2260141259 | AD85: 159.99 | AE85: 364 | AF85: 33 | AG85: -1 | AH85: 396
A86: 272Ski Snowboard Sledge univ | B86: 272 | C86: Warszawa Targowek | D86: Ski Snowboard Sledge univ | E86: 14695.41 | F86: 10586.85 | G86: 1019.78 | H86: 26302.04 | I86: 4142.58 | J86: -1602.73 | K86: -235.92 | L86: 2303.93 | M86: 0.2818961839 | N86: -0.1513887511 | O86: -0.2313440154 | P86: 0.08759510669 | Q86: 0.273771064 | R86: 5060193.87 | S86: -0.3767149725 | T86: -1139.96 | U86: 0.2914616839 | V86: 2473721.59 | W86: 0.2615155174 | X86: 1573404.34 | Y86: 0.2535924631 | Z86: 968801.19 | AA86: 0.1698046495 | AB86: 21183.46 | AC86: 0.1660247902 | AD86: 24223.25 | AE86: 349 | AF86: 206 | AG86: 22 | AH86: 577
A87: 272Climbing, Mountaineering univ | B87: 272 | C87: Warszawa Targowek | D87: Climbing, Mountaineering univ | E87: 18692.03 | F87: 359.98 | G87: 9.99 | H87: 19062 | I87: 4679.34 | J87: 12.05 | K87: 1 | L87: 4692.39 | M87: 0.2503387808 | N87: 0.03347408189 | O87: 0.1001001001 | P87: 0.2461646207 | Q87: 0.2499869752 | R87: 658742.08 | S87: 0.2296898495 | T87: 7820.72 | U87: 0.2400435576 | V87: 255624.94 | W87: 0.2754097443 | X87: 220852.97 | Y87: 0.2331867533 | Z87: 173809.53 | AA87: 0.2592440687 | AB87: 633.92 | AC87: 0 | AD87: 0 | AE87: 147 | AF87: 2 | AG87: 1 | AH87: 150
A88: 272Boxing Univ | B88: 272 | C88: Warszawa Targowek | D88: Boxing Univ | E88: 9003.57 | F88: 229.93 | G88: 99.99 | H88: 9333.49 | I88: 3013.34 | J88: 7.44 | K88: -18.53 | L88: 3002.25 | M88: 0.334682798 | N88: 0.03235767407 | O88: -0.1853185319 | P88: 0.3216642435 | Q88: 0.3129871171 | R88: 307817.43 | S88: 0 | T88: 0 | U88: 0.3049877463 | V88: 180002.74 | W88: 0.3283663932 | X88: 99372.38 | Y88: 0.3098802453 | Z88: 28442.31 | AA88: 0 | AB88: 0 | AC88: 0 | AD88: 0 | AE88: 143 | AF88: 7 | AG88: 1 | AH88: 151
A89: 272Univ Iceskating, Ice hockey | B89: 272 | C89: Warszawa Targowek | D89: Univ Iceskating, Ice hockey | E89: 110.96 | H89: 110.96 | I89: 35.63 | L89: 35.63 | M89: 0.3211067051 | P89: 0.3211067051 | Q89: 0.145500402 | R89: 392001.46 | S89: 0 | T89: 0 | U89: 0.1373316296 | V89: 116510.96 | W89: 0.1512320795 | X89: 112498.42 | Y89: 0.1485489242 | Z89: 164552.05 | AA89: -0.2703064803 | AB89: -1559.97 | AC89: 0 | AD89: 0 | AE89: 4 | AH89: 4
A90: 272Diving univ | B90: 272 | C90: Warszawa Targowek | D90: Diving univ | E90: 25980.45 | F90: 2003.79 | G90: -29.99 | H90: 27954.25 | I90: 5505.03 | J90: 474.01 | K90: -7 | L90: 5972.04 | M90: 0.211891249 | N90: 0.236556725 | O90: -0.233411137 | P90: 0.2136362092 | Q90: 0.2452002002 | R90: 2462527.72 | S90: 0.2804336452 | T90: 110983.83 | U90: 0.2576199499 | V90: 865315.4 | W90: 0.2440232448 | X90: 917952.1 | Y90: 0.222830085 | Z90: 557709.97 | AA90: 0.1102623511 | AB90: 8066.67 | AC90: 0.2402320232 | AD90: 2499.75 | AE90: 355 | AF90: 21 | AG90: -1 | AH90: 375
A91: 272Surf, bodyboard, towed/aerial sports | B91: 272 | C91: Warszawa Targowek | D91: Surf, bodyboard, towed/aerial sports | E91: 10854.62 | F91: 2999.53 | G91: 99.98 | H91: 13954.13 | I91: 2758.25 | J91: 257.02 | K91: -30.13 | L91: 2985.14 | M91: 0.2541083889 | N91: 0.08568675759 | O91: -0.3013602721 | P91: 0.2139251963 | Q91: 0.2542550821 | R91: 2343653.37 | S91: 0.5655314184 | T91: 179.99 | U91: 0.2608646633 | V91: 1230576.56 | W91: 0.2468268964 | X91: 828895.89 | Y91: 0.2459438901 | Z91: 225383.44 | AA91: 0.08756040895 | AB91: 9938.51 | AC91: 0.2850172703 | AD91: 48678.98 | AE91: 288 | AF91: 48 | AG91: 2 | AH91: 338
A92: 272Kayak, stand up paddle univ | B92: 272 | C92: Warszawa Targowek | D92: Kayak, stand up paddle univ | E92: 2804.48 | F92: 1039.9 | H92: 3844.38 | I92: 746.17 | J92: 145.79 | L92: 891.96 | M92: 0.266063584 | N92: 0.1401961727 | P92: 0.2320166061 | Q92: 0.2624526092 | R92: 587170.92 | S92: 0.3704753174 | T92: 359.97 | U92: 0.2708233226 | V92: 324132.35 | W92: 0.248257601 | X92: 178899.9 | Y92: 0.2610995242 | Z92: 81528.72 | AA92: -0.07543681242 | AB92: -649.02 | AC92: 0.1852949293 | AD92: 2899 | AE92: 52 | AF92: 10 | AH92: 62
A93: 272Basket univ | B93: 272 | C93: Warszawa Targowek | D93: Basket univ | E93: 8399.57 | F93: 589.88 | G93: 69.99 | H93: 9059.44 | I93: 2577.85 | J93: 15.61 | K93: 18.79 | L93: 2612.25 | M93: 0.3069026153 | N93: 0.02646300943 | O93: 0.2684669238 | P93: 0.3004581754 | Q93: 0.2577991758 | R93: 570155.12 | S93: 0 | T93: 0 | U93: 0.2752563245 | V93: 311951.27 | W93: 0.2345961686 | X93: 230056.4 | Y93: 0.2568266498 | Z93: 27617.5 | AA93: 0.1051042551 | AB93: 529.95 | AC93: 0 | AD93: 0 | AE93: 343 | AF93: 12 | AG93: 1 | AH93: 356
A94: 272Kite sports univ | B94: 272 | C94: Warszawa Targowek | D94: Kite sports univ | E94: 919.84 | H94: 919.84 | I94: 245.73 | L94: 245.73 | M94: 0.267144286 | P94: 0.267144286 | Q94: 0.2334582196 | R94: 66137.53 | S94: 0 | T94: 0 | U94: 0.2299269414 | V94: 29893.8 | W94: 0.2487569183 | X94: 28811.46 | Y94: 0.1918394476 | Z94: 6409.37 | AA94: 0.1665265422 | AB94: 1022.9 | AC94: 0 | AD94: 0 | AE94: 16 | AH94: 16
A95: 272Trekking several days univ | B95: 272 | C95: Warszawa Targowek | D95: Trekking several days univ | E95: 117799.12 | F95: 5270.8 | G95: 239.98 | H95: 123309.9 | I95: 31974.02 | J95: 638.85 | K95: 5.85 | L95: 32618.72 | M95: 0.2714283434 | N95: 0.1212055096 | O95: 0.02437703142 | P95: 0.2645263681 | Q95: 0.277507351 | R95: 4384936.96 | S95: 0.334482266 | T95: 44452.85 | U95: 0.2848862359 | V95: 1906550.34 | W95: 0.2738920481 | X95: 1307501.45 | Y95: 0.2655238773 | Z95: 1079298.34 | AA95: 0.3027141698 | AB95: 46714.1 | AC95: -0.002738877775 | AD95: 419.88 | AE95: 1388 | AF95: 93 | AG95: 2 | AH95: 1483
A96: 272Cross country ski univ | B96: 272 | C96: Warszawa Targowek | D96: Cross country ski univ | F96: 2039.55 | G96: 309.96 | H96: 2349.51 | J96: -282.47 | K96: 7.28 | L96: -275.19 | N96: -0.1384962369 | O96: 0.02348690154 | P96: -0.1171265498 | Q96: 0.1998790851 | R96: 161998.24 | S96: 0.2360472094 | T96: 49.99 | U96: 0.2548436865 | V96: 44444.97 | W96: 0.1989783329 | X96: 71528.19 | Y96: 0.1584760185 | Z96: 41965.34 | AA96: 0.0395735395 | AB96: 4009.75 | AC96: 0 | AD96: 0 | AF96: 45 | AG96: 4 | AH96: 49
A97: 272Canyoning univ | B97: 272 | C97: Warszawa Targowek | D97: Canyoning univ | H97: 0 | L97: 0 | Q97: 0.2843485994 | R97: 134.94 | S97: 0 | T97: 0 | U97: 0 | V97: 0 | W97: 0.2952272078 | X97: 174.95 | Y97: -0.3319170207 | Z97: -40.01 | AA97: 0 | AB97: 0 | AC97: 0 | AD97: 0 | AH97: 0
A98: 272Handball univ | B98: 272 | C98: Warszawa Targowek | D98: Handball univ | E98: 2089.72 | F98: 109.97 | G98: 859.5 | H98: 3059.19 | I98: 472.21 | J98: 7.11 | K98: -189.14 | L98: 290.18 | M98: 0.2259680723 | N98: 0.06465399654 | O98: -0.2200581734 | P98: 0.09485517408 | Q98: 0.1827288376 | R98: 73290.84 | S98: 0 | T98: 0 | U98: 0.2149961208 | V98: 29684.21 | W98: 0.1694820015 | X98: 22814.93 | Y98: 0.150713775 | Z98: 20711.71 | AA98: 0.2762845356 | AB98: 79.99 | AC98: 0 | AD98: 0 | AE98: 28 | AF98: 3 | AG98: 5 | AH98: 36
A99: 272Cross-training, bodybuilding univ | B99: 272 | C99: Warszawa Targowek | D99: Cross-training, bodybuilding univ | E99: 25419.44 | F99: 744.88 | H99: 26164.32 | I99: 6547.41 | J99: 95.84 | L99: 6643.25 | M99: 0.2575749112 | N99: 0.1286650199 | P99: 0.2539049362 | Q99: 0.2637756372 | R99: 1227776.24 | S99: 0 | T99: 0 | U99: 0.2668085476 | V99: 663730.31 | W99: 0.2555894797 | X99: 392473.47 | Y99: 0.2703311579 | Z99: 169035.38 | AA99: 0.2999195926 | AB99: 2537.08 | AC99: 0 | AD99: 0 | AE99: 456 | AF99: 12 | AH99: 468
A100: 272Yoga univ | B100: 272 | C100: Warszawa Targowek | D100: Yoga univ | E100: 6743.67 | F100: 969.71 | H100: 7713.38 | I100: 1887.99 | J100: 65.15 | L100: 1953.14 | M100: 0.279964767 | N100: 0.0671850347 | P100: 0.2532145441 | Q100: 0.2600085789 | R100: 368157.66 | S100: DIV/0 | T100: 0 | U100: 0.247926418 | V100: 219333.02 | W100: 0.2816744745 | X100: 107622.78 | Y100: 0.2675862093 | Z100: 40691.97 | AA100: 0.279472043 | AB100: 509.89 | AC100: 0 | AD100: 0 | AE100: 133 | AF100: 29 | AH100: 162
A101: 272Dance, Artistic/Rhythmic Gym univ | B101: 272 | C101: Warszawa Targowek | D101: Dance, Artistic/Rhythmic Gym univ | E101: 13048.08 | F101: 697.75 | G101: 39.99 | H101: 13785.82 | I101: 4234.57 | J101: 97.21 | K101: -3.26 | L101: 4328.52 | M101: 0.3245358704 | N101: 0.1393192404 | O101: -0.0815203801 | P101: 0.313983499 | Q101: 0.3190059992 | R101: 301345.43 | S101: 0 | T101: 0 | U101: 0.3176996095 | V101: 228599.62 | W101: 0.3237107956 | X101: 72040.94 | Y101: 0.2763925071 | Z101: 644.88 | AA101: 0.1053508918 | AB101: 59.99 | AC101: 0 | AD101: 0 | AE101: 392 | AF101: 25 | AG101: 1 | AH101: 418
A102: 272Gym, Pilates univ | B102: 272 | C102: Warszawa Targowek | D102: Gym, Pilates univ | E102: 119130.4 | F102: 24472.79 | G102: 214.92 | H102: 143818.11 | I102: 32743.68 | J102: 2142.02 | K102: 33.89 | L102: 34919.59 | M102: 0.2748557883 | N102: 0.08752659586 | O102: 0.1576865811 | P102: 0.2428038444 | Q102: 0.2446360378 | R102: 5187756.56 | S102: 0.1730392295 | T102: 66227.41 | U102: 0.2458939435 | V102: 3502364.75 | W102: 0.2428718777 | X102: 1480356.9 | Y102: 0.2704443234 | Z102: 136697.97 | AA102: 0.09361872374 | AB102: 49.99 | AC102: -0.03347349408 | AD102: 2059.54 | AE102: 3939 | AF102: 549 | AG102: 8 | AH102: 4496
A103: 272Rugby univ | B103: 272 | C103: Warszawa Targowek | D103: Rugby univ | E103: 444.87 | F103: 29.99 | H103: 474.86 | I103: 139.28 | J103: 6.37 | L103: 145.65 | M103: 0.3130802257 | N103: 0.2124041347 | P103: 0.3067219812 | Q103: 0.2937057243 | R103: 29842.83 | S103: 0 | T103: 0 | U103: 0.2882065655 | V103: 19066.88 | W103: 0.3200739099 | X103: 6283.33 | Y103: 0.2801661391 | Z103: 4492.62 | AA103: 0 | AB103: 0 | AC103: 0 | AD103: 0 | AE103: 13 | AF103: 1 | AH103: 14
A104: 272Table tennis univ | B104: 272 | C104: Warszawa Targowek | D104: Table tennis univ | E104: 4698.78 | F104: 39.96 | H104: 4738.74 | I104: 1344.21 | J104: -32.68 | L104: 1311.53 | M104: 0.2860763858 | N104: -0.8178178178 | P104: 0.276767664 | Q104: 0.2354497807 | R104: 382681.86 | S104: 0.07616748758 | T104: 13795.65 | U104: 0.2558593308 | V104: 174941.48 | W104: 0.2497007146 | X104: 119735.22 | Y104: 0.2134078871 | Z104: 63063.18 | AA104: 0.140984231 | AB104: 10396.34 | AC104: -0.7076094348 | AD104: 749.99 | AE104: 222 | AF104: 4 | AH104: 226
A105: 272Badminton univ | B105: 272 | C105: Warszawa Targowek | D105: Badminton univ | E105: 3025.85 | F105: 1291.88 | G105: -14.99 | H105: 4302.74 | I105: 315.46 | J105: 110.59 | K105: -6.74 | L105: 419.31 | M105: 0.1042550027 | N105: 0.08560392606 | O105: -0.4496330887 | P105: 0.09745185626 | Q105: 0.1672555439 | R105: 455219.41 | S105: -0.06862442399 | T105: 4307.65 | U105: 0.178258373 | V105: 255205.74 | W105: 0.1614504186 | X105: 117667.27 | Y105: 0.1570289526 | Z105: 75129.33 | AA105: -0.4565604433 | AB105: 499.89 | AC105: 0.1553580989 | AD105: 2409.53 | AE105: 56 | AF105: 12 | AG105: -1 | AH105: 67
A106: 272Padel univ | B106: 272 | C106: Warszawa Targowek | D106: Padel univ | E106: 424.67 | H106: 424.67 | I106: 17.67 | L106: 17.67 | M106: 0.04160877858 | P106: 0.04160877858 | Q106: 0.1852461087 | R106: 30408.52 | S106: 0 | T106: 0 | U106: 0.2469809242 | V106: 12960.92 | W106: 0.197907777 | X106: 7628.25 | Y106: 0.168016412 | Z106: 6229.57 | AA106: 0.03288613166 | AB106: 3539.79 | AC106: -4.817163433 | AD106: 49.99 | AE106: 24 | AH106: 24
A107: 272Squash univ | B107: 272 | C107: Warszawa Targowek | D107: Squash univ | E107: 1004.76 | F107: 34.99 | H107: 1039.75 | I107: 256.49 | J107: 1.15 | L107: 257.64 | M107: 0.2552748915 | N107: 0.0328665333 | P107: 0.2477903342 | Q107: 0.254384924 | R107: 53935.94 | S107: 0.1720369606 | T107: 799.77 | U107: 0.2462229649 | V107: 17773.2 | W107: 0.2515519651 | X107: 11076.28 | Y107: 0.2654054697 | Z107: 21096.89 | AA107: 0.3603828845 | AB107: 279.98 | AC107: 0.2475548316 | AD107: 2909.82 | AE107: 24 | AF107: 1 | AH107: 25
A108: 272Workshop Univ | B108: 272 | C108: Warszawa Targowek | D108: Workshop Univ | E108: 6289.12 | F108: 0 | G108: 399.97 | H108: 6689.09 | I108: 9327.44 | J108: 9.78 | K108: 306.81 | L108: 9644.03 | M108: 1.483107335 | N108: DIV/0 | O108: 0.7670825312 | P108: 1.441755157 | Q108: 0.7658818349 | R108: 444259.12 | S108: 1.300226947 | T108: 6922.33 | U108: 0.6904219722 | V108: 269387.4 | W108: 0.5976861513 | X108: 79971.52 | Y108: 0.7427562991 | Z108: 57180.37 | AA108: 1.785517006 | AB108: 30797.5 | AC108: 0 | AD108: 0 | AE108: 798 | AF108: 1 | AG108: 31 | AH108: 830
A109: 272Road running Univ | B109: 272 | C109: Warszawa Targowek | D109: Road running Univ | E109: 21014.18 | F109: 1599.77 | G109: -1599 | H109: 21014.95 | I109: 5192.19 | J109: 148.51 | K109: -91.86 | L109: 5248.84 | M109: 0.2470803048 | N109: 0.09283209461 | O109: -0.05744840525 | P109: 0.2497669516 | Q109: 0.2385285992 | R109: 886623.41 | S109: 0.1737702745 | T109: 3319.44 | U109: 0.2897265433 | V109: 417098.27 | W109: 0.2149438986 | X109: 273660.85 | Y109: 0.1624505024 | Z109: 187703.39 | AA109: 0.1480508979 | AB109: 4501.56 | AC109: 0.2444248308 | AD109: 339.9 | AE109: 482 | AF109: 23 | AG109: -1 | AH109: 504
A110: 272Trail running Univ | B110: 272 | C110: Warszawa Targowek | D110: Trail running Univ | E110: 6744.39 | F110: 109.98 | G110: -179.99 | H110: 6674.38 | I110: 1524.33 | J110: 1.71 | K110: -2.93 | L110: 1523.11 | M110: 0.2260145098 | N110: 0.01554828151 | O110: -0.01627868215 | P110: 0.2282024697 | Q110: 0.1839650752 | R110: 326489.09 | S110: 0.1126590821 | T110: 13068.72 | U110: 0.2641614747 | V110: 82557.08 | W110: 0.1586565223 | X110: 162747.17 | Y110: 0.1635493148 | Z110: 67481.42 | AA110: -0.1190483693 | AB110: 634.7 | AC110: 0 | AD110: 0 | AE110: 61 | AF110: 2 | AG110: -1 | AH110: 62
A111: 272Atlhétic running Univ | B111: 272 | C111: Warszawa Targowek | D111: Atlhétic running Univ | E111: 12454.15 | F111: 539.78 | G111: -30.02 | H111: 12963.91 | I111: 2794.12 | J111: 43.46 | K111: -15.72 | L111: 2821.86 | M111: 0.2243525251 | N111: 0.0805142836 | O111: -0.5236508994 | P111: 0.2176704405 | Q111: 0.2018993585 | R111: 586424.3 | S111: 0 | T111: 0 | U111: 0.2091469115 | V111: 291349.27 | W111: 0.2106470943 | X111: 198410.19 | Y111: 0.1626617454 | Z111: 95840.42 | AA111: 0.09678319303 | AB111: 824.42 | AC111: 0 | AD111: 0 | AE111: 285 | AF111: 22 | AG111: 2 | AH111: 309
A112: 272Orienting run Univ | B112: 272 | C112: Warszawa Targowek | D112: Orienting run Univ | H112: 0 | L112: 0 | AH112: 0
A113: 272predator fishing | B113: 272 | C113: Warszawa Targowek | D113: predator fishing | E113: 11139.26 | F113: 69.99 | G113: 159.98 | H113: 11369.23 | I113: 2491.47 | J113: -2.94 | K113: -62.63 | L113: 2425.9 | M113: 0.2236656654 | N113: -0.04200600086 | O113: -0.3914864358 | P113: 0.2133741687 | Q113: 0.209904915 | R113: 529759.82 | S113: 0.08399139007 | T113: 1570.28 | U113: 0.2387433956 | V113: 316033.58 | W113: 0.1993224382 | X113: 111033.41 | Y113: 0.1298795601 | Z113: 74202.13 | AA113: 0.1354401754 | AB113: 26160.48 | AC113: 0.4005579388 | AD113: 759.94 | AE113: 474 | AF113: 1 | AG113: 2 | AH113: 477
A114: 272Coarse fishing univ | B114: 272 | C114: Warszawa Targowek | D114: Coarse fishing univ | E114: 3446.7 | F114: 139.91 | H114: 3586.61 | I114: 852.71 | J114: 40.72 | L114: 893.43 | M114: 0.2473989613 | N114: 0.2910442427 | P114: 0.2491015193 | Q114: 0.2433672423 | R114: 214975.44 | S114: 0.2738459777 | T114: 1048.29 | U114: 0.2453426765 | V114: 144605.05 | W114: 0.2373031035 | X114: 55474.58 | Y114: 0.2493281083 | Z114: 13547.57 | AA114: 0 | AB114: 0 | AC114: 0.03680613436 | AD114: 299.95 | AE114: 130 | AF114: 9 | AH114: 139
A115: 272Carpe fishing univ | B115: 272 | C115: Warszawa Targowek | D115: Carpe fishing univ | E115: 6131.13 | F115: 34.98 | H115: 6166.11 | I115: 1186.25 | J115: 13.03 | L115: 1199.28 | M115: 0.1934798316 | N115: 0.3724985706 | P115: 0.194495395 | Q115: 0.1863275732 | R115: 228616.62 | S115: 0 | T115: 0 | U115: 0.2018244392 | V115: 51596.13 | W115: 0.2041575671 | X115: 123366.38 | Y115: 0.1386976963 | Z115: 52954.16 | AA115: -0.5229920181 | AB115: 539.97 | AC115: -0.4011751469 | AD115: 159.98 | AE115: 88 | AF115: 2 | AH115: 90
A116: 272Road cycling Univ | B116: 272 | C116: Warszawa Targowek | D116: Road cycling Univ | E116: 38670.04 | F116: 2457.27 | G116: 119.9 | H116: 41247.21 | I116: 12024.66 | J116: 195.36 | K116: -15.02 | L116: 12205 | M116: 0.310955458 | N116: 0.07950286293 | O116: -0.1252710592 | P116: 0.2962846933 | Q116: 0.2678626602 | R116: 1944556.81 | S116: 0.2465928616 | T116: 9969.51 | U116: 0.35002334 | V116: 731363.8 | W116: 0.2500709121 | X116: 673650.48 | Y116: 0.2201968108 | Z116: 409397.21 | AA116: 0.02461646663 | AB116: 117416.12 | AC116: 0.3343237827 | AD116: 2759.69 | AE116: 729 | AF116: 55 | AG116: 1 | AH116: 785
A117: 272Urban cycling univ | B117: 272 | C117: Warszawa Targowek | D117: Urban cycling univ | E117: 17169.54 | F117: 489.93 | H117: 17659.47 | I117: 4866.57 | J117: 112.13 | L117: 4978.7 | M117: 0.2834420724 | N117: 0.2288694303 | P117: 0.2819280533 | Q117: 0.2398082294 | R117: 2155856.5 | S117: 0 | T117: 0 | U117: 0.2301365053 | V117: 1055553.18 | W117: 0.2509474216 | X117: 875449.72 | Y117: 0.2423550272 | Z117: 221583.85 | AA117: 0.2256760817 | AB117: 2429.81 | AC117: 0.1531657023 | AD117: 839.94 | AE117: 347 | AF117: 7 | AH117: 354
A118: 272Hybrid cycling Univ | B118: 272 | C118: Warszawa Targowek | D118: Hybrid cycling Univ | E118: 15785.84 | F118: 206.9 | H118: 15992.74 | I118: 5231.56 | J118: 42.43 | L118: 5273.99 | M118: 0.3314084015 | N118: 0.2050749154 | P118: 0.32977401 | Q118: 0.3034226083 | R118: 1614220.09 | S118: 0 | T118: 0 | U118: 0.3222221066 | V118: 983500.77 | W118: 0.2655930618 | X118: 464348.35 | Y118: 0.2980509266 | Z118: 162151.92 | AA118: 0.3600437756 | AB118: 1909.74 | AC118: 0.2339919716 | AD118: 2309.31 | AE118: 542 | AF118: 10 | AH118: 552
A119: 272Mountain Bike Univ | B119: 272 | C119: Warszawa Targowek | D119: Mountain Bike Univ | E119: 43977.27 | F119: 749.93 | G119: 119.99 | H119: 44847.19 | I119: 6036.14 | J119: 56.2 | K119: 13.18 | L119: 6105.52 | M119: 0.1372559052 | N119: 0.07494032776 | O119: 0.1098424869 | P119: 0.1361405252 | Q119: 0.1446441033 | R119: 4247493.44 | S119: 0 | T119: 0 | U119: 0.1466759214 | V119: 1606460.95 | W119: 0.1514155524 | X119: 1368868.83 | Y119: 0.1351717529 | Z119: 1171540.33 | AA119: 0.1049067905 | AB119: 80512.71 | AC119: 0.2323260049 | AD119: 20110.62 | AE119: 188 | AF119: 7 | AG119: 1 | AH119: 196
A120: 272Intermodal Cyling Univ | B120: 272 | C120: Warszawa Targowek | D120: Intermodal Cyling Univ | H120: 0 | L120: 0 | Q120: 0.1410586932 | R120: 133041.57 | S120: 0 | T120: 0 | U120: 0.1188675132 | V120: 35551.85 | W120: 0.1484075008 | X120: 89090.78 | Y120: 0.1570400551 | Z120: 8398.94 | AA120: 0 | AB120: 0 | AC120: 0 | AD120: 0 | AH120: 0
A121: 272Martial Arts Univ | B121: 272 | C121: Warszawa Targowek | D121: Martial Arts Univ | E121: 5333.93 | H121: 5333.93 | I121: 1257.85 | L121: 1257.85 | M121: 0.2358204926 | P121: 0.2358204926 | Q121: 0.2825838653 | R121: 107372.16 | S121: 0 | T121: 0 | U121: 0.2522956164 | V121: 63753.03 | W121: 0.3249045057 | X121: 38114.83 | Y121: 0.3403430046 | Z121: 5504.3 | AA121: 0 | AB121: 0 | AC121: 0 | AD121: 0 | AE121: 107 | AH121: 107
A122: 272Volleyball Univ | B122: 272 | C122: Warszawa Targowek | D122: Volleyball Univ | E122: 4689.9 | F122: 374.82 | H122: 5064.72 | I122: 1031.42 | J122: 40.64 | L122: 1072.06 | M122: 0.2199236657 | N122: 0.1084253775 | P122: 0.2116721161 | Q122: 0.2301148573 | R122: 289404.26 | S122: 0.1658589122 | T122: 389.97 | U122: 0.2421546165 | V122: 124739.6 | W122: 0.2199591597 | X122: 112903.05 | Y122: 0.2255250719 | Z122: 50301.68 | AA122: 0.1373135444 | AB122: 1069.96 | AC122: 0 | AD122: 0 | AE122: 110 | AF122: 9 | AH122: 119
A123: 272Field hockey Univ | B123: 272 | C123: Warszawa Targowek | D123: Field hockey Univ | H123: 0 | L123: 0 | AH123: 0
A124: 272Baseball American Football Univ | B124: 272 | C124: Warszawa Targowek | D124: Baseball American Football Univ | E124: 1209.81 | H124: 1209.81 | I124: 364.4 | L124: 364.4 | M124: 0.3012043213 | P124: 0.3012043213 | Q124: 0.3258152951 | R124: 45581.04 | S124: 0 | T124: 0 | U124: 0.3388808107 | V124: 30438.46 | W124: 0.2991585928 | X124: 14922.62 | Y124: 0.3262411348 | Z124: 219.96 | AA124: 0 | AB124: 0 | AC124: 0 | AD124: 0 | AE124: 19 | AH124: 19
A125: 272Waterpolo Univ | B125: 272 | C125: Warszawa Targowek | D125: Waterpolo Univ | E125: 1510.37 | F125: 59.99 | H125: 1570.36 | I125: 405.81 | J125: 9.67 | L125: 415.48 | M125: 0.2686825083 | N125: 0.1611935323 | P125: 0.2645762755 | Q125: 0.3054815517 | R125: 97862.8 | S125: 0.2752844106 | T125: 79.99 | U125: 0.327356031 | V125: 18257.4 | W125: 0.2994737053 | X125: 77990.52 | Y125: 0.3521294686 | Z125: 1534.89 | AA125: 0 | AB125: 0 | AC125: 0 | AD125: 0 | AE125: 63 | AF125: 1 | AH125: 64
A126: 272Aquagym univ | B126: 272 | C126: Warszawa Targowek | D126: Aquagym univ | E126: 2588.93 | F126: 299.96 | G126: 59.99 | H126: 2948.88 | I126: 634.65 | J126: 92.65 | K126: 8.66 | L126: 735.96 | M126: 0.245139884 | N126: 0.3088745166 | O126: 0.1443573929 | P126: 0.2495727191 | Q126: 0.3070118283 | R126: 273017.95 | S126: 0 | T126: 0 | U126: 0.3013842044 | V126: 99596.56 | W126: 0.2990211348 | X126: 101701.44 | Y126: 0.3256027545 | Z126: 71240.03 | AA126: 0.4085680947 | AB126: 479.92 | AC126: 0 | AD126: 0 | AE126: 57 | AF126: 4 | AG126: 1 | AH126: 62
A127: 272Result | B127: 272 | C127: Warszawa Targowek | D127: Result | E127: 1434300.57 | F127: 112261.02 | G127: 4777.33 | H127: 1551338.92 | I127: 376375.76 | J127: 8486.89 | K127: -1005.72 | L127: 383856.93 | M127: 0.2624106605 | N127: 0.07559961597 | O127: -0.2105192649 | P127: 0.247543618 | Q127: 0.2483462949 | R127: 85271507.94 | S127: 0.2106580203 | T127: 574767.53 | U127: 0.2585973088 | V127: 41243581.34 | W127: 0.2444522191 | X127: 28141021.81 | Y127: 0.2294491102 | Z127: 14497857.27 | AA127: 0.2228802624 | AB127: 524461.38 | AC127: 0.2337902318 | AD127: 289818.61 | AE127: 34009 | AF127: 2160 | AG127: 150 | AH127: 36319
A128: 380Kid cycling Univ | B128: 380 | C128: Krakow Zakopianska | D128: Kid cycling Univ | E128: 7934.39 | F128: 349.9 | H128: 8284.29 | I128: 1240.8 | J128: 53.33 | L128: 1294.13 | M128: 0.1563825322 | N128: 0.1524149757 | P128: 0.1562149563 | Q128: 0.1973785507 | R128: 2466624.1 | S128: 0.1794785897 | T128: 20596.83 | U128: 0.206843419 | V128: 731610.03 | W128: 0.1982705282 | X128: 1052880.99 | Y128: 0.1871245235 | Z128: 646456.85 | AA128: 0.1398431033 | AB128: 10799.46 | AC128: 0.1401538339 | AD128: 4279.94 | AE128: 61 | AF128: 10 | AH128: 71
A129: 380Boating, Dinghy, Windsurf | B129: 380 | C129: Krakow Zakopianska | D129: Boating, Dinghy, Windsurf | E129: 15294.52 | F129: 2299.7 | G129: -199.99 | H129: 17394.23 | I129: 3803.22 | J129: 332.25 | K129: -58.47 | L129: 4077 | M129: 0.2486655351 | N129: 0.1444753664 | O129: -0.2923646182 | P129: 0.2343880701 | Q129: 0.2348488604 | R129: 701034.23 | S129: 0 | T129: 0 | U129: 0.2358438236 | V129: 533134.25 | W129: 0.2344053854 | X129: 165725.16 | Y129: 0.06908792319 | Z129: 2374.8 | AA129: -0.410901168 | AB129: -279.97 | AC129: 0.05963245406 | AD129: 79.99 | AE129: 148 | AF129: 30 | AG129: -1 | AH129: 177
A130: 380Jogging Univ | B130: 380 | C130: Krakow Zakopianska | D130: Jogging Univ | E130: 53250.75 | F130: 3035.15 | G130: 39.99 | H130: 56325.89 | I130: 13676.37 | J130: 556.13 | K130: 3.47 | L130: 14235.97 | M130: 0.2568296221 | N130: 0.1832298239 | O130: 0.08677169292 | P130: 0.2527429216 | Q130: 0.2386465911 | R130: 2209653.31 | S130: 0.2901972226 | T130: 4078.64 | U130: 0.2408834347 | V130: 1377534.7 | W130: 0.2351694933 | X130: 697276.75 | Y130: 0.2321546685 | Z130: 127283.85 | AA130: 0.226929013 | AB130: 3479.37 | AC130: DIV/0 | AD130: 0 | AE130: 1425 | AF130: 85 | AG130: 1 | AH130: 1511
A131: 380Hiking univ | B131: 380 | C131: Krakow Zakopianska | D131: Hiking univ | E131: 310250.04 | F131: 12027.06 | G131: -302.01 | H131: 321975.09 | I131: 78992.86 | J131: 1342.29 | K131: -187.97 | L131: 80147.18 | M131: 0.2546103137 | N131: 0.1116058289 | O131: -0.6223966094 | P131: 0.2488140618 | Q131: 0.2562133226 | R131: 13271210.12 | S131: 0.3215165551 | T131: 29071.94 | U131: 0.2508567851 | V131: 6196381.57 | W131: 0.2658166976 | X131: 4536737.01 | Y131: 0.2513670515 | Z131: 2483474.49 | AA131: 0.3266586009 | AB131: 8372.87 | AC131: 0.2079047346 | AD131: 17172.24 | AE131: 5246 | AF131: 293 | AG131: 1 | AH131: 5540
A132: 380Fitness Cardio univ | B132: 380 | C132: Krakow Zakopianska | D132: Fitness Cardio univ | E132: 42635.1 | F132: 3329.34 | G132: -24.99 | H132: 45939.45 | I132: 10570.02 | J132: 671.26 | K132: -4.7 | L132: 11236.58 | M132: 0.2479182645 | N132: 0.2016195402 | O132: -0.1880752301 | P132: 0.2445954403 | Q132: 0.2336020472 | R132: 2556627.38 | S132: 0.1451882405 | T132: 2758.97 | U132: 0.2390032554 | V132: 1400702.26 | W132: 0.2276200252 | X132: 880213.68 | Y132: 0.2281400634 | Z132: 269423.7 | AA132: -0.1868554495 | AB132: 2628.77 | AC132: 0.8122444444 | AD132: 900 | AE132: 698 | AF132: 66 | AG132: -1 | AH132: 763
A133: 380Hunting univ | B133: 380 | C133: Krakow Zakopianska | D133: Hunting univ | E133: 31352.51 | F133: 1306.9 | G133: 199.9 | H133: 32859.31 | I133: 8269.28 | J133: 157.83 | K133: 46.75 | L133: 8473.86 | M133: 0.2637517698 | N133: 0.1207666998 | O133: 0.2338669335 | P133: 0.2578830779 | Q133: 0.2658138075 | R133: 895390.47 | S133: 0.08979731789 | T133: 524.96 | U133: 0.2692940481 | V133: 670548.76 | W133: 0.2547898271 | X133: 199565.66 | Y133: 0.255378115 | Z133: 20401.2 | AA133: 0.226827545 | AB133: 919.95 | AC133: 0.3263118305 | AD133: 3429.94 | AE133: 449 | AF133: 10 | AG133: 1 | AH133: 460
A134: 380Tennis univ | B134: 380 | C134: Krakow Zakopianska | D134: Tennis univ | E134: 34794.16 | F134: 411.78 | G134: 144.96 | H134: 35350.9 | I134: 8892.68 | J134: 38.36 | K134: 14.77 | L134: 8945.81 | M134: 0.255579672 | N134: 0.0931565399 | O134: 0.1018901766 | P134: 0.2530574893 | Q134: 0.2484038445 | R134: 1741692.81 | S134: 0.3298337153 | T134: 8038.02 | U134: 0.2670689079 | V134: 1273575.62 | W134: 0.1952665178 | X134: 434621.26 | Y134: 0.05010638531 | Z134: 9117.8 | AA134: 0.3194047098 | AB134: 5694.03 | AC134: 0.2552103685 | AD134: 10646.08 | AE134: 1834 | AF134: 22 | AG134: 4 | AH134: 1860
A135: 380Triathlon, Nutrition & Care univ | B135: 380 | C135: Krakow Zakopianska | D135: Triathlon, Nutrition & Care univ | E135: 13580.3 | F135: 124.95 | H135: 13705.25 | I135: 3861.71 | J135: 20.66 | L135: 3882.37 | M135: 0.2843611702 | N135: 0.1653461385 | P135: 0.2832761168 | Q135: 0.3172348758 | R135: 693083.38 | S135: 0 | T135: 0 | U135: 0.3211060838 | V135: 390632.96 | W135: 0.3173630186 | X135: 246373.98 | Y135: 0.2975666001 | Z135: 40251.09 | AA135: 0.2543283046 | AB135: 7346.41 | AC135: 0.2830342 | AD135: 8478.94 | AE135: 2700 | AF135: 5 | AH135: 2705
A136: 380Football univ | B136: 380 | C136: Krakow Zakopianska | D136: Football univ | E136: 113264.07 | F136: 7472.01 | G136: -2169.91 | H136: 118566.17 | I136: 28018.88 | J136: 1082.18 | K136: -508.42 | L136: 28592.64 | M136: 0.2473765952 | N136: 0.1448311766 | O136: -0.2343046486 | P136: 0.2413401057 | Q136: 0.233518274 | R136: 4087399.43 | S136: 0.1562312462 | T136: 1449.71 | U136: 0.2380531229 | V136: 1937182.19 | W136: 0.241845543 | X136: 1357379.16 | Y136: 0.2083075954 | Z136: 781304.54 | AA136: 0.2054343487 | AB136: 9393.95 | AC136: 0.2117614658 | AD136: 689.88 | AE136: 3193 | AF136: 98 | AG136: -9 | AH136: 3282
A137: 380Skate Scooter Inline univ | B137: 380 | C137: Krakow Zakopianska | D137: Skate Scooter Inline univ | E137: 45278.51 | F137: 1469.92 | G137: -129.99 | H137: 46618.44 | I137: 9930.72 | J137: 173.67 | K137: -23.46 | L137: 10080.93 | M137: 0.2193252384 | N137: 0.118149287 | O137: -0.1804754212 | P137: 0.2162434007 | Q137: 0.236042398 | R137: 4300193.9 | S137: 0.1486462841 | T137: 66923.57 | U137: 0.2443935029 | V137: 2288551.51 | W137: 0.2275192323 | X137: 1311199.44 | Y137: 0.2338239371 | Z137: 578881.28 | AA137: 0.1207081351 | AB137: 17689.28 | AC137: 0.2695184853 | AD137: 36948.82 | AE137: 416 | AF137: 8 | AG137: -1 | AH137: 423
A138: 380Services | B138: 380 | C138: Krakow Zakopianska | D138: Services | H138: 0 | L138: 0 | Q138: 0.2604072517 | R138: 5122.63 | S138: 0 | T138: 0 | U138: 0.2562471586 | V138: 5235.18 | W138: -0.7269244166 | X138: 57.42 | Y138: 0 | Z138: 0 | AA138: 0 | AB138: 0 | AC138: 0.2012708125 | AD138: -169.97 | AH138: 0
A139: 380Swimming univ | B139: 380 | C139: Krakow Zakopianska | D139: Swimming univ | E139: 66481.99 | F139: 2008.51 | G139: -70 | H139: 68420.5 | I139: 21132.26 | J139: 502.42 | K139: -31.25 | L139: 21603.43 | M139: 0.3178644322 | N139: 0.2501456303 | O139: -0.4464285714 | P139: 0.3157449887 | Q139: 0.3214516472 | R139: 3431053.44 | S139: 0 | T139: 0 | U139: 0.3184707281 | V139: 1669754.37 | W139: 0.3284489541 | X139: 1356503.33 | Y139: 0.3106828171 | Z139: 391117.06 | AA139: 0.2993300523 | AB139: 13678.68 | AC139: 0 | AD139: 0 | AE139: 2351 | AF139: 49 | AG139: 0 | AH139: 2400
A140: 380Horse riding univ | B140: 380 | C140: Krakow Zakopianska | D140: Horse riding univ | E140: 18115.49 | F140: 932.81 | G140: 11.98 | H140: 19060.28 | I140: 5123.77 | J140: 176.5 | K140: -16.23 | L140: 5284.04 | M140: 0.2828391614 | N140: 0.1892132374 | O140: -1.35475793 | P140: 0.2772278267 | Q140: 0.2880389307 | R140: 741389.4 | S140: 0.1986306639 | T140: 129.99 | U140: 0.2884680813 | V140: 579057.93 | W140: 0.2909829549 | X140: 158372.06 | Y140: -0.2515174507 | Z140: 1159.84 | AA140: 0.3137939354 | AB140: 2569.68 | AC140: -1.148548549 | AD140: 99.9 | AE140: 351 | AF140: 19 | AG140: 2 | AH140: 372
A141: 380saltwater Fishing univ | B141: 380 | C141: Krakow Zakopianska | D141: saltwater Fishing univ | E141: 334.89 | H141: 334.89 | I141: 81.22 | L141: 81.22 | M141: 0.2425273971 | P141: 0.2425273971 | Q141: 0.2523088656 | R141: 52897.19 | S141: 0 | T141: 0 | U141: 0.2442374107 | V141: 49534.59 | W141: 0.371267146 | X141: 3272.63 | Y141: 0.369123041 | Z141: 89.97 | AA141: 0 | AB141: 0 | AC141: 0 | AD141: 0 | AE141: 11 | AH141: 11
A142: 380Target sport univ | B142: 380 | C142: Krakow Zakopianska | D142: Target sport univ | E142: 1871.42 | F142: 159.98 | H142: 2031.4 | I142: 523.61 | J142: 48.43 | L142: 572.04 | M142: 0.2797928845 | N142: 0.3027253407 | P142: 0.2815988973 | Q142: 0.2922396819 | R142: 129258.49 | S142: 0.1473883946 | T142: 389.99 | U142: 0.2927843589 | V142: 126163.98 | W142: 0.3378390007 | X142: 1394.54 | Y142: 0.2387460416 | Z142: 1319.98 | AA142: -0.813 | AB142: -10 | AC142: 0 | AD142: 0 | AE142: 58 | AF142: 2 | AH142: 60
A143: 380Golf univ | B143: 380 | C143: Krakow Zakopianska | D143: Golf univ | E143: 1259.67 | F143: 169.96 | H143: 1429.63 | I143: 463.95 | J143: 36.92 | L143: 500.87 | M143: 0.3683107481 | N143: 0.217227583 | P143: 0.3503493911 | Q143: 0.3053385223 | R143: 108540.71 | S143: DIV/0 | T143: 0 | U143: 0.3132017699 | V143: 107192.37 | W143: -0.9187668216 | X143: -449.57 | Y143: -1.701085114 | Z143: 58.98 | AA143: 0.040603507 | AB143: 1658.97 | AC143: 0.1855927964 | AD143: 79.96 | AE143: 33 | AF143: 4 | AH143: 37
A144: 380Walking univ | B144: 380 | C144: Krakow Zakopianska | D144: Walking univ | E144: 14108.48 | F144: 1359.81 | G144: -289.99 | H144: 15178.3 | I144: 3784.51 | J144: 141.79 | K144: -106.42 | L144: 3819.88 | M144: 0.2682436379 | N144: 0.1042719203 | O144: -0.3669781717 | P144: 0.2516671828 | Q144: 0.2705930061 | R144: 1215102.1 | S144: 0 | T144: 0 | U144: 0.2807283186 | V144: 941147.41 | W144: 0.235497387 | X144: 266783.13 | Y144: 0.2266256536 | Z144: 6781.58 | AA144: 0.3756375638 | AB144: 199.98 | AC144: 0.8035263158 | AD144: 190 | AE144: 152 | AF144: 19 | AG144: -1 | AH144: 170
A145: 380Ski Snowboard Sledge univ | B145: 380 | C145: Krakow Zakopianska | D145: Ski Snowboard Sledge univ | E145: 30983.62 | F145: 7909.63 | G145: 1073.92 | H145: 39967.17 | I145: 9411.28 | J145: 849.16 | K145: 144.74 | L145: 10405.18 | M145: 0.3037501751 | N145: 0.1073577399 | O145: 0.1347772646 | P145: 0.2596473167 | Q145: 0.2507147677 | R145: 3645387.18 | S145: 0.39852136 | T145: 12987.61 | U145: 0.2776663078 | V145: 1718171.08 | W145: 0.2398044536 | X145: 1189011.07 | Y145: 0.210443574 | Z145: 672052.88 | AA145: 0.04362647481 | AB145: 20493.29 | AC145: 0.129928607 | AD145: 32671.25 | AE145: 838 | AF145: 137 | AG145: 8 | AH145: 983
A146: 380Climbing, Mountaineering univ | B146: 380 | C146: Krakow Zakopianska | D146: Climbing, Mountaineering univ | E146: 14596.17 | F146: 359.98 | H146: 14956.15 | I146: 3451.61 | J146: 19.92 | L146: 3471.53 | M146: 0.2364736777 | N146: 0.05533640758 | P146: 0.2321138796 | Q146: 0.2543851081 | R146: 620116.41 | S146: 0.2850942444 | T146: 5370.61 | U146: 0.256004075 | V146: 339573.54 | W146: 0.2531215988 | X146: 147750.41 | Y146: 0.2502259167 | Z146: 127026.89 | AA146: 0.2537020142 | AB146: 284.98 | AC146: 0.2591380251 | AD146: 109.98 | AE146: 183 | AF146: 2 | AH146: 185
A147: 380Boxing Univ | B147: 380 | C147: Krakow Zakopianska | D147: Boxing Univ | E147: 4179.23 | F147: 464.91 | H147: 4644.14 | I147: 1304.66 | J147: 84.42 | L147: 1389.08 | M147: 0.3121771235 | N147: 0.1815835323 | P147: 0.2991038169 | Q147: 0.308785576 | R147: 164520.8 | S147: 0 | T147: 0 | U147: 0.3036876706 | V147: 114430.23 | W147: 0.3211526542 | X147: 48030.71 | Y147: 0.3036177216 | Z147: 2059.86 | AA147: 0 | AB147: 0 | AC147: 0 | AD147: 0 | AE147: 77 | AF147: 9 | AH147: 86
A148: 380Univ Iceskating, Ice hockey | B148: 380 | C148: Krakow Zakopianska | D148: Univ Iceskating, Ice hockey | E148: 1594.79 | F148: 649.92 | H148: 2244.71 | I148: 347.11 | J148: 45.17 | L148: 392.28 | M148: 0.2176524809 | N148: 0.06950086164 | P148: 0.1747575411 | Q148: 0.1392060577 | R148: 239093.69 | S148: -0.3602863761 | T148: -94.98 | U148: 0.1221899541 | V148: 55851.4 | W148: 0.1282279036 | X148: 87825.19 | Y148: 0.1588941852 | Z148: 95362.08 | AA148: 0.5260666667 | AB148: 150 | AC148: 0 | AD148: 0 | AE148: 21 | AF148: 8 | AH148: 29
A149: 380Diving univ | B149: 380 | C149: Krakow Zakopianska | D149: Diving univ | E149: 13180.65 | F149: 1714.86 | H149: 14895.51 | I149: 2364.38 | J149: 387.31 | L149: 2751.69 | M149: 0.1793826556 | N149: 0.2258551719 | P149: 0.184732849 | Q149: 0.2513404706 | R149: 1551828.12 | S149: 0.2058880994 | T149: 37260.92 | U149: 0.2579754814 | V149: 662046.87 | W149: 0.260710565 | X149: 626846.48 | Y149: 0.2133542465 | Z149: 223209.15 | AA149: 0.1545622132 | AB149: 764.87 | AC149: 0.2396886747 | AD149: 1699.83 | AE149: 234 | AF149: 14 | AH149: 248
A150: 380Surf, bodyboard, towed/aerial sports | B150: 380 | C150: Krakow Zakopianska | D150: Surf, bodyboard, towed/aerial sports | E150: 1726.73 | F150: -124.99 | G150: 19.99 | H150: 1621.73 | I150: 315.02 | J150: -70.3 | K150: -4.17 | L150: 240.55 | M150: 0.1824373237 | N150: -0.5624449956 | O150: -0.2086043022 | P150: 0.1483292533 | Q150: 0.2559824289 | R150: 1507190.09 | S150: DIV/0 | T150: 0 | U150: 0.2609770946 | V150: 1008173.65 | W150: 0.246999596 | X150: 467616.19 | Y150: -0.1080139508 | Z150: 2571.89 | AA150: 0.2493316524 | AB150: 5393.9 | AC150: 0.2618310812 | AD150: 23434.46 | AE150: 27 | AF150: -1 | AG150: 1 | AH150: 27
A151: 380Kayak, stand up paddle univ | B151: 380 | C151: Krakow Zakopianska | D151: Kayak, stand up paddle univ | E151: 99.97 | H151: 99.97 | I151: 5.89 | L151: 5.89 | M151: 0.0589176753 | P151: 0.0589176753 | Q151: 0.2650424059 | R151: 263573.03 | S151: 0 | T151: 0 | U151: 0.2669136801 | V151: 240993.68 | W151: 0.2883872518 | X151: 16148.46 | Y151: 0.1629208034 | Z151: 4432.89 | AA151: 0.07722722723 | AB151: 1998 | AC151: 0 | AD151: 0 | AE151: 3 | AH151: 3
A152: 380Basket univ | B152: 380 | C152: Krakow Zakopianska | D152: Basket univ | E152: 7487 | F152: 419.97 | G152: 219.99 | H152: 8126.96 | I152: 2383 | J152: 35.49 | K152: 10.61 | L152: 2429.1 | M152: 0.3182850274 | N152: 0.08450603615 | O152: 0.04822946498 | P152: 0.2988940514 | Q152: 0.2815671412 | R152: 430441.1 | S152: 0 | T152: 0 | U152: 0.3088819046 | V152: 295167.21 | W152: 0.2225542617 | X152: 130389.46 | Y152: 0.2099207766 | Z152: 4454.49 | AA152: 0.1684886263 | AB152: 429.94 | AC152: 0 | AD152: 0 | AE152: 300 | AF152: 3 | AG152: 1 | AH152: 304
A153: 380Kite sports univ | B153: 380 | C153: Krakow Zakopianska | D153: Kite sports univ | E153: 49.99 | H153: 49.99 | I153: 12.97 | L153: 12.97 | M153: 0.2594518904 | P153: 0.2594518904 | Q153: 0.2311379755 | R153: 29301.07 | S153: 0 | T153: 0 | U153: 0.2254882337 | V153: 26528.79 | W153: 0.2859512983 | X153: 2091.51 | Y153: 0.2728015691 | Z153: 611.8 | AA153: 0.3724807887 | AB153: 68.97 | AC153: 0 | AD153: 0 | AE153: 1 | AH153: 1
A154: 380Trekking several days univ | B154: 380 | C154: Krakow Zakopianska | D154: Trekking several days univ | E154: 131573.12 | F154: 9576.45 | G154: 477.98 | H154: 141627.55 | I154: 34595.59 | J154: 1442.17 | K154: 15.61 | L154: 36053.37 | M154: 0.262938129 | N154: 0.1505954712 | O154: 0.03265827022 | P154: 0.2545646663 | Q154: 0.2750318778 | R154: 4336397.4 | S154: 0.3092649214 | T154: 41454.75 | U154: 0.2814375591 | V154: 1853492.66 | W154: 0.2720767862 | X154: 1479681.18 | Y154: 0.2641189274 | Z154: 933153.04 | AA154: 0.3219748523 | AB154: 29485.75 | AC154: -0.4130899561 | AD154: -869.98 | AE154: 1488 | AF154: 255 | AG154: 2 | AH154: 1745
A155: 380Cross country ski univ | B155: 380 | C155: Krakow Zakopianska | D155: Cross country ski univ | E155: 249.97 | F155: 454.88 | H155: 704.85 | I155: 79.09 | J155: -1.59 | L155: 77.5 | M155: 0.3163979678 | N155: -0.003495427365 | P155: 0.1099524722 | Q155: 0.1771711116 | R155: 79728.63 | S155: 0 | T155: 0 | U155: 0.2022299335 | V155: 25737.09 | W155: 0.1733579483 | X155: 53246.65 | Y155: -0.4160748567 | Z155: 744.89 | AA155: 0 | AB155: 0 | AC155: 0 | AD155: 0 | AE155: 3 | AF155: 12 | AH155: 15
A156: 380Canyoning univ | B156: 380 | C156: Krakow Zakopianska | D156: Canyoning univ | H156: 0 | L156: 0 | AH156: 0
